Workbook

Sheet Readme
A1: ECONOMIC BENCHMARKING MODEL
A2: Version: 28 May2013
A3: By Regulatory Development Branch, the Australian Competition and Consumer Commission
A5: Summary:
A6: This spreadsheet contains the model constructed for benchmarking NSPs.
A8: Color-coding convention used for the data, analytical and application worksheets:
A9: – Raw data cell: | B9: light blue
A10: – Calculation cell: | B10: dark blue
A11: – Input cell: | B11: light yellow
A13: Data Worksheets: | I13: Worksheet links:
A14: A. General data
A15: – General information such as output revenue share and input cost share, WPI
A17: B. Generated NSP data
A18: – Input, output and other data for thirteen hypothetical NSPs over six years
A20: Analytical Worksheets:
A21: C. MTFP index results
A22: – MTFP results using index-number-based TFP (Tornqvist form as per CCD (1982))
A24: D. Further TFP analysis
A25: – Containing tabulated and graphical analysis of raw MTFP results
A27: E. DEA CE Results
A28: – CE results using Excel Solver to run DEA linear programming
A30: F. DEA TE Results
A31: – TE results using Excel Solver to run DEA linear programming
A33: G. DEA results
A34: – Containing further analysis of DEA CE results and decomposition
A36: H. Opex efficiency
A37: – Opex efficiency results from econometric modelling of opex function
A39: I. Opex productivity
A40: – Opex partial productivity results from econometric modelling of opex function
A42: Application Worksheet:
A43: J. Regulatory application - Opex
A44: – Using opex cost modelling results to adjust forecast opex under the BBM
A46: K. Regulatory application - Total Cost
A47: – Using total cost assessment results to adjust forecast expenditure under the BBM

Sheet Gen Data
A1: GENERAL DATA
A3: The variables shaded in light yellow input-cells (in this worksheet and in some other worksheets) can be changed to test different assumptions.
C4: Revenue Shares | F4: Asset User Cost Shares
A5: NSP | C5: Output 1 | D5: Output 2 | F5: Inputs 2 and 3 | G5: Input 4
B6: Unit of measurement | C6: % | D6: % | F6: % | G6: %
A7: NSP1 | C7: 0.5 | D7: 0.5 | F7: 0.69 | G7: 0.31
A8: NSP2 | C8: 0.5 | D8: 0.5 | F8: 0.69 | G8: 0.31
A9: NSP3 | C9: 0.5 | D9: 0.5 | F9: 0.69 | G9: 0.31
A10: NSP4 | C10: 0.5 | D10: 0.5 | F10: 0.69 | G10: 0.31
A11: NSP5 | C11: 0.5 | D11: 0.5 | F11: 0.69 | G11: 0.31
A12: NSP6 | C12: 0.5 | D12: 0.5 | F12: 0.69 | G12: 0.31
A13: NSP7 | C13: 0.5 | D13: 0.5 | F13: 0.69 | G13: 0.31
A14: NSP8 | C14: 0.5 | D14: 0.5 | F14: 0.69 | G14: 0.31
A15: NSP9 | C15: 0.5 | D15: 0.5 | F15: 0.69 | G15: 0.31
A16: NSP10 | C16: 0.5 | D16: 0.5 | F16: 0.69 | G16: 0.31
A17: NSP11 | C17: 0.5 | D17: 0.5 | F17: 0.69 | G17: 0.31
A18: NSP12 | C18: 0.5 | D18: 0.5 | F18: 0.69 | G18: 0.31
A19: NSP13 | C19: 0.5 | D19: 0.5 | F19: 0.69 | G19: 0.31
A21: Notes on revenue shares:
A22: 1. Specific source data for the calculation of output revenue shares may not be readily available.
A23: 2. Equal weights between the two outputs are assumed for every NSP.
A25: Notes on asset user cost shares:
A26: 1. Specific cost data in accordance with the required categorisation may not be readily available. Most of them are assumed values.
A27: 2. The cost allocation between inputs 2 and 3 is assumed to be based on two factors: relative line length; and relative unit-cost ratio at 1:5 for input 2 to input 3. Calculation is done in the 'TFP Index' worksheet.
A28: 3. Cost share between input 1 (non-asset input) and inputs 2 to 4 (asset inputs) is based on actual cost data. Calculation is done in the 'TFP Index' worksheet
C30: Year
A31: Other General Data | C31: 2006 | D31: 2007 | E31: 2008 | F31: 2009 | G31: 2010 | H31: 2011 | I31: Average growth rate
A32: Economy-wide | B32: Unit of measurement
A33: CPI
A35: Industry-specific | B35: Unit of measurement
A36: Wage Price Index | B36: Index (2008 = 100) | C36: 92 | D36: 95.8 | E36: 100 | F36: 104.4 | G36: 108.7 | H36: 112.6 | I36: =POWER(H36/C36,1/5)-1 -> 0.04123824772
A38: Notes on WPI:
A39: 1. WPI data are sourced from: ABS 6345.0 Wage Price Index - Australia, Table 5a: Total Hourly Rates of Pay Excluding Bonus: Sector by Industry (Original). The data series number is A2705170J (Index for Public and Private Sector).

Sheet NSP Data
A1: DATA ON THIRTEEN HYPOTHETICAL NSPS
A3: year | B3: wpi | C3: nsp_no | D3: Y1 | E3: Y2 | F3: X1 | G3: X2 | H3: X3 | I3: X4 | J3: V1 | K3: V2 | L3: C1 | M3: C2 | N3: TC
A4: 2006 | B4: 92 | C4: 1 | D4: 260958.54 | E4: 763.65747 | F4: 48648.253 | G4: 27171.852 | H4: 2646.4099 | I4: 3175.3119 | J4: 3950.7631 | K4: 625100.66 | L4: 44756.393 | M4: 78137.583 | N4: 122893.98
A5: 2006 | B5: 92 | C5: 2 | D5: 259988.24 | E5: 766.91209 | F5: 51304.694 | G5: 27862.556 | H5: 2680.853 | I5: 3138.0941 | J5: 3858.3023 | K5: 636482.91 | L5: 47200.319 | M5: 79560.364 | N5: 126760.68
A6: 2006 | B6: 92 | C6: 3 | D6: 244280.83 | E6: 751.98679 | F6: 52268.164 | G6: 25153.935 | H6: 2777.3168 | I6: 3085.81 | J6: 3977.5898 | K6: 599092.62 | L6: 48086.711 | M6: 74886.578 | N6: 122973.29
A7: 2006 | B7: 92 | C7: 4 | D7: 253000.71 | E7: 745.98934 | F7: 50028.771 | G7: 25560.025 | H7: 2687.3012 | I7: 3080.3977 | J7: 3937.6082 | K7: 587567.04 | L7: 46026.469 | M7: 73445.88 | N7: 119472.35
A8: 2006 | B8: 92 | C8: 5 | D8: 246115 | E8: 735.71371 | F8: 51303.915 | G8: 24718.831 | H8: 2848.3146 | I8: 3134.4138 | J8: 3772.6538 | K8: 602917.72 | L8: 47199.602 | M8: 75364.715 | N8: 122564.32
A9: 2006 | B9: 92 | C9: 6 | D9: 251995.33 | E9: 722.0526 | F9: 51914.53 | G9: 21966.665 | H9: 2812.6669 | I9: 3220.1586 | J9: 3848.4696 | K9: 559891.05 | L9: 47761.367 | M9: 69986.382 | N9: 117747.75
A10: 2006 | B10: 92 | C10: 7 | D10: 248161.5 | E10: 735.67231 | F10: 53113.086 | G10: 21546.896 | H10: 2776.6566 | I10: 3234.4391 | J10: 3834.0853 | K10: 575323.15 | L10: 48864.039 | M10: 71915.394 | N10: 120779.43
A11: 2006 | B11: 92 | C11: 8 | D11: 235651.49 | E11: 721.17806 | F11: 51850.385 | G11: 20934.68 | H11: 2925.8294 | I11: 3259.5329 | J11: 3772.5151 | K11: 558310.85 | L11: 47702.354 | M11: 69788.857 | N11: 117491.21
A12: 2006 | B12: 92 | C12: 9 | D12: 236923.52 | E12: 707.50348 | F12: 51700.429 | G12: 20218.793 | H12: 2852.9676 | I12: 3165.2949 | J12: 3888.7518 | K12: 555416.14 | L12: 47564.395 | M12: 69427.017 | N12: 116991.41
A13: 2006 | B13: 92 | C13: 10 | D13: 245380.01 | E13: 695.08498 | F13: 54360.209 | G13: 19554.833 | H13: 3015.3524 | I13: 3063.7746 | J13: 3860.5246 | K13: 534056.3 | L13: 50011.392 | M13: 66757.037 | N13: 116768.43
A14: 2006 | B14: 92 | C14: 11 | D14: 227047.3 | E14: 702.34383 | F14: 52744.929 | G14: 18038.598 | H14: 2961.5382 | I14: 3133.3242 | J14: 3789.0919 | K14: 517955.78 | L14: 48525.335 | M14: 64744.472 | N14: 113269.81
A15: 2006 | B15: 92 | C15: 12 | D15: 233134.73 | E15: 689.15843 | F15: 53406.722 | G15: 17227.361 | H15: 3084.9824 | I15: 3082.1275 | J15: 3772.9376 | K15: 509238.87 | L15: 49134.184 | M15: 63654.859 | N15: 112789.04
A16: 2006 | B16: 92 | C16: 13 | D16: 231958.06 | E16: 690.39989 | F16: 54380.923 | G16: 16603.792 | H16: 2965.5555 | I16: 3165.3409 | J16: 3769.9786 | K16: 504161.58 | L16: 50030.449 | M16: 63020.197 | N16: 113050.65
A17: 2007 | B17: 95.8 | C17: 1 | D17: 265099.8 | E17: 792.36685 | F17: 49112.403 | G17: 26872.201 | H17: 2841.0418 | I17: 3230.956 | J17: 3939.1758 | K17: 661476.03 | L17: 47049.682 | M17: 82684.504 | N17: 129734.19
A18: 2007 | B18: 95.8 | C18: 2 | D18: 268133.46 | E18: 777.90104 | F18: 51164.515 | G18: 27955.647 | H18: 2852.7765 | I18: 3246.9031 | J18: 3882.4263 | K18: 675660.7 | L18: 49015.605 | M18: 84457.588 | N18: 133473.19
A19: 2007 | B19: 95.8 | C19: 3 | D19: 252246.48 | E19: 771.45629 | F19: 51590.007 | G19: 24974.945 | H19: 2958.1715 | I19: 3150.9227 | J19: 3917.9521 | K19: 639031.28 | L19: 49423.227 | M19: 79878.911 | N19: 129302.14
A20: 2007 | B20: 95.8 | C20: 4 | D20: 259486.53 | E20: 758.18926 | F20: 50206.152 | G20: 25359.967 | H20: 2886.6029 | I20: 3169.4103 | J20: 3940.6282 | K20: 639928.68 | L20: 48097.494 | M20: 79991.085 | N20: 128088.58
A21: 2007 | B21: 95.8 | C21: 5 | D21: 252073.04 | E21: 759.22022 | F21: 51090.879 | G21: 24306.884 | H21: 2988.348 | I21: 3210.9556 | J21: 3764.7127 | K21: 651703.54 | L21: 48945.062 | M21: 81462.943 | N21: 130408
A22: 2007 | B22: 95.8 | C22: 6 | D22: 258204.57 | E22: 739.92933 | F22: 51541.911 | G22: 22425.906 | H22: 3000.954 | I22: 3268.2723 | J22: 3838.1963 | K22: 607507.54 | L22: 49377.151 | M22: 75938.443 | N22: 125315.59
A23: 2007 | B23: 95.8 | C23: 7 | D23: 253034.65 | E23: 753.30521 | F23: 52395.194 | G23: 21594.179 | H23: 2989.3356 | I23: 3276.6862 | J23: 3808.9721 | K23: 628703.99 | L23: 50194.595 | M23: 78587.999 | N23: 128782.59
A24: 2007 | B24: 95.8 | C24: 8 | D24: 239423.86 | E24: 731.99708 | F24: 51640.893 | G24: 21226.959 | H24: 3116.5108 | I24: 3296.9125 | J24: 3698.8668 | K24: 599905.78 | L24: 49471.976 | M24: 74988.222 | N24: 124460.2
A25: 2007 | B25: 95.8 | C25: 9 | D25: 245309.24 | E25: 729.44895 | F25: 51568.452 | G25: 20265.721 | H25: 3067.8914 | I25: 3180.9246 | J25: 3818.7375 | K25: 617195.94 | L25: 49402.577 | M25: 77149.492 | N25: 126552.07
A26: 2007 | B26: 95.8 | C26: 10 | D26: 249169.73 | E26: 713.18085 | F26: 53501.233 | G26: 19506.254 | H26: 3188.1904 | I26: 3140.1194 | J26: 3758.3564 | K26: 591863.83 | L26: 51254.181 | M26: 73982.978 | N26: 125237.16
A27: 2007 | B27: 95.8 | C27: 11 | D27: 232148.07 | E27: 705.29297 | F27: 51460.765 | G27: 17920.861 | H27: 3142.841 | I27: 3104.2629 | J27: 3648.2999 | K27: 567406.27 | L27: 49299.413 | M27: 70925.784 | N27: 120225.2
A28: 2007 | B28: 95.8 | C28: 12 | D28: 237722.39 | E28: 699.72629 | F28: 52417.448 | G28: 17133.712 | H28: 3261.0225 | I28: 3104.7474 | J28: 3672.7449 | K28: 556039.58 | L28: 50215.915 | M28: 69504.947 | N28: 119720.86
A29: 2007 | B29: 95.8 | C29: 13 | D29: 238862.1 | E29: 699.68506 | F29: 54760.035 | G29: 16369.416 | H29: 3129.7906 | I29: 3146.517 | J29: 3651.9682 | K29: 560189.53 | L29: 52460.113 | M29: 70023.691 | N29: 122483.8
A30: 2008 | B30: 100 | C30: 1 | D30: 268403.87 | E30: 819.74343 | F30: 48451.247 | G30: 27353.877 | H30: 3021.0841 | I30: 3276.2424 | J30: 3954.4185 | K30: 705902.11 | L30: 48451.247 | M30: 88237.764 | N30: 136689.01
A31: 2008 | B31: 100 | C31: 2 | D31: 268591.24 | E31: 810.46552 | F31: 50885.221 | G31: 27780.927 | H31: 3036.5228 | I31: 3285.869 | J31: 3892.1749 | K31: 725510.98 | L31: 50885.221 | M31: 90688.873 | N31: 141574.09
A32: 2008 | B32: 100 | C32: 3 | D32: 258390.32 | E32: 801.6085 | F32: 51819.628 | G32: 24889.955 | H32: 3136.4438 | I32: 3190.1691 | J32: 3932.5662 | K32: 684419.47 | L32: 51819.628 | M32: 85552.433 | N32: 137372.06
A33: 2008 | B33: 100 | C33: 4 | D33: 263627.69 | E33: 791.18418 | F33: 50308.349 | G33: 25573.936 | H33: 3070.4698 | I33: 3207.064 | J33: 3882.4045 | K33: 676456.28 | L33: 50308.349 | M33: 84557.035 | N33: 134865.38
A34: 2008 | B34: 100 | C34: 5 | D34: 256918.67 | E34: 781.9101 | F34: 50730.18 | G34: 24492.066 | H34: 3171.6396 | I34: 3278.29 | J34: 3683.8163 | K34: 702377.59 | L34: 50730.18 | M34: 87797.199 | N34: 138527.38
A35: 2008 | B35: 100 | C35: 6 | D35: 261472.76 | E35: 759.48901 | F35: 51705.564 | G35: 22119.295 | H35: 3208.0681 | I35: 3325.9454 | J35: 3754.255 | K35: 660779.36 | L35: 51705.564 | M35: 82597.42 | N35: 134302.98
A36: 2008 | B36: 100 | C36: 7 | D36: 260295.25 | E36: 772.02289 | F36: 52306.978 | G36: 21589.511 | H36: 3146.3179 | I36: 3320.6909 | J36: 3743.1828 | K36: 686176.07 | L36: 52306.978 | M36: 85772.008 | N36: 138078.99
A37: 2008 | B37: 100 | C37: 8 | D37: 243726.21 | E37: 745.43717 | F37: 51950.323 | G37: 21042.348 | H37: 3287.1454 | I37: 3294.988 | J37: 3612.3778 | K37: 656364.3 | L37: 51950.323 | M37: 82045.537 | N37: 133995.86
A38: 2008 | B38: 100 | C38: 9 | D38: 248257.85 | E38: 738.31812 | F38: 51989.089 | G38: 20309.737 | H38: 3241.6437 | I38: 3222.7898 | J38: 3748.384 | K38: 660439.86 | L38: 51989.089 | M38: 82554.982 | N38: 134544.07
A39: 2008 | B39: 100 | C39: 10 | D39: 254965.76 | E39: 734.47263 | F39: 53388.495 | G39: 19642.532 | H39: 3356.2361 | I39: 3126.076 | J39: 3691.8273 | K39: 641620.64 | L39: 53388.495 | M39: 80202.58 | N39: 133591.08
A40: 2008 | B40: 100 | C40: 11 | D40: 239411.29 | E40: 726.46905 | F40: 51362.068 | G40: 17975.876 | H40: 3303.987 | I40: 3123.888 | J40: 3555.8551 | K40: 626109.79 | L40: 51362.068 | M40: 78263.724 | N40: 129625.79
A41: 2008 | B41: 100 | C41: 12 | D41: 245602.84 | E41: 712.45464 | F41: 52553.93 | G41: 17449.921 | H41: 3510.2047 | I41: 3129.3352 | J41: 3581.3792 | K41: 623641.12 | L41: 52553.93 | M41: 77955.14 | N41: 130509.07
A42: 2008 | B42: 100 | C42: 13 | D42: 246313.76 | E42: 722.02939 | F42: 53171.332 | G42: 16683.907 | H42: 3329.3318 | I42: 3179.0811 | J42: 3513.8687 | K42: 623594.53 | L42: 53171.332 | M42: 77949.316 | N42: 131120.65
A43: 2009 | B43: 104.4 | C43: 1 | D43: 274743.75 | E43: 842.97624 | F43: 48979.627 | G43: 27045.458 | H43: 3235.8694 | I43: 3362.8482 | J43: 3971.3905 | K43: 754824.63 | L43: 51134.73 | M43: 94353.079 | N43: 145487.81
A44: 2009 | B44: 104.4 | C44: 2 | D44: 274309.54 | E44: 834.90665 | F44: 50613.303 | G44: 27998.764 | H44: 3223.3304 | I44: 3353.6257 | J44: 3874.7698 | K44: 776895.37 | L44: 52840.288 | M44: 97111.921 | N44: 149952.21
A45: 2009 | B45: 104.4 | C45: 3 | D45: 263395.04 | E45: 822.05071 | F45: 51825.311 | G45: 25257.784 | H45: 3323.8087 | I45: 3255.9308 | J45: 3867.3987 | K45: 734432.9 | L45: 54105.625 | M45: 91804.112 | N45: 145909.74
A46: 2009 | B46: 104.4 | C46: 4 | D46: 271948.05 | E46: 811.91051 | F46: 50042.554 | G46: 25573.877 | H46: 3212.1843 | I46: 3289.4168 | J46: 3878.974 | K46: 726546.62 | L46: 52244.426 | M46: 90818.328 | N46: 143062.75
A47: 2009 | B47: 104.4 | C47: 5 | D47: 261199.26 | E47: 792.45034 | F47: 51064.019 | G47: 24410.569 | H47: 3408.3654 | I47: 3315.889 | J47: 3699.2079 | K47: 751929.54 | L47: 53310.836 | M47: 93991.193 | N47: 147302.03
A48: 2009 | B48: 104.4 | C48: 6 | D48: 266786.48 | E48: 782.65094 | F48: 50936.919 | G48: 22393.268 | H48: 3396.5777 | I48: 3400.6919 | J48: 3678.1842 | K48: 712611.84 | L48: 53178.143 | M48: 89076.48 | N48: 142254.62
A49: 2009 | B49: 104.4 | C49: 7 | D49: 263147.37 | E49: 781.546 | F49: 51368.711 | G49: 21753.803 | H49: 3353.5561 | I49: 3359.002 | J49: 3680.6375 | K49: 747652.58 | L49: 53628.935 | M49: 93456.572 | N49: 147085.51
A50: 2009 | B50: 104.4 | C50: 8 | D50: 249460.75 | E50: 770.5552 | F50: 51628.092 | G50: 21137.437 | H50: 3486.1503 | I50: 3386.5368 | J50: 3599.3765 | K50: 717859.65 | L50: 53899.728 | M50: 89732.456 | N50: 143632.18
A51: 2009 | B51: 104.4 | C51: 9 | D51: 254915.63 | E51: 752.4872 | F51: 51506.304 | G51: 20445.2 | H51: 3427.4079 | I51: 3237.1882 | J51: 3693.6975 | K51: 728217.11 | L51: 53772.582 | M51: 91027.138 | N51: 144799.72
A52: 2009 | B52: 104.4 | C52: 10 | D52: 260514.99 | E52: 742.14115 | F52: 53131.926 | G52: 19439.931 | H52: 3544.6399 | I52: 3191.9078 | J52: 3623.7958 | K52: 702514.98 | L52: 55469.731 | M52: 87814.372 | N52: 143284.1
A53: 2009 | B53: 104.4 | C53: 11 | D53: 244944.76 | E53: 740.10779 | F53: 51026.548 | G53: 18181.945 | H53: 3519.0639 | I53: 3201.5946 | J53: 3528.4694 | K53: 681393.66 | L53: 53271.716 | M53: 85174.207 | N53: 138445.92
A54: 2009 | B54: 104.4 | C54: 12 | D54: 249697.26 | E54: 721.02514 | F54: 52272.027 | G54: 17423.464 | H54: 3677.6013 | I54: 3159.0118 | J54: 3508.235 | K54: 686465.55 | L54: 54571.996 | M54: 85808.194 | N54: 140380.19
A55: 2009 | B55: 104.4 | C55: 13 | D55: 248122.75 | E55: 721.95358 | F55: 53050.04 | G55: 16415.04 | H55: 3491.9208 | I55: 3188.3059 | J55: 3386.9541 | K55: 688674.14 | L55: 55384.242 | M55: 86084.268 | N55: 141468.51
A56: 2010 | B56: 108.7 | C56: 1 | D56: 277497.25 | E56: 854.97176 | F56: 49271.353 | G56: 27008.843 | H56: 3452.7155 | I56: 3465.8422 | J56: 3921.0837 | K56: 800332.84 | L56: 53557.96 | M56: 100041.6 | N56: 153599.56
A57: 2010 | B57: 108.7 | C57: 2 | D57: 283374.21 | E57: 860.41878 | F57: 51147.114 | G57: 27824.836 | H57: 3438.7054 | I57: 3450.6434 | J57: 3891.1139 | K57: 828827.77 | L57: 55596.913 | M57: 103603.47 | N57: 159200.38
A58: 2010 | B58: 108.7 | C58: 3 | D58: 266535.22 | E58: 846.15427 | F58: 51955.907 | G58: 25262.372 | H58: 3534.2883 | I58: 3366.6448 | J58: 3851.6955 | K58: 798564.75 | L58: 56476.071 | M58: 99820.594 | N58: 156296.66
A59: 2010 | B59: 108.7 | C59: 4 | D59: 274589.12 | E59: 828.99026 | F59: 50193.839 | G59: 25430.867 | H59: 3450.4574 | I59: 3342.9815 | J59: 3809.9751 | K59: 785686.73 | L59: 54560.703 | M59: 98210.841 | N59: 152771.54
A60: 2010 | B60: 108.7 | C60: 5 | D60: 269839.24 | E60: 818.65869 | F60: 50628.95 | G60: 24619.76 | H60: 3614.9911 | I60: 3344.1717 | J60: 3599.8739 | K60: 815202.48 | L60: 55033.668 | M60: 101900.31 | N60: 156933.98
A61: 2010 | B61: 108.7 | C61: 6 | D61: 273347.05 | E61: 789.63488 | F61: 51588.56 | G61: 22343.698 | H61: 3589.0391 | I61: 3421.272 | J61: 3642.6022 | K61: 765240.2 | L61: 56076.765 | M61: 95655.025 | N61: 151731.79
A62: 2010 | B62: 108.7 | C62: 7 | D62: 267032.34 | E62: 805.66873 | F62: 51283.767 | G62: 21540.124 | H62: 3552.5568 | I62: 3397.3775 | J62: 3594.4321 | K62: 800211.09 | L62: 55745.454 | M62: 100026.39 | N62: 155771.84
A63: 2010 | B63: 108.7 | C63: 8 | D63: 254604.05 | E63: 777.11924 | F63: 51118.204 | G63: 21102.738 | H63: 3704.6959 | I63: 3413.0917 | J63: 3537.3488 | K63: 776053.3 | L63: 55565.488 | M63: 97006.663 | N63: 152572.15
A64: 2010 | B64: 108.7 | C64: 9 | D64: 260847.49 | E64: 776.19819 | F64: 50910.304 | G64: 20579.157 | H64: 3591.1501 | I64: 3305.6918 | J64: 3630.753 | K64: 798282.05 | L64: 55339.5 | M64: 99785.256 | N64: 155124.76
A65: 2010 | B65: 108.7 | C65: 10 | D65: 262926.95 | E65: 757.94729 | F65: 52108.901 | G65: 19718.994 | H65: 3749.6958 | I65: 3202.7645 | J65: 3535.9094 | K65: 772835.03 | L65: 56642.375 | M65: 96604.379 | N65: 153246.75
A66: 2010 | B66: 108.7 | C66: 11 | D66: 253076.93 | E66: 744.70677 | F66: 50739.356 | G66: 18122.11 | H66: 3701.6207 | I66: 3176.7813 | J66: 3406.9 | K66: 758290.32 | L66: 55153.68 | M66: 94786.289 | N66: 149939.97
A67: 2010 | B67: 108.7 | C67: 12 | D67: 257308.63 | E67: 744.1568 | F67: 51671.824 | G67: 17335.9 | H67: 3902.2071 | I67: 3155.0231 | J67: 3353.1436 | K67: 754716.67 | L67: 56167.273 | M67: 94339.584 | N67: 150506.86
A68: 2010 | B68: 108.7 | C68: 13 | D68: 254699.65 | E68: 743.32949 | F68: 52577.402 | G68: 16718.352 | H68: 3730.2514 | I68: 3172.4206 | J68: 3316.2354 | K68: 766929.23 | L68: 57151.636 | M68: 95866.153 | N68: 153017.79
A69: 2011 | B69: 112.6 | C69: 1 | D69: 284277.96 | E69: 887.86511 | F69: 49576.944 | G69: 27194.234 | H69: 3684.1805 | I69: 3551.694 | J69: 3962.3138 | K69: 847662.66 | L69: 55823.638 | M69: 105957.83 | N69: 161781.47
A70: 2011 | B70: 112.6 | C70: 2 | D70: 284748.05 | E70: 888.06908 | F70: 51563.817 | G70: 28087.79 | H70: 3723.7079 | I70: 3528.6811 | J70: 3853.5765 | K70: 877768.65 | L70: 58060.858 | M70: 109721.08 | N70: 167781.94
A71: 2011 | B71: 112.6 | C71: 3 | D71: 270907.36 | E71: 856.61974 | F71: 52086.043 | G71: 25294.577 | H71: 3752.3986 | I71: 3384.7825 | J71: 3867.7905 | K71: 847146.96 | L71: 58648.885 | M71: 105893.37 | N71: 164542.25
A72: 2011 | B72: 112.6 | C72: 4 | D72: 282819.56 | E72: 847.08598 | F72: 49654.068 | G72: 25438.474 | H72: 3695.4159 | I72: 3406.3982 | J72: 3818.5701 | K72: 852828.74 | L72: 55910.481 | M72: 106603.59 | N72: 162514.07
A73: 2011 | B73: 112.6 | C73: 5 | D73: 275203.03 | E73: 844.21759 | F73: 51026.674 | G73: 24838.895 | H73: 3845.3099 | I73: 3451.7702 | J73: 3583.4925 | K73: 884983.82 | L73: 57456.035 | M73: 110622.98 | N73: 168079.01
A74: 2011 | B74: 112.6 | C74: 6 | D74: 282897.16 | E74: 806.44639 | F74: 51857.539 | G74: 22312.988 | H74: 3829.2379 | I74: 3450.2171 | J74: 3589.8288 | K74: 835864.16 | L74: 58391.589 | M74: 104483.02 | N74: 162874.61
A75: 2011 | B75: 112.6 | C75: 7 | D75: 273378.21 | E75: 816.24135 | F75: 51712.394 | G75: 21585.481 | H75: 3798.2893 | I75: 3436.9077 | J75: 3595.0918 | K75: 877596.34 | L75: 58228.156 | M75: 109699.54 | N75: 167927.7
A76: 2011 | B76: 112.6 | C76: 8 | D76: 262877.14 | E76: 794.18049 | F76: 51123.021 | G76: 21281.416 | H76: 3954.1682 | I76: 3411.9822 | J76: 3489.289 | K76: 856933.72 | L76: 57564.522 | M76: 107116.71 | N76: 164681.24
A77: 2011 | B77: 112.6 | C77: 9 | D77: 265488.07 | E77: 785.37496 | F77: 50624.664 | G77: 20507.921 | H77: 3811.9959 | I77: 3302.6041 | J77: 3563.4899 | K77: 864819.38 | L77: 57003.372 | M77: 108102.42 | N77: 165105.79
A78: 2011 | B78: 112.6 | C78: 10 | D78: 271073.27 | E78: 767.81405 | F78: 52008.993 | G78: 19577.834 | H78: 3980.6712 | I78: 3227.0066 | J78: 3441.6816 | K78: 855460.09 | L78: 58562.127 | M78: 106932.51 | N78: 165494.64
A79: 2011 | B79: 112.6 | C79: 11 | D79: 257141.94 | E79: 759.7385 | F79: 50253.623 | G79: 18131.317 | H79: 3912.8017 | I79: 3220.2709 | J79: 3351.8563 | K79: 833868.47 | L79: 56585.58 | M79: 104233.56 | N79: 160819.14
A80: 2011 | B80: 112.6 | C80: 12 | D80: 262622.16 | E80: 749.81438 | F80: 51480.9 | G80: 17453.686 | H80: 4135.9599 | I80: 3157.8251 | J80: 3250.3626 | K80: 843627.24 | L80: 57967.494 | M80: 105453.41 | N80: 163420.9
A81: 2011 | B81: 112.6 | C81: 13 | D81: 260091.86 | E81: 740.35856 | F81: 52176.948 | G81: 16561.428 | H81: 3980.1476 | I81: 3206.2632 | J81: 3229.7829 | K81: 857388.28 | L81: 58751.243 | M81: 107173.54 | N81: 165924.78
A82: Summary Statistics
A83: Mean | D83: =AVERAGE(D$4:D$81) -> 257870.2079 | E83: =AVERAGE(E$4:E$81) -> 769.0192281 | F83: 51511.33065 | G83: 22086.22678 | H83: 3329.428865 | I83: 3257.424328 | J83: 3712.821833 | K83: 702598.1923 | L83: 52647.7801 | M83: 87824.77394 | N83: 140472.5537
A84: StDev | D84: =STDEV(D$4:D$81) -> 13572.93613 | E84: =STDEV(E$4:E$81) -> 48.13011701 | F84: 1233.789205 | G84: 3598.484046 | H84: 367.0738157 | I84: 115.5827994 | J84: 184.2558319 | K84: 104104.0327 | L84: 3577.270095 | M84: 13013.00397 | N84: 16142.12909
A85: Max | D85: =MAX(D$4:D$81) -> 284748.05 | E85: =MAX(E$4:E$81) -> 888.06908 | F85: 54760.035 | G85: 28087.79 | H85: 4135.9599 | I85: 3551.694 | J85: 3977.5898 | K85: 884983.82 | L85: 58751.243 | M85: 110622.98 | N85: 168079.01
A86: Min | D86: =MIN(D$4:D$81) -> 227047.3 | E86: =MIN(E$4:E$81) -> 689.15843 | F86: 48451.247 | G86: 16369.416 | H86: 2646.4099 | I86: 3063.7746 | J86: 3229.7829 | K86: 504161.58 | L86: 44756.393 | M86: 63020.197 | N86: 112789.04

Sheet TFP Index
A1: MTFP Index Calculation
A2: Using the generalised Tornqvist index for multilateral TFP as per Caves, Christensen and Diewert (1982) | AC2: * Compare difference from OBS #1 (NSP 1 in 2006) relative to sample average | AM2: * Compare difference from OBS #1 (NSP 1 in 2006) relative to sample average | AT2: Supplementary analysis
A3: OBS | B3: NSP | C3: YEAR | D3: Y1 | E3: Y2 | F3: X1 | G3: X2 | H3: X3 | I3: X4 | J3: P1 | K3: P2 | L3: W1 | M3: W2 | N3: W3 | O3: W4 | P3: LNY1 | Q3: LNY2 | R3: LNX1 | S3: LNX2 | T3: LNX3 | U3: LNX4 | V3: SY1 | W3: SY2 | X3: SX1 | Y3: SX2 | Z3: SX3 | AA3: SX4 | AC3: LNYI | AD3: LNXI | AE3: LNTFPI | AF3: YI | AG3: XI | AH3: MTFP | AI3: Year-on-year TFP change | AJ3: Cumulative TFP change (base-year 2006) | AK3: Average TFP growth rate (geomean) | AM3: LNXOPEXI | AN3: LN(Opex productivity index) | AO3: Multilateral Opex Productivity Index | AP3: Year-on-year MOpex change | AQ3: Cumulative multilateral Opex change (base-year 2006) | AR3: Average multilateral opex growth rate (geomean) | AT3: Year-on-year output growth | AU3: Average year-on-year output growth - by NSP
A4: 1 | B4: ='NSP Data'!$C4 -> 1 | C4: ='NSP Data'!$A4 -> 2006 | D4: ='NSP Data'!D4 -> 260958.54 | E4: ='NSP Data'!E4 -> 763.65747 | F4: ='NSP Data'!F4 -> 48648.253 | G4: ='NSP Data'!G4 -> 27171.852 | H4: ='NSP Data'!H4 -> 2646.4099 | I4: ='NSP Data'!I4 -> 3175.3119 | J4: ='NSP Data'!$N4*'Gen Data'!$C7/D4 -> 0.2354664844 | K4: ='NSP Data'!$N4*'Gen Data'!$D7/E4 -> 80.46407246 | L4: ='Gen Data'!$C$36/100 -> 0.92 | M4: =('NSP Data'!$M4*(1-'Gen Data'!$G7)*G4/($G4+$H4*5))/G4 -> 1.334399161 | N4: =('NSP Data'!$M4*(1-'Gen Data'!$G7)*H4*5/(G4+H4*5))/H4 -> 6.671995806 | O4: ='NSP Data'!$M4*'Gen Data'!G7/I4 -> 7.628431944 | P4: =LN(D4) -> 12.47211682 | Q4: =LN(E4) -> 6.638119351 | R4: =LN(F4) -> 10.79237118 | S4: 10.20993686 | T4: 7.880959246 | U4: 8.063161143 | V4: =D4*J4/SUMPRODUCT($D4:$E4,$J4:$K4) -> 0.5 | W4: =E4*K4/SUMPRODUCT($D4:$E4,$J4:$K4) -> 0.5 | X4: =F4*L4/SUMPRODUCT($F4:$I4,$L4:$O4) -> 0.3641870359 | Y4: =G4*M4/SUMPRODUCT($F4:$I4,$L4:$O4) -> 0.2950355889 | Z4: =H4*N4/SUMPRODUCT($F4:$I4,$L4:$O4) -> 0.1436753563 | AA4: =I4*O4/SUMPRODUCT($F4:$I4,$L4:$O4) -> 0.1971020189 | AC4: =0.5*((V4+V$82)*(P4-P$82)+(W4+W$82)*(Q4-Q$82))-0.5*((V$4+V$82)*(P$4-P$82)+(W$4+W$82)*(Q$4-Q$82)) -> 0 | AD4: =0.5*((X4+X$82)*(R4-R$82)+(Y4+Y$82)*(S4-S$82)+(Z4+Z$82)*(T4-T$82)+(AA4+AA$82)*(U4-U$82))-0.5*((X$4+X$82)*(R$4-R$82)+(Y$4+Y$82)*(S$4-S$82)+(Z$4+Z$82)*(T$4-T$82)+(AA$4+AA$82)*(U$4-U$82)) -> 0 | AE4: =AC4-AD4 -> 0 | AF4: =EXP(AC4) -> 1 | AG4: =EXP(AD4) -> 1 | AH4: =EXP(AE4) -> 1 | AM4: =(R4-R$82)-(R$4-R$82) -> 0 | AN4: =AC4-AM4 -> 0 | AO4: =EXP(AN4) -> 1
A5: 2 | B5: ='NSP Data'!$C5 -> 2 | C5: ='NSP Data'!$A5 -> 2006 | D5: ='NSP Data'!D5 -> 259988.24 | E5: ='NSP Data'!E5 -> 766.91209 | F5: ='NSP Data'!F5 -> 51304.694 | G5: ='NSP Data'!G5 -> 27862.556 | H5: ='NSP Data'!H5 -> 2680.853 | I5: ='NSP Data'!I5 -> 3138.0941 | J5: ='NSP Data'!$N5*'Gen Data'!$C8/D5 -> 0.2437815649 | K5: ='NSP Data'!$N5*'Gen Data'!$D8/E5 -> 82.64355306 | L5: ='Gen Data'!$C$36/100 -> 0.92 | M5: =('NSP Data'!$M5*(1-'Gen Data'!$G8)*G5/($G5+$H5*5))/G5 -> 1.330285441 | N5: =('NSP Data'!$M5*(1-'Gen Data'!$G8)*H5*5/(G5+H5*5))/H5 -> 6.651427203 | O5: ='NSP Data'!$M5*'Gen Data'!G8/I5 -> 7.859456107 | P5: 12.46839168 | Q5: 6.642372179 | R5: 10.84553753 | S5: 10.23503899 | T5: 7.893890306 | U5: 8.05137092 | V5: 0.5 | W5: 0.5 | X5: 0.3723577182 | Y5: 0.2924025957 | Z5: 0.1406705788 | AA5: 0.1945691074 | AC5: 0.0002638417852 | AD5: 0.02632670436 | AE5: =AC5-AD5 -> -0.02606286258 | AF5: =EXP(AC5) -> 1.000263877 | AG5: =EXP(AD5) -> 1.026676313 | AH5: =EXP(AE5) -> 0.9742738423 | AM5: =(R5-R$82)-(R$4-R$82) -> 0.05316635054 | AN5: =AC5-AM5 -> -0.05290250875 | AO5: =EXP(AN5) -> 0.9484724757
A6: 3 | B6: ='NSP Data'!$C6 -> 3 | C6: ='NSP Data'!$A6 -> 2006 | D6: ='NSP Data'!D6 -> 244280.83 | E6: ='NSP Data'!E6 -> 751.98679 | F6: ='NSP Data'!F6 -> 52268.164 | G6: ='NSP Data'!G6 -> 25153.935 | H6: ='NSP Data'!H6 -> 2777.3168 | I6: ='NSP Data'!I6 -> 3085.81 | J6: ='NSP Data'!$N6*'Gen Data'!$C9/D6 -> 0.251704749 | K6: ='NSP Data'!$N6*'Gen Data'!$D9/E6 -> 81.76559192 | L6: ='Gen Data'!$C$36/100 -> 0.92 | M6: =('NSP Data'!$M6*(1-'Gen Data'!$G9)*G6/($G6+$H6*5))/G6 -> 1.323541288 | N6: =('NSP Data'!$M6*(1-'Gen Data'!$G9)*H6*5/(G6+H6*5))/H6 -> 6.617706442 | O6: ='NSP Data'!$M6*'Gen Data'!G9/I6 -> 7.523094157 | P6: 12.40607379 | Q6: 6.622718757 | R6: 10.86414275 | S6: 10.13276962 | T6: 7.929240561 | U6: 8.034569463 | V6: 0.5 | W6: 0.5 | X6: 0.3910337872 | Y6: 0.2707276665 | Z6: 0.1494590203 | AA6: 0.188779526 | AC6: -0.04072181584 | AD6: 0.006347738805 | AE6: -0.04706955464 | AF6: 0.9600961764 | AG6: 1.006367928 | AH6: 0.9540210387 | AM6: 0.07177156837 | AN6: -0.1124933842 | AO6: 0.893603259
A7: 4 | B7: ='NSP Data'!$C7 -> 4 | C7: ='NSP Data'!$A7 -> 2006 | D7: ='NSP Data'!D7 -> 253000.71 | E7: ='NSP Data'!E7 -> 745.98934 | F7: ='NSP Data'!F7 -> 50028.771 | G7: ='NSP Data'!G7 -> 25560.025 | H7: ='NSP Data'!H7 -> 2687.3012 | I7: ='NSP Data'!I7 -> 3080.3977 | J7: ='NSP Data'!$N7*'Gen Data'!$C10/D7 -> 0.236110701 | K7: ='NSP Data'!$N7*'Gen Data'!$D10/E7 -> 80.07644586 | L7: ='Gen Data'!$C$36/100 -> 0.92 | M7: =('NSP Data'!$M7*(1-'Gen Data'!$G10)*G7/($G7+$H7*5))/G7 -> 1.2995427 | N7: =('NSP Data'!$M7*(1-'Gen Data'!$G10)*H7*5/(G7+H7*5))/H7 -> 6.497713502 | O7: ='NSP Data'!$M7*'Gen Data'!G10/I7 -> 7.391325737 | P7: 12.44114757 | Q7: 6.614711311 | R7: 10.82035354 | S7: 10.14878489 | T7: 7.896292698 | U7: 8.032813991 | V7: 0.5 | W7: 0.5 | X7: 0.3852478802 | Y7: 0.2780253682 | Z7: 0.1461535944 | AA7: 0.1905731571 | AC7: -0.02718864473 | AD7: -0.01124523712 | AE7: -0.01594340761 | AF7: 0.9731776394 | AG7: 0.9888177542 | AH7: 0.9841830157 | AM7: 0.02798236151 | AN7: -0.05517100624 | AO7: 0.9463233069
A8: 5 | B8: ='NSP Data'!$C8 -> 5 | C8: ='NSP Data'!$A8 -> 2006 | D8: ='NSP Data'!D8 -> 246115 | E8: ='NSP Data'!E8 -> 735.71371 | F8: ='NSP Data'!F8 -> 51303.915 | G8: ='NSP Data'!G8 -> 24718.831 | H8: ='NSP Data'!H8 -> 2848.3146 | I8: ='NSP Data'!I8 -> 3134.4138 | J8: ='NSP Data'!$N8*'Gen Data'!$C11/D8 -> 0.24899807 | K8: ='NSP Data'!$N8*'Gen Data'!$D11/E8 -> 83.29620499 | L8: ='Gen Data'!$C$36/100 -> 0.92 | M8: =('NSP Data'!$M8*(1-'Gen Data'!$G11)*G8/($G8+$H8*5))/G8 -> 1.334730855 | N8: =('NSP Data'!$M8*(1-'Gen Data'!$G11)*H8*5/(G8+H8*5))/H8 -> 6.673654276 | O8: ='NSP Data'!$M8*'Gen Data'!G11/I8 -> 7.453726005 | P8: 12.41355419 | Q8: 6.600841062 | R8: 10.84552234 | S8: 10.11532062 | T8: 7.95448273 | U8: 8.05019745 | V8: 0.5 | W8: 0.5 | X8: 0.3851006805 | Y8: 0.2691891678 | Z8: 0.1550913627 | AA8: 0.1906187891 | AC8: -0.04792046331 | AD8: 0.001375394316 | AE8: -0.04929585762 | AF8: 0.9532095992 | AG8: 1.001376341 | AH8: 0.9518994613 | AM8: 0.05315116663 | AN8: -0.1010716299 | AO8: 0.9038682865
A9: 6 | B9: ='NSP Data'!$C9 -> 6 | C9: ='NSP Data'!$A9 -> 2006 | D9: ='NSP Data'!D9 -> 251995.33 | E9: ='NSP Data'!E9 -> 722.0526 | F9: ='NSP Data'!F9 -> 51914.53 | G9: ='NSP Data'!G9 -> 21966.665 | H9: ='NSP Data'!H9 -> 2812.6669 | I9: ='NSP Data'!I9 -> 3220.1586 | J9: ='NSP Data'!$N9*'Gen Data'!$C12/D9 -> 0.2336308177 | K9: ='NSP Data'!$N9*'Gen Data'!$D12/E9 -> 81.53682294 | L9: ='Gen Data'!$C$36/100 -> 0.92 | M9: =('NSP Data'!$M9*(1-'Gen Data'!$G12)*G9/($G9+$H9*5))/G9 -> 1.340288766 | N9: =('NSP Data'!$M9*(1-'Gen Data'!$G12)*H9*5/(G9+H9*5))/H9 -> 6.701443832 | O9: ='NSP Data'!$M9*'Gen Data'!G12/I9 -> 6.737487532 | P9: 12.43716583 | Q9: 6.582097989 | R9: 10.85735399 | S9: 9.997281356 | T9: 7.941888387 | U9: 8.077185892 | V9: 0.5 | W9: 0.5 | X9: 0.4056244621 | Y9: 0.2500402295 | Z9: 0.1600788916 | AA9: 0.1842564167 | AC9: -0.04548617502 | AD9: -0.02174002818 | AE9: -0.02374614685 | AF9: 0.9555328127 | AG9: 0.978494583 | AH9: 0.9765335744 | AM9: 0.06498281403 | AN9: -0.110468989 | AO9: 0.8954140974
A10: 7 | B10: ='NSP Data'!$C10 -> 7 | C10: ='NSP Data'!$A10 -> 2006 | D10: ='NSP Data'!D10 -> 248161.5 | E10: ='NSP Data'!E10 -> 735.67231 | F10: ='NSP Data'!F10 -> 53113.086 | G10: ='NSP Data'!G10 -> 21546.896 | H10: ='NSP Data'!H10 -> 2776.6566 | I10: ='NSP Data'!I10 -> 3234.4391 | J10: ='NSP Data'!$N10*'Gen Data'!$C13/D10 -> 0.2433484445 | K10: ='NSP Data'!$N10*'Gen Data'!$D13/E10 -> 82.08779123 | L10: ='Gen Data'!$C$36/100 -> 0.92 | M10: =('NSP Data'!$M10*(1-'Gen Data'!$G13)*G10/($G10+$H10*5))/G10 -> 1.400546745 | N10: =('NSP Data'!$M10*(1-'Gen Data'!$G13)*H10*5/(G10+H10*5))/H10 -> 7.002733723 | O10: ='NSP Data'!$M10*'Gen Data'!G13/I10 -> 6.892623868 | P10: 12.42183502 | Q10: 6.600784789 | R10: 10.88017862 | S10: 9.977987048 | T10: 7.929002821 | U10: 8.081610807 | V10: 0.5 | W10: 0.5 | X10: 0.4045725158 | Y10: 0.2498557434 | Z10: 0.1609892207 | AA10: 0.1845825201 | AC10: -0.04380818128 | AD10: -0.01906291713 | AE10: -0.02474526415 | AF10: 0.9571375368 | AG10: 0.9811176312 | AH10: 0.9755583901 | AM10: 0.08780744014 | AN10: -0.1316156214 | AO10: 0.8766779065
A11: 8 | B11: ='NSP Data'!$C11 -> 8 | C11: ='NSP Data'!$A11 -> 2006 | D11: ='NSP Data'!D11 -> 235651.49 | E11: ='NSP Data'!E11 -> 721.17806 | F11: ='NSP Data'!F11 -> 51850.385 | G11: ='NSP Data'!G11 -> 20934.68 | H11: ='NSP Data'!H11 -> 2925.8294 | I11: ='NSP Data'!I11 -> 3259.5329 | J11: ='NSP Data'!$N11*'Gen Data'!$C14/D11 -> 0.2492901912 | K11: ='NSP Data'!$N11*'Gen Data'!$D14/E11 -> 81.45783719 | L11: ='Gen Data'!$C$36/100 -> 0.92 | M11: =('NSP Data'!$M11*(1-'Gen Data'!$G14)*G11/($G11+$H11*5))/G11 -> 1.354025013 | N11: =('NSP Data'!$M11*(1-'Gen Data'!$G14)*H11*5/(G11+H11*5))/H11 -> 6.770125067 | O11: ='NSP Data'!$M11*'Gen Data'!G14/I11 -> 6.637314712 | P11: 12.37010926 | Q11: 6.580886069 | R11: 10.85611764 | S11: 9.949162393 | T11: 7.981333275 | U11: 8.089339182 | V11: 0.5 | W11: 0.5 | X11: 0.4060078512 | Y11: 0.2412612831 | Z11: 0.1685932995 | AA11: 0.1841375661 | AC11: -0.07962042472 | AD11: -0.0253462165 | AE11: -0.05427420822 | AF11: 0.923466805 | AG11: 0.9749723021 | AH11: 0.9471723484 | AM11: 0.06374646148 | AN11: -0.1433668862 | AO11: 0.8664361271
A12: 9 | B12: ='NSP Data'!$C12 -> 9 | C12: ='NSP Data'!$A12 -> 2006 | D12: ='NSP Data'!D12 -> 236923.52 | E12: ='NSP Data'!E12 -> 707.50348 | F12: ='NSP Data'!F12 -> 51700.429 | G12: ='NSP Data'!G12 -> 20218.793 | H12: ='NSP Data'!H12 -> 2852.9676 | I12: ='NSP Data'!I12 -> 3165.2949 | J12: ='NSP Data'!$N12*'Gen Data'!$C15/D12 -> 0.2468969944 | K12: ='NSP Data'!$N12*'Gen Data'!$D15/E12 -> 82.67903502 | L12: ='Gen Data'!$C$36/100 -> 0.92 | M12: =('NSP Data'!$M12*(1-'Gen Data'!$G15)*G12/($G12+$H12*5))/G12 -> 1.389199465 | N12: =('NSP Data'!$M12*(1-'Gen Data'!$G15)*H12*5/(G12+H12*5))/H12 -> 6.945997324 | O12: ='NSP Data'!$M12*'Gen Data'!G15/I12 -> 6.799485024 | P12: 12.37549267 | Q12: 6.561742548 | R12: 10.85322136 | S12: 9.914367797 | T12: 7.956114995 | U12: 8.060001506 | V12: 0.5 | W12: 0.5 | X12: 0.4065631314 | Y12: 0.2400854559 | Z12: 0.1693859834 | AA12: 0.1839654293 | AC12: -0.0865004791 | AD12: -0.04493596352 | AE12: -0.04156451558 | AF12: 0.9171351094 | AG12: 0.9560587025 | AH12: 0.9592874444 | AM12: 0.06085018092 | AN12: -0.14735066 | AO12: 0.8629913078
A13: 10 | B13: ='NSP Data'!$C13 -> 10 | C13: ='NSP Data'!$A13 -> 2006 | D13: ='NSP Data'!D13 -> 245380.01 | E13: ='NSP Data'!E13 -> 695.08498 | F13: ='NSP Data'!F13 -> 54360.209 | G13: ='NSP Data'!G13 -> 19554.833 | H13: ='NSP Data'!H13 -> 3015.3524 | I13: ='NSP Data'!I13 -> 3063.7746 | J13: ='NSP Data'!$N13*'Gen Data'!$C16/D13 -> 0.2379338684 | K13: ='NSP Data'!$N13*'Gen Data'!$D16/E13 -> 83.9957943 | L13: ='Gen Data'!$C$36/100 -> 0.92 | M13: =('NSP Data'!$M13*(1-'Gen Data'!$G16)*G13/($G13+$H13*5))/G13 -> 1.3300674 | N13: =('NSP Data'!$M13*(1-'Gen Data'!$G16)*H13*5/(G13+H13*5))/H13 -> 6.650337002 | O13: ='NSP Data'!$M13*'Gen Data'!G16/I13 -> 6.754635759 | P13: 12.41056335 | Q13: 6.544034111 | R13: 10.90338771 | S13: 9.880977747 | T13: 8.011471985 | U13: 8.027402964 | V13: 0.5 | W13: 0.5 | X13: 0.4282954955 | Y13: 0.2227421063 | Z13: 0.1717340018 | AA13: 0.1772283964 | AC13: -0.07781935674 | AD13: -0.0280557491 | AE13: -0.04976360764 | AF13: 0.9251315302 | AG13: 0.9723341585 | AH13: 0.9514543144 | AM13: 0.1110165356 | AN13: -0.1888358923 | AO13: 0.827922364
A14: 11 | B14: ='NSP Data'!$C14 -> 11 | C14: ='NSP Data'!$A14 -> 2006 | D14: ='NSP Data'!D14 -> 227047.3 | E14: ='NSP Data'!E14 -> 702.34383 | F14: ='NSP Data'!F14 -> 52744.929 | G14: ='NSP Data'!G14 -> 18038.598 | H14: ='NSP Data'!H14 -> 2961.5382 | I14: ='NSP Data'!I14 -> 3133.3242 | J14: ='NSP Data'!$N14*'Gen Data'!$C17/D14 -> 0.2494409975 | K14: ='NSP Data'!$N14*'Gen Data'!$D17/E14 -> 80.63700795 | L14: ='Gen Data'!$C$36/100 -> 0.92 | M14: =('NSP Data'!$M14*(1-'Gen Data'!$G17)*G14/($G14+$H14*5))/G14 -> 1.360083195 | N14: =('NSP Data'!$M14*(1-'Gen Data'!$G17)*H14*5/(G14+H14*5))/H14 -> 6.800415974 | O14: ='NSP Data'!$M14*'Gen Data'!G17/I14 -> 6.405588774 | P14: 12.33291364 | Q14: 6.55442307 | R14: 10.87322291 | S14: 9.800269074 | T14: 7.993464075 | U14: 8.049849765 | V14: 0.5 | W14: 0.5 | X14: 0.4284048512 | Y14: 0.2165978271 | Z14: 0.1778028256 | AA14: 0.1771944961 | AC14: -0.1114497294 | AD14: -0.05785793278 | AE14: -0.05359179663 | AF14: 0.8945363592 | AG14: 0.9437840187 | AH14: 0.9478189304 | AM14: 0.0808517366 | AN14: -0.192301466 | AO14: 0.825058104
A15: 12 | B15: ='NSP Data'!$C15 -> 12 | C15: ='NSP Data'!$A15 -> 2006 | D15: ='NSP Data'!D15 -> 233134.73 | E15: ='NSP Data'!E15 -> 689.15843 | F15: ='NSP Data'!F15 -> 53406.722 | G15: ='NSP Data'!G15 -> 17227.361 | H15: ='NSP Data'!H15 -> 3084.9824 | I15: ='NSP Data'!I15 -> 3082.1275 | J15: ='NSP Data'!$N15*'Gen Data'!$C18/D15 -> 0.2418966921 | K15: ='NSP Data'!$N15*'Gen Data'!$D18/E15 -> 81.83099494 | L15: ='Gen Data'!$C$36/100 -> 0.92 | M15: =('NSP Data'!$M15*(1-'Gen Data'!$G18)*G15/($G15+$H15*5))/G15 -> 1.34513921 | N15: =('NSP Data'!$M15*(1-'Gen Data'!$G18)*H15*5/(G15+H15*5))/H15 -> 6.72569605 | O15: ='NSP Data'!$M15*'Gen Data'!G18/I15 -> 6.402397789 | P15: 12.35937181 | Q15: 6.535471187 | R15: 10.8856919 | S15: 9.754254155 | T15: 8.034301231 | U15: 8.033375384 | V15: 0.5 | W15: 0.5 | X15: 0.4356290543 | Y15: 0.2054561161 | Z15: 0.1839598364 | AA15: 0.1749549932 | AC15: -0.1076965909 | AD15: -0.0577762052 | AE15: -0.04992038568 | AF15: 0.8978999862 | AG15: 0.943861155 | AH15: 0.951305159 | AM15: 0.09332071976 | AN15: -0.2010173106 | AO15: 0.8178982731
A16: 13 | B16: ='NSP Data'!$C16 -> 13 | C16: ='NSP Data'!$A16 -> 2006 | D16: ='NSP Data'!D16 -> 231958.06 | E16: ='NSP Data'!E16 -> 690.39989 | F16: ='NSP Data'!F16 -> 54380.923 | G16: ='NSP Data'!G16 -> 16603.792 | H16: ='NSP Data'!H16 -> 2965.5555 | I16: ='NSP Data'!I16 -> 3165.3409 | J16: ='NSP Data'!$N16*'Gen Data'!$C19/D16 -> 0.2436876951 | K16: ='NSP Data'!$N16*'Gen Data'!$D19/E16 -> 81.87331113 | L16: ='Gen Data'!$C$36/100 -> 0.92 | M16: =('NSP Data'!$M16*(1-'Gen Data'!$G19)*G16/($G16+$H16*5))/G16 -> 1.383447808 | N16: =('NSP Data'!$M16*(1-'Gen Data'!$G19)*H16*5/(G16+H16*5))/H16 -> 6.917239041 | O16: ='NSP Data'!$M16*'Gen Data'!G19/I16 -> 6.171929561 | P16: 12.35431186 | Q16: 6.53727098 | R16: 10.90376869 | S16: 9.717386382 | T16: 7.994819646 | U16: 8.060016038 | V16: 0.5 | W16: 0.5 | X16: 0.442548989 | Y16: 0.2031875131 | Z16: 0.1814536845 | AA16: 0.1728098134 | AC16: -0.1093266676 | AD16: -0.06044710162 | AE16: -0.04887956596 | AF16: 0.8964375326 | AG16: 0.9413435632 | AH16: 0.9522958116 | AM16: 0.1113975138 | AN16: -0.2207241814 | AO16: 0.8019378392
A17: 14 | B17: ='NSP Data'!$C17 -> 1 | C17: ='NSP Data'!$A17 -> 2007 | D17: ='NSP Data'!D17 -> 265099.8 | E17: ='NSP Data'!E17 -> 792.36685 | F17: ='NSP Data'!F17 -> 49112.403 | G17: ='NSP Data'!G17 -> 26872.201 | H17: ='NSP Data'!H17 -> 2841.0418 | I17: ='NSP Data'!I17 -> 3230.956 | J17: ='NSP Data'!$N17*'Gen Data'!$C7/D17 -> 0.2446893396 | K17: ='NSP Data'!$N17*'Gen Data'!$D7/E17 -> 81.86497832 | L17: ='Gen Data'!$D$36/100 -> 0.958 | M17: =('NSP Data'!$M17*(1-'Gen Data'!$G7)*G17/($G17+$H17*5))/G17 -> 1.388897395 | N17: =('NSP Data'!$M17*(1-'Gen Data'!$G7)*H17*5/(G17+H17*5))/H17 -> 6.944486977 | O17: ='NSP Data'!$M17*'Gen Data'!G7/I17 -> 7.933316405 | P17: 12.48786164 | Q17: 6.675024479 | R17: 10.80186689 | S17: 10.19884761 | T17: 7.951926095 | U17: 8.080533348 | V17: 0.5 | W17: 0.5 | X17: 0.3626621749 | Y17: 0.2876861613 | Z17: 0.1520769381 | AA17: 0.1975747258 | AC17: 0.02632497141 | AD17: 0.01423071401 | AE17: 0.0120942574 | AF17: 1.026674534 | AG17: 1.014332453 | AH17: 1.012167689 | AI17: =AH17/AH4 -> 1.012167689 | AJ17: =AH17/AH$4 -> 1.012167689 | AM17: 0.009495711396 | AN17: 0.01682926001 | AO17: 1.01697167 | AP17: =AO17/AO4 -> 1.01697167 | AQ17: =AO17/AO$4 -> 1.01697167 | AT17: =AF17/AF4 -> 1.026674534
A18: 15 | B18: ='NSP Data'!$C18 -> 2 | C18: ='NSP Data'!$A18 -> 2007 | D18: ='NSP Data'!D18 -> 268133.46 | E18: ='NSP Data'!E18 -> 777.90104 | F18: ='NSP Data'!F18 -> 51164.515 | G18: ='NSP Data'!G18 -> 27955.647 | H18: ='NSP Data'!H18 -> 2852.7765 | I18: ='NSP Data'!I18 -> 3246.9031 | J18: ='NSP Data'!$N18*'Gen Data'!$C8/D18 -> 0.2488932004 | K18: ='NSP Data'!$N18*'Gen Data'!$D8/E18 -> 85.79059748 | L18: ='Gen Data'!$D$36/100 -> 0.958 | M18: =('NSP Data'!$M18*(1-'Gen Data'!$G8)*G18/($G18+$H18*5))/G18 -> 1.380302822 | N18: =('NSP Data'!$M18*(1-'Gen Data'!$G8)*H18*5/(G18+H18*5))/H18 -> 6.901514111 | O18: ='NSP Data'!$M18*'Gen Data'!G8/I18 -> 8.063638327 | P18: 12.49924012 | Q18: 6.656599318 | R18: 10.8428015 | S18: 10.2383745 | T18: 7.95604801 | U18: 8.085456929 | V18: 0.5 | W18: 0.5 | X18: 0.3672318323 | Y18: 0.2891011856 | Z18: 0.1475088501 | AA18: 0.196158132 | AC18: 0.02280163235 | AD18: 0.04204204703 | AE18: -0.01924041467 | AF18: 1.023063577 | AG18: 1.04293833 | AH18: 0.9809435007 | AI18: 1.006845774 | AJ18: =AH18/AH$5 -> 1.006845774 | AM18: 0.05043032693 | AN18: -0.02762869457 | AO18: 0.9727494869 | AP18: =AO18/AO5 -> 1.025595905 | AQ18: =AO18/AO$5 -> 1.025595905 | AT18: =AF18/AF5 -> 1.022793685
A19: 16 | B19: ='NSP Data'!$C19 -> 3 | C19: ='NSP Data'!$A19 -> 2007 | D19: ='NSP Data'!D19 -> 252246.48 | E19: ='NSP Data'!E19 -> 771.45629 | F19: ='NSP Data'!F19 -> 51590.007 | G19: ='NSP Data'!G19 -> 24974.945 | H19: ='NSP Data'!H19 -> 2958.1715 | I19: ='NSP Data'!I19 -> 3150.9227 | J19: ='NSP Data'!$N19*'Gen Data'!$C9/D19 -> 0.2563011781 | K19: ='NSP Data'!$N19*'Gen Data'!$D9/E19 -> 83.80393139 | L19: ='Gen Data'!$D$36/100 -> 0.958 | M19: =('NSP Data'!$M19*(1-'Gen Data'!$G9)*G19/($G19+$H19*5))/G19 -> 1.386026312 | N19: =('NSP Data'!$M19*(1-'Gen Data'!$G9)*H19*5/(G19+H19*5))/H19 -> 6.930131561 | O19: ='NSP Data'!$M19*'Gen Data'!G9/I19 -> 7.858797174 | P19: 12.43816198 | Q19: 6.648280014 | R19: 10.85108327 | S19: 10.1256284 | T19: 7.99232662 | U19: 8.05545061 | V19: 0.5 | W19: 0.5 | X19: 0.3822305461 | Y19: 0.2677135238 | Z19: 0.1585473994 | AA19: 0.1915085307 | AC19: -0.011897088 | AD19: 0.01328484193 | AE19: -0.02518192994 | AF19: 0.9881734025 | AG19: 1.013373478 | AH19: 0.9751324901 | AI19: 1.022128916 | AJ19: =AH19/AH$6 -> 1.022128916 | AM19: 0.05871209251 | AN19: -0.07060918052 | AO19: 0.9318259967 | AP19: 1.042773722 | AQ19: =AO19/AO$6 -> 1.042773722 | AT19: 1.029244181
A20: 17 | B20: ='NSP Data'!$C20 -> 4 | C20: ='NSP Data'!$A20 -> 2007 | D20: ='NSP Data'!D20 -> 259486.53 | E20: ='NSP Data'!E20 -> 758.18926 | F20: ='NSP Data'!F20 -> 50206.152 | G20: ='NSP Data'!G20 -> 25359.967 | H20: ='NSP Data'!H20 -> 2886.6029 | I20: ='NSP Data'!I20 -> 3169.4103 | J20: ='NSP Data'!$N20*'Gen Data'!$C10/D20 -> 0.2468116168 | K20: ='NSP Data'!$N20*'Gen Data'!$D10/E20 -> 84.47005699 | L20: ='Gen Data'!$D$36/100 -> 0.958 | M20: =('NSP Data'!$M20*(1-'Gen Data'!$G10)*G20/($G20+$H20*5))/G20 -> 1.387024711 | N20: =('NSP Data'!$M20*(1-'Gen Data'!$G10)*H20*5/(G20+H20*5))/H20 -> 6.935123553 | O20: ='NSP Data'!$M20*'Gen Data'!G10/I20 -> 7.823927483 | P20: 12.46646007 | Q20: 6.630933038 | R20: =LN(F20) -> 10.82389285 | S20: 10.14092711 | T20: 7.967835623 | U20: 8.061300824 | V20: 0.5 | W20: 0.5 | X20: 0.3755018139 | Y20: 0.2746138748 | Z20: 0.1562898736 | AA20: 0.1935944377 | AC20: -0.006421531734 | AD20: 0.004520137061 | AE20: -0.0109416688 | AF20: 0.9935990422 | AG20: 1.004530368 | AH20: 0.9891179735 | AI20: 1.005014268 | AJ20: =AH20/AH$7 -> 1.005014268 | AM20: 0.03152167056 | AN20: -0.03794320229 | AO20: 0.9627676223 | AP20: 1.017377058 | AQ20: =AO20/AO$7 -> 1.017377058 | AT20: 1.02098425
A21: 18 | B21: ='NSP Data'!$C21 -> 5 | C21: ='NSP Data'!$A21 -> 2007 | D21: ='NSP Data'!D21 -> 252073.04 | E21: ='NSP Data'!E21 -> 759.22022 | F21: ='NSP Data'!F21 -> 51090.879 | G21: ='NSP Data'!G21 -> 24306.884 | H21: ='NSP Data'!H21 -> 2988.348 | I21: ='NSP Data'!I21 -> 3210.9556 | J21: ='NSP Data'!$N21*'Gen Data'!$C11/D21 -> 0.2586710582 | K21: ='NSP Data'!$N21*'Gen Data'!$D11/E21 -> 85.88285491 | L21: ='Gen Data'!$D$36/100 -> 0.958 | M21: =('NSP Data'!$M21*(1-'Gen Data'!$G11)*G21/($G21+$H21*5))/G21 -> 1.432137613 | N21: =('NSP Data'!$M21*(1-'Gen Data'!$G11)*H21*5/(G21+H21*5))/H21 -> 7.160688063 | O21: ='NSP Data'!$M21*'Gen Data'!G11/I21 -> 7.864796489 | P21: 12.43747417 | Q21: 6.63229188 | R21: 10.84136127 | S21: 10.09851488 | T21: 8.002476005 | U21: 8.074323867 | V21: 0.5 | W21: 0.5 | X21: 0.3753225276 | Y21: 0.2669376224 | Z21: 0.1640898336 | AA21: 0.1936500165 | AC21: -0.02023506402 | AD21: 0.007719034266 | AE21: -0.02795409829 | AF21: 0.9799682909 | AG21: 1.007748903 | AH21: 0.9724330021 | AI21: 1.021571123 | AJ21: =AH21/AH$8 -> 1.021571123 | AM21: 0.0489900897 | AN21: -0.06922515372 | AO21: 0.9331165618 | AP21: 1.032359001 | AQ21: =AO21/AO$8 -> 1.032359001 | AT21: 1.028072201
A22: 19 | B22: ='NSP Data'!$C22 -> 6 | C22: ='NSP Data'!$A22 -> 2007 | D22: ='NSP Data'!D22 -> 258204.57 | E22: ='NSP Data'!E22 -> 739.92933 | F22: ='NSP Data'!F22 -> 51541.911 | G22: ='NSP Data'!G22 -> 22425.906 | H22: ='NSP Data'!H22 -> 3000.954 | I22: ='NSP Data'!I22 -> 3268.2723 | J22: ='NSP Data'!$N22*'Gen Data'!$C12/D22 -> 0.242667258 | K22: ='NSP Data'!$N22*'Gen Data'!$D12/E22 -> 84.68078296 | L22: ='Gen Data'!$D$36/100 -> 0.958 | M22: =('NSP Data'!$M22*(1-'Gen Data'!$G12)*G22/($G22+$H22*5))/G22 -> 1.399855179 | N22: =('NSP Data'!$M22*(1-'Gen Data'!$G12)*H22*5/(G22+H22*5))/H22 -> 6.999275897 | O22: ='NSP Data'!$M22*'Gen Data'!G12/I22 -> 7.20286291 | P22: 12.46150746 | Q22: 6.606554682 | R22: 10.85015056 | S22: 10.01797209 | T22: 8.006685517 | U22: 8.092016776 | V22: 0.5 | W22: 0.5 | X22: 0.3940223979 | Y22: 0.250511686 | Z22: 0.1676128595 | AA22: 0.1878530567 | AC22: -0.02108701786 | AD22: -0.005806354215 | AE22: -0.01528066364 | AF22: 0.9791337587 | AG22: 0.9942104701 | AH22: 0.9848354933 | AI22: 1.008501417 | AJ22: =AH22/AH$9 -> 1.008501417 | AM22: 0.05777938411 | AN22: -0.07886640196 | AO22: 0.9241633826 | AP22: 1.032107251 | AQ22: =AO22/AO$9 -> 1.032107251 | AT22: 1.024699252
A23: 20 | B23: ='NSP Data'!$C23 -> 7 | C23: ='NSP Data'!$A23 -> 2007 | D23: ='NSP Data'!D23 -> 253034.65 | E23: ='NSP Data'!E23 -> 753.30521 | F23: ='NSP Data'!F23 -> 52395.194 | G23: ='NSP Data'!G23 -> 21594.179 | H23: ='NSP Data'!H23 -> 2989.3356 | I23: ='NSP Data'!I23 -> 3276.6862 | J23: ='NSP Data'!$N23*'Gen Data'!$C13/D23 -> 0.2544761953 | K23: ='NSP Data'!$N23*'Gen Data'!$D13/E23 -> 85.47836142 | L23: ='Gen Data'!$D$36/100 -> 0.958 | M23: =('NSP Data'!$M23*(1-'Gen Data'!$G13)*G23/($G23+$H23*5))/G23 -> 1.483975029 | N23: =('NSP Data'!$M23*(1-'Gen Data'!$G13)*H23*5/(G23+H23*5))/H23 -> 7.419875143 | O23: ='NSP Data'!$M23*'Gen Data'!G13/I23 -> 7.435035949 | P23: 12.44128171 | Q23: 6.624470471 | R23: 10.86657015 | S23: 9.980179067 | T23: 8.002806434 | U23: 8.094587886 | V23: 0.5 | W23: 0.5 | X23: 0.3897622649 | Y23: 0.248831936 | Z23: 0.1722321012 | AA23: 0.1891736979 | AC23: -0.02224199408 | AD23: -0.009276708738 | AE23: -0.01296528534 | AF23: 0.9780035354 | AG23: 0.9907661872 | AH23: 0.9871184019 | AI23: 1.011849636 | AJ23: =AH23/AH$10 -> 1.011849636 | AM23: 0.07419897113 | AN23: -0.09644096521 | AO23: 0.9080635034 | AP23: 1.035800602 | AQ23: =AO23/AO$10 -> 1.035800602 | AT23: 1.021800418
A24: 21 | B24: ='NSP Data'!$C24 -> 8 | C24: ='NSP Data'!$A24 -> 2007 | D24: ='NSP Data'!D24 -> 239423.86 | E24: ='NSP Data'!E24 -> 731.99708 | F24: ='NSP Data'!F24 -> 51640.893 | G24: ='NSP Data'!G24 -> 21226.959 | H24: ='NSP Data'!H24 -> 3116.5108 | I24: ='NSP Data'!I24 -> 3296.9125 | J24: ='NSP Data'!$N24*'Gen Data'!$C14/D24 -> 0.2599160334 | K24: ='NSP Data'!$N24*'Gen Data'!$D14/E24 -> 85.01413694 | L24: ='Gen Data'!$D$36/100 -> 0.958 | M24: =('NSP Data'!$M24*(1-'Gen Data'!$G14)*G24/($G24+$H24*5))/G24 -> 1.40566579 | N24: =('NSP Data'!$M24*(1-'Gen Data'!$G14)*H24*5/(G24+H24*5))/H24 -> 7.028328951 | O24: ='NSP Data'!$M24*'Gen Data'!G14/I24 -> 7.050945034 | P24: 12.38599073 | Q24: 6.595776525 | R24: 10.85206914 | S24: 9.963027304 | T24: 8.044469322 | U24: 8.100741703 | V24: 0.5 | W24: 0.5 | X24: 0.3974923429 | Y24: 0.2397393761 | Z24: 0.1759909073 | AA24: 0.1867773737 | AC24: -0.0642344581 | AD24: -0.01042914356 | AE24: -0.05380531454 | AF24: 0.9377851024 | AG24: 0.9896250514 | AH24: 0.9476165757 | AI24: 1.000469004 | AJ24: =AH24/AH$11 -> 1.000469004 | AM24: 0.0596979602 | AN24: -0.1239324183 | AO24: 0.8834395432 | AP24: 1.019624547 | AQ24: =AO24/AO$11 -> 1.019624547 | AT24: 1.01550494
A25: 22 | B25: ='NSP Data'!$C25 -> 9 | C25: ='NSP Data'!$A25 -> 2007 | D25: ='NSP Data'!D25 -> 245309.24 | E25: ='NSP Data'!E25 -> 729.44895 | F25: ='NSP Data'!F25 -> 51568.452 | G25: ='NSP Data'!G25 -> 20265.721 | H25: ='NSP Data'!H25 -> 3067.8914 | I25: ='NSP Data'!I25 -> 3180.9246 | J25: ='NSP Data'!$N25*'Gen Data'!$C15/D25 -> 0.2579439527 | K25: ='NSP Data'!$N25*'Gen Data'!$D15/E25 -> 86.74498058 | L25: ='Gen Data'!$D$36/100 -> 0.958 | M25: =('NSP Data'!$M25*(1-'Gen Data'!$G15)*G25/($G25+$H25*5))/G25 -> 1.495095727 | N25: =('NSP Data'!$M25*(1-'Gen Data'!$G15)*H25*5/(G25+H25*5))/H25 -> 7.475478634 | O25: ='NSP Data'!$M25*'Gen Data'!G15/I25 -> 7.518676337 | P25: 12.4102749 | Q25: 6.592289386 | R25: 10.85066537 | S25: 9.916686117 | T25: 8.028745764 | U25: 8.064927188 | V25: 0.5 | W25: 0.5 | X25: 0.3903735229 | Y25: 0.2394207626 | Z25: 0.1812215066 | AA25: 0.1889842079 | AC25: -0.05383594514 | AD25: -0.03204626247 | AE25: -0.02178968266 | AF25: 0.9475875501 | AG25: 0.9684617776 | AH25: 0.9784459976 | AI25: 1.01997165 | AJ25: =AH25/AH$12 -> 1.01997165 | AM25: 0.05829419173 | AN25: -0.1121301369 | AO25: 0.893927917 | AP25: 1.035848112 | AQ25: =AO25/AO$12 -> 1.035848112 | AT25: 1.033203876
A26: 23 | B26: ='NSP Data'!$C26 -> 10 | C26: ='NSP Data'!$A26 -> 2007 | D26: ='NSP Data'!D26 -> 249169.73 | E26: ='NSP Data'!E26 -> 713.18085 | F26: ='NSP Data'!F26 -> 53501.233 | G26: ='NSP Data'!G26 -> 19506.254 | H26: ='NSP Data'!H26 -> 3188.1904 | I26: ='NSP Data'!I26 -> 3140.1194 | J26: ='NSP Data'!$N26*'Gen Data'!$C16/D26 -> 0.2513089371 | K26: ='NSP Data'!$N26*'Gen Data'!$D16/E26 -> 87.80182474 | L26: ='Gen Data'!$D$36/100 -> 0.958 | M26: =('NSP Data'!$M26*(1-'Gen Data'!$G16)*G26/($G26+$H26*5))/G26 -> 1.440120692 | N26: =('NSP Data'!$M26*(1-'Gen Data'!$G16)*H26*5/(G26+H26*5))/H26 -> 7.200603458 | O26: ='NSP Data'!$M26*'Gen Data'!G16/I26 -> 7.303774239 | P26: 12.42588959 | Q26: 6.569735035 | R26: 10.88745998 | S26: 9.878490411 | T26: 8.067208762 | U26: 8.052016104 | V26: 0.5 | W26: 0.5 | X26: 0.4092569772 | Y26: 0.2243053114 | Z26: 0.1833073743 | AA26: 0.1831303371 | AC26: -0.05730577471 | AD26: -0.02130475508 | AE26: -0.03600101963 | AF26: 0.9443052805 | AG26: 0.9789205881 | AH26: 0.9646393099 | AI26: 1.013857728 | AJ26: =AH26/AH$13 -> 1.013857728 | AM26: 0.09508880194 | AN26: -0.1523945766 | AO26: 0.8586494109 | AP26: 1.03711344 | AQ26: =AO26/AO$13 -> 1.03711344 | AT26: 1.020725432
A27: 24 | B27: ='NSP Data'!$C27 -> 11 | C27: ='NSP Data'!$A27 -> 2007 | D27: ='NSP Data'!D27 -> 232148.07 | E27: ='NSP Data'!E27 -> 705.29297 | F27: ='NSP Data'!F27 -> 51460.765 | G27: ='NSP Data'!G27 -> 17920.861 | H27: ='NSP Data'!H27 -> 3142.841 | I27: ='NSP Data'!I27 -> 3104.2629 | J27: ='NSP Data'!$N27*'Gen Data'!$C17/D27 -> 0.25894077 | K27: ='NSP Data'!$N27*'Gen Data'!$D17/E27 -> 85.2306808 | L27: ='Gen Data'!$D$36/100 -> 0.958 | M27: =('NSP Data'!$M27*(1-'Gen Data'!$G17)*G27/($G27+$H27*5))/G27 -> 1.45499316 | N27: =('NSP Data'!$M27*(1-'Gen Data'!$G17)*H27*5/(G27+H27*5))/H27 -> 7.274965799 | O27: ='NSP Data'!$M27*'Gen Data'!G17/I27 -> 7.082838583 | P27: 12.35513068 | Q27: 6.558613277 | R27: 10.84857495 | S27: 9.793720732 | T27: 8.052882447 | U27: 8.040531575 | V27: 0.5 | W27: 0.5 | X27: 0.4100589074 | Y27: 0.2168824078 | Z27: 0.1901769461 | AA27: 0.1828817387 | AC27: -0.09824610873 | AD27: -0.06069568131 | AE27: -0.03755042741 | AF27: 0.906425797 | AG27: 0.9411095934 | AH27: 0.9631458475 | AI27: 1.016170723 | AJ27: =AH27/AH$14 -> 1.016170723 | AM27: 0.05620377423 | AN27: -0.154449883 | AO27: 0.8568864357 | AP27: 1.038577079 | AQ27: =AO27/AO$14 -> 1.038577079 | AT27: 1.013291173
A28: 25 | B28: ='NSP Data'!$C28 -> 12 | C28: ='NSP Data'!$A28 -> 2007 | D28: ='NSP Data'!D28 -> 237722.39 | E28: ='NSP Data'!E28 -> 699.72629 | F28: ='NSP Data'!F28 -> 52417.448 | G28: ='NSP Data'!G28 -> 17133.712 | H28: ='NSP Data'!H28 -> 3261.0225 | I28: ='NSP Data'!I28 -> 3104.7474 | J28: ='NSP Data'!$N28*'Gen Data'!$C18/D28 -> 0.251808128 | K28: ='NSP Data'!$N28*'Gen Data'!$D18/E28 -> 85.54835063 | L28: ='Gen Data'!$D$36/100 -> 0.958 | M28: =('NSP Data'!$M28*(1-'Gen Data'!$G18)*G28/($G28+$H28*5))/G28 -> 1.434213497 | N28: =('NSP Data'!$M28*(1-'Gen Data'!$G18)*H28*5/(G28+H28*5))/H28 -> 7.171067486 | O28: ='NSP Data'!$M28*'Gen Data'!G18/I28 -> 6.939866854 | P28: 12.37885884 | Q28: 6.550689244 | R28: 10.86699479 | S28: 9.748803264 | T28: 8.089796075 | U28: 8.040687638 | V28: 0.5 | W28: 0.5 | X28: 0.4194416434 | Y28: 0.2052557972 | Z28: 0.1953294689 | AA28: 0.1799730905 | AC28: -0.09034404324 | AD28: -0.05531879462 | AE28: -0.03502524863 | AF28: 0.9136168075 | AG28: 0.9461834617 | AH28: 0.9655810364 | AI28: 1.015006622 | AJ28: =AH28/AH$15 -> 1.015006622 | AM28: 0.07462361457 | AN28: -0.1649676578 | AO28: 0.8479211273 | AP28: 1.036707321 | AQ28: =AO28/AO$15 -> 1.036707321 | AT28: 1.017503978
A29: 26 | B29: ='NSP Data'!$C29 -> 13 | C29: ='NSP Data'!$A29 -> 2007 | D29: ='NSP Data'!D29 -> 238862.1 | E29: ='NSP Data'!E29 -> 699.68506 | F29: ='NSP Data'!F29 -> 54760.035 | G29: ='NSP Data'!G29 -> 16369.416 | H29: ='NSP Data'!H29 -> 3129.7906 | I29: ='NSP Data'!I29 -> 3146.517 | J29: ='NSP Data'!$N29*'Gen Data'!$C19/D29 -> 0.2563901933 | K29: ='NSP Data'!$N29*'Gen Data'!$D19/E29 -> 87.52780858 | L29: ='Gen Data'!$D$36/100 -> 0.958 | M29: =('NSP Data'!$M29*(1-'Gen Data'!$G19)*G29/($G29+$H29*5))/G29 -> 1.509019613 | N29: =('NSP Data'!$M29*(1-'Gen Data'!$G19)*H29*5/(G29+H29*5))/H29 -> 7.545098064 | O29: ='NSP Data'!$M29*'Gen Data'!G19/I29 -> 6.89884854 | P29: 12.38364168 | Q29: 6.55063032 | R29: 10.91071592 | S29: 9.703169995 | T29: 8.04872138 | U29: 8.054051406 | V29: 0.5 | W29: 0.5 | X29: 0.4283024497 | Y29: 0.2016737632 | Z29: 0.1927975465 | AA29: 0.1772262406 | AC29: -0.08798208879 | AD29: -0.05258796251 | AE29: -0.03539412628 | AF29: 0.9157772793 | AG29: 0.9487708611 | AH29: 0.9652249208 | AI29: 1.013576778 | AJ29: =AH29/AH$16 -> 1.013576778 | AM29: 0.1183447411 | AN29: -0.2063268299 | AO29: 0.8135671347 | AP29: 1.014501492 | AQ29: =AO29/AO$16 -> 1.014501492 | AT29: 1.021574004
A30: 27 | B30: ='NSP Data'!$C30 -> 1 | C30: ='NSP Data'!$A30 -> 2008 | D30: ='NSP Data'!D30 -> 268403.87 | E30: ='NSP Data'!E30 -> 819.74343 | F30: ='NSP Data'!F30 -> 48451.247 | G30: ='NSP Data'!G30 -> 27353.877 | H30: ='NSP Data'!H30 -> 3021.0841 | I30: ='NSP Data'!I30 -> 3276.2424 | J30: ='NSP Data'!$N30*'Gen Data'!$C7/D30 -> 0.2546330833 | K30: ='NSP Data'!$N30*'Gen Data'!$D7/E30 -> 83.37304393 | L30: ='Gen Data'!$E$36/100 -> 1 | M30: =('NSP Data'!$M30*(1-'Gen Data'!$G7)*G30/($G30+$H30*5))/G30 -> 1.433939343 | N30: =('NSP Data'!$M30*(1-'Gen Data'!$G7)*H30*5/(G30+H30*5))/H30 -> 7.169696715 | O30: ='NSP Data'!$M30*'Gen Data'!G7/I30 -> 8.34910959 | P30: 12.5002481 | Q30: 6.708991401 | R30: 10.78831335 | S30: 10.21661355 | T30: 8.013371019 | U30: 8.094452435 | V30: 0.5 | W30: 0.5 | X30: 0.3544633665 | Y30: 0.2869565017 | Z30: 0.1584637755 | AA30: 0.2001163564 | AC30: 0.04950166488 | AD30: 0.0269211602 | AE30: 0.02258050468 | AF30: 1.050747342 | AG30: 1.027286808 | AH30: 1.022837374 | AI30: 1.010541421 | AJ30: =AH30/AH$4 -> 1.022837374 | AM30: -0.00405782255 | AN30: 0.05355948743 | AO30: 1.05501975 | AP30: 1.037413117 | AQ30: =AO30/AO$4 -> 1.05501975 | AT30: =AF30/AF17 -> 1.02344736
A31: 28 | B31: ='NSP Data'!$C31 -> 2 | C31: ='NSP Data'!$A31 -> 2008 | D31: ='NSP Data'!D31 -> 268591.24 | E31: ='NSP Data'!E31 -> 810.46552 | F31: ='NSP Data'!F31 -> 50885.221 | G31: ='NSP Data'!G31 -> 27780.927 | H31: ='NSP Data'!H31 -> 3036.5228 | I31: ='NSP Data'!I31 -> 3285.869 | J31: ='NSP Data'!$N31*'Gen Data'!$C8/D31 -> 0.2635493436 | K31: ='NSP Data'!$N31*'Gen Data'!$D8/E31 -> 87.34121718 | L31: ='Gen Data'!$E$36/100 -> 1 | M31: =('NSP Data'!$M31*(1-'Gen Data'!$G8)*G31/($G31+$H31*5))/G31 -> 1.456474977 | N31: =('NSP Data'!$M31*(1-'Gen Data'!$G8)*H31*5/(G31+H31*5))/H31 -> 7.282374883 | O31: ='NSP Data'!$M31*'Gen Data'!G8/I31 -> 8.555895147 | P31: 12.50094595 | Q31: 6.697608799 | R31: 10.83732781 | S31: 10.23210499 | T31: 8.018468324 | U31: 8.097386432 | V31: 0.5 | W31: 0.5 | X31: 0.3594246628 | Y31: 0.2858024647 | Z31: 0.156194518 | AA31: 0.1985783545 | AC31: 0.04415928678 | AD31: 0.05033854104 | AE31: -0.006179254254 | AF31: 1.04514882 | AG31: 1.051627055 | AH31: 0.9938397981 | AI31: 1.01314683 | AJ31: =AH31/AH$5 -> 1.020082604 | AM31: 0.04495662933 | AN31: -0.0007973425476 | AO31: 0.9992029752 | AP31: 1.027194554 | AQ31: =AO31/AO$5 -> 1.053486528 | AT31: 1.021587362
A32: 29 | B32: ='NSP Data'!$C32 -> 3 | C32: ='NSP Data'!$A32 -> 2008 | D32: ='NSP Data'!D32 -> 258390.32 | E32: ='NSP Data'!E32 -> 801.6085 | F32: ='NSP Data'!F32 -> 51819.628 | G32: ='NSP Data'!G32 -> 24889.955 | H32: ='NSP Data'!H32 -> 3136.4438 | I32: ='NSP Data'!I32 -> 3190.1691 | J32: ='NSP Data'!$N32*'Gen Data'!$C9/D32 -> 0.2658227677 | K32: ='NSP Data'!$N32*'Gen Data'!$D9/E32 -> 85.68525658 | L32: ='Gen Data'!$E$36/100 -> 1 | M32: =('NSP Data'!$M32*(1-'Gen Data'!$G9)*G32/($G32+$H32*5))/G32 -> 1.45496711 | N32: =('NSP Data'!$M32*(1-'Gen Data'!$G9)*H32*5/(G32+H32*5))/H32 -> 7.274835552 | O32: ='NSP Data'!$M32*'Gen Data'!G9/I32 -> 8.313432109 | P32: 12.46222659 | Q32: 6.686620334 | R32: 10.85552428 | S32: 10.12221959 | T32: 8.050844889 | U32: 8.067829204 | V32: 0.5 | W32: 0.5 | X32: 0.3772210129 | Y32: 0.2636203144 | Z32: 0.1660971867 | AA32: 0.193061486 | AC32: 0.01930537445 | AD32: 0.0260455999 | AE32: -0.006740225445 | AF32: 1.019492928 | AG32: 1.026387751 | AH32: 0.9932824389 | AI32: 1.018612803 | AJ32: =AH32/AH$6 -> 1.0411536 | AM32: 0.06315309798 | AN32: -0.04384772353 | AO32: 0.9570996901 | AP32: 1.027122761 | AQ32: =AO32/AO$6 -> 1.071056624 | AT32: 1.031694362
A33: 30 | B33: ='NSP Data'!$C33 -> 4 | C33: ='NSP Data'!$A33 -> 2008 | D33: ='NSP Data'!D33 -> 263627.69 | E33: ='NSP Data'!E33 -> 791.18418 | F33: ='NSP Data'!F33 -> 50308.349 | G33: ='NSP Data'!G33 -> 25573.936 | H33: ='NSP Data'!H33 -> 3070.4698 | I33: ='NSP Data'!I33 -> 3207.064 | J33: ='NSP Data'!$N33*'Gen Data'!$C10/D33 -> 0.2557875844 | K33: ='NSP Data'!$N33*'Gen Data'!$D10/E33 -> 85.23007879 | L33: ='Gen Data'!$E$36/100 -> 1 | M33: =('NSP Data'!$M33*(1-'Gen Data'!$G10)*G33/($G33+$H33*5))/G33 -> 1.425596146 | N33: =('NSP Data'!$M33*(1-'Gen Data'!$G10)*H33*5/(G33+H33*5))/H33 -> 7.127980728 | O33: ='NSP Data'!$M33*'Gen Data'!G10/I33 -> 8.173419941 | P33: 12.48229312 | Q33: 6.673530785 | R33: 10.82592633 | S33: 10.14932899 | T33: 8.029585858 | U33: 8.073111156 | V33: 0.5 | W33: 0.5 | X33: 0.3730264024 | Y33: 0.2703295947 | Z33: 0.1622821877 | AA33: 0.1943618153 | AC33: 0.02279386637 | AD33: 0.01976279533 | AE33: 0.003031071041 | AF33: 1.023055632 | AG33: 1.019959372 | AH33: 1.003035669 | AI33: 1.014070815 | AJ33: =AH33/AH$7 -> 1.019155638 | AM33: 0.033555149 | AN33: -0.01076128263 | AO33: 0.9892964128 | AP33: 1.027554718 | AQ33: =AO33/AO$7 -> 1.045410597 | AT33: 1.029646354
A34: 31 | B34: ='NSP Data'!$C34 -> 5 | C34: ='NSP Data'!$A34 -> 2008 | D34: ='NSP Data'!D34 -> 256918.67 | E34: ='NSP Data'!E34 -> 781.9101 | F34: ='NSP Data'!F34 -> 50730.18 | G34: ='NSP Data'!G34 -> 24492.066 | H34: ='NSP Data'!H34 -> 3171.6396 | I34: ='NSP Data'!I34 -> 3278.29 | J34: ='NSP Data'!$N34*'Gen Data'!$C11/D34 -> 0.2695938368 | K34: ='NSP Data'!$N34*'Gen Data'!$D11/E34 -> 88.58267722 | L34: ='Gen Data'!$E$36/100 -> 1 | M34: =('NSP Data'!$M34*(1-'Gen Data'!$G11)*G34/($G34+$H34*5))/G34 -> 1.501354918 | N34: =('NSP Data'!$M34*(1-'Gen Data'!$G11)*H34*5/(G34+H34*5))/H34 -> 7.506774591 | O34: ='NSP Data'!$M34*'Gen Data'!G11/I34 -> 8.302234302 | P34: 12.45651485 | Q34: 6.661739772 | R34: 10.83427628 | S34: 10.10610451 | T34: 8.062003957 | U34: 8.095077224 | V34: 0.5 | W34: 0.5 | X34: 0.3662104947 | Y34: 0.2654441599 | Z34: 0.1718705987 | AA34: 0.1964747466 | AC34: 0.00400922645 | AD34: 0.02124252005 | AE34: -0.0172332936 | AF34: 1.004017274 | AG34: 1.021469748 | AH34: 0.9829143503 | AI34: 1.010778478 | AJ34: =AH34/AH$8 -> 1.032582106 | AM34: 0.04190510134 | AN34: -0.03789587489 | AO34: 0.9628131887 | AP34: 1.031825206 | AQ34: =AO34/AO$8 -> 1.06521404 | AT34: 1.024540573
A35: 32 | B35: ='NSP Data'!$C35 -> 6 | C35: ='NSP Data'!$A35 -> 2008 | D35: ='NSP Data'!D35 -> 261472.76 | E35: ='NSP Data'!E35 -> 759.48901 | F35: ='NSP Data'!F35 -> 51705.564 | G35: ='NSP Data'!G35 -> 22119.295 | H35: ='NSP Data'!H35 -> 3208.0681 | I35: ='NSP Data'!I35 -> 3325.9454 | J35: ='NSP Data'!$N35*'Gen Data'!$C12/D35 -> 0.2568202133 | K35: ='NSP Data'!$N35*'Gen Data'!$D12/E35 -> 88.4166711 | L35: ='Gen Data'!$E$36/100 -> 1 | M35: =('NSP Data'!$M35*(1-'Gen Data'!$G12)*G35/($G35+$H35*5))/G35 -> 1.493521074 | N35: =('NSP Data'!$M35*(1-'Gen Data'!$G12)*H35*5/(G35+H35*5))/H35 -> 7.467605371 | O35: ='NSP Data'!$M35*'Gen Data'!G12/I35 -> 7.698623134 | P35: 12.47408539 | Q35: 6.632645852 | R35: 10.85332068 | S35: 10.00420558 | T35: 8.073424197 | U35: 8.109509244 | V35: 0.5 | W35: 0.5 | X35: 0.3849919224 | Y35: 0.2459784008 | Z35: 0.1783771727 | AA35: 0.190652504 | AC35: -0.001752466681 | AD35: 0.006943932496 | AE35: -0.008696399177 | AF35: 0.998249068 | AG35: 1.006968097 | AH35: 0.9913413051 | AI35: 1.006605988 | AJ35: =AH35/AH$9 -> 1.015163565 | AM35: 0.06094949818 | AN35: -0.06270196487 | AO35: 0.9392233535 | AP35: 1.016295788 | AQ35: =AO35/AO$9 -> 1.048926252 | AT35: 1.019522674
A36: 33 | B36: ='NSP Data'!$C36 -> 7 | C36: ='NSP Data'!$A36 -> 2008 | D36: ='NSP Data'!D36 -> 260295.25 | E36: ='NSP Data'!E36 -> 772.02289 | F36: ='NSP Data'!F36 -> 52306.978 | G36: ='NSP Data'!G36 -> 21589.511 | H36: ='NSP Data'!H36 -> 3146.3179 | I36: ='NSP Data'!I36 -> 3320.6909 | J36: ='NSP Data'!$N36*'Gen Data'!$C13/D36 -> 0.2652353241 | K36: ='NSP Data'!$N36*'Gen Data'!$D13/E36 -> 89.42674614 | L36: ='Gen Data'!$E$36/100 -> 1 | M36: =('NSP Data'!$M36*(1-'Gen Data'!$G13)*G36/($G36+$H36*5))/G36 -> 1.585770107 | N36: =('NSP Data'!$M36*(1-'Gen Data'!$G13)*H36*5/(G36+H36*5))/H36 -> 7.928850533 | O36: ='NSP Data'!$M36*'Gen Data'!G13/I36 -> 8.007165762 | P36: =LN(D36) -> 12.46957184 | Q36: =LN(E36) -> 6.6490142 | R36: 10.86488506 | S36: 9.979962874 | T36: 8.053988127 | U36: 8.107928143 | V36: =D36*J36/SUMPRODUCT($D36:$E36,$J36:$K36) -> 0.5 | W36: =E36*K36/SUMPRODUCT($D36:$E36,$J36:$K36) -> 0.5 | X36: =F36*L36/SUMPRODUCT($F36:$I36,$L36:$O36) -> 0.3788192506 | Y36: =G36*M36/SUMPRODUCT($F36:$I36,$L36:$O36) -> 0.2479450505 | Z36: =H36*N36/SUMPRODUCT($F36:$I36,$L36:$O36) -> 0.1806696666 | AA36: =I36*O36/SUMPRODUCT($F36:$I36,$L36:$O36) -> 0.1925660323 | AC36: =0.5*((V36+V$82)*(P36-P$82)+(W36+W$82)*(Q36-Q$82))-0.5*((V$4+V$82)*(P$4-P$82)+(W$4+W$82)*(Q$4-Q$82)) -> 0.004174934218 | AD36: =0.5*((X36+X$82)*(R36-R$82)+(Y36+Y$82)*(S36-S$82)+(Z36+Z$82)*(T36-T$82)+(AA36+AA$82)*(U36-U$82))-0.5*((X$4+X$82)*(R$4-R$82)+(Y$4+Y$82)*(S$4-S$82)+(Z$4+Z$82)*(T$4-T$82)+(AA$4+AA$82)*(U$4-U$82)) -> 0.001472603147 | AE36: 0.002702331071 | AF36: 1.004183661 | AG36: 1.001473688 | AH36: 1.002705986 | AI36: 1.015790997 | AJ36: =AH36/AH$10 -> 1.027827751 | AM36: 0.0725138863 | AN36: -0.06833895209 | AO36: 0.9339438577 | AP36: 1.0285006 | AQ36: =AO36/AO$10 -> 1.06532154 | AT36: 1.026768948
A37: 34 | B37: ='NSP Data'!$C37 -> 8 | C37: ='NSP Data'!$A37 -> 2008 | D37: ='NSP Data'!D37 -> 243726.21 | E37: ='NSP Data'!E37 -> 745.43717 | F37: ='NSP Data'!F37 -> 51950.323 | G37: ='NSP Data'!G37 -> 21042.348 | H37: ='NSP Data'!H37 -> 3287.1454 | I37: ='NSP Data'!I37 -> 3294.988 | J37: ='NSP Data'!$N37*'Gen Data'!$C14/D37 -> 0.2748901318 | K37: ='NSP Data'!$N37*'Gen Data'!$D14/E37 -> 89.87736686 | L37: ='Gen Data'!$E$36/100 -> 1 | M37: =('NSP Data'!$M37*(1-'Gen Data'!$G14)*G37/($G37+$H37*5))/G37 -> 1.510521032 | N37: =('NSP Data'!$M37*(1-'Gen Data'!$G14)*H37*5/(G37+H37*5))/H37 -> 7.55260516 | O37: ='NSP Data'!$M37*'Gen Data'!G14/I37 -> 7.719031593 | P37: 12.40380078 | Q37: 6.613970852 | R37: 10.85804321 | S37: 9.954292258 | T37: 8.097774808 | U37: 8.100157805 | V37: 0.5 | W37: 0.5 | X37: 0.3877009558 | Y37: 0.2372081437 | Z37: 0.1852781967 | AA37: 0.1898127037 | AC37: -0.04623226915 | AD37: -0.000710805382 | AE37: -0.04552146377 | AF37: 0.9548201612 | AG37: 0.9992894472 | AH37: 0.9554990937 | AI37: 1.008318257 | AJ37: =AH37/AH$11 -> 1.008791162 | AM37: 0.06567203661 | AN37: -0.1119043058 | AO37: 0.8941298165 | AP37: 1.012100741 | AQ37: =AO37/AO$11 -> 1.031962759 | AT37: 1.018165205
A38: 35 | B38: ='NSP Data'!$C38 -> 9 | C38: ='NSP Data'!$A38 -> 2008 | D38: ='NSP Data'!D38 -> 248257.85 | E38: ='NSP Data'!E38 -> 738.31812 | F38: ='NSP Data'!F38 -> 51989.089 | G38: ='NSP Data'!G38 -> 20309.737 | H38: ='NSP Data'!H38 -> 3241.6437 | I38: ='NSP Data'!I38 -> 3222.7898 | J38: ='NSP Data'!$N38*'Gen Data'!$C15/D38 -> 0.2709764666 | K38: ='NSP Data'!$N38*'Gen Data'!$D15/E38 -> 91.11524311 | L38: ='Gen Data'!$E$36/100 -> 1 | M38: =('NSP Data'!$M38*(1-'Gen Data'!$G15)*G38/($G38+$H38*5))/G38 -> 1.559861082 | N38: =('NSP Data'!$M38*(1-'Gen Data'!$G15)*H38*5/(G38+H38*5))/H38 -> 7.79930541 | O38: ='NSP Data'!$M38*'Gen Data'!G15/I38 -> 7.940959854 | P38: 12.4222232 | Q38: 6.604374789 | R38: 10.85878915 | S38: 9.918855705 | T38: 8.083835795 | U38: 8.078002661 | V38: 0.5 | W38: 0.5 | X38: 0.3864093647 | Y38: 0.2354646184 | Z38: 0.18791292 | AA38: 0.1902130969 | AC38: -0.04181909133 | AD38: -0.01575424598 | AE38: -0.02606484535 | AF38: 0.9590432641 | AG38: 0.984369203 | AH38: 0.9742719106 | AI38: 0.9957339628 | AJ38: =AH38/AH$12 -> 1.015620413 | AM38: 0.06641797121 | AN38: -0.1082370625 | AO38: 0.8974148278 | AP38: 1.003900662 | AQ38: =AO38/AO$12 -> 1.039888606 | AT38: 1.012089346
A39: 36 | B39: ='NSP Data'!$C39 -> 10 | C39: ='NSP Data'!$A39 -> 2008 | D39: ='NSP Data'!D39 -> 254965.76 | E39: ='NSP Data'!E39 -> 734.47263 | F39: ='NSP Data'!F39 -> 53388.495 | G39: ='NSP Data'!G39 -> 19642.532 | H39: ='NSP Data'!H39 -> 3356.2361 | I39: ='NSP Data'!I39 -> 3126.076 | J39: ='NSP Data'!$N39*'Gen Data'!$C16/D39 -> 0.2619784711 | K39: ='NSP Data'!$N39*'Gen Data'!$D16/E39 -> 90.94353863 | L39: ='Gen Data'!$E$36/100 -> 1 | M39: =('NSP Data'!$M39*(1-'Gen Data'!$G16)*G39/($G39+$H39*5))/G39 -> 1.519333874 | N39: =('NSP Data'!$M39*(1-'Gen Data'!$G16)*H39*5/(G39+H39*5))/H39 -> 7.596669368 | O39: ='NSP Data'!$M39*'Gen Data'!G16/I39 -> 7.953357436 | P39: 12.44888454 | Q39: 6.599152731 | R39: 10.88535055 | S39: 9.885452494 | T39: 8.118575417 | U39: 8.047533823 | V39: 0.5 | W39: 0.5 | X39: 0.3996411811 | Y39: 0.2233948954 | Z39: 0.1908526896 | AA39: 0.1861112339 | AC39: -0.03109945098 | AD39: -0.01200310791 | AE39: -0.01909634307 | AF39: 0.9693791626 | AG39: 0.988068642 | AH39: 0.981084837 | AI39: 1.017048369 | AJ39: =AH39/AH$13 -> 1.031142349 | AM39: 0.09297937489 | AN39: -0.1240788259 | AO39: 0.8833102104 | AP39: 1.028720452 | AQ39: =AO39/AO$13 -> 1.066899807 | AT39: 1.026552729
A40: 37 | B40: ='NSP Data'!$C40 -> 11 | C40: ='NSP Data'!$A40 -> 2008 | D40: ='NSP Data'!D40 -> 239411.29 | E40: ='NSP Data'!E40 -> 726.46905 | F40: ='NSP Data'!F40 -> 51362.068 | G40: ='NSP Data'!G40 -> 17975.876 | H40: ='NSP Data'!H40 -> 3303.987 | I40: ='NSP Data'!I40 -> 3123.888 | J40: ='NSP Data'!$N40*'Gen Data'!$C17/D40 -> 0.2707177886 | K40: ='NSP Data'!$N40*'Gen Data'!$D17/E40 -> 89.21631968 | L40: ='Gen Data'!$E$36/100 -> 1 | M40: =('NSP Data'!$M40*(1-'Gen Data'!$G17)*G40/($G40+$H40*5))/G40 -> 1.565464559 | N40: =('NSP Data'!$M40*(1-'Gen Data'!$G17)*H40*5/(G40+H40*5))/H40 -> 7.827322796 | O40: ='NSP Data'!$M40*'Gen Data'!G17/I40 -> 7.766525061 | P40: 12.38593823 | Q40: 6.588195881 | R40: 10.8466552 | S40: 9.796785916 | T40: 8.1028852 | U40: 8.046833659 | V40: 0.5 | W40: 0.5 | X40: 0.3962333977 | Y40: 0.2170910308 | Z40: 0.1995079248 | AA40: 0.1871676467 | AC40: -0.06805103145 | AD40: -0.05026073318 | AE40: -0.01779029827 | AF40: 0.9342127981 | AG40: 0.9509814398 | AH40: 0.9823670148 | AI40: 1.019956653 | AJ40: =AH40/AH$14 -> 1.036450089 | AM40: 0.05428402494 | AN40: -0.1223350564 | AO40: 0.8848518436 | AP40: 1.032636073 | AQ40: =AO40/AO$14 -> 1.072472156 | AT40: 1.030655572
A41: 38 | B41: ='NSP Data'!$C41 -> 12 | C41: ='NSP Data'!$A41 -> 2008 | D41: ='NSP Data'!D41 -> 245602.84 | E41: ='NSP Data'!E41 -> 712.45464 | F41: ='NSP Data'!F41 -> 52553.93 | G41: ='NSP Data'!G41 -> 17449.921 | H41: ='NSP Data'!H41 -> 3510.2047 | I41: ='NSP Data'!I41 -> 3129.3352 | J41: ='NSP Data'!$N41*'Gen Data'!$C18/D41 -> 0.2656912884 | K41: ='NSP Data'!$N41*'Gen Data'!$D18/E41 -> 91.59114326 | L41: ='Gen Data'!$E$36/100 -> 1 | M41: =('NSP Data'!$M41*(1-'Gen Data'!$G18)*G41/($G41+$H41*5))/G41 -> 1.536788432 | N41: =('NSP Data'!$M41*(1-'Gen Data'!$G18)*H41*5/(G41+H41*5))/H41 -> 7.683942158 | O41: ='NSP Data'!$M41*'Gen Data'!G18/I41 -> 7.722436829 | P41: 12.41147104 | Q41: 6.568716247 | R41: 10.86959516 | S41: 9.7670904 | T41: 8.163429634 | U41: 8.048575865 | V41: 0.5 | W41: 0.5 | X41: 0.40268412 | Y41: 0.2054787206 | Z41: 0.2066692367 | AA41: 0.1851679228 | AC41: -0.06502444419 | AD41: -0.03463859925 | AE41: -0.03038584495 | AF41: 0.9370445578 | AG41: 0.9659544499 | AH41: 0.9700711643 | AI41: 1.004650182 | AJ41: =AH41/AH$15 -> 1.019726588 | AM41: 0.07722398202 | AN41: -0.1422484262 | AO41: 0.8674057434 | AP41: 1.022979279 | AQ41: =AO41/AO$15 -> 1.060530107 | AT41: 1.025642863
A42: 39 | B42: ='NSP Data'!$C42 -> 13 | C42: ='NSP Data'!$A42 -> 2008 | D42: ='NSP Data'!D42 -> 246313.76 | E42: ='NSP Data'!E42 -> 722.02939 | F42: ='NSP Data'!F42 -> 53171.332 | G42: ='NSP Data'!G42 -> 16683.907 | H42: ='NSP Data'!H42 -> 3329.3318 | I42: ='NSP Data'!I42 -> 3179.0811 | J42: ='NSP Data'!$N42*'Gen Data'!$C19/D42 -> 0.2661659056 | K42: ='NSP Data'!$N42*'Gen Data'!$D19/E42 -> 90.8000781 | L42: ='Gen Data'!$E$36/100 -> 1 | M42: =('NSP Data'!$M42*(1-'Gen Data'!$G19)*G42/($G42+$H42*5))/G42 -> 1.613684809 | N42: =('NSP Data'!$M42*(1-'Gen Data'!$G19)*H42*5/(G42+H42*5))/H42 -> 8.068424047 | O42: ='NSP Data'!$M42*'Gen Data'!G19/I42 -> 7.601029102 | P42: 12.41436145 | Q42: 6.582065844 | R42: 10.88127466 | S42: 9.722199881 | T42: 8.110526902 | U42: 8.064347472 | V42: 0.5 | W42: 0.5 | X42: 0.4055145609 | Y42: 0.2053266796 | Z42: 0.2048682733 | AA42: 0.1842904861 | AC42: -0.05690444012 | AD42: -0.04750037571 | AE42: -0.009404064408 | AF42: 0.944684339 | AG42: 0.9536101149 | AH42: 0.9906400155 | AI42: 1.026330749 | AJ42: =AH42/AH$16 -> 1.040265014 | AM42: 0.08890348049 | AN42: -0.1458079206 | AO42: 0.864323706 | AP42: 1.062387686 | AQ42: =AO42/AO$16 -> 1.077793893 | AT42: 1.0315656
A43: 40 | B43: ='NSP Data'!$C43 -> 1 | C43: ='NSP Data'!$A43 -> 2009 | D43: ='NSP Data'!D43 -> 274743.75 | E43: ='NSP Data'!E43 -> 842.97624 | F43: ='NSP Data'!F43 -> 48979.627 | G43: ='NSP Data'!G43 -> 27045.458 | H43: ='NSP Data'!H43 -> 3235.8694 | I43: ='NSP Data'!I43 -> 3362.8482 | J43: ='NSP Data'!$N43*'Gen Data'!$C7/D43 -> 0.2647700084 | K43: ='NSP Data'!$N43*'Gen Data'!$D7/E43 -> 86.29413446 | L43: ='Gen Data'!$F$36/100 -> 1.044 | M43: =('NSP Data'!$M43*(1-'Gen Data'!$G7)*G43/($G43+$H43*5))/G43 -> 1.506163521 | N43: =('NSP Data'!$M43*(1-'Gen Data'!$G7)*H43*5/(G43+H43*5))/H43 -> 7.530817607 | O43: ='NSP Data'!$M43*'Gen Data'!G7/I43 -> 8.697821832 | P43: 12.52359412 | Q43: 6.736938773 | R43: 10.79915972 | S43: 10.20527436 | T43: 8.082052919 | U43: 8.120543572 | V43: 0.5 | W43: 0.5 | X43: 0.3514708946 | Y43: 0.2799882848 | Z43: 0.167496798 | AA43: 0.2010440227 | AC43: 0.07514836128 | AD43: 0.04406284727 | AE43: 0.031085514 | AF43: 1.078044079 | AG43: 1.045048031 | AH43: 1.031573714 | AI43: 1.00854128 | AJ43: =AH43/AH$4 -> 1.031573714 | AM43: 0.006788537713 | AN43: 0.06835982357 | AO43: 1.07075052 | AP43: 1.014910403 | AQ43: =AO43/AO$4 -> 1.07075052 | AT43: =AF43/AF30 -> 1.025978403
A44: 41 | B44: ='NSP Data'!$C44 -> 2 | C44: ='NSP Data'!$A44 -> 2009 | D44: ='NSP Data'!D44 -> 274309.54 | E44: ='NSP Data'!E44 -> 834.90665 | F44: ='NSP Data'!F44 -> 50613.303 | G44: ='NSP Data'!G44 -> 27998.764 | H44: ='NSP Data'!H44 -> 3223.3304 | I44: ='NSP Data'!I44 -> 3353.6257 | J44: ='NSP Data'!$N44*'Gen Data'!$C8/D44 -> 0.2733266404 | K44: ='NSP Data'!$N44*'Gen Data'!$D8/E44 -> 89.80178203 | L44: ='Gen Data'!$F$36/100 -> 1.044 | M44: =('NSP Data'!$M44*(1-'Gen Data'!$G8)*G44/($G44+$H44*5))/G44 -> 1.518907257 | N44: =('NSP Data'!$M44*(1-'Gen Data'!$G8)*H44*5/(G44+H44*5))/H44 -> 7.594536283 | O44: ='NSP Data'!$M44*'Gen Data'!G8/I44 -> 8.976760737 | P44: 12.52201246 | Q44: 6.727319922 | R44: 10.83196973 | S44: 10.23991565 | T44: 8.07817039 | U44: 8.117797338 | V44: 0.5 | W44: 0.5 | X44: 0.352380859 | Y44: 0.2836071973 | Z44: 0.16325001 | AA44: 0.2007619337 | AC44: 0.06954810195 | AD44: 0.06436312193 | AE44: 0.005184980027 | AF44: 1.072023626 | AG44: 1.066479591 | AH44: 1.005198445 | AI44: 1.011429052 | AJ44: =AH44/AH$5 -> 1.031741182 | AM44: 0.03959854845 | AN44: 0.0299495535 | AO44: 1.030402552 | AP44: 1.031224464 | AQ44: =AO44/AO$5 -> 1.08638108 | AT44: 1.025713856
A45: 42 | B45: ='NSP Data'!$C45 -> 3 | C45: ='NSP Data'!$A45 -> 2009 | D45: ='NSP Data'!D45 -> 263395.04 | E45: ='NSP Data'!E45 -> 822.05071 | F45: ='NSP Data'!F45 -> 51825.311 | G45: ='NSP Data'!G45 -> 25257.784 | H45: ='NSP Data'!H45 -> 3323.8087 | I45: ='NSP Data'!I45 -> 3255.9308 | J45: ='NSP Data'!$N45*'Gen Data'!$C9/D45 -> 0.2769789059 | K45: ='NSP Data'!$N45*'Gen Data'!$D9/E45 -> 88.7474083 | L45: ='Gen Data'!$F$36/100 -> 1.044 | M45: =('NSP Data'!$M45*(1-'Gen Data'!$G9)*G45/($G45+$H45*5))/G45 -> 1.512646517 | N45: =('NSP Data'!$M45*(1-'Gen Data'!$G9)*H45*5/(G45+H45*5))/H45 -> 7.563232587 | O45: ='NSP Data'!$M45*'Gen Data'!G9/I45 -> 8.740749257 | P45: 12.48141024 | Q45: 6.711802084 | R45: 10.85563394 | S45: 10.13688966 | T45: 8.108866603 | U45: 8.088233474 | V45: 0.5 | W45: 0.5 | X45: 0.3708157243 | Y45: 0.2618474947 | Z45: 0.1722896555 | AA45: 0.1950471255 | AC45: 0.04148807377 | AD45: 0.04381893985 | AE45: -0.002330866081 | AF45: 1.04236073 | AG45: 1.044793167 | AH45: 0.9976718483 | AI45: 1.004419095 | AJ45: =AH45/AH$6 -> 1.045754557 | AM45: 0.06326276084 | AN45: -0.02177468707 | AO45: 0.9784606701 | AP45: 1.022318448 | AQ45: =AO45/AO$6 -> 1.094960946 | AT45: 1.022430565
A46: 43 | B46: ='NSP Data'!$C46 -> 4 | C46: ='NSP Data'!$A46 -> 2009 | D46: ='NSP Data'!D46 -> 271948.05 | E46: ='NSP Data'!E46 -> 811.91051 | F46: ='NSP Data'!F46 -> 50042.554 | G46: ='NSP Data'!G46 -> 25573.877 | H46: ='NSP Data'!H46 -> 3212.1843 | I46: ='NSP Data'!I46 -> 3289.4168 | J46: ='NSP Data'!$N46*'Gen Data'!$C10/D46 -> 0.2630332337 | K46: ='NSP Data'!$N46*'Gen Data'!$D10/E46 -> 88.10253608 | L46: ='Gen Data'!$F$36/100 -> 1.044 | M46: =('NSP Data'!$M46*(1-'Gen Data'!$G10)*G46/($G46+$H46*5))/G46 -> 1.505102668 | N46: =('NSP Data'!$M46*(1-'Gen Data'!$G10)*H46*5/(G46+H46*5))/H46 -> 7.525513342 | O46: ='NSP Data'!$M46*'Gen Data'!G10/I46 -> 8.558867237 | P46: 12.51336633 | Q46: 6.699390125 | R46: 10.820629 | S46: 10.14932668 | T46: 8.074706452 | U46: 8.098465564 | V46: 0.5 | W46: 0.5 | X46: 0.3651853804 | Y46: 0.2690519324 | Z46: 0.1689701552 | AA46: 0.1967925321 | AC46: 0.05126014253 | AD46: 0.03046069873 | AE46: 0.0207994438 | AF46: 1.052596683 | AG46: 1.030929372 | AH46: 1.02101726 | AI46: 1.017927169 | AJ46: =AH46/AH$7 -> 1.037426214 | AM46: 0.02825782504 | AN46: 0.0230023175 | AO46: 1.023268911 | AP46: 1.03434006 | AQ46: =AO46/AO$7 -> 1.081310059 | AT46: 1.028875313
A47: 44 | B47: ='NSP Data'!$C47 -> 5 | C47: ='NSP Data'!$A47 -> 2009 | D47: ='NSP Data'!D47 -> 261199.26 | E47: ='NSP Data'!E47 -> 792.45034 | F47: ='NSP Data'!F47 -> 51064.019 | G47: ='NSP Data'!G47 -> 24410.569 | H47: ='NSP Data'!H47 -> 3408.3654 | I47: ='NSP Data'!I47 -> 3315.889 | J47: ='NSP Data'!$N47*'Gen Data'!$C11/D47 -> 0.2819725255 | K47: ='NSP Data'!$N47*'Gen Data'!$D11/E47 -> 92.9408586 | L47: ='Gen Data'!$F$36/100 -> 1.044 | M47: =('NSP Data'!$M47*(1-'Gen Data'!$G11)*G47/($G47+$H47*5))/G47 -> 1.564539796 | N47: =('NSP Data'!$M47*(1-'Gen Data'!$G11)*H47*5/(G47+H47*5))/H47 -> 7.822698979 | O47: ='NSP Data'!$M47*'Gen Data'!G11/I47 -> 8.787166829 | P47: 12.47303884 | Q47: 6.675129841 | R47: 10.8408354 | S47: 10.10277147 | T47: 8.133988101 | U47: 8.106481042 | V47: 0.5 | W47: 0.5 | X47: 0.3619151498 | Y47: 0.2592721019 | Z47: 0.1810064447 | AA47: 0.1978063036 | AC47: 0.01896625529 | AD47: 0.03773724468 | AE47: -0.01877098939 | AF47: 1.019147257 | AG47: 1.038458337 | AH47: 0.9814040885 | AI47: 0.9984634859 | AJ47: =AH47/AH$8 -> 1.030995529 | AM47: 0.04846422161 | AN47: -0.02949796632 | AO47: 0.9709328522 | AP47: 1.00843327 | AQ47: =AO47/AO$8 -> 1.074197277 | AT47: 1.015069445
A48: 45 | B48: ='NSP Data'!$C48 -> 6 | C48: ='NSP Data'!$A48 -> 2009 | D48: ='NSP Data'!D48 -> 266786.48 | E48: ='NSP Data'!E48 -> 782.65094 | F48: ='NSP Data'!F48 -> 50936.919 | G48: ='NSP Data'!G48 -> 22393.268 | H48: ='NSP Data'!H48 -> 3396.5777 | I48: ='NSP Data'!I48 -> 3400.6919 | J48: ='NSP Data'!$N48*'Gen Data'!$C12/D48 -> 0.2666076257 | K48: ='NSP Data'!$N48*'Gen Data'!$D12/E48 -> 90.87999051 | L48: ='Gen Data'!$F$36/100 -> 1.044 | M48: =('NSP Data'!$M48*(1-'Gen Data'!$G12)*G48/($G48+$H48*5))/G48 -> 1.560913422 | N48: =('NSP Data'!$M48*(1-'Gen Data'!$G12)*H48*5/(G48+H48*5))/H48 -> 7.804567112 | O48: ='NSP Data'!$M48*'Gen Data'!G12/I48 -> 8.120026633 | P48: 12.49420392 | Q48: 6.662686798 | R48: 10.83834326 | S48: 10.01651566 | T48: 8.130523645 | U48: 8.13173419 | V48: 0.5 | W48: 0.5 | X48: 0.3738236561 | Y48: 0.2457140003 | Z48: 0.1863476769 | AA48: 0.1941146666 | AC48: 0.0233272707 | AD48: 0.01914819207 | AE48: 0.004179078633 | AF48: 1.02360148 | AG48: 1.019332694 | AH48: 1.004187823 | AI48: 1.012958724 | AJ48: =AH48/AH$9 -> 1.02831879 | AM48: 0.04597208637 | AN48: -0.02264481567 | AO48: 0.9776096537 | AP48: 1.040870257 | AQ48: =AO48/AO$9 -> 1.091796138 | AT48: 1.02539688
A49: 46 | B49: ='NSP Data'!$C49 -> 7 | C49: ='NSP Data'!$A49 -> 2009 | D49: ='NSP Data'!D49 -> 263147.37 | E49: ='NSP Data'!E49 -> 781.546 | F49: ='NSP Data'!F49 -> 51368.711 | G49: ='NSP Data'!G49 -> 21753.803 | H49: ='NSP Data'!H49 -> 3353.5561 | I49: ='NSP Data'!I49 -> 3359.002 | J49: ='NSP Data'!$N49*'Gen Data'!$C13/D49 -> 0.2794736463 | K49: ='NSP Data'!$N49*'Gen Data'!$D13/E49 -> 94.09907414 | L49: ='Gen Data'!$F$36/100 -> 1.044 | M49: =('NSP Data'!$M49*(1-'Gen Data'!$G13)*G49/($G49+$H49*5))/G49 -> 1.673997505 | N49: =('NSP Data'!$M49*(1-'Gen Data'!$G13)*H49*5/(G49+H49*5))/H49 -> 8.369987527 | O49: ='NSP Data'!$M49*'Gen Data'!G13/I49 -> 8.625043188 | P49: 12.4804695 | Q49: 6.661274009 | R49: 10.84678453 | S49: 9.987543872 | T49: 8.117776584 | U49: 8.119399185 | V49: 0.5 | W49: 0.5 | X49: 0.3646105972 | Y49: 0.2475825992 | Z49: 0.1908360887 | AA49: 0.1969707149 | AC49: 0.01575366584 | AD49: 0.01054742297 | AE49: 0.005206242871 | AF49: 1.015878409 | AG49: 1.010603243 | AH49: 1.005219819 | AI49: 1.002507049 | AJ49: =AH49/AH$10 -> 1.030404565 | AM49: 0.05441335327 | AN49: -0.03865968743 | AO49: 0.9620780607 | AP49: 1.030124084 | AQ49: =AO49/AO$10 -> 1.097413376 | AT49: 1.011646025
A50: 47 | B50: ='NSP Data'!$C50 -> 8 | C50: ='NSP Data'!$A50 -> 2009 | D50: ='NSP Data'!D50 -> 249460.75 | E50: ='NSP Data'!E50 -> 770.5552 | F50: ='NSP Data'!F50 -> 51628.092 | G50: ='NSP Data'!G50 -> 21137.437 | H50: ='NSP Data'!H50 -> 3486.1503 | I50: ='NSP Data'!I50 -> 3386.5368 | J50: ='NSP Data'!$N50*'Gen Data'!$C14/D50 -> 0.2878853287 | K50: ='NSP Data'!$N50*'Gen Data'!$D14/E50 -> 93.2004482 | L50: ='Gen Data'!$F$36/100 -> 1.044 | M50: =('NSP Data'!$M50*(1-'Gen Data'!$G14)*G50/($G50+$H50*5))/G50 -> 1.605348787 | N50: =('NSP Data'!$M50*(1-'Gen Data'!$G14)*H50*5/(G50+H50*5))/H50 -> 8.026743937 | O50: ='NSP Data'!$M50*'Gen Data'!G14/I50 -> 8.214014199 | P50: 12.42705687 | Q50: 6.647111294 | R50: 10.85182122 | S50: 9.958801013 | T50: 8.15655334 | U50: 8.127563085 | V50: 0.5 | W50: 0.5 | X50: 0.3752621907 | Y50: 0.2362489931 | Z50: 0.1948200953 | AA50: 0.1936687209 | AC50: -0.01803400645 | AD50: 0.01446751463 | AE50: -0.03250152107 | AF50: 0.9821276331 | AG50: 1.014572676 | AH50: 0.9680209774 | AI50: 1.013105071 | AJ50: =AH50/AH$11 -> 1.022011442 | AM50: 0.05945004452 | AN50: -0.07748405097 | AO50: 0.9254417842 | AP50: 1.035019487 | AQ50: =AO50/AO$11 -> 1.068101566 | AT50: 1.028599597
A51: 48 | B51: ='NSP Data'!$C51 -> 9 | C51: ='NSP Data'!$A51 -> 2009 | D51: ='NSP Data'!D51 -> 254915.63 | E51: ='NSP Data'!E51 -> 752.4872 | F51: ='NSP Data'!F51 -> 51506.304 | G51: ='NSP Data'!G51 -> 20445.2 | H51: ='NSP Data'!H51 -> 3427.4079 | I51: ='NSP Data'!I51 -> 3237.1882 | J51: ='NSP Data'!$N51*'Gen Data'!$C15/D51 -> 0.2840149896 | K51: ='NSP Data'!$N51*'Gen Data'!$D15/E51 -> 96.21407514 | L51: ='Gen Data'!$F$36/100 -> 1.044 | M51: =('NSP Data'!$M51*(1-'Gen Data'!$G15)*G51/($G51+$H51*5))/G51 -> 1.671234233 | N51: =('NSP Data'!$M51*(1-'Gen Data'!$G15)*H51*5/(G51+H51*5))/H51 -> 8.356171167 | O51: ='NSP Data'!$M51*'Gen Data'!G15/I51 -> 8.716951575 | P51: 12.44868791 | Q51: 6.623383987 | R51: 10.84945949 | S51: 9.925503415 | T51: 8.13955954 | U51: 8.082460392 | V51: 0.5 | W51: 0.5 | X51: 0.3713583259 | Y51: 0.2359722677 | Z51: 0.1977904874 | AA51: 0.194878919 | AC51: -0.01908214044 | AD51: -0.006315932979 | AE51: -0.01276620747 | AF51: 0.981098771 | AG51: 0.9937039706 | AH51: 0.9873149349 | AI51: 1.013387458 | AJ51: =AH51/AH$12 -> 1.029216989 | AM51: 0.05708830952 | AN51: -0.07617044996 | AO51: 0.9266582442 | AP51: 1.032586286 | AQ51: =AO51/AO$12 -> 1.073774713 | AT51: 1.022997406
A52: 49 | B52: ='NSP Data'!$C52 -> 10 | C52: ='NSP Data'!$A52 -> 2009 | D52: ='NSP Data'!D52 -> 260514.99 | E52: ='NSP Data'!E52 -> 742.14115 | F52: ='NSP Data'!F52 -> 53131.926 | G52: ='NSP Data'!G52 -> 19439.931 | H52: ='NSP Data'!H52 -> 3544.6399 | I52: ='NSP Data'!I52 -> 3191.9078 | J52: ='NSP Data'!$N52*'Gen Data'!$C16/D52 -> 0.2750016419 | K52: ='NSP Data'!$N52*'Gen Data'!$D16/E52 -> 96.53426441 | L52: ='Gen Data'!$F$36/100 -> 1.044 | M52: =('NSP Data'!$M52*(1-'Gen Data'!$G16)*G52/($G52+$H52*5))/G52 -> 1.63043091 | N52: =('NSP Data'!$M52*(1-'Gen Data'!$G16)*H52*5/(G52+H52*5))/H52 -> 8.15215455 | O52: ='NSP Data'!$M52*'Gen Data'!G16/I52 -> 8.528584479 | P52: 12.47041568 | Q52: 6.609539454 | R52: 10.88053327 | S52: 9.875084529 | T52: 8.173191854 | U52: 8.068374073 | V52: 0.5 | W52: 0.5 | X52: 0.3871310891 | Y52: 0.2212071248 | Z52: 0.2016724238 | AA52: 0.1899893624 | AC52: -0.01514051908 | AD52: -0.001800400079 | AE52: -0.013340119 | AF52: 0.9849735223 | AG52: 0.9982012197 | AH52: 0.986748466 | AI52: 1.005772823 | AJ52: =AH52/AH$13 -> 1.037094951 | AM52: 0.08816209208 | AN52: -0.1033026112 | AO52: 0.9018540211 | AP52: 1.020993543 | AQ52: =AO52/AO$13 -> 1.089297814 | AT52: 1.016086956
A53: 50 | B53: ='NSP Data'!$C53 -> 11 | C53: ='NSP Data'!$A53 -> 2009 | D53: ='NSP Data'!D53 -> 244944.76 | E53: ='NSP Data'!E53 -> 740.10779 | F53: ='NSP Data'!F53 -> 51026.548 | G53: ='NSP Data'!G53 -> 18181.945 | H53: ='NSP Data'!H53 -> 3519.0639 | I53: ='NSP Data'!I53 -> 3201.5946 | J53: ='NSP Data'!$N53*'Gen Data'!$C17/D53 -> 0.282606413 | K53: ='NSP Data'!$N53*'Gen Data'!$D17/E53 -> 93.53091662 | L53: ='Gen Data'!$F$36/100 -> 1.044 | M53: =('NSP Data'!$M53*(1-'Gen Data'!$G17)*G53/($G53+$H53*5))/G53 -> 1.642668987 | N53: =('NSP Data'!$M53*(1-'Gen Data'!$G17)*H53*5/(G53+H53*5))/H53 -> 8.213344934 | O53: ='NSP Data'!$M53*'Gen Data'!G17/I53 -> 8.247141649 | P53: 12.40878799 | Q53: 6.606795838 | R53: 10.84010133 | S53: 9.808184348 | T53: 8.165950296 | U53: 8.071404277 | V53: 0.5 | W53: 0.5 | X53: 0.3847835669 | Y53: 0.2157298424 | Z53: 0.2087694965 | AA53: 0.1907170943 | AC53: -0.04732617079 | AD53: -0.03291784647 | AE53: -0.01440832432 | AF53: 0.9537762529 | AG53: 0.9676180496 | AH53: 0.9856949788 | AI53: 1.003387699 | AJ53: =AH53/AH$14 -> 1.03996127 | AM53: 0.04773014788 | AN53: -0.09505631867 | AO53: 0.9093217212 | AP53: 1.027654209 | AQ53: =AO53/AO$14 -> 1.102130525 | AT53: 1.020941112
A54: 51 | B54: ='NSP Data'!$C54 -> 12 | C54: ='NSP Data'!$A54 -> 2009 | D54: ='NSP Data'!D54 -> 249697.26 | E54: ='NSP Data'!E54 -> 721.02514 | F54: ='NSP Data'!F54 -> 52272.027 | G54: ='NSP Data'!G54 -> 17423.464 | H54: ='NSP Data'!H54 -> 3677.6013 | I54: ='NSP Data'!I54 -> 3159.0118 | J54: ='NSP Data'!$N54*'Gen Data'!$C18/D54 -> 0.2811007818 | K54: ='NSP Data'!$N54*'Gen Data'!$D18/E54 -> 97.34763895 | L54: ='Gen Data'!$F$36/100 -> 1.044 | M54: =('NSP Data'!$M54*(1-'Gen Data'!$G18)*G54/($G54+$H54*5))/G54 -> 1.653315349 | N54: =('NSP Data'!$M54*(1-'Gen Data'!$G18)*H54*5/(G54+H54*5))/H54 -> 8.266576747 | O54: ='NSP Data'!$M54*'Gen Data'!G18/I54 -> 8.420525729 | P54: 12.4280045 | Q54: 6.580674005 | R54: =LN(F54) -> 10.86421665 | S54: 9.765573083 | T54: 8.210015998 | U54: 8.058014536 | V54: 0.5 | W54: 0.5 | X54: 0.3887442816 | Y54: 0.2052033156 | Z54: 0.2165631301 | AA54: 0.1894892727 | AC54: -0.05077883305 | AD54: -0.02576859135 | AE54: -0.02501024169 | AF54: 0.950488864 | AG54: 0.9745605853 | AH54: 0.9752999233 | AI54: 1.005390078 | AJ54: =AH54/AH$15 -> 1.025222994 | AM54: 0.07184547296 | AN54: -0.122624306 | AO54: 0.8845959375 | AP54: 1.019817939 | AQ54: =AO54/AO$15 -> 1.081547628 | AT54: 1.014347563
A55: 52 | B55: ='NSP Data'!$C55 -> 13 | C55: ='NSP Data'!$A55 -> 2009 | D55: ='NSP Data'!D55 -> 248122.75 | E55: ='NSP Data'!E55 -> 721.95358 | F55: ='NSP Data'!F55 -> 53050.04 | G55: ='NSP Data'!G55 -> 16415.04 | H55: ='NSP Data'!H55 -> 3491.9208 | I55: ='NSP Data'!I55 -> 3188.3059 | J55: ='NSP Data'!$N55*'Gen Data'!$C19/D55 -> 0.2850776682 | K55: ='NSP Data'!$N55*'Gen Data'!$D19/E55 -> 97.97618152 | L55: ='Gen Data'!$F$36/100 -> 1.044 | M55: =('NSP Data'!$M55*(1-'Gen Data'!$G19)*G55/($G55+$H55*5))/G55 -> 1.7534692 | N55: =('NSP Data'!$M55*(1-'Gen Data'!$G19)*H55*5/(G55+H55*5))/H55 -> 8.767346001 | O55: ='NSP Data'!$M55*'Gen Data'!G19/I55 -> 8.370000846 | P55: =LN(D55) -> 12.42167886 | Q55: 6.581960843 | R55: 10.8789909 | S55: 9.705953267 | T55: 8.158207236 | U55: 8.067244989 | V55: 0.5 | W55: 0.5 | X55: 0.3914951946 | Y55: 0.2034605942 | Z55: 0.2164077215 | AA55: 0.1886364897 | AC55: -0.05329823424 | AD55: -0.04186620894 | AE55: -0.0114320253 | AF55: 0.9480972153 | AG55: 0.9589980774 | AH55: 0.988633072 | AI55: 0.997974094 | AJ55: =AH55/AH$16 -> 1.038157535 | AM55: 0.08661972064 | AN55: -0.1399179549 | AO55: 0.8694295649 | AP55: 1.005907346 | AQ55: =AO55/AO$16 -> 1.084160795 | AT55: 1.003612716
A56: 53 | B56: ='NSP Data'!$C56 -> 1 | C56: ='NSP Data'!$A56 -> 2010 | D56: ='NSP Data'!D56 -> 277497.25 | E56: ='NSP Data'!E56 -> 854.97176 | F56: ='NSP Data'!F56 -> 49271.353 | G56: ='NSP Data'!G56 -> 27008.843 | H56: ='NSP Data'!H56 -> 3452.7155 | I56: ='NSP Data'!I56 -> 3465.8422 | J56: ='NSP Data'!$N56*'Gen Data'!$C7/D56 -> 0.2767587066 | K56: ='NSP Data'!$N56*'Gen Data'!$D7/E56 -> 89.82727102 | L56: ='Gen Data'!$G$36/100 -> 1.087 | M56: =('NSP Data'!$M56*(1-'Gen Data'!$G7)*G56/($G56+$H56*5))/G56 -> 1.559180709 | N56: =('NSP Data'!$M56*(1-'Gen Data'!$G7)*H56*5/(G56+H56*5))/H56 -> 7.795903547 | O56: ='NSP Data'!$M56*'Gen Data'!G7/I56 -> 8.948155805 | P56: 12.5335663 | Q56: 6.751068439 | R56: 10.80509812 | S56: 10.20391961 | T56: 8.146916302 | U56: 8.150710941 | V56: 0.5 | W56: 0.5 | X56: 0.3486856373 | Y56: 0.2741652827 | Z56: 0.1752416276 | AA56: 0.2019074524 | AC56: 0.08719928366 | AD56: 0.06289909106 | AE56: 0.02430019259 | AF56: 1.091114099 | AG56: 1.064919374 | AH56: 1.024597848 | AI56: 0.9932376469 | AJ56: =AH56/AH$4 -> 1.024597848 | AM56: 0.01272693868 | AN56: 0.07447234498 | AO56: 1.07731555 | AP56: 1.006131241 | AQ56: =AO56/AO$4 -> 1.07731555 | AT56: =AF56/AF43 -> 1.012123827
A57: 54 | B57: ='NSP Data'!$C57 -> 2 | C57: ='NSP Data'!$A57 -> 2010 | D57: ='NSP Data'!D57 -> 283374.21 | E57: ='NSP Data'!E57 -> 860.41878 | F57: ='NSP Data'!F57 -> 51147.114 | G57: ='NSP Data'!G57 -> 27824.836 | H57: ='NSP Data'!H57 -> 3438.7054 | I57: ='NSP Data'!I57 -> 3450.6434 | J57: ='NSP Data'!$N57*'Gen Data'!$C8/D57 -> 0.2809013213 | K57: ='NSP Data'!$N57*'Gen Data'!$D8/E57 -> 92.51331079 | L57: ='Gen Data'!$G$36/100 -> 1.087 | M57: =('NSP Data'!$M57*(1-'Gen Data'!$G8)*G57/($G57+$H57*5))/G57 -> 1.587938555 | N57: =('NSP Data'!$M57*(1-'Gen Data'!$G8)*H57*5/(G57+H57*5))/H57 -> 7.939692776 | O57: ='NSP Data'!$M57*'Gen Data'!G8/I57 -> 9.307561512 | P57: 12.5545236 | Q57: 6.757419224 | R57: 10.84246135 | S57: 10.23368428 | T57: 8.142850342 | U57: 8.146315985 | V57: 0.5 | W57: 0.5 | X57: 0.349226 | Y57: 0.2775378367 | Z57: 0.1714962233 | AA57: 0.20173994 | AC57: 0.1008533251 | AD57: 0.08290287301 | AE57: 0.01795045206 | AF57: 1.106114391 | AG57: 1.086436281 | AH57: 1.01811253 | AI57: 1.012847298 | AJ57: =AH57/AH$5 -> 1.044996269 | AM57: 0.05009017009 | AN57: 0.05076315498 | AO57: 1.052073685 | AP57: 1.021031715 | AQ57: =AO57/AO$5 -> 1.109229537 | AT57: 1.031800385
A58: 55 | B58: ='NSP Data'!$C58 -> 3 | C58: ='NSP Data'!$A58 -> 2010 | D58: ='NSP Data'!D58 -> 266535.22 | E58: ='NSP Data'!E58 -> 846.15427 | F58: ='NSP Data'!F58 -> 51955.907 | G58: ='NSP Data'!G58 -> 25262.372 | H58: ='NSP Data'!H58 -> 3534.2883 | I58: ='NSP Data'!I58 -> 3366.6448 | J58: ='NSP Data'!$N58*'Gen Data'!$C9/D58 -> 0.2932007635 | K58: ='NSP Data'!$N58*'Gen Data'!$D9/E58 -> 92.35707101 | L58: ='Gen Data'!$G$36/100 -> 1.087 | M58: =('NSP Data'!$M58*(1-'Gen Data'!$G9)*G58/($G58+$H58*5))/G58 -> 1.604241605 | N58: =('NSP Data'!$M58*(1-'Gen Data'!$G9)*H58*5/(G58+H58*5))/H58 -> 8.021208023 | O58: ='NSP Data'!$M58*'Gen Data'!G9/I58 -> 9.191460929 | P58: 12.49326167 | Q58: 6.740701695 | R58: 10.8581507 | S58: 10.13707129 | T58: 8.170267228 | U58: 8.121671919 | V58: 0.5 | W58: 0.5 | X58: 0.361338938 | Y58: 0.2592950286 | Z58: 0.1813811042 | AA58: 0.1979849292 | AC58: 0.06186359632 | AD58: 0.06240345893 | AE58: -0.0005398626097 | AF58: 1.063817226 | AG58: 1.064391696 | AH58: 0.9994602831 | AI58: 1.001792608 | AJ58: =AH58/AH$6 -> 1.047629185 | AM58: 0.06577951814 | AN58: -0.003915921821 | AO58: 0.9960917354 | AP58: 1.018019187 | AQ58: =AO58/AO$6 -> 1.114691252 | AT58: 1.020584521
A59: 56 | B59: ='NSP Data'!$C59 -> 4 | C59: ='NSP Data'!$A59 -> 2010 | D59: ='NSP Data'!D59 -> 274589.12 | E59: ='NSP Data'!E59 -> 828.99026 | F59: ='NSP Data'!F59 -> 50193.839 | G59: ='NSP Data'!G59 -> 25430.867 | H59: ='NSP Data'!H59 -> 3450.4574 | I59: ='NSP Data'!I59 -> 3342.9815 | J59: ='NSP Data'!$N59*'Gen Data'!$C10/D59 -> 0.2781820707 | K59: ='NSP Data'!$N59*'Gen Data'!$D10/E59 -> 92.14314532 | L59: ='Gen Data'!$G$36/100 -> 1.087 | M59: =('NSP Data'!$M59*(1-'Gen Data'!$G10)*G59/($G59+$H59*5))/G59 -> 1.587639945 | N59: =('NSP Data'!$M59*(1-'Gen Data'!$G10)*H59*5/(G59+H59*5))/H59 -> 7.938199727 | O59: ='NSP Data'!$M59*'Gen Data'!G10/I59 -> 9.10724774 | P59: 12.52303115 | Q59: 6.720208406 | R59: 10.82364757 | S59: 10.14371895 | T59: 8.146262081 | U59: 8.114618352 | V59: 0.5 | W59: 0.5 | X59: 0.3571391737 | Y59: 0.2642839055 | Z59: 0.1792900646 | AA59: 0.1992868561 | AC59: 0.06650169109 | AD59: 0.04596409706 | AE59: 0.02053759403 | AF59: 1.068762771 | AG59: 1.047036819 | AH59: 1.020749942 | AI59: 0.9997381845 | AJ59: =AH59/AH$7 -> 1.0371546 | AM59: 0.03127639165 | AN59: 0.03522529944 | AO59: 1.03585306 | AP59: 1.012297988 | AQ59: =AO59/AO$7 -> 1.094607997 | AT59: 1.015358293
A60: 57 | B60: ='NSP Data'!$C60 -> 5 | C60: ='NSP Data'!$A60 -> 2010 | D60: ='NSP Data'!D60 -> 269839.24 | E60: ='NSP Data'!E60 -> 818.65869 | F60: ='NSP Data'!F60 -> 50628.95 | G60: ='NSP Data'!G60 -> 24619.76 | H60: ='NSP Data'!H60 -> 3614.9911 | I60: ='NSP Data'!I60 -> 3344.1717 | J60: ='NSP Data'!$N60*'Gen Data'!$C11/D60 -> 0.290791621 | K60: ='NSP Data'!$N60*'Gen Data'!$D11/E60 -> 95.84823438 | L60: ='Gen Data'!$G$36/100 -> 1.087 | M60: =('NSP Data'!$M60*(1-'Gen Data'!$G11)*G60/($G60+$H60*5))/G60 -> 1.646836455 | N60: =('NSP Data'!$M60*(1-'Gen Data'!$G11)*H60*5/(G60+H60*5))/H60 -> 8.234182273 | O60: ='NSP Data'!$M60*'Gen Data'!G11/I60 -> 9.446015018 | P60: 12.50558165 | Q60: 6.707667257 | R60: 10.83227883 | S60: 10.11130465 | T60: 8.192844673 | U60: 8.114974319 | V60: 0.5 | W60: 0.5 | X60: 0.3506803888 | Y60: 0.2583552563 | Z60: 0.1896752755 | AA60: 0.2012890795 | AC60: 0.05150636813 | AD60: 0.04964373551 | AE60: 0.001862632627 | AF60: 1.052855891 | AG60: 1.050896633 | AH60: 1.001864368 | AI60: 1.020847967 | AJ60: =AH60/AH$8 -> 1.052489689 | AM60: 0.03990764865 | AN60: 0.01159871949 | AO60: 1.011666245 | AP60: 1.041952843 | AQ60: =AO60/AO$8 -> 1.119262906 | AT60: 1.033075332
A61: 58 | B61: ='NSP Data'!$C61 -> 6 | C61: ='NSP Data'!$A61 -> 2010 | D61: ='NSP Data'!D61 -> 273347.05 | E61: ='NSP Data'!E61 -> 789.63488 | F61: ='NSP Data'!F61 -> 51588.56 | G61: ='NSP Data'!G61 -> 22343.698 | H61: ='NSP Data'!H61 -> 3589.0391 | I61: ='NSP Data'!I61 -> 3421.272 | J61: ='NSP Data'!$N61*'Gen Data'!$C12/D61 -> 0.2775442245 | K61: ='NSP Data'!$N61*'Gen Data'!$D12/E61 -> 96.07718317 | L61: ='Gen Data'!$G$36/100 -> 1.087 | M61: =('NSP Data'!$M61*(1-'Gen Data'!$G12)*G61/($G61+$H61*5))/G61 -> 1.638217422 | N61: =('NSP Data'!$M61*(1-'Gen Data'!$G12)*H61*5/(G61+H61*5))/H61 -> 8.191087111 | O61: ='NSP Data'!$M61*'Gen Data'!G12/I61 -> 8.667261109 | P61: 12.51849751 | Q61: 6.671570661 | R61: 10.85105522 | S61: 10.01429959 | T61: 8.185639785 | U61: 8.137767691 | V61: 0.5 | W61: 0.5 | X61: 0.3695782197 | Y61: 0.2412403848 | Z61: 0.1937506436 | AA61: 0.1954307519 | AC61: 0.0399159998 | AD61: 0.03507298177 | AE61: 0.004843018029 | AF61: 1.04072335 | AG61: 1.035695293 | AH61: 1.004854764 | AI61: 1.00066416 | AJ61: =AH61/AH$9 -> 1.029001758 | AM61: 0.05868404405 | AN61: -0.01876804425 | AO61: 0.9814069788 | AP61: 1.003884296 | AQ61: =AO61/AO$9 -> 1.096036997 | AT61: 1.016727086
A62: 59 | B62: ='NSP Data'!$C62 -> 7 | C62: ='NSP Data'!$A62 -> 2010 | D62: ='NSP Data'!D62 -> 267032.34 | E62: ='NSP Data'!E62 -> 805.66873 | F62: ='NSP Data'!F62 -> 51283.767 | G62: ='NSP Data'!G62 -> 21540.124 | H62: ='NSP Data'!H62 -> 3552.5568 | I62: ='NSP Data'!I62 -> 3397.3775 | J62: ='NSP Data'!$N62*'Gen Data'!$C13/D62 -> 0.2916722372 | K62: ='NSP Data'!$N62*'Gen Data'!$D13/E62 -> 96.67238792 | L62: ='Gen Data'!$G$36/100 -> 1.087 | M62: =('NSP Data'!$M62*(1-'Gen Data'!$G13)*G62/($G62+$H62*5))/G62 -> 1.756058587 | N62: =('NSP Data'!$M62*(1-'Gen Data'!$G13)*H62*5/(G62+H62*5))/H62 -> 8.780292937 | O62: ='NSP Data'!$M62*'Gen Data'!G13/I62 -> 9.127093148 | P62: 12.49512505 | Q62: 6.691672653 | R62: 10.84512955 | S62: 9.977672707 | T62: 8.175422849 | U62: 8.130759089 | V62: 0.5 | W62: 0.5 | X62: 0.3578660497 | Y62: 0.242827706 | Z62: 0.2002447197 | AA62: 0.1990615246 | AC62: 0.03828076633 | AD62: 0.02099543683 | AE62: 0.01728532949 | AF62: 1.039022915 | AG62: 1.021217392 | AH62: 1.017435585 | AI62: 1.012152333 | AJ62: =AH62/AH$10 -> 1.042926385 | AM62: 0.05275837092 | AN62: -0.0144776046 | AO62: 0.985626692 | AP62: 1.024476841 | AQ62: =AO62/AO$10 -> 1.124274588 | AT62: 1.022782752
A63: 60 | B63: ='NSP Data'!$C63 -> 8 | C63: ='NSP Data'!$A63 -> 2010 | D63: ='NSP Data'!D63 -> 254604.05 | E63: ='NSP Data'!E63 -> 777.11924 | F63: ='NSP Data'!F63 -> 51118.204 | G63: ='NSP Data'!G63 -> 21102.738 | H63: ='NSP Data'!H63 -> 3704.6959 | I63: ='NSP Data'!I63 -> 3413.0917 | J63: ='NSP Data'!$N63*'Gen Data'!$C14/D63 -> 0.2996263217 | K63: ='NSP Data'!$N63*'Gen Data'!$D14/E63 -> 98.16521207 | L63: ='Gen Data'!$G$36/100 -> 1.087 | M63: =('NSP Data'!$M63*(1-'Gen Data'!$G14)*G63/($G63+$H63*5))/G63 -> 1.689149298 | N63: =('NSP Data'!$M63*(1-'Gen Data'!$G14)*H63*5/(G63+H63*5))/H63 -> 8.44574649 | O63: ='NSP Data'!$M63*'Gen Data'!G14/I63 -> 8.810799174 | P63: 12.44746487 | Q63: 6.655593801 | R63: 10.84189596 | S63: 9.957158074 | T63: 8.217356456 | U63: 8.135373816 | V63: 0.5 | W63: 0.5 | X63: 0.3641915479 | Y63: 0.233631596 | Z63: 0.205076236 | AA63: 0.1971006201 | AC63: -0.003588750569 | AD63: 0.02416069046 | AE63: -0.02774944103 | AF63: 0.9964176813 | AG63: 1.024454925 | AH63: 0.972632038 | AI63: 1.004763389 | AJ63: =AH63/AH$11 -> 1.02687968 | AM63: 0.049524778 | AN63: -0.05311352857 | AO63: 0.9482723504 | AP63: 1.024669911 | AQ63: =AO63/AO$11 -> 1.094451536 | AT63: 1.014550093
A64: 61 | B64: ='NSP Data'!$C64 -> 9 | C64: ='NSP Data'!$A64 -> 2010 | D64: ='NSP Data'!D64 -> 260847.49 | E64: ='NSP Data'!E64 -> 776.19819 | F64: ='NSP Data'!F64 -> 50910.304 | G64: ='NSP Data'!G64 -> 20579.157 | H64: ='NSP Data'!H64 -> 3591.1501 | I64: ='NSP Data'!I64 -> 3305.6918 | J64: ='NSP Data'!$N64*'Gen Data'!$C15/D64 -> 0.2973476187 | K64: ='NSP Data'!$N64*'Gen Data'!$D15/E64 -> 99.92599957 | L64: ='Gen Data'!$G$36/100 -> 1.087 | M64: =('NSP Data'!$M64*(1-'Gen Data'!$G15)*G64/($G64+$H64*5))/G64 -> 1.786739118 | N64: =('NSP Data'!$M64*(1-'Gen Data'!$G15)*H64*5/(G64+H64*5))/H64 -> 8.93369559 | O64: ='NSP Data'!$M64*'Gen Data'!G15/I64 -> 9.357626552 | P64: 12.47169119 | Q64: 6.654407887 | R64: 10.83782062 | S64: 9.932034046 | T64: 8.186227792 | U64: 8.10340105 | V64: 0.5 | W64: 0.5 | X64: 0.3567419006 | Y64: 0.2370323453 | Z64: 0.2068157433 | AA64: 0.1994100108 | AC64: 0.007931449513 | AD64: 0.004363059616 | AE64: 0.003568389897 | AF64: 1.007962987 | AG64: 1.004372592 | AH64: 1.003574764 | AI64: 1.016468736 | AJ64: =AH64/AH$12 -> 1.046166892 | AM64: 0.04544944079 | AN64: -0.03751799128 | AO64: 0.9631770888 | AP64: 1.039409183 | AQ64: =AO64/AO$12 -> 1.116091298 | AT64: 1.027381765
A65: 62 | B65: ='NSP Data'!$C65 -> 10 | C65: ='NSP Data'!$A65 -> 2010 | D65: ='NSP Data'!D65 -> 262926.95 | E65: ='NSP Data'!E65 -> 757.94729 | F65: ='NSP Data'!F65 -> 52108.901 | G65: ='NSP Data'!G65 -> 19718.994 | H65: ='NSP Data'!H65 -> 3749.6958 | I65: ='NSP Data'!I65 -> 3202.7645 | J65: ='NSP Data'!$N65*'Gen Data'!$C16/D65 -> 0.2914245763 | K65: ='NSP Data'!$N65*'Gen Data'!$D16/E65 -> 101.0932766 | L65: ='Gen Data'!$G$36/100 -> 1.087 | M65: =('NSP Data'!$M65*(1-'Gen Data'!$G16)*G65/($G65+$H65*5))/G65 -> 1.732815189 | N65: =('NSP Data'!$M65*(1-'Gen Data'!$G16)*H65*5/(G65+H65*5))/H65 -> 8.664075947 | O65: ='NSP Data'!$M65*'Gen Data'!G16/I65 -> 9.350471285 | P65: 12.47963152 | Q65: 6.630613845 | R65: 10.86109106 | S65: 9.889337613 | T65: 8.229429996 | U65: 8.071769622 | V65: 0.5 | W65: 0.5 | X65: 0.3696154977 | Y65: 0.2229696313 | Z65: 0.2119956753 | AA65: 0.1954191957 | AC65: 4.593420732e-06 | AD65: 0.006037689425 | AE65: -0.006033096004 | AF65: 1.000004593 | AG65: 1.006055953 | AH65: 0.9939850666 | AI65: 1.007333784 | AJ65: =AH65/AH$13 -> 1.044700782 | AM65: 0.06871988027 | AN65: -0.06871528685 | AO65: 0.9335924483 | AP65: 1.035192422 | AQ65: =AO65/AO$13 -> 1.127632842 | AT65: 1.015260381
A66: 63 | B66: ='NSP Data'!$C66 -> 11 | C66: ='NSP Data'!$A66 -> 2010 | D66: ='NSP Data'!D66 -> 253076.93 | E66: ='NSP Data'!E66 -> 744.70677 | F66: ='NSP Data'!F66 -> 50739.356 | G66: ='NSP Data'!G66 -> 18122.11 | H66: ='NSP Data'!H66 -> 3701.6207 | I66: ='NSP Data'!I66 -> 3176.7813 | J66: ='NSP Data'!$N66*'Gen Data'!$C17/D66 -> 0.2962339752 | K66: ='NSP Data'!$N66*'Gen Data'!$D17/E66 -> 100.670476 | L66: ='Gen Data'!$G$36/100 -> 1.087 | M66: =('NSP Data'!$M66*(1-'Gen Data'!$G17)*G66/($G66+$H66*5))/G66 -> 1.785480705 | N66: =('NSP Data'!$M66*(1-'Gen Data'!$G17)*H66*5/(G66+H66*5))/H66 -> 8.927403523 | O66: ='NSP Data'!$M66*'Gen Data'!G17/I66 -> 9.249534927 | P66: 12.44144879 | Q66: 6.612990544 | R66: 10.83445714 | S66: 9.804888019 | T66: 8.21652603 | U66: 8.063623793 | V66: 0.5 | W66: 0.5 | X66: 0.3678384113 | Y66: 0.2157975485 | Z66: 0.2203939477 | AA66: 0.1959700925 | AC66: -0.02789841891 | AD66: -0.0266376967 | AE66: -0.001260722211 | AF66: 0.9724871481 | AG66: 0.9737139574 | AH66: 0.9987400722 | AI66: 1.013234412 | AJ66: =AH66/AH$14 -> 1.053724546 | AM66: 0.04208596351 | AN66: -0.06998438242 | AO66: 0.9324083818 | AP66: 1.02538888 | AQ66: =AO66/AO$14 -> 1.130112385 | AT66: 1.019617699
A67: 64 | B67: ='NSP Data'!$C67 -> 12 | C67: ='NSP Data'!$A67 -> 2010 | D67: ='NSP Data'!D67 -> 257308.63 | E67: ='NSP Data'!E67 -> 744.1568 | F67: ='NSP Data'!F67 -> 51671.824 | G67: ='NSP Data'!G67 -> 17335.9 | H67: ='NSP Data'!H67 -> 3902.2071 | I67: ='NSP Data'!I67 -> 3155.0231 | J67: ='NSP Data'!$N67*'Gen Data'!$C18/D67 -> 0.2924636846 | K67: ='NSP Data'!$N67*'Gen Data'!$D18/E67 -> 101.1257708 | L67: ='Gen Data'!$G$36/100 -> 1.087 | M67: =('NSP Data'!$M67*(1-'Gen Data'!$G18)*G67/($G67+$H67*5))/G67 -> 1.766614023 | N67: =('NSP Data'!$M67*(1-'Gen Data'!$G18)*H67*5/(G67+H67*5))/H67 -> 8.833070115 | O67: ='NSP Data'!$M67*'Gen Data'!G18/I67 -> 9.269431669 | P67: 12.45803154 | Q67: 6.612251765 | R67: 10.85266792 | S67: 9.760534775 | T67: 8.269297595 | U67: 8.056751097 | V67: 0.5 | W67: 0.5 | X67: 0.3731874675 | Y67: 0.2034847097 | Z67: 0.2290159377 | AA67: 0.1943118851 | AC67: -0.01997643521 | AD67: -0.0185205054 | AE67: -0.00145592981 | AF67: 0.9802217718 | AG67: 0.9816499453 | AH67: 0.9985451295 | AI67: 1.023833906 | AJ67: =AH67/AH$15 -> 1.049658062 | AM67: 0.0602967442 | AN67: -0.0802731794 | AO67: 0.9228642045 | AP67: 1.043260731 | AQ67: =AO67/AO$15 -> 1.128336169 | AT67: 1.0312817
A68: 65 | B68: ='NSP Data'!$C68 -> 13 | C68: ='NSP Data'!$A68 -> 2010 | D68: ='NSP Data'!D68 -> 254699.65 | E68: ='NSP Data'!E68 -> 743.32949 | F68: ='NSP Data'!F68 -> 52577.402 | G68: ='NSP Data'!G68 -> 16718.352 | H68: ='NSP Data'!H68 -> 3730.2514 | I68: ='NSP Data'!I68 -> 3172.4206 | J68: ='NSP Data'!$N68*'Gen Data'!$C19/D68 -> 0.3003886931 | K68: ='NSP Data'!$N68*'Gen Data'!$D19/E68 -> 102.9272967 | L68: ='Gen Data'!$G$36/100 -> 1.087 | M68: =('NSP Data'!$M68*(1-'Gen Data'!$G19)*G68/($G68+$H68*5))/G68 -> 1.870183116 | N68: =('NSP Data'!$M68*(1-'Gen Data'!$G19)*H68*5/(G68+H68*5))/H68 -> 9.35091558 | O68: ='NSP Data'!$M68*'Gen Data'!G19/I68 -> 9.367770286 | P68: 12.44784029 | Q68: 6.611139405 | R68: 10.87004169 | S68: 9.724262317 | T68: 8.22423091 | U68: 8.062250172 | V68: =D68*J68/SUMPRODUCT($D68:$E68,$J68:$K68) -> 0.5 | W68: =E68*K68/SUMPRODUCT($D68:$E68,$J68:$K68) -> 0.5 | X68: =F68*L68/SUMPRODUCT($F68:$I68,$L68:$O68) -> 0.3734966788 | Y68: =G68*M68/SUMPRODUCT($F68:$I68,$L68:$O68) -> 0.2043316653 | Z68: =H68*N68/SUMPRODUCT($F68:$I68,$L68:$O68) -> 0.2279556264 | AA68: =I68*O68/SUMPRODUCT($F68:$I68,$L68:$O68) -> 0.1942160296 | AC68: =0.5*((V68+V$82)*(P68-P$82)+(W68+W$82)*(Q68-Q$82))-0.5*((V$4+V$82)*(P$4-P$82)+(W$4+W$82)*(Q$4-Q$82)) -> -0.02562824094 | AD68: =0.5*((X68+X$82)*(R68-R$82)+(Y68+Y$82)*(S68-S$82)+(Z68+Z$82)*(T68-T$82)+(AA68+AA$82)*(U68-U$82))-0.5*((X$4+X$82)*(R$4-R$82)+(Y$4+Y$82)*(S$4-S$82)+(Z$4+Z$82)*(T$4-T$82)+(AA$4+AA$82)*(U$4-U$82)) -> -0.0285707822 | AE68: 0.002942541265 | AF68: 0.9746973748 | AG68: 0.9718335032 | AH68: 1.002946875 | AI68: 1.014478377 | AJ68: =AH68/AH$16 -> 1.053188371 | AM68: 0.07767050923 | AN68: -0.1032987502 | AO68: 0.9018575031 | AP68: 1.037297947 | AQ68: =AO68/AO$16 -> 1.124597767 | AT68: 1.028056363
A69: 66 | B69: ='NSP Data'!$C69 -> 1 | C69: ='NSP Data'!$A69 -> 2011 | D69: ='NSP Data'!D69 -> 284277.96 | E69: ='NSP Data'!E69 -> 887.86511 | F69: ='NSP Data'!F69 -> 49576.944 | G69: ='NSP Data'!G69 -> 27194.234 | H69: ='NSP Data'!H69 -> 3684.1805 | I69: ='NSP Data'!I69 -> 3551.694 | J69: ='NSP Data'!$N69*'Gen Data'!$C7/D69 -> 0.2845480353 | K69: ='NSP Data'!$N69*'Gen Data'!$D7/E69 -> 91.10700949 | L69: ='Gen Data'!$H$36/100 -> 1.126 | M69: =('NSP Data'!$M69*(1-'Gen Data'!$G7)*G69/($G69+$H69*5))/G69 -> 1.602777243 | N69: =('NSP Data'!$M69*(1-'Gen Data'!$G7)*H69*5/(G69+H69*5))/H69 -> 8.013886213 | O69: ='NSP Data'!$M69*'Gen Data'!G7/I69 -> 9.248242472 | P69: 12.55770777 | Q69: 6.788819828 | R69: 10.81128117 | S69: 10.21076024 | T69: 8.211803392 | U69: 8.175179952 | V69: 0.5 | W69: 0.5 | X69: 0.3450558294 | Y69: 0.2694146596 | Z69: 0.1824968181 | AA69: 0.2030326929 | AC69: 0.1181457126 | AD69: 0.08343964823 | AE69: =AC69-AD69 -> 0.03470606435 | AF69: =EXP(AC69) -> 1.125408086 | AG69: =EXP(AD69) -> 1.08701961 | AH69: =EXP(AE69) -> 1.035315348 | AI69: 1.010460201 | AJ69: =AH69/AH$4 -> 1.035315348 | AK69: =POWER(AJ69,1/5)-1 -> 0.006965358922 | AM69: =(R69-R$82)-(R$4-R$82) -> 0.01890998852 | AN69: =AC69-AM69 -> 0.09923572405 | AO69: =EXP(AN69) -> 1.104326585 | AP69: 1.025072538 | AQ69: =AO69/AO$4 -> 1.104326585 | AR69: =POWER(AQ69,1/5)-1 -> 0.02004540887 | AT69: =AF69/AF56 -> 1.031430248 | AU69: =AVERAGE(AT17,AT30,AT43,AT56,AT69) -> 1.023930874
A70: 67 | B70: ='NSP Data'!$C70 -> 2 | C70: ='NSP Data'!$A70 -> 2011 | D70: ='NSP Data'!D70 -> 284748.05 | E70: ='NSP Data'!E70 -> 888.06908 | F70: ='NSP Data'!F70 -> 51563.817 | G70: ='NSP Data'!G70 -> 28087.79 | H70: ='NSP Data'!H70 -> 3723.7079 | I70: ='NSP Data'!I70 -> 3528.6811 | J70: ='NSP Data'!$N70*'Gen Data'!$C8/D70 -> 0.2946147305 | K70: ='NSP Data'!$N70*'Gen Data'!$D8/E70 -> 94.46446441 | L70: ='Gen Data'!$H$36/100 -> 1.126 | M70: =('NSP Data'!$M70*(1-'Gen Data'!$G8)*G70/($G70+$H70*5))/G70 -> 1.620926885 | N70: =('NSP Data'!$M70*(1-'Gen Data'!$G8)*H70*5/(G70+H70*5))/H70 -> 8.104634426 | O70: ='NSP Data'!$M70*'Gen Data'!G8/I70 -> 9.639163709 | P70: 12.55936003 | Q70: 6.789049533 | R70: 10.85057548 | S70: 10.24309024 | T70: 8.222475198 | U70: 8.168679454 | V70: 0.5 | W70: 0.5 | X70: 0.3460495132 | Y70: 0.2713537257 | Z70: 0.1798721103 | AA70: 0.2027246509 | AC70: 0.1190866959 | AD70: 0.1066857687 | AE70: 0.01240092727 | AF70: 1.126467574 | AG70: 1.112584591 | AH70: 1.012478138 | AI70: 0.9944658454 | AJ70: =AH70/AH$5 -> 1.039213098 | AK70: =POWER(AJ70,1/5)-1 -> 0.007722423252 | AM70: 0.05820430716 | AN70: 0.06088238878 | AO70: 1.062773913 | AP70: 1.010170606 | AQ70: =AO70/AO$5 -> 1.120511074 | AR70: =POWER(AQ70,1/5)-1 -> 0.02301789502 | AT70: 1.018400614 | AU70: =AVERAGE(AT18,AT31,AT44,AT57,AT70) -> 1.02405918
A71: 68 | B71: ='NSP Data'!$C71 -> 3 | C71: ='NSP Data'!$A71 -> 2011 | D71: ='NSP Data'!D71 -> 270907.36 | E71: ='NSP Data'!E71 -> 856.61974 | F71: ='NSP Data'!F71 -> 52086.043 | G71: ='NSP Data'!G71 -> 25294.577 | H71: ='NSP Data'!H71 -> 3752.3986 | I71: ='NSP Data'!I71 -> 3384.7825 | J71: ='NSP Data'!$N71*'Gen Data'!$C9/D71 -> 0.3036873011 | K71: ='NSP Data'!$N71*'Gen Data'!$D9/E71 -> 96.04159367 | L71: ='Gen Data'!$H$36/100 -> 1.126 | M71: =('NSP Data'!$M71*(1-'Gen Data'!$G9)*G71/($G71+$H71*5))/G71 -> 1.658468312 | N71: =('NSP Data'!$M71*(1-'Gen Data'!$G9)*H71*5/(G71+H71*5))/H71 -> 8.292341562 | O71: ='NSP Data'!$M71*'Gen Data'!G9/I71 -> 9.698391167 | P71: 12.5095322 | Q71: 6.75299411 | R71: 10.8606523 | S71: 10.1383453 | T71: 8.230150541 | U71: 8.127044929 | V71: 0.5 | W71: 0.5 | X71: 0.3564366164 | Y71: 0.254951256 | Z71: 0.1891074787 | AA71: 0.1995046489 | AC71: 0.07614506593 | AD71: 0.07585294419 | AE71: 0.0002921217385 | AF71: 1.079119106 | AG71: 1.078803918 | AH71: 1.000292164 | AI71: 1.000832331 | AJ71: =AH71/AH$6 -> 1.048501159 | AK71: 0.009517339831 | AM71: 0.06828112577 | AN71: 0.007863940166 | AO71: 1.007894942 | AP71: 1.011849518 | AQ71: =AO71/AO$6 -> 1.127899806 | AR71: 0.02436352128 | AT71: 1.014383937 | AU71: 1.023667513
A72: 69 | B72: ='NSP Data'!$C72 -> 4 | C72: ='NSP Data'!$A72 -> 2011 | D72: ='NSP Data'!D72 -> 282819.56 | E72: ='NSP Data'!E72 -> 847.08598 | F72: ='NSP Data'!F72 -> 49654.068 | G72: ='NSP Data'!G72 -> 25438.474 | H72: ='NSP Data'!H72 -> 3695.4159 | I72: ='NSP Data'!I72 -> 3406.3982 | J72: ='NSP Data'!$N72*'Gen Data'!$C10/D72 -> 0.2873105205 | K72: ='NSP Data'!$N72*'Gen Data'!$D10/E72 -> 95.92536876 | L72: ='Gen Data'!$H$36/100 -> 1.126 | M72: =('NSP Data'!$M72*(1-'Gen Data'!$G10)*G72/($G72+$H72*5))/G72 -> 1.67495275 | N72: =('NSP Data'!$M72*(1-'Gen Data'!$G10)*H72*5/(G72+H72*5))/H72 -> 8.37476375 | O72: ='NSP Data'!$M72*'Gen Data'!G10/I72 -> 9.70148261 | P72: 12.55256438 | Q72: 6.741802201 | R72: 10.8128356 | S72: 10.14401803 | T72: 8.214848385 | U72: 8.133410766 | V72: 0.5 | W72: 0.5 | X72: 0.3440347065 | Y72: 0.2621818642 | Z72: 0.1904341883 | AA72: 0.203349241 | AC72: 0.09206520138 | AD72: 0.05905719394 | AE72: 0.03300800744 | AF72: 1.096436309 | AG72: 1.060835912 | AH72: 1.033558815 | AI72: 1.012548493 | AJ72: =AH72/AH$7 -> 1.050169327 | AK72: 0.009838364615 | AM72: 0.02046442224 | AN72: 0.07160077914 | AO72: 1.074226405 | AP72: 1.037045163 | AQ72: =AO72/AO$7 -> 1.135157929 | AR72: 0.02567851257 | AT72: 1.025893059 | AU72: 1.024151454
A73: 70 | B73: ='NSP Data'!$C73 -> 5 | C73: ='NSP Data'!$A73 -> 2011 | D73: ='NSP Data'!D73 -> 275203.03 | E73: ='NSP Data'!E73 -> 844.21759 | F73: ='NSP Data'!F73 -> 51026.674 | G73: ='NSP Data'!G73 -> 24838.895 | H73: ='NSP Data'!H73 -> 3845.3099 | I73: ='NSP Data'!I73 -> 3451.7702 | J73: ='NSP Data'!$N73*'Gen Data'!$C11/D73 -> 0.3053727461 | K73: ='NSP Data'!$N73*'Gen Data'!$D11/E73 -> 99.54720915 | L73: ='Gen Data'!$H$36/100 -> 1.126 | M73: =('NSP Data'!$M73*(1-'Gen Data'!$G11)*G73/($G73+$H73*5))/G73 -> 1.732193038 | N73: =('NSP Data'!$M73*(1-'Gen Data'!$G11)*H73*5/(G73+H73*5))/H73 -> 8.660965192 | O73: ='NSP Data'!$M73*'Gen Data'!G11/I73 -> 9.934938253 | P73: 12.5252644 | Q73: 6.738410269 | R73: 10.84010379 | S73: 10.12016605 | T73: 8.254609477 | U73: 8.14664248 | V73: 0.5 | W73: 0.5 | X73: 0.3418394316 | Y73: 0.2559853235 | Z73: 0.1981454687 | AA73: 0.2040297762 | AC73: 0.07671924527 | AD73: 0.07315596638 | AE73: 0.003563278886 | AF73: 1.079738892 | AG73: 1.075898328 | AH73: 1.003569635 | AI73: 1.001702093 | AJ73: =AH73/AH$8 -> 1.054281125 | AK73: 0.01062790651 | AM73: 0.04773261718 | AN73: 0.02898662809 | AO73: 1.029410829 | AP73: 1.017539958 | AQ73: =AO73/AO$8 -> 1.138894731 | AR73: 0.02635290706 | AT73: 1.02553341 | AU73: 1.025258192
A74: 71 | B74: ='NSP Data'!$C74 -> 6 | C74: ='NSP Data'!$A74 -> 2011 | D74: ='NSP Data'!D74 -> 282897.16 | E74: ='NSP Data'!E74 -> 806.44639 | F74: ='NSP Data'!F74 -> 51857.539 | G74: ='NSP Data'!G74 -> 22312.988 | H74: ='NSP Data'!H74 -> 3829.2379 | I74: ='NSP Data'!I74 -> 3450.2171 | J74: ='NSP Data'!$N74*'Gen Data'!$C12/D74 -> 0.287868938 | K74: ='NSP Data'!$N74*'Gen Data'!$D12/E74 -> 100.9829122 | L74: ='Gen Data'!$H$36/100 -> 1.126 | M74: =('NSP Data'!$M74*(1-'Gen Data'!$G12)*G74/($G74+$H74*5))/G74 -> 1.738898071 | N74: =('NSP Data'!$M74*(1-'Gen Data'!$G12)*H74*5/(G74+H74*5))/H74 -> 8.694490357 | O74: ='NSP Data'!$M74*'Gen Data'!G12/I74 -> 9.387738586 | P74: 12.55283872 | Q74: 6.692637423 | R74: 10.8562556 | S74: 10.01292421 | T74: 8.250421081 | U74: 8.146192436 | V74: 0.5 | W74: 0.5 | X74: 0.3585063952 | Y74: 0.2382201379 | Z74: 0.2044104494 | AA74: 0.1988630175 | AC74: 0.06761998363 | AD74: 0.05141118877 | AE74: 0.01620879486 | AF74: 1.069958629 | AG74: 1.052755686 | AH74: 1.01634087 | AI74: 1.011430613 | AJ74: =AH74/AH$9 -> 1.040763878 | AK74: 0.008023001504 | AM74: 0.06388442587 | AN74: 0.003735557756 | AO74: 1.003742544 | AP74: 1.022758718 | AQ74: =AO74/AO$9 -> 1.120981395 | AR74: 0.02310376037 | AT74: 1.028091308 | AU74: 1.02288744
A75: 72 | B75: ='NSP Data'!$C75 -> 7 | C75: ='NSP Data'!$A75 -> 2011 | D75: ='NSP Data'!D75 -> 273378.21 | E75: ='NSP Data'!E75 -> 816.24135 | F75: ='NSP Data'!F75 -> 51712.394 | G75: ='NSP Data'!G75 -> 21585.481 | H75: ='NSP Data'!H75 -> 3798.2893 | I75: ='NSP Data'!I75 -> 3436.9077 | J75: ='NSP Data'!$N75*'Gen Data'!$C13/D75 -> 0.3071343908 | K75: ='NSP Data'!$N75*'Gen Data'!$D13/E75 -> 102.86645 | L75: ='Gen Data'!$H$36/100 -> 1.126 | M75: =('NSP Data'!$M75*(1-'Gen Data'!$G13)*G75/($G75+$H75*5))/G75 -> 1.86541188 | N75: =('NSP Data'!$M75*(1-'Gen Data'!$G13)*H75*5/(G75+H75*5))/H75 -> 9.327059398 | O75: ='NSP Data'!$M75*'Gen Data'!G13/I75 -> 9.894608866 | P75: 12.5186115 | Q75: 6.704710083 | R75: 10.85345276 | S75: 9.979776192 | T75: 8.24230606 | U75: 8.142327422 | V75: 0.5 | W75: 0.5 | X75: 0.3467453979 | Y75: 0.239780654 | Z75: 0.2109650215 | AA75: 0.2025089267 | AC75: 0.05654270463 | AD75: 0.04056460427 | AE75: 0.01597810037 | AF75: 1.058171803 | AG75: 1.041398586 | AH75: 1.016106433 | AI75: 0.9986936249 | AJ75: =AH75/AH$10 -> 1.041563932 | AK75: 0.008177930982 | AM75: 0.06108158356 | AN75: -0.004538878929 | AO75: 0.9954714062 | AP75: 1.009988279 | AQ75: =AO75/AO$10 -> 1.135504156 | AR75: 0.02574107207 | AT75: 1.018429707 | AU75: 1.02028557
A76: 73 | B76: ='NSP Data'!$C76 -> 8 | C76: ='NSP Data'!$A76 -> 2011 | D76: ='NSP Data'!D76 -> 262877.14 | E76: ='NSP Data'!E76 -> 794.18049 | F76: ='NSP Data'!F76 -> 51123.021 | G76: ='NSP Data'!G76 -> 21281.416 | H76: ='NSP Data'!H76 -> 3954.1682 | I76: ='NSP Data'!I76 -> 3411.9822 | J76: ='NSP Data'!$N76*'Gen Data'!$C14/D76 -> 0.3132285295 | K76: ='NSP Data'!$N76*'Gen Data'!$D14/E76 -> 103.6799834 | L76: ='Gen Data'!$H$36/100 -> 1.126 | M76: =('NSP Data'!$M76*(1-'Gen Data'!$G14)*G76/($G76+$H76*5))/G76 -> 1.80040113 | N76: =('NSP Data'!$M76*(1-'Gen Data'!$G14)*H76*5/(G76+H76*5))/H76 -> 9.002005651 | O76: ='NSP Data'!$M76*'Gen Data'!G14/I76 -> 9.732225479 | P76: 12.47944205 | Q76: 6.677310753 | R76: 10.84199018 | S76: 9.965589483 | T76: 8.282525542 | U76: 8.135048692 | V76: 0.5 | W76: 0.5 | X76: 0.349551197 | Y76: 0.2326621257 | Z76: 0.2161475484 | AA76: 0.2016391289 | AC76: 0.02325831623 | AD76: 0.0400361006 | AE76: -0.01677778437 | AF76: 1.0235309 | AG76: 1.040848349 | AH76: 0.9833621788 | AI76: 1.011032066 | AJ76: =AH76/AH$11 -> 1.038208284 | AK76: 0.007527474831 | AM76: 0.04961900614 | AN76: -0.0263606899 | AO76: 0.9739837202 | AP76: 1.027113909 | AQ76: =AO76/AO$11 -> 1.124126395 | AR76: 0.02367719664 | AT76: 1.027210696 | AU76: 1.020806106
A77: 74 | B77: ='NSP Data'!$C77 -> 9 | C77: ='NSP Data'!$A77 -> 2011 | D77: ='NSP Data'!D77 -> 265488.07 | E77: ='NSP Data'!E77 -> 785.37496 | F77: ='NSP Data'!F77 -> 50624.664 | G77: ='NSP Data'!G77 -> 20507.921 | H77: ='NSP Data'!H77 -> 3811.9959 | I77: ='NSP Data'!I77 -> 3302.6041 | J77: ='NSP Data'!$N77*'Gen Data'!$C15/D77 -> 0.3109476633 | K77: ='NSP Data'!$N77*'Gen Data'!$D15/E77 -> 105.1127158 | L77: ='Gen Data'!$H$36/100 -> 1.126 | M77: =('NSP Data'!$M77*(1-'Gen Data'!$G15)*G77/($G77+$H77*5))/G77 -> 1.885130847 | N77: =('NSP Data'!$M77*(1-'Gen Data'!$G15)*H77*5/(G77+H77*5))/H77 -> 9.425654237 | O77: ='NSP Data'!$M77*'Gen Data'!G15/I77 -> 10.14706855 | P77: 12.48932518 | Q77: 6.66616126 | R77: 10.83219417 | S77: 9.928566481 | T77: 8.245908189 | U77: 8.102466557 | V77: 0.5 | W77: 0.5 | X77: 0.3452536164 | Y77: 0.2341535939 | Z77: 0.2176214108 | AA77: 0.2029713789 | AC77: 0.02262513516 | AD77: 0.01396884292 | AE77: 0.008656292238 | AF77: 1.022883025 | AG77: 1.014066863 | AH77: 1.008693866 | AI77: 1.005100868 | AJ77: =AH77/AH$12 -> 1.051503251 | AK77: 0.01009477346 | AM77: 0.03982298994 | AN77: -0.01719785478 | AO77: 0.9829491842 | AP77: 1.020527996 | AQ77: =AO77/AO$12 -> 1.139002416 | AR77: 0.02637231501 | AT77: 1.014802169 | AU77: 1.022094912
A78: 75 | B78: ='NSP Data'!$C78 -> 10 | C78: ='NSP Data'!$A78 -> 2011 | D78: ='NSP Data'!D78 -> 271073.27 | E78: ='NSP Data'!E78 -> 767.81405 | F78: ='NSP Data'!F78 -> 52008.993 | G78: ='NSP Data'!G78 -> 19577.834 | H78: ='NSP Data'!H78 -> 3980.6712 | I78: ='NSP Data'!I78 -> 3227.0066 | J78: ='NSP Data'!$N78*'Gen Data'!$C16/D78 -> 0.3052581319 | K78: ='NSP Data'!$N78*'Gen Data'!$D16/E78 -> 107.7699998 | L78: ='Gen Data'!$H$36/100 -> 1.126 | M78: =('NSP Data'!$M78*(1-'Gen Data'!$G16)*G78/($G78+$H78*5))/G78 -> 1.868824924 | N78: =('NSP Data'!$M78*(1-'Gen Data'!$G16)*H78*5/(G78+H78*5))/H78 -> 9.34412462 | O78: ='NSP Data'!$M78*'Gen Data'!G16/I78 -> 10.27239241 | P78: 12.51014443 | Q78: 6.643547581 | R78: 10.85917192 | S78: 9.882153287 | T78: 8.289205727 | U78: 8.079310237 | V78: 0.5 | W78: 0.5 | X78: 0.3538611733 | Y78: 0.2210799395 | Z78: 0.2247558509 | AA78: 0.2003030363 | AC78: 0.02172791985 | AD78: 0.01817467505 | AE78: 0.003553244804 | AF78: 1.02196569 | AG78: 1.01834084 | AH78: 1.003559565 | AI78: 1.009632437 | AJ78: =AH78/AH$13 -> 1.054763797 | AK78: 0.01072042685 | AM78: 0.06680074751 | AN78: -0.04507282765 | AO78: 0.9559278613 | AP78: 1.023924158 | AQ78: =AO78/AO$13 -> 1.154610508 | AR78: 0.02916995964 | AT78: 1.021960996 | AU78: 1.020117299
A79: 76 | B79: ='NSP Data'!$C79 -> 11 | C79: ='NSP Data'!$A79 -> 2011 | D79: ='NSP Data'!D79 -> 257141.94 | E79: ='NSP Data'!E79 -> 759.7385 | F79: ='NSP Data'!F79 -> 50253.623 | G79: ='NSP Data'!G79 -> 18131.317 | H79: ='NSP Data'!H79 -> 3912.8017 | I79: ='NSP Data'!I79 -> 3220.2709 | J79: ='NSP Data'!$N79*'Gen Data'!$C17/D79 -> 0.3127049986 | K79: ='NSP Data'!$N79*'Gen Data'!$D17/E79 -> 105.8384826 | L79: ='Gen Data'!$H$36/100 -> 1.126 | M79: =('NSP Data'!$M79*(1-'Gen Data'!$G17)*G79/($G79+$H79*5))/G79 -> 1.907959553 | N79: =('NSP Data'!$M79*(1-'Gen Data'!$G17)*H79*5/(G79+H79*5))/H79 -> 9.539797766 | O79: ='NSP Data'!$M79*'Gen Data'!G17/I79 -> 10.03406378 | P79: 12.45738351 | Q79: 6.632974295 | R79: 10.82483792 | S79: 9.805395943 | T79: 8.272008944 | U79: 8.077220765 | V79: 0.5 | W79: 0.5 | X79: 0.3518584894 | Y79: 0.2151100895 | Z79: 0.2321075528 | AA79: 0.2009238683 | AC79: -0.009939185893 | AD79: -0.01498078137 | AE79: 0.00504159548 | AF79: 0.9901100446 | AG79: 0.9851308723 | AH79: 1.005054326 | AI79: 1.006322219 | AJ79: =AH79/AH$14 -> 1.060386423 | AK79: 0.01179570547 | AM79: 0.03246674541 | AN79: -0.04240593131 | AO79: 0.9584806243 | AP79: 1.027962257 | AQ79: =AO79/AO$14 -> 1.161712878 | AR79: 0.03043300483 | AT79: 1.01812147 | AU79: 1.020525405
A80: 77 | B80: ='NSP Data'!$C80 -> 12 | C80: ='NSP Data'!$A80 -> 2011 | D80: ='NSP Data'!D80 -> 262622.16 | E80: ='NSP Data'!E80 -> 749.81438 | F80: ='NSP Data'!F80 -> 51480.9 | G80: ='NSP Data'!G80 -> 17453.686 | H80: ='NSP Data'!H80 -> 4135.9599 | I80: ='NSP Data'!I80 -> 3157.8251 | J80: ='NSP Data'!$N80*'Gen Data'!$C18/D80 -> 0.3111331123 | K80: ='NSP Data'!$N80*'Gen Data'!$D18/E80 -> 108.9742371 | L80: ='Gen Data'!$H$36/100 -> 1.126 | M80: =('NSP Data'!$M80*(1-'Gen Data'!$G18)*G80/($G80+$H80*5))/G80 -> 1.908109158 | N80: =('NSP Data'!$M80*(1-'Gen Data'!$G18)*H80*5/(G80+H80*5))/H80 -> 9.540545789 | O80: ='NSP Data'!$M80*'Gen Data'!G18/I80 -> 10.35223803 | P80: 12.47847162 | Q80: 6.619825683 | R80: 10.84896614 | S80: 9.767306137 | T80: 8.327474721 | U80: 8.05763881 | V80: 0.5 | W80: 0.5 | X80: 0.3547128439 | Y80: 0.2037899522 | Z80: 0.2414581855 | AA80: 0.2000390184 | AC80: -0.005969433646 | AD80: -0.004889772462 | AE80: -0.001079661184 | AF80: 0.994048348 | AG80: 0.995122163 | AH80: 0.9989209214 | AI80: 1.000376339 | AJ80: =AH80/AH$15 -> 1.05005309 | AK80: 0.009816008947 | AM80: 0.05659496666 | AN80: -0.06256440031 | AO80: 0.9393525663 | AP80: 1.017866509 | AQ80: =AO80/AO$15 -> 1.148495598 | AR80: 0.02807752958 | AT80: 1.014105559 | AU80: 1.020576333
A81: 78 | B81: ='NSP Data'!$C81 -> 13 | C81: ='NSP Data'!$A81 -> 2011 | D81: ='NSP Data'!D81 -> 260091.86 | E81: ='NSP Data'!E81 -> 740.35856 | F81: ='NSP Data'!F81 -> 52176.948 | G81: ='NSP Data'!G81 -> 16561.428 | H81: ='NSP Data'!H81 -> 3980.1476 | I81: ='NSP Data'!I81 -> 3206.2632 | J81: ='NSP Data'!$N81*'Gen Data'!$C19/D81 -> 0.3189734196 | K81: ='NSP Data'!$N81*'Gen Data'!$D19/E81 -> 112.0570417 | L81: ='Gen Data'!$H$36/100 -> 1.126 | M81: =('NSP Data'!$M81*(1-'Gen Data'!$G19)*G81/($G81+$H81*5))/G81 -> 2.028122592 | N81: =('NSP Data'!$M81*(1-'Gen Data'!$G19)*H81*5/(G81+H81*5))/H81 -> 10.14061296 | O81: ='NSP Data'!$M81*'Gen Data'!G19/I81 -> 10.36215536 | P81: 12.46879016 | Q81: 6.607134609 | R81: 10.86239607 | S81: 9.714831656 | T81: 8.289074183 | U81: 8.072861426 | V81: 0.5 | W81: 0.5 | X81: 0.3540835927 | Y81: 0.2024327263 | Z81: 0.2432495947 | AA81: 0.2002340863 | AC81: -0.01715570469 | AD81: -0.01658968025 | AE81: -0.0005660244332 | AF81: 0.9829906165 | AG81: 0.9835471707 | AH81: 0.9994341357 | AI81: 0.9964975821 | AJ81: =AH81/AH$16 -> 1.049499665 | AK81: 0.009709543 | AM81: 0.07002488973 | AN81: -0.08718059441 | AO81: 0.9165115638 | AP81: 1.016248754 | AQ81: =AO81/AO$16 -> 1.142871079 | AR81: 0.02706859197 | AT81: 1.00850853 | AU81: 1.018663443
A82: Average | P82: =AVERAGE(P4:P81) -> 12.45883647 | Q82: 6.64321383 | R82: 10.84927366 | S82: 9.98940053 | T82: 8.1045327 | U82: 8.088076833 | V82: 0.5 | W82: 0.5 | X82: 0.3771298099 | Y82: 0.244080453 | Z82: 0.1856999781 | AA82: 0.1930897589 | AH82: =AVERAGE(AH4:AH81) -> 0.9893367633 | AI82: =AVERAGE(AI4:AI81) -> 1.009299499 | AJ82: =AVERAGE(AJ4:AJ81) -> 1.032202242 | AK82: =AVERAGE(AK69:AK81) -> 0.00927201986 | AO82: =AVERAGE(AO4:AO81) -> 0.9432916805 | AP82: =AVERAGE(AP4:AP81) -> 1.02568108 | AQ82: =AVERAGE(AQ4:AQ81) -> 1.083783041 | AR82: =AVERAGE(AR69:AR81) -> 0.02562320576 | AT82: =AVERAGE(AT69:AT81) -> 1.020528592
A83: Geomean | AH83: =GEOMEAN(AH4:AH81) -> 0.9890912204 | AI83: =GEOMEAN(AI4:AI81) -> 1.009271053 | AJ83: =GEOMEAN(AJ4:AJ81) -> 1.032097962 | AK83: =GEOMEAN(1+AK69, 1+AK70,1+AK71, 1+AK72,1+AK73,1+AK74,1+AK75,1+AK76,1+AK77,1+AK78,1+AK79,1+AK80,1+AK81)-1 -> 0.009271052892 | AO83: =GEOMEAN(AO4:AO81) -> 0.9408275445 | AP83: =GEOMEAN(AP4:AP81) -> 1.025619659 | AQ83: =GEOMEAN(AQ4:AQ81) -> 1.083058337 | AR83: =GEOMEAN(1+AR69, 1+AR70,1+AR71, 1+AR72,1+AR73,1+AR74,1+AR75,1+AR76,1+AR77,1+AR78,1+AR79,1+AR80,1+AR81)-1 -> 0.02561965873 | AT83: =GEOMEAN(1+AT69, 1+AT70,1+AT71, 1+AT72,1+AT73,1+AT74,1+AT75,1+AT76,1+AT77,1+AT78,1+AT79,1+AT80,1+AT81)-1 -> 1.020518168
AF84: MAX | AH84: =MAX(AH4:AH81) -> 1.035315348 | AN84: MAX | AO84: =MAX(AO4:AO81) -> 1.104326585
AF85: MIN | AH85: =MIN(AH4:AH81) -> 0.9471723484 | AN85: MIN | AO85: =MIN(AO4:AO81) -> 0.8019378392

Sheet TFP Analysis
A1: FURTHER ANALYSIS OF RAW MTFP RESULTS
A2: – Containing tabulated and graphical analysis of raw MTFP results
A3: OBS | B3: NSP | C3: YEAR | D3: YI | E3: XI | F3: MTFP | G3: MTFP (2) relative to Maximum TFP in the sample | I3: Pivot table 1: Summary of Raw MTFP Results | T3: Figure 1: TFP for the 13 NSPs (2006 to 2011)
A4: 1 | B4: 1 | C4: 2006 | D4: ='TFP Index'!AF4 -> 1 | E4: ='TFP Index'!AG4 -> 1 | F4: ='TFP Index'!AH4 -> 1 | G4: =F4/MAX(F$4:F$81) -> 0.9658892838 | I4: Average of MTFP | J4: Year | Q4: Year 6
A5: 2 | B5: 2 | C5: 2006 | D5: ='TFP Index'!AF5 -> 1.000263877 | E5: ='TFP Index'!AG5 -> 1.026676313 | F5: ='TFP Index'!AH5 -> 0.9742738423 | G5: =F5/MAX(F$4:F$81) -> 0.9410406638 | I5: NSP | J5: 2006 | K5: 2007 | L5: 2008 | M5: 2009 | N5: 2010 | O5: 2011 | P5: Average | Q5: Relative to year 6maximum TFP
A6: 3 | B6: 3 | C6: 2006 | D6: ='TFP Index'!AF6 -> 0.9600961764 | E6: ='TFP Index'!AG6 -> 1.006367928 | F6: ='TFP Index'!AH6 -> 0.9540210387 | G6: 0.9214786978 | I6: 1 | J6: 1 | K6: 1.012167689 | L6: 1.022837374 | M6: 1.031573714 | N6: 1.024597848 | O6: 1.035315348 | P6: 1.021081996 | Q6: =O6/MAX(O$6:O$18) -> 1
A7: 4 | B7: 4 | C7: 2006 | D7: ='TFP Index'!AF7 -> 0.9731776394 | E7: ='TFP Index'!AG7 -> 0.9888177542 | F7: ='TFP Index'!AH7 -> 0.9841830157 | G7: 0.9506118282 | I7: 2 | J7: 0.9742738423 | K7: 0.9809435007 | L7: 0.9938397981 | M7: 1.005198445 | N7: 1.01811253 | O7: 1.012478138 | P7: 0.9974743756 | Q7: =O7/MAX(O$6:O$18) -> 0.9779417832
A8: 5 | B8: 5 | C8: 2006 | D8: ='TFP Index'!AF8 -> 0.9532095992 | E8: ='TFP Index'!AG8 -> 1.001376341 | F8: ='TFP Index'!AH8 -> 0.9518994613 | G8: 0.919429489 | I8: 3 | J8: 0.9540210387 | K8: 0.9751324901 | L8: 0.9932824389 | M8: 0.9976718483 | N8: 0.9994602831 | O8: 1.000292164 | P8: 0.9866433772 | Q8: 0.9661714823
A9: 6 | B9: 6 | C9: 2006 | D9: ='TFP Index'!AF9 -> 0.9555328127 | E9: ='TFP Index'!AG9 -> 0.978494583 | F9: ='TFP Index'!AH9 -> 0.9765335744 | G9: 0.9432233148 | I9: 4 | J9: 0.9841830157 | K9: 0.9891179735 | L9: 1.003035669 | M9: 1.02101726 | N9: 1.020749942 | O9: 1.033558815 | P9: 1.008610446 | Q9: 0.998303384
A10: 7 | B10: 7 | C10: 2006 | D10: ='TFP Index'!AF10 -> 0.9571375368 | E10: ='TFP Index'!AG10 -> 0.9811176312 | F10: ='TFP Index'!AH10 -> 0.9755583901 | G10: 0.9422813947 | I10: 5 | J10: 0.9518994613 | K10: 0.9724330021 | L10: 0.9829143503 | M10: 0.9814040885 | N10: 1.001864368 | O10: 1.003569635 | P10: 0.9823474842 | Q10: 0.9693371559
A11: 8 | B11: 8 | C11: 2006 | D11: ='TFP Index'!AF11 -> 0.923466805 | E11: ='TFP Index'!AG11 -> 0.9749723021 | F11: ='TFP Index'!AH11 -> 0.9471723484 | G11: 0.9148636213 | I11: 6 | J11: 0.9765335744 | K11: 0.9848354933 | L11: 0.9913413051 | M11: 1.004187823 | N11: 1.004854764 | O11: 1.01634087 | P11: 0.9963489717 | Q11: 0.9816727551
A12: 9 | B12: 9 | C12: 2006 | D12: ='TFP Index'!AF12 -> 0.9171351094 | E12: ='TFP Index'!AG12 -> 0.9560587025 | F12: ='TFP Index'!AH12 -> 0.9592874444 | G12: 0.9265654626 | I12: 7 | J12: 0.9755583901 | K12: 0.9871184019 | L12: 1.002705986 | M12: 1.005219819 | N12: 1.017435585 | O12: 1.016106433 | P12: 1.000690769 | Q12: 0.9814463147
A13: 10 | B13: 10 | C13: 2006 | D13: ='TFP Index'!AF13 -> 0.9251315302 | E13: ='TFP Index'!AG13 -> 0.9723341585 | F13: ='TFP Index'!AH13 -> 0.9514543144 | G13: 0.9189995264 | I13: 8 | J13: 0.9471723484 | K13: 0.9476165757 | L13: 0.9554990937 | M13: 0.9680209774 | N13: 0.972632038 | O13: 0.9833621788 | P13: 0.9623838687 | Q13: 0.9498189906
A14: 11 | B14: 11 | C14: 2006 | D14: ='TFP Index'!AF14 -> 0.8945363592 | E14: ='TFP Index'!AG14 -> 0.9437840187 | F14: ='TFP Index'!AH14 -> 0.9478189304 | G14: 0.9154881479 | I14: 9 | J14: 0.9592874444 | K14: 0.9784459976 | L14: 0.9742719106 | M14: 0.9873149349 | N14: 1.003574764 | O14: 1.008693866 | P14: 0.9852648196 | Q14: 0.9742865961
A15: 12 | B15: 12 | C15: 2006 | D15: ='TFP Index'!AF15 -> 0.8978999862 | E15: ='TFP Index'!AG15 -> 0.943861155 | F15: ='TFP Index'!AH15 -> 0.951305159 | G15: 0.9188554587 | I15: 10 | J15: 0.9514543144 | K15: 0.9646393099 | L15: 0.981084837 | M15: 0.986748466 | N15: 0.9939850666 | O15: 1.003559565 | P15: 0.9802452598 | Q15: 0.9693274296
A16: 13 | B16: 13 | C16: 2006 | D16: ='TFP Index'!AF16 -> 0.8964375326 | E16: ='TFP Index'!AG16 -> 0.9413435632 | F16: ='TFP Index'!AH16 -> 0.9522958116 | G16: 0.9198123195 | I16: 11 | J16: 0.9478189304 | K16: 0.9631458475 | L16: 0.9823670148 | M16: 0.9856949788 | N16: 0.9987400722 | O16: 1.005054326 | P16: 0.9804701949 | Q16: 0.9707712029
A17: 14 | B17: 1 | C17: 2007 | D17: ='TFP Index'!AF17 -> 1.026674534 | E17: ='TFP Index'!AG17 -> 1.014332453 | F17: ='TFP Index'!AH17 -> 1.012167689 | G17: 0.9776419239 | I17: 12 | J17: 0.951305159 | K17: 0.9655810364 | L17: 0.9700711643 | M17: 0.9752999233 | N17: 0.9985451295 | O17: 0.9989209214 | P17: 0.9766205556 | Q17: 0.9648470134
A18: 15 | B18: 2 | C18: 2007 | D18: ='TFP Index'!AF18 -> 1.023063577 | E18: ='TFP Index'!AG18 -> 1.04293833 | F18: ='TFP Index'!AH18 -> 0.9809435007 | G18: 0.9474828154 | I18: 13 | J18: 0.9522958116 | K18: 0.9652249208 | L18: 0.9906400155 | M18: 0.988633072 | N18: 1.002946875 | O18: 0.9994341357 | P18: 0.9831958051 | Q18: 0.9653427216
A19: 16 | B19: 3 | C19: 2007 | D19: ='TFP Index'!AF19 -> 0.9881734025 | E19: ='TFP Index'!AG19 -> 1.013373478 | F19: ='TFP Index'!AH19 -> 0.9751324901 | G19: 0.9418700225 | I19: Average | J19: 0.9635233331 | K19: 0.9758770952 | L19: 0.9879916121 | M19: 0.9952296423 | N19: 1.00442302 | O19: 1.008975877 | P19: 0.9893367633 | Q19: 0.9745589869
A20: 17 | B20: 4 | C20: 2007 | D20: ='TFP Index'!AF20 -> 0.9935990422 | E20: ='TFP Index'!AG20 -> 1.004530368 | F20: ='TFP Index'!AH20 -> 0.9891179735 | G20: 0.9553784511 | I20: Source data: column F - MTFP | N20: maximum TFP in 2011 | O20: =MAX(O6:O18) -> 1.035315348
A21: 18 | B21: 5 | C21: 2007 | D21: ='TFP Index'!AF21 -> 0.9799682909 | E21: ='TFP Index'!AG21 -> 1.007748903 | F21: ='TFP Index'!AH21 -> 0.9724330021 | G21: 0.939262616
A22: 19 | B22: 6 | C22: 2007 | D22: ='TFP Index'!AF22 -> 0.9791337587 | E22: ='TFP Index'!AG22 -> 0.9942104701 | F22: ='TFP Index'!AH22 -> 0.9848354933 | G22: 0.9512420493
A23: 20 | B23: 7 | C23: 2007 | D23: ='TFP Index'!AF23 -> 0.9780035354 | E23: ='TFP Index'!AG23 -> 0.9907661872 | F23: ='TFP Index'!AH23 -> 0.9871184019 | G23: 0.9534470863 | T23: Figure 2: TFP for NSP #8
A24: 21 | B24: 8 | C24: 2007 | D24: ='TFP Index'!AF24 -> 0.9377851024 | E24: ='TFP Index'!AG24 -> 0.9896250514 | F24: ='TFP Index'!AH24 -> 0.9476165757 | G24: 0.9152926957 | I24: Table 2: Summary of TFP Results for NSP #8
A25: 22 | B25: 9 | C25: 2007 | D25: ='TFP Index'!AF25 -> 0.9475875501 | E25: ='TFP Index'!AG25 -> 0.9684617776 | F25: ='TFP Index'!AH25 -> 0.9784459976 | G25: 0.9450705039 | J25: 2006 | K25: 2007 | L25: 2008 | M25: 2009 | N25: 2010 | O25: 2011 | P25: Average growth rate
A26: 23 | B26: 10 | C26: 2007 | D26: ='TFP Index'!AF26 -> 0.9443052805 | E26: ='TFP Index'!AG26 -> 0.9789205881 | F26: ='TFP Index'!AH26 -> 0.9646393099 | G26: 0.9317347722 | I26: NSP 8 - YI | J26: =D11 -> 0.923466805 | K26: =D24 -> 0.9377851024 | L26: =D37 -> 0.9548201612 | M26: =D51 -> 0.981098771 | N26: =D63 -> 0.9964176813 | O26: =D76 -> 1.0235309 | P26: =POWER(O26/J26,1/5)-1 -> 0.02078888823
A27: 24 | B27: 11 | C27: 2007 | D27: ='TFP Index'!AF27 -> 0.906425797 | E27: ='TFP Index'!AG27 -> 0.9411095934 | F27: ='TFP Index'!AH27 -> 0.9631458475 | G27: 0.9302922529 | I27: NSP 8 - XI | J27: =E11 -> 0.9749723021 | K27: =E24 -> 0.9896250514 | L27: =E37 -> 0.9992894472 | M27: =E50 -> 1.014572676 | N27: =E63 -> 1.024454925 | O27: =E76 -> 1.040848349 | P27: =POWER(O27/J27,1/5)-1 -> 0.01316233426
A28: 25 | B28: 12 | C28: 2007 | D28: ='TFP Index'!AF28 -> 0.9136168075 | E28: ='TFP Index'!AG28 -> 0.9461834617 | F28: ='TFP Index'!AH28 -> 0.9655810364 | G28: 0.9326443757 | I28: NSP 8 - MTFP | J28: =F11 -> 0.9471723484 | K28: =F24 -> 0.9476165757 | L28: =F37 -> 0.9554990937 | M28: =F50 -> 0.9680209774 | N28: =F63 -> 0.972632038 | O28: =F76 -> 0.9833621788 | P28: =POWER(O28/J28,1/5)-1 -> 0.007527474831
A29: 26 | B29: 13 | C29: 2007 | D29: ='TFP Index'!AF29 -> 0.9157772793 | E29: ='TFP Index'!AG29 -> 0.9487708611 | F29: ='TFP Index'!AH29 -> 0.9652249208 | G29: 0.9323004075 | I29: NSP1 - MTFP | J29: =J6 -> 1 | K29: 1.012167689 | L29: 1.022837374 | M29: 1.031573714 | N29: 1.024597848 | O29: 1.035315348 | P29: =POWER(O29/J29,1/5)-1 -> 0.006965358922
A30: 27 | B30: 1 | C30: 2008 | D30: ='TFP Index'!AF30 -> 1.050747342 | E30: ='TFP Index'!AG30 -> 1.027286808 | F30: ='TFP Index'!AH30 -> 1.022837374 | G30: 0.9879476587 | I30: NSP_Average MTFP | J30: =J19 -> 0.9635233331 | K30: 0.9758770952 | L30: 0.9879916121 | M30: 0.9952296423 | N30: 1.00442302 | O30: 1.008975877 | P30: =POWER(O30/J30,1/5)-1 -> 0.009261506218
A31: 28 | B31: 2 | C31: 2008 | D31: ='TFP Index'!AF31 -> 1.04514882 | E31: ='TFP Index'!AG31 -> 1.051627055 | F31: ='TFP Index'!AH31 -> 0.9938397981 | G31: 0.9599392108
A32: 29 | B32: 3 | C32: 2008 | D32: ='TFP Index'!AF32 -> 1.019492928 | E32: ='TFP Index'!AG32 -> 1.026387751 | F32: ='TFP Index'!AH32 -> 0.9932824389 | G32: 0.9594008636
A33: 30 | B33: 4 | C33: 2008 | D33: ='TFP Index'!AF33 -> 1.023055632 | E33: ='TFP Index'!AG33 -> 1.019959372 | F33: ='TFP Index'!AH33 -> 1.003035669 | G33: 0.9688214044
A34: 31 | B34: 5 | C34: 2008 | D34: ='TFP Index'!AF34 -> 1.004017274 | E34: ='TFP Index'!AG34 -> 1.021469748 | F34: ='TFP Index'!AH34 -> 0.9829143503 | G34: 0.9493864378
A35: 32 | B35: 6 | C35: 2008 | D35: ='TFP Index'!AF35 -> 0.998249068 | E35: ='TFP Index'!AG35 -> 1.006968097 | F35: ='TFP Index'!AH35 -> 0.9913413051 | G35: 0.9575259432
A36: 33 | B36: 7 | C36: 2008 | D36: ='TFP Index'!AF36 -> 1.004183661 | E36: ='TFP Index'!AG36 -> 1.001473688 | F36: ='TFP Index'!AH36 -> 1.002705986 | G36: 0.9685029664
A37: 34 | B37: 8 | C37: 2008 | D37: ='TFP Index'!AF37 -> 0.9548201612 | E37: ='TFP Index'!AG37 -> 0.9992894472 | F37: ='TFP Index'!AH37 -> 0.9554990937 | G37: 0.9229063354
A38: 35 | B38: 9 | C38: 2008 | D38: ='TFP Index'!AF38 -> 0.9590432641 | E38: ='TFP Index'!AG38 -> 0.984369203 | F38: ='TFP Index'!AH38 -> 0.9742719106 | G38: 0.9410387979
A39: 36 | B39: 10 | C39: 2008 | D39: ='TFP Index'!AF39 -> 0.9693791626 | E39: ='TFP Index'!AG39 -> 0.988068642 | F39: ='TFP Index'!AH39 -> 0.981084837 | G39: 0.9476193306
A40: 37 | B40: 11 | C40: 2008 | D40: ='TFP Index'!AF40 -> 0.9342127981 | E40: ='TFP Index'!AG40 -> 0.9509814398 | F40: ='TFP Index'!AH40 -> 0.9823670148 | G40: 0.9488577724
A41: 38 | B41: 12 | C41: 2008 | D41: ='TFP Index'!AF41 -> 0.9370445578 | E41: ='TFP Index'!AG41 -> 0.9659544499 | F41: ='TFP Index'!AH41 -> 0.9700711643 | G41: 0.9369813421
A42: 39 | B42: 13 | C42: 2008 | D42: ='TFP Index'!AF42 -> 0.944684339 | E42: ='TFP Index'!AG42 -> 0.9536101149 | F42: ='TFP Index'!AH42 -> 0.9906400155 | G42: 0.9568485751 | T42: Figure 3: TFP for NSP # 8 relative to frontier and average NSPs
A43: 40 | B43: 1 | C43: 2009 | D43: ='TFP Index'!AF43 -> 1.078044079 | E43: ='TFP Index'!AG43 -> 1.045048031 | F43: ='TFP Index'!AH43 -> 1.031573714 | G43: 0.9963859959
A44: 41 | B44: 2 | C44: 2009 | D44: ='TFP Index'!AF44 -> 1.072023626 | E44: ='TFP Index'!AG44 -> 1.066479591 | F44: ='TFP Index'!AH44 -> 1.005198445 | G44: 0.9709104064
A45: 42 | B45: 3 | C45: 2009 | D45: ='TFP Index'!AF45 -> 1.04236073 | E45: ='TFP Index'!AG45 -> 1.044793167 | F45: ='TFP Index'!AH45 -> 0.9976718483 | G45: 0.963640547
A46: 43 | B46: 4 | C46: 2009 | D46: ='TFP Index'!AF46 -> 1.052596683 | E46: ='TFP Index'!AG46 -> 1.030929372 | F46: ='TFP Index'!AH46 -> 1.02101726 | G46: 0.9861896298
A47: 44 | B47: 5 | C47: 2009 | D47: ='TFP Index'!AF47 -> 1.019147257 | E47: ='TFP Index'!AG47 -> 1.038458337 | F47: ='TFP Index'!AH47 -> 0.9814040885 | G47: 0.9479276922
A48: 45 | B48: 6 | C48: 2009 | D48: ='TFP Index'!AF48 -> 1.02360148 | E48: ='TFP Index'!AG48 -> 1.019332694 | F48: ='TFP Index'!AH48 -> 1.004187823 | G48: 0.9699342573
A49: 46 | B49: 7 | C49: 2009 | D49: ='TFP Index'!AF49 -> 1.015878409 | E49: ='TFP Index'!AG49 -> 1.010603243 | F49: ='TFP Index'!AH49 -> 1.005219819 | G49: 0.970931051
A50: 47 | B50: 8 | C50: 2009 | D50: ='TFP Index'!AF50 -> 0.9821276331 | E50: ='TFP Index'!AG50 -> 1.014572676 | F50: ='TFP Index'!AH50 -> 0.9680209774 | G50: 0.9350010886
A51: 48 | B51: 9 | C51: 2009 | D51: ='TFP Index'!AF51 -> 0.981098771 | E51: ='TFP Index'!AG51 -> 0.9937039706 | F51: ='TFP Index'!AH51 -> 0.9873149349 | G51: 0.9536369154
A52: 49 | B52: 10 | C52: 2009 | D52: ='TFP Index'!AF52 -> 0.9849735223 | E52: ='TFP Index'!AG52 -> 0.9982012197 | F52: ='TFP Index'!AH52 -> 0.986748466 | G52: 0.9530897692
A53: 50 | B53: 11 | C53: 2009 | D53: ='TFP Index'!AF53 -> 0.9537762529 | E53: ='TFP Index'!AG53 -> 0.9676180496 | F53: ='TFP Index'!AH53 -> 0.9856949788 | G53: 0.9520722172
A54: 51 | B54: 12 | C54: 2009 | D54: ='TFP Index'!AF54 -> 0.950488864 | E54: ='TFP Index'!AG54 -> 0.9745605853 | F54: ='TFP Index'!AH54 -> 0.9752999233 | G54: 0.9420317444
A55: 52 | B55: 13 | C55: 2009 | D55: ='TFP Index'!AF55 -> 0.9480972153 | E55: ='TFP Index'!AG55 -> 0.9589980774 | F55: ='TFP Index'!AH55 -> 0.988633072 | G55: 0.9549100899
A56: 53 | B56: 1 | C56: 2010 | D56: ='TFP Index'!AF56 -> 1.091114099 | E56: ='TFP Index'!AG56 -> 1.064919374 | F56: ='TFP Index'!AH56 -> 1.024597848 | G56: 0.989648082
A57: 54 | B57: 2 | C57: 2010 | D57: ='TFP Index'!AF57 -> 1.106114391 | E57: ='TFP Index'!AG57 -> 1.086436281 | F57: ='TFP Index'!AH57 -> 1.01811253 | G57: 0.9833839822
A58: 55 | B58: 3 | C58: 2010 | D58: ='TFP Index'!AF58 -> 1.063817226 | E58: ='TFP Index'!AG58 -> 1.064391696 | F58: ='TFP Index'!AH58 -> 0.9994602831 | G58: 0.9653679771
A59: 56 | B59: 4 | C59: 2010 | D59: ='TFP Index'!AF59 -> 1.068762771 | E59: ='TFP Index'!AG59 -> 1.047036819 | F59: ='TFP Index'!AH59 -> 1.020749942 | G59: 0.9859314301
A60: 57 | B60: 5 | C60: 2010 | D60: ='TFP Index'!AF60 -> 1.052855891 | E60: ='TFP Index'!AG60 -> 1.050896633 | F60: ='TFP Index'!AH60 -> 1.001864368 | G60: 0.9676900573
A61: 58 | B61: 6 | C61: 2010 | D61: ='TFP Index'!AF61 -> 1.04072335 | E61: ='TFP Index'!AG61 -> 1.035695293 | F61: ='TFP Index'!AH61 -> 1.004854764 | G61: 0.9705784487
A62: 59 | B62: 7 | C62: 2010 | D62: ='TFP Index'!AF62 -> 1.039022915 | E62: ='TFP Index'!AG62 -> 1.021217392 | F62: ='TFP Index'!AH62 -> 1.017435585 | G62: 0.9827301288
A63: 60 | B63: 8 | C63: 2010 | D63: ='TFP Index'!AF63 -> 0.9964176813 | E63: ='TFP Index'!AG63 -> 1.024454925 | F63: ='TFP Index'!AH63 -> 0.972632038 | G63: 0.9394548626
A64: 61 | B64: 9 | C64: 2010 | D64: ='TFP Index'!AF64 -> 1.007962987 | E64: ='TFP Index'!AG64 -> 1.004372592 | F64: ='TFP Index'!AH64 -> 1.003574764 | G64: 0.9693421102
A65: 62 | B65: 10 | C65: 2010 | D65: ='TFP Index'!AF65 -> 1.000004593 | E65: ='TFP Index'!AG65 -> 1.006055953 | F65: ='TFP Index'!AH65 -> 0.9939850666 | G65: 0.9600795241
A66: 63 | B66: 11 | C66: 2010 | D66: ='TFP Index'!AF66 -> 0.9724871481 | E66: ='TFP Index'!AG66 -> 0.9737139574 | F66: ='TFP Index'!AH66 -> 0.9987400722 | G66: 0.964672333
A67: 64 | B67: 12 | C67: 2010 | D67: ='TFP Index'!AF67 -> 0.9802217718 | E67: ='TFP Index'!AG67 -> 0.9816499453 | F67: ='TFP Index'!AH67 -> 0.9985451295 | G67: 0.96448404
A68: 65 | B68: 13 | C68: 2010 | D68: ='TFP Index'!AF68 -> 0.9746973748 | E68: ='TFP Index'!AG68 -> 0.9718335032 | F68: ='TFP Index'!AH68 -> 1.002946875 | G68: 0.9687356386
A69: 66 | B69: 1 | C69: 2011 | D69: ='TFP Index'!AF69 -> 1.125408086 | E69: ='TFP Index'!AG69 -> 1.08701961 | F69: ='TFP Index'!AH69 -> 1.035315348 | G69: =F69/MAX(F$4:F$81) -> 1
A70: 67 | B70: 2 | C70: 2011 | D70: ='TFP Index'!AF70 -> 1.126467574 | E70: ='TFP Index'!AG70 -> 1.112584591 | F70: ='TFP Index'!AH70 -> 1.012478138 | G70: 0.9779417832
A71: 68 | B71: 3 | C71: 2011 | D71: ='TFP Index'!AF71 -> 1.079119106 | E71: ='TFP Index'!AG71 -> 1.078803918 | F71: ='TFP Index'!AH71 -> 1.000292164 | G71: 0.9661714823
A72: 69 | B72: 4 | C72: 2011 | D72: ='TFP Index'!AF72 -> 1.096436309 | E72: ='TFP Index'!AG72 -> 1.060835912 | F72: ='TFP Index'!AH72 -> 1.033558815 | G72: 0.998303384
A73: 70 | B73: 5 | C73: 2011 | D73: ='TFP Index'!AF73 -> 1.079738892 | E73: ='TFP Index'!AG73 -> 1.075898328 | F73: ='TFP Index'!AH73 -> 1.003569635 | G73: 0.9693371559
A74: 71 | B74: 6 | C74: 2011 | D74: ='TFP Index'!AF74 -> 1.069958629 | E74: ='TFP Index'!AG74 -> 1.052755686 | F74: ='TFP Index'!AH74 -> 1.01634087 | G74: 0.9816727551
A75: 72 | B75: 7 | C75: 2011 | D75: ='TFP Index'!AF75 -> 1.058171803 | E75: ='TFP Index'!AG75 -> 1.041398586 | F75: ='TFP Index'!AH75 -> 1.016106433 | G75: 0.9814463147
A76: 73 | B76: 8 | C76: 2011 | D76: ='TFP Index'!AF76 -> 1.0235309 | E76: ='TFP Index'!AG76 -> 1.040848349 | F76: ='TFP Index'!AH76 -> 0.9833621788 | G76: 0.9498189906
A77: 74 | B77: 9 | C77: 2011 | D77: ='TFP Index'!AF77 -> 1.022883025 | E77: ='TFP Index'!AG77 -> 1.014066863 | F77: ='TFP Index'!AH77 -> 1.008693866 | G77: 0.9742865961
A78: 75 | B78: 10 | C78: 2011 | D78: ='TFP Index'!AF78 -> 1.02196569 | E78: ='TFP Index'!AG78 -> 1.01834084 | F78: ='TFP Index'!AH78 -> 1.003559565 | G78: 0.9693274296
A79: 76 | B79: 11 | C79: 2011 | D79: ='TFP Index'!AF79 -> 0.9901100446 | E79: ='TFP Index'!AG79 -> 0.9851308723 | F79: ='TFP Index'!AH79 -> 1.005054326 | G79: 0.9707712029
A80: 77 | B80: 12 | C80: 2011 | D80: ='TFP Index'!AF80 -> 0.994048348 | E80: ='TFP Index'!AG80 -> 0.995122163 | F80: ='TFP Index'!AH80 -> 0.9989209214 | G80: 0.9648470134
A81: 78 | B81: 13 | C81: 2011 | D81: ='TFP Index'!AF81 -> 0.9829906165 | E81: ='TFP Index'!AG81 -> 0.9835471707 | F81: ='TFP Index'!AH81 -> 0.9994341357 | G81: 0.9653427216
A82: Summary statistics | C82: MAX | D82: =MAX(D4:D81) -> 1.126467574 | E82: =MAX(E4:E81) -> 1.112584591 | F82: =MAX(F4:F81) -> 1.035315348 | G82: =MAX(G4:G81) -> 1
C83: MIN | D83: =MIN(D4:D81) -> 0.8945363592 | E83: =MIN(E4:E81) -> 0.9411095934 | F83: =MIN(F4:F81) -> 0.9471723484 | G83: =MIN(G4:G81) -> 0.9148636213
C84: MEAN | D84: =AVERAGE(D4:D81) -> 0.9974546625 | E84: =AVERAGE(E4:E81) -> 1.00764036 | F84: =AVERAGE(F4:F81) -> 0.9893367633 | G84: =AVERAGE(G4:G81) -> 0.9555897778
C85: STDEV | D85: =STDEV(D4:D81) -> 0.05595208202 | E85: =STDEV(E4:E81) -> 0.03902683329 | F85: =STDEV(F4:F81) -> 0.02216277145 | G85: =STDEV(G4:G81) -> 0.02140678344

Sheet DEA_CE Cal
A1: DEA COST EFFICIENCY CALCULATION
A2: Using EXCEL SOLVER to run DEA linear programming model to estimate cost efficiency | P2: Lamda
A3: OBS | B3: NSP | C3: YEAR | D3: Y1 | E3: Y2 | F3: X1 | G3: X2 | H3: X3 | I3: X4 | J3: W1 | K3: W2 | L3: W3 | M3: W4 | N3: TC | O3: CE (Theta) | P3: Obs_1 | Q3: Obs_2 | R3: Obs_3 | S3: Obs_4 | T3: Obs_5 | U3: Obs_6 | V3: Obs_7 | W3: Obs_8 | X3: Obs_9 | Y3: Obs_10 | Z3: Obs_11 | AA3: Obs_12 | AB3: Obs_13 | AC3: Obs_14 | AD3: Obs_15 | AE3: Obs_16 | AF3: Obs_17 | AG3: Obs_18 | AH3: Obs_19 | AI3: Obs_20 | AJ3: Obs_21 | AK3: Obs_22 | AL3: Obs_23 | AM3: Obs_24 | AN3: Obs_25 | AO3: Obs_26 | AP3: Obs_27 | AQ3: Obs_28 | AR3: Obs_29 | AS3: Obs_30 | AT3: Obs_31 | AU3: Obs_32 | AV3: Obs_33 | AW3: Obs_34 | AX3: Obs_35 | AY3: Obs_36 | AZ3: Obs_37 | BA3: Obs_38 | BB3: Obs_39 | BC3: Obs_40 | BD3: Obs_41 | BE3: Obs_42 | BF3: Obs_43 | BG3: Obs_44 | BH3: Obs_45 | BI3: Obs_46 | BJ3: Obs_47 | BK3: Obs_48 | BL3: Obs_49 | BM3: Obs_50 | BN3: Obs_51 | BO3: Obs_52 | BP3: Obs_53 | BQ3: Obs_54 | BR3: Obs_55 | BS3: Obs_56 | BT3: Obs_57 | BU3: Obs_58 | BV3: Obs_59 | BW3: Obs_60 | BX3: Obs_61 | BY3: Obs_62 | BZ3: Obs_63 | CA3: Obs_64 | CB3: Obs_65 | CC3: Obs_66 | CD3: Obs_67 | CE3: Obs_68 | CF3: Obs_69 | CG3: Obs_70 | CH3: Obs_71 | CI3: Obs_72 | CJ3: Obs_73 | CK3: Obs_74 | CL3: Obs_75 | CM3: Obs_76 | CN3: Obs_77 | CO3: Obs_78
A4: 1 | B4: ='NSP Data'!$C4 -> 1 | C4: ='NSP Data'!$A4 -> 2006 | D4: ='NSP Data'!D4 -> 260958.54 | E4: ='NSP Data'!E4 -> 763.65747 | F4: ='NSP Data'!F4 -> 48648.253 | G4: ='NSP Data'!G4 -> 27171.852 | H4: ='NSP Data'!H4 -> 2646.4099 | I4: ='NSP Data'!I4 -> 3175.3119 | J4: ='Gen Data'!$C$36/100 -> 0.92 | K4: =('NSP Data'!$M4*(1-'Gen Data'!$G7)*G4/($G4+$H4*5))/G4 -> 1.334399161 | L4: =('NSP Data'!$M4*(1-'Gen Data'!$G7)*H4*5/(G4+H4*5))/H4 -> 6.671995806 | M4: ='NSP Data'!$M4*'Gen Data'!G7/I4 -> 7.628431944 | N4: =SUMPRODUCT(F4:I4,J4:M4) -> 122893.9758 | O4: 0.974666505 | P4: 0 | Q4: 0 | R4: 0 | S4: 0 | T4: 0 | U4: 0 | V4: 0 | W4: 0 | X4: 0 | Y4: 0 | Z4: 0 | AA4: 0 | AB4: 0 | AC4: 0 | AD4: 0 | AE4: 0 | AF4: 0 | AG4: 0 | AH4: 0 | AI4: 0 | AJ4: 0 | AK4: 0 | AL4: 0 | AM4: 0 | AN4: 0 | AO4: 0 | AP4: 0 | AQ4: 0 | AR4: 0 | AS4: 0 | AT4: 0 | AU4: 0 | AV4: 0 | AW4: 0 | AX4: 0 | AY4: 0 | AZ4: 0 | BA4: 0 | BB4: 0 | BC4: 0 | BD4: 0 | BE4: 0 | BF4: 0 | BG4: 0 | BH4: 0 | BI4: 0 | BJ4: 0 | BK4: 0 | BL4: 0 | BM4: 0 | BN4: 0 | BO4: 0 | BP4: 0 | BQ4: 0 | BR4: 0 | BS4: 0 | BT4: 0 | BU4: 0 | BV4: 0 | BW4: 0 | BX4: 0 | BY4: 0 | BZ4: 0 | CA4: 0 | CB4: 0 | CC4: 0 | CD4: 0 | CE4: 0 | CF4: 0.4833689133 | CG4: 0 | CH4: 0.4392138706 | CI4: 0 | CJ4: 0 | CK4: 0 | CL4: 0 | CM4: 0 | CN4: 0 | CO4: 0
A5: 2 | B5: ='NSP Data'!$C5 -> 2 | C5: ='NSP Data'!$A5 -> 2006 | D5: ='NSP Data'!D5 -> 259988.24 | E5: ='NSP Data'!E5 -> 766.91209 | F5: ='NSP Data'!F5 -> 51304.694 | G5: ='NSP Data'!G5 -> 27862.556 | H5: ='NSP Data'!H5 -> 2680.853 | I5: ='NSP Data'!I5 -> 3138.0941 | J5: ='Gen Data'!$C$36/100 -> 0.92 | K5: =('NSP Data'!$M5*(1-'Gen Data'!$G8)*G5/($G5+$H5*5))/G5 -> 1.330285441 | L5: =('NSP Data'!$M5*(1-'Gen Data'!$G8)*H5*5/(G5+H5*5))/H5 -> 6.651427203 | M5: ='NSP Data'!$M5*'Gen Data'!G8/I5 -> 7.859456107 | N5: =SUMPRODUCT(F5:I5,J5:M5) -> 126760.6825 | O5: 0.9469842651 | P5: 0 | Q5: 0 | R5: 0 | S5: 0 | T5: 0 | U5: 0 | V5: 0 | W5: 0 | X5: 0 | Y5: 0 | Z5: 0 | AA5: 0 | AB5: 0 | AC5: 0 | AD5: 0 | AE5: 0 | AF5: 0 | AG5: 0 | AH5: 0 | AI5: 0 | AJ5: 0 | AK5: 0 | AL5: 0 | AM5: 0 | AN5: 0 | AO5: 0 | AP5: 0 | AQ5: 0 | AR5: 0 | AS5: 0 | AT5: 0 | AU5: 0 | AV5: 0 | AW5: 0 | AX5: 0 | AY5: 0 | AZ5: 0 | BA5: 0 | BB5: 0 | BC5: 0 | BD5: 0 | BE5: 0 | BF5: 0 | BG5: 0 | BH5: 0 | BI5: 0 | BJ5: 0 | BK5: 0 | BL5: 0 | BM5: 0 | BN5: 0 | BO5: 0 | BP5: 0 | BQ5: 0 | BR5: 0 | BS5: 0 | BT5: 0 | BU5: 0 | BV5: 0 | BW5: 0 | BX5: 0 | BY5: 0 | BZ5: 0 | CA5: 0 | CB5: 0 | CC5: 0 | CD5: 0 | CE5: 0 | CF5: 0.6307136695 | CG5: 0 | CH5: 0.2884796635 | CI5: 0 | CJ5: 0 | CK5: 0 | CL5: 0 | CM5: 0 | CN5: 0 | CO5: 0
A6: 3 | B6: ='NSP Data'!$C6 -> 3 | C6: ='NSP Data'!$A6 -> 2006 | D6: ='NSP Data'!D6 -> 244280.83 | E6: ='NSP Data'!E6 -> 751.98679 | F6: ='NSP Data'!F6 -> 52268.164 | G6: ='NSP Data'!G6 -> 25153.935 | H6: ='NSP Data'!H6 -> 2777.3168 | I6: ='NSP Data'!I6 -> 3085.81 | J6: ='Gen Data'!$C$36/100 -> 0.92 | K6: =('NSP Data'!$M6*(1-'Gen Data'!$G9)*G6/($G6+$H6*5))/G6 -> 1.323541288 | L6: =('NSP Data'!$M6*(1-'Gen Data'!$G9)*H6*5/(G6+H6*5))/H6 -> 6.617706442 | M6: ='NSP Data'!$M6*'Gen Data'!G9/I6 -> 7.523094157 | N6: 122973.2889 | O6: 0.9209252206 | P6: 0 | Q6: 0 | R6: 0 | S6: 0 | T6: 0 | U6: 0 | V6: 0 | W6: 0 | X6: 0 | Y6: 0 | Z6: 0 | AA6: 0 | AB6: 0 | AC6: 0 | AD6: 0 | AE6: 0 | AF6: 0 | AG6: 0 | AH6: 0 | AI6: 0 | AJ6: 0 | AK6: 0 | AL6: 0 | AM6: 0 | AN6: 0 | AO6: 0 | AP6: 0 | AQ6: 0 | AR6: 0 | AS6: 0 | AT6: 0 | AU6: 0 | AV6: 0 | AW6: 0 | AX6: 0 | AY6: 0 | AZ6: 0 | BA6: 0 | BB6: 0 | BC6: 0 | BD6: 0 | BE6: 0 | BF6: 0 | BG6: 0 | BH6: 0 | BI6: 0 | BJ6: 0 | BK6: 0 | BL6: 0 | BM6: 0 | BN6: 0 | BO6: 0 | BP6: 0 | BQ6: 0 | BR6: 0 | BS6: 0 | BT6: 0 | BU6: 0 | BV6: 0 | BW6: 0 | BX6: 0 | BY6: 0 | BZ6: 0 | CA6: 0 | CB6: 0 | CC6: 0.5583461786 | CD6: 0 | CE6: 0 | CF6: 0.3025084876 | CG6: 0 | CH6: 0 | CI6: 0 | CJ6: 0 | CK6: 0 | CL6: 0 | CM6: 0 | CN6: 0 | CO6: 0
A7: 4 | B7: ='NSP Data'!$C7 -> 4 | C7: ='NSP Data'!$A7 -> 2006 | D7: ='NSP Data'!D7 -> 253000.71 | E7: ='NSP Data'!E7 -> 745.98934 | F7: ='NSP Data'!F7 -> 50028.771 | G7: ='NSP Data'!G7 -> 25560.025 | H7: ='NSP Data'!H7 -> 2687.3012 | I7: ='NSP Data'!I7 -> 3080.3977 | J7: ='Gen Data'!$C$36/100 -> 0.92 | K7: =('NSP Data'!$M7*(1-'Gen Data'!$G10)*G7/($G7+$H7*5))/G7 -> 1.2995427 | L7: =('NSP Data'!$M7*(1-'Gen Data'!$G10)*H7*5/(G7+H7*5))/H7 -> 6.497713502 | M7: ='NSP Data'!$M7*'Gen Data'!G10/I7 -> 7.391325737 | N7: 119472.3493 | O7: 0.9557766326 | P7: 0 | Q7: 0 | R7: 0 | S7: 0 | T7: 0 | U7: 0 | V7: 0 | W7: 0 | X7: 0 | Y7: 0 | Z7: 0 | AA7: 0 | AB7: 0 | AC7: 0 | AD7: 0 | AE7: 0 | AF7: 0 | AG7: 0 | AH7: 0 | AI7: 0 | AJ7: 0 | AK7: 0 | AL7: 0 | AM7: 0 | AN7: 0 | AO7: 0 | AP7: 0 | AQ7: 0 | AR7: 0 | AS7: 0 | AT7: 0 | AU7: 0 | AV7: 0 | AW7: 0 | AX7: 0 | AY7: 0 | AZ7: 0 | BA7: 0 | BB7: 0 | BC7: 0 | BD7: 0 | BE7: 0 | BF7: 0 | BG7: 0 | BH7: 0 | BI7: 0 | BJ7: 0 | BK7: 0 | BL7: 0 | BM7: 0 | BN7: 0 | BO7: 0 | BP7: 0 | BQ7: 0 | BR7: 0 | BS7: 0 | BT7: 0 | BU7: 0 | BV7: 0 | BW7: 0 | BX7: 0 | BY7: 0 | BZ7: 0 | CA7: 0 | CB7: 0 | CC7: 0 | CD7: 0 | CE7: 0 | CF7: 0.6061520061 | CG7: 0 | CH7: 0.288334695 | CI7: 0 | CJ7: 0 | CK7: 0 | CL7: 0 | CM7: 0 | CN7: 0 | CO7: 0
A8: 5 | B8: ='NSP Data'!$C8 -> 5 | C8: ='NSP Data'!$A8 -> 2006 | D8: ='NSP Data'!D8 -> 246115 | E8: ='NSP Data'!E8 -> 735.71371 | F8: ='NSP Data'!F8 -> 51303.915 | G8: ='NSP Data'!G8 -> 24718.831 | H8: ='NSP Data'!H8 -> 2848.3146 | I8: ='NSP Data'!I8 -> 3134.4138 | J8: ='Gen Data'!$C$36/100 -> 0.92 | K8: =('NSP Data'!$M8*(1-'Gen Data'!$G11)*G8/($G8+$H8*5))/G8 -> 1.334730855 | L8: =('NSP Data'!$M8*(1-'Gen Data'!$G11)*H8*5/(G8+H8*5))/H8 -> 6.673654276 | M8: ='NSP Data'!$M8*'Gen Data'!G11/I8 -> 7.453726005 | N8: 122564.3168 | O8: 0.9205193706 | P8: 0 | Q8: 0 | R8: 0 | S8: 0 | T8: 0 | U8: 0 | V8: 0 | W8: 0 | X8: 0 | Y8: 0 | Z8: 0 | AA8: 0 | AB8: 0 | AC8: 0 | AD8: 0 | AE8: 0 | AF8: 0 | AG8: 0 | AH8: 0 | AI8: 0 | AJ8: 0 | AK8: 0 | AL8: 0 | AM8: 0 | AN8: 0 | AO8: 0 | AP8: 0 | AQ8: 0 | AR8: 0 | AS8: 0 | AT8: 0 | AU8: 0 | AV8: 0 | AW8: 0 | AX8: 0 | AY8: 0 | AZ8: 0 | BA8: 0 | BB8: 0 | BC8: 0 | BD8: 0 | BE8: 0 | BF8: 0 | BG8: 0 | BH8: 0 | BI8: 0 | BJ8: 0 | BK8: 0 | BL8: 0 | BM8: 0 | BN8: 0 | BO8: 0 | BP8: 0 | BQ8: 0 | BR8: 0 | BS8: 0 | BT8: 0 | BU8: 0 | BV8: 0 | BW8: 0 | BX8: 0 | BY8: 0 | BZ8: 0 | CA8: 0 | CB8: 0 | CC8: 0 | CD8: 0 | CE8: 0 | CF8: 0.8350573403 | CG8: 0 | CH8: 0.03515217484 | CI8: 0 | CJ8: 0 | CK8: 0 | CL8: 0 | CM8: 0 | CN8: 0 | CO8: 0
A9: 6 | B9: ='NSP Data'!$C9 -> 6 | C9: ='NSP Data'!$A9 -> 2006 | D9: ='NSP Data'!D9 -> 251995.33 | E9: ='NSP Data'!E9 -> 722.0526 | F9: ='NSP Data'!F9 -> 51914.53 | G9: ='NSP Data'!G9 -> 21966.665 | H9: ='NSP Data'!H9 -> 2812.6669 | I9: ='NSP Data'!I9 -> 3220.1586 | J9: ='Gen Data'!$C$36/100 -> 0.92 | K9: =('NSP Data'!$M9*(1-'Gen Data'!$G12)*G9/($G9+$H9*5))/G9 -> 1.340288766 | L9: =('NSP Data'!$M9*(1-'Gen Data'!$G12)*H9*5/(G9+H9*5))/H9 -> 6.701443832 | M9: ='NSP Data'!$M9*'Gen Data'!G12/I9 -> 6.737487532 | N9: 117747.7496 | O9: 0.9579160436 | P9: 0 | Q9: 0 | R9: 0 | S9: 0 | T9: 0 | U9: 0 | V9: 0 | W9: 0 | X9: 0 | Y9: 0 | Z9: 0 | AA9: 0 | AB9: 0 | AC9: 0 | AD9: 0 | AE9: 0 | AF9: 0 | AG9: 0 | AH9: 0 | AI9: 0 | AJ9: 0 | AK9: 0 | AL9: 0 | AM9: 0 | AN9: 0 | AO9: 0 | AP9: 0 | AQ9: 0 | AR9: 0 | AS9: 0 | AT9: 0 | AU9: 0 | AV9: 0 | AW9: 0 | AX9: 0 | AY9: 0 | AZ9: 0 | BA9: 0 | BB9: 0 | BC9: 0 | BD9: 0 | BE9: 0 | BF9: 0 | BG9: 0 | BH9: 0 | BI9: 0 | BJ9: 0 | BK9: 0 | BL9: 0 | BM9: 0 | BN9: 0 | BO9: 0 | BP9: 0 | BQ9: 0 | BR9: 0 | BS9: 0 | BT9: 0 | BU9: 0 | BV9: 0 | BW9: 0 | BX9: 0 | BY9: 0 | BZ9: 0 | CA9: 0 | CB9: 0 | CC9: 0 | CD9: 0 | CE9: 0 | CF9: 0.09048093309 | CG9: 0 | CH9: 0.8003104461 | CI9: 0 | CJ9: 0 | CK9: 0 | CL9: 0 | CM9: 0 | CN9: 0 | CO9: 0
A10: 7 | B10: ='NSP Data'!$C10 -> 7 | C10: ='NSP Data'!$A10 -> 2006 | D10: ='NSP Data'!D10 -> 248161.5 | E10: ='NSP Data'!E10 -> 735.67231 | F10: ='NSP Data'!F10 -> 53113.086 | G10: ='NSP Data'!G10 -> 21546.896 | H10: ='NSP Data'!H10 -> 2776.6566 | I10: ='NSP Data'!I10 -> 3234.4391 | J10: ='Gen Data'!$C$36/100 -> 0.92 | K10: =('NSP Data'!$M10*(1-'Gen Data'!$G13)*G10/($G10+$H10*5))/G10 -> 1.400546745 | L10: =('NSP Data'!$M10*(1-'Gen Data'!$G13)*H10*5/(G10+H10*5))/H10 -> 7.002733723 | M10: ='NSP Data'!$M10*'Gen Data'!G13/I10 -> 6.892623868 | N10: 120779.4331 | O10: 0.947517016 | P10: 0 | Q10: 0 | R10: 0 | S10: 0 | T10: 0 | U10: 0 | V10: 0 | W10: 0 | X10: 0 | Y10: 0 | Z10: 0 | AA10: 0 | AB10: 0 | AC10: 0 | AD10: 0 | AE10: 0 | AF10: 0 | AG10: 0 | AH10: 0 | AI10: 0 | AJ10: 0 | AK10: 0 | AL10: 0 | AM10: 0 | AN10: 0 | AO10: 0 | AP10: 0 | AQ10: 0 | AR10: 0 | AS10: 0 | AT10: 0 | AU10: 0 | AV10: 0 | AW10: 0 | AX10: 0 | AY10: 0 | AZ10: 0 | BA10: 0 | BB10: 0 | BC10: 0 | BD10: 0 | BE10: 0 | BF10: 0 | BG10: 0 | BH10: 0 | BI10: 0 | BJ10: 0 | BK10: 0 | BL10: 0 | BM10: 0 | BN10: 0 | BO10: 0 | BP10: 0 | BQ10: 0 | BR10: 0 | BS10: 0 | BT10: 0 | BU10: 0 | BV10: 0 | BW10: 0 | BX10: 0 | BY10: 0 | BZ10: 0 | CA10: 0 | CB10: 0 | CC10: 0 | CD10: 0 | CE10: 0 | CF10: 0.6912692732 | CG10: 0 | CH10: 0.1861348778 | CI10: 0 | CJ10: 0 | CK10: 0 | CL10: 0 | CM10: 0 | CN10: 0 | CO10: 0
A11: 8 | B11: ='NSP Data'!$C11 -> 8 | C11: ='NSP Data'!$A11 -> 2006 | D11: ='NSP Data'!D11 -> 235651.49 | E11: ='NSP Data'!E11 -> 721.17806 | F11: ='NSP Data'!F11 -> 51850.385 | G11: ='NSP Data'!G11 -> 20934.68 | H11: ='NSP Data'!H11 -> 2925.8294 | I11: ='NSP Data'!I11 -> 3259.5329 | J11: ='Gen Data'!$C$36/100 -> 0.92 | K11: =('NSP Data'!$M11*(1-'Gen Data'!$G14)*G11/($G11+$H11*5))/G11 -> 1.354025013 | L11: =('NSP Data'!$M11*(1-'Gen Data'!$G14)*H11*5/(G11+H11*5))/H11 -> 6.770125067 | M11: ='NSP Data'!$M11*'Gen Data'!G14/I11 -> 6.637314712 | N11: 117491.2112 | O11: 0.9151118732 | P11: 0 | Q11: 0 | R11: 0 | S11: 0 | T11: 0 | U11: 0 | V11: 0 | W11: 0 | X11: 0 | Y11: 0 | Z11: 0 | AA11: 0 | AB11: 0 | AC11: 0 | AD11: 0 | AE11: 0 | AF11: 0 | AG11: 0 | AH11: 0 | AI11: 0 | AJ11: 0 | AK11: 0 | AL11: 0 | AM11: 0 | AN11: 0 | AO11: 0 | AP11: 0 | AQ11: 0 | AR11: 0 | AS11: 0 | AT11: 0 | AU11: 0 | AV11: 0 | AW11: 0 | AX11: 0 | AY11: 0 | AZ11: 0 | BA11: 0 | BB11: 0 | BC11: 0 | BD11: 0 | BE11: 0 | BF11: 0 | BG11: 0 | BH11: 0 | BI11: 0 | BJ11: 0 | BK11: 0 | BL11: 0 | BM11: 0 | BN11: 0 | BO11: 0 | BP11: 0 | BQ11: 0 | BR11: 0 | BS11: 0 | BT11: 0 | BU11: 0 | BV11: 0 | BW11: 0 | BX11: 0 | BY11: 0 | BZ11: 0 | CA11: 0 | CB11: 0 | CC11: 0.4220524098 | CD11: 0 | CE11: 0 | CF11: 0.4089932532 | CG11: 0 | CH11: 0 | CI11: 0 | CJ11: 0 | CK11: 0 | CL11: 0 | CM11: 0 | CN11: 0 | CO11: 0
A12: 9 | B12: ='NSP Data'!$C12 -> 9 | C12: ='NSP Data'!$A12 -> 2006 | D12: ='NSP Data'!D12 -> 236923.52 | E12: ='NSP Data'!E12 -> 707.50348 | F12: ='NSP Data'!F12 -> 51700.429 | G12: ='NSP Data'!G12 -> 20218.793 | H12: ='NSP Data'!H12 -> 2852.9676 | I12: ='NSP Data'!I12 -> 3165.2949 | J12: ='Gen Data'!$C$36/100 -> 0.92 | K12: =('NSP Data'!$M12*(1-'Gen Data'!$G15)*G12/($G12+$H12*5))/G12 -> 1.389199465 | L12: =('NSP Data'!$M12*(1-'Gen Data'!$G15)*H12*5/(G12+H12*5))/H12 -> 6.945997324 | M12: ='NSP Data'!$M12*'Gen Data'!G15/I12 -> 6.799485024 | N12: 116991.4117 | O12: 0.9293036301 | P12: 0 | Q12: 0 | R12: 0 | S12: 0 | T12: 0 | U12: 0 | V12: 0 | W12: 0 | X12: 0 | Y12: 0 | Z12: 0 | AA12: 0 | AB12: 0 | AC12: 0 | AD12: 0 | AE12: 0 | AF12: 0 | AG12: 0 | AH12: 0 | AI12: 0 | AJ12: 0 | AK12: 0 | AL12: 0 | AM12: 0 | AN12: 0 | AO12: 0 | AP12: 0 | AQ12: 0 | AR12: 0 | AS12: 0 | AT12: 0 | AU12: 0 | AV12: 0 | AW12: 0 | AX12: 0 | AY12: 0 | AZ12: 0 | BA12: 0 | BB12: 0 | BC12: 0 | BD12: 0 | BE12: 0 | BF12: 0 | BG12: 0 | BH12: 0 | BI12: 0 | BJ12: 0 | BK12: 0 | BL12: 0 | BM12: 0 | BN12: 0 | BO12: 0 | BP12: 0 | BQ12: 0 | BR12: 0 | BS12: 0 | BT12: 0 | BU12: 0 | BV12: 0 | BW12: 0 | BX12: 0 | BY12: 0 | BZ12: 0 | CA12: 0 | CB12: 0 | CC12: 0 | CD12: 0 | CE12: 0 | CF12: 0.7859061865 | CG12: 0 | CH12: 0.05179931154 | CI12: 0 | CJ12: 0 | CK12: 0 | CL12: 0 | CM12: 0 | CN12: 0 | CO12: 0
A13: 10 | B13: ='NSP Data'!$C13 -> 10 | C13: ='NSP Data'!$A13 -> 2006 | D13: ='NSP Data'!D13 -> 245380.01 | E13: ='NSP Data'!E13 -> 695.08498 | F13: ='NSP Data'!F13 -> 54360.209 | G13: ='NSP Data'!G13 -> 19554.833 | H13: ='NSP Data'!H13 -> 3015.3524 | I13: ='NSP Data'!I13 -> 3063.7746 | J13: ='Gen Data'!$C$36/100 -> 0.92 | K13: =('NSP Data'!$M13*(1-'Gen Data'!$G16)*G13/($G13+$H13*5))/G13 -> 1.3300674 | L13: =('NSP Data'!$M13*(1-'Gen Data'!$G16)*H13*5/(G13+H13*5))/H13 -> 6.650337002 | M13: ='NSP Data'!$M13*'Gen Data'!G16/I13 -> 6.754635759 | N13: 116768.4293 | O13: 0.937125748 | P13: 0 | Q13: 0 | R13: 0 | S13: 0 | T13: 0 | U13: 0 | V13: 0 | W13: 0 | X13: 0 | Y13: 0 | Z13: 0 | AA13: 0 | AB13: 0 | AC13: 0 | AD13: 0 | AE13: 0 | AF13: 0 | AG13: 0 | AH13: 0 | AI13: 0 | AJ13: 0 | AK13: 0 | AL13: 0 | AM13: 0 | AN13: 0 | AO13: 0 | AP13: 0 | AQ13: 0 | AR13: 0 | AS13: 0 | AT13: 0 | AU13: 0 | AV13: 0 | AW13: 0 | AX13: 0 | AY13: 0 | AZ13: 0 | BA13: 0 | BB13: 0 | BC13: 0 | BD13: 0 | BE13: 0 | BF13: 0 | BG13: 0 | BH13: 0 | BI13: 0 | BJ13: 0 | BK13: 0 | BL13: 0 | BM13: 0 | BN13: 0 | BO13: 0 | BP13: 0 | BQ13: 0 | BR13: 0 | BS13: 0 | BT13: 0 | BU13: 0 | BV13: 0 | BW13: 0 | BX13: 0 | BY13: 0 | BZ13: 0 | CA13: 0 | CB13: 0 | CC13: 0 | CD13: 0 | CE13: 0 | CF13: 0 | CG13: 0 | CH13: 0.8673823732 | CI13: 0 | CJ13: 0 | CK13: 0 | CL13: 0 | CM13: 0 | CN13: 0 | CO13: 0
A14: 11 | B14: ='NSP Data'!$C14 -> 11 | C14: ='NSP Data'!$A14 -> 2006 | D14: ='NSP Data'!D14 -> 227047.3 | E14: ='NSP Data'!E14 -> 702.34383 | F14: ='NSP Data'!F14 -> 52744.929 | G14: ='NSP Data'!G14 -> 18038.598 | H14: ='NSP Data'!H14 -> 2961.5382 | I14: ='NSP Data'!I14 -> 3133.3242 | J14: ='Gen Data'!$C$36/100 -> 0.92 | K14: =('NSP Data'!$M14*(1-'Gen Data'!$G17)*G14/($G14+$H14*5))/G14 -> 1.360083195 | L14: =('NSP Data'!$M14*(1-'Gen Data'!$G17)*H14*5/(G14+H14*5))/H14 -> 6.800415974 | M14: ='NSP Data'!$M14*'Gen Data'!G17/I14 -> 6.405588774 | N14: 113269.8067 | O14: 0.9153480938 | P14: 0 | Q14: 0 | R14: 0 | S14: 0 | T14: 0 | U14: 0 | V14: 0 | W14: 0 | X14: 0 | Y14: 0 | Z14: 0 | AA14: 0 | AB14: 0 | AC14: 0 | AD14: 0 | AE14: 0 | AF14: 0 | AG14: 0 | AH14: 0 | AI14: 0 | AJ14: 0 | AK14: 0 | AL14: 0 | AM14: 0 | AN14: 0 | AO14: 0 | AP14: 0 | AQ14: 0 | AR14: 0 | AS14: 0 | AT14: 0 | AU14: 0 | AV14: 0 | AW14: 0 | AX14: 0 | AY14: 0 | AZ14: 0 | BA14: 0 | BB14: 0 | BC14: 0 | BD14: 0 | BE14: 0 | BF14: 0 | BG14: 0 | BH14: 0 | BI14: 0 | BJ14: 0 | BK14: 0 | BL14: 0 | BM14: 0 | BN14: 0 | BO14: 0 | BP14: 0 | BQ14: 0 | BR14: 0 | BS14: 0 | BT14: 0 | BU14: 0 | BV14: 0 | BW14: 0 | BX14: 0 | BY14: 0 | BZ14: 0 | CA14: 0 | CB14: 0 | CC14: 0.6125601374 | CD14: 0 | CE14: 0 | CF14: 0.1870802492 | CG14: 0 | CH14: 0 | CI14: 0 | CJ14: 0 | CK14: 0 | CL14: 0 | CM14: 0 | CN14: 0 | CO14: 0
A15: 12 | B15: ='NSP Data'!$C15 -> 12 | C15: ='NSP Data'!$A15 -> 2006 | D15: ='NSP Data'!D15 -> 233134.73 | E15: ='NSP Data'!E15 -> 689.15843 | F15: ='NSP Data'!F15 -> 53406.722 | G15: ='NSP Data'!G15 -> 17227.361 | H15: ='NSP Data'!H15 -> 3084.9824 | I15: ='NSP Data'!I15 -> 3082.1275 | J15: ='Gen Data'!$C$36/100 -> 0.92 | K15: =('NSP Data'!$M15*(1-'Gen Data'!$G18)*G15/($G15+$H15*5))/G15 -> 1.34513921 | L15: =('NSP Data'!$M15*(1-'Gen Data'!$G18)*H15*5/(G15+H15*5))/H15 -> 6.72569605 | M15: ='NSP Data'!$M15*'Gen Data'!G18/I15 -> 6.402397789 | N15: 112789.0432 | O15: 0.9229549098 | P15: 0 | Q15: 0 | R15: 0 | S15: 0 | T15: 0 | U15: 0 | V15: 0 | W15: 0 | X15: 0 | Y15: 0 | Z15: 0 | AA15: 0 | AB15: 0 | AC15: 0 | AD15: 0 | AE15: 0 | AF15: 0 | AG15: 0 | AH15: 0 | AI15: 0 | AJ15: 0 | AK15: 0 | AL15: 0 | AM15: 0 | AN15: 0 | AO15: 0 | AP15: 0 | AQ15: 0 | AR15: 0 | AS15: 0 | AT15: 0 | AU15: 0 | AV15: 0 | AW15: 0 | AX15: 0 | AY15: 0 | AZ15: 0 | BA15: 0 | BB15: 0 | BC15: 0 | BD15: 0 | BE15: 0 | BF15: 0 | BG15: 0 | BH15: 0 | BI15: 0 | BJ15: 0 | BK15: 0 | BL15: 0 | BM15: 0 | BN15: 0 | BO15: 0 | BP15: 0 | BQ15: 0 | BR15: 0 | BS15: 0 | BT15: 0 | BU15: 0 | BV15: 0 | BW15: 0 | BX15: 0 | BY15: 0 | BZ15: 0 | CA15: 0 | CB15: 0 | CC15: 0 | CD15: 0 | CE15: 0 | CF15: 0.6012680881 | CG15: 0 | CH15: 0.2229939455 | CI15: 0 | CJ15: 0 | CK15: 0 | CL15: 0 | CM15: 0 | CN15: 0 | CO15: 0
A16: 13 | B16: ='NSP Data'!$C16 -> 13 | C16: ='NSP Data'!$A16 -> 2006 | D16: ='NSP Data'!D16 -> 231958.06 | E16: ='NSP Data'!E16 -> 690.39989 | F16: ='NSP Data'!F16 -> 54380.923 | G16: ='NSP Data'!G16 -> 16603.792 | H16: ='NSP Data'!H16 -> 2965.5555 | I16: ='NSP Data'!I16 -> 3165.3409 | J16: ='Gen Data'!$C$36/100 -> 0.92 | K16: =('NSP Data'!$M16*(1-'Gen Data'!$G19)*G16/($G16+$H16*5))/G16 -> 1.383447808 | L16: =('NSP Data'!$M16*(1-'Gen Data'!$G19)*H16*5/(G16+H16*5))/H16 -> 6.917239041 | M16: ='NSP Data'!$M16*'Gen Data'!G19/I16 -> 6.171929561 | N16: 113050.6462 | O16: 0.9236362076 | P16: 0 | Q16: 0 | R16: 0 | S16: 0 | T16: 0 | U16: 0 | V16: 0 | W16: 0 | X16: 0 | Y16: 0 | Z16: 0 | AA16: 0 | AB16: 0 | AC16: 0 | AD16: 0 | AE16: 0 | AF16: 0 | AG16: 0 | AH16: 0 | AI16: 0 | AJ16: 0 | AK16: 0 | AL16: 0 | AM16: 0 | AN16: 0 | AO16: 0 | AP16: 0 | AQ16: 0 | AR16: 0 | AS16: 0 | AT16: 0 | AU16: 0 | AV16: 0 | AW16: 0 | AX16: 0 | AY16: 0 | AZ16: 0 | BA16: 0 | BB16: 0 | BC16: 0 | BD16: 0 | BE16: 0 | BF16: 0 | BG16: 0 | BH16: 0 | BI16: 0 | BJ16: 0 | BK16: 0 | BL16: 0 | BM16: 0 | BN16: 0 | BO16: 0 | BP16: 0 | BQ16: 0 | BR16: 0 | BS16: 0 | BT16: 0 | BU16: 0 | BV16: 0 | BW16: 0 | BX16: 0 | BY16: 0 | BZ16: 0 | CA16: 0 | CB16: 0 | CC16: 0 | CD16: 0 | CE16: 0 | CF16: 0.7137415935 | CG16: 0 | CH16: 0.1063919361 | CI16: 0 | CJ16: 0 | CK16: 0 | CL16: 0 | CM16: 0 | CN16: 0 | CO16: 0
A17: 14 | B17: ='NSP Data'!$C17 -> 1 | C17: ='NSP Data'!$A17 -> 2007 | D17: ='NSP Data'!D17 -> 265099.8 | E17: ='NSP Data'!E17 -> 792.36685 | F17: ='NSP Data'!F17 -> 49112.403 | G17: ='NSP Data'!G17 -> 26872.201 | H17: ='NSP Data'!H17 -> 2841.0418 | I17: ='NSP Data'!I17 -> 3230.956 | J17: ='Gen Data'!$D$36/100 -> 0.958 | K17: =('NSP Data'!$M17*(1-'Gen Data'!$G7)*G17/($G17+$H17*5))/G17 -> 1.388897395 | L17: =('NSP Data'!$M17*(1-'Gen Data'!$G7)*H17*5/(G17+H17*5))/H17 -> 6.944486977 | M17: ='NSP Data'!$M17*'Gen Data'!G7/I17 -> 7.933316405 | N17: 129734.1861 | O17: 0.9793247746 | P17: 0 | Q17: 0 | R17: 0 | S17: 0 | T17: 0 | U17: 0 | V17: 0 | W17: 0 | X17: 0 | Y17: 0 | Z17: 0 | AA17: 0 | AB17: 0 | AC17: 0 | AD17: 0 | AE17: 0 | AF17: 0 | AG17: 0 | AH17: 0 | AI17: 0 | AJ17: 0 | AK17: 0 | AL17: 0 | AM17: 0 | AN17: 0 | AO17: 0 | AP17: 0 | AQ17: 0 | AR17: 0 | AS17: 0 | AT17: 0 | AU17: 0 | AV17: 0 | AW17: 0 | AX17: 0 | AY17: 0 | AZ17: 0 | BA17: 0 | BB17: 0 | BC17: 0 | BD17: 0 | BE17: 0 | BF17: 0 | BG17: 0 | BH17: 0 | BI17: 0 | BJ17: 0 | BK17: 0 | BL17: 0 | BM17: 0 | BN17: 0 | BO17: 0 | BP17: 0 | BQ17: 0 | BR17: 0 | BS17: 0 | BT17: 0 | BU17: 0 | BV17: 0 | BW17: 0 | BX17: 0 | BY17: 0 | BZ17: 0 | CA17: 0 | CB17: 0 | CC17: 0 | CD17: 0 | CE17: 0 | CF17: 0.8970665006 | CG17: 0 | CH17: 0.04026850964 | CI17: 0 | CJ17: 0 | CK17: 0 | CL17: 0 | CM17: 0 | CN17: 0 | CO17: 0
A18: 15 | B18: ='NSP Data'!$C18 -> 2 | C18: ='NSP Data'!$A18 -> 2007 | D18: ='NSP Data'!D18 -> 268133.46 | E18: ='NSP Data'!E18 -> 777.90104 | F18: ='NSP Data'!F18 -> 51164.515 | G18: ='NSP Data'!G18 -> 27955.647 | H18: ='NSP Data'!H18 -> 2852.7765 | I18: ='NSP Data'!I18 -> 3246.9031 | J18: ='Gen Data'!$D$36/100 -> 0.958 | K18: =('NSP Data'!$M18*(1-'Gen Data'!$G8)*G18/($G18+$H18*5))/G18 -> 1.380302822 | L18: =('NSP Data'!$M18*(1-'Gen Data'!$G8)*H18*5/(G18+H18*5))/H18 -> 6.901514111 | M18: ='NSP Data'!$M18*'Gen Data'!G8/I18 -> 8.063638327 | N18: 133473.1934 | O18: 0.9591078423 | P18: 0 | Q18: 0 | R18: 0 | S18: 0 | T18: 0 | U18: 0 | V18: 0 | W18: 0 | X18: 0 | Y18: 0 | Z18: 0 | AA18: 0 | AB18: 0 | AC18: 0 | AD18: 0 | AE18: 0 | AF18: 0 | AG18: 0 | AH18: 0 | AI18: 0 | AJ18: 0 | AK18: 0 | AL18: 0 | AM18: 0 | AN18: 0 | AO18: 0 | AP18: 0 | AQ18: 0 | AR18: 0 | AS18: 0 | AT18: 0 | AU18: 0 | AV18: 0 | AW18: 0 | AX18: 0 | AY18: 0 | AZ18: 0 | BA18: 0 | BB18: 0 | BC18: 0 | BD18: 0 | BE18: 0 | BF18: 0 | BG18: 0 | BH18: 0 | BI18: 0 | BJ18: 0 | BK18: 0 | BL18: 0 | BM18: 0 | BN18: 0 | BO18: 0 | BP18: 0 | BQ18: 0 | BR18: 0 | BS18: 0 | BT18: 0 | BU18: 0 | BV18: 0 | BW18: 0 | BX18: 0 | BY18: 0 | BZ18: 0 | CA18: 0 | CB18: 0 | CC18: 0 | CD18: 0 | CE18: 0 | CF18: 0.331395446 | CG18: 0 | CH18: 0.6165079415 | CI18: 0 | CJ18: 0 | CK18: 0 | CL18: 0 | CM18: 0 | CN18: 0 | CO18: 0
A19: 16 | B19: ='NSP Data'!$C19 -> 3 | C19: ='NSP Data'!$A19 -> 2007 | D19: ='NSP Data'!D19 -> 252246.48 | E19: ='NSP Data'!E19 -> 771.45629 | F19: ='NSP Data'!F19 -> 51590.007 | G19: ='NSP Data'!G19 -> 24974.945 | H19: ='NSP Data'!H19 -> 2958.1715 | I19: ='NSP Data'!I19 -> 3150.9227 | J19: ='Gen Data'!$D$36/100 -> 0.958 | K19: =('NSP Data'!$M19*(1-'Gen Data'!$G9)*G19/($G19+$H19*5))/G19 -> 1.386026312 | L19: =('NSP Data'!$M19*(1-'Gen Data'!$G9)*H19*5/(G19+H19*5))/H19 -> 6.930131561 | M19: ='NSP Data'!$M19*'Gen Data'!G9/I19 -> 7.858797174 | N19: 129302.1377 | O19: 0.9418603529 | P19: 0 | Q19: 0 | R19: 0 | S19: 0 | T19: 0 | U19: 0 | V19: 0 | W19: 0 | X19: 0 | Y19: 0 | Z19: 0 | AA19: 0 | AB19: 0 | AC19: 0 | AD19: 0 | AE19: 0 | AF19: 0 | AG19: 0 | AH19: 0 | AI19: 0 | AJ19: 0 | AK19: 0 | AL19: 0 | AM19: 0 | AN19: 0 | AO19: 0 | AP19: 0 | AQ19: 0 | AR19: 0 | AS19: 0 | AT19: 0 | AU19: 0 | AV19: 0 | AW19: 0 | AX19: 0 | AY19: 0 | AZ19: 0 | BA19: 0 | BB19: 0 | BC19: 0 | BD19: 0 | BE19: 0 | BF19: 0 | BG19: 0 | BH19: 0 | BI19: 0 | BJ19: 0 | BK19: 0 | BL19: 0 | BM19: 0 | BN19: 0 | BO19: 0 | BP19: 0 | BQ19: 0 | BR19: 0 | BS19: 0 | BT19: 0 | BU19: 0 | BV19: 0 | BW19: 0 | BX19: 0 | BY19: 0 | BZ19: 0 | CA19: 0 | CB19: 0 | CC19: 0.4378115407 | CD19: 0 | CE19: 0 | CF19: 0.451829811 | CG19: 0 | CH19: 0 | CI19: 0 | CJ19: 0 | CK19: 0 | CL19: 0 | CM19: 0 | CN19: 0 | CO19: 0
A20: 17 | B20: ='NSP Data'!$C20 -> 4 | C20: ='NSP Data'!$A20 -> 2007 | D20: ='NSP Data'!D20 -> 259486.53 | E20: ='NSP Data'!E20 -> 758.18926 | F20: ='NSP Data'!F20 -> 50206.152 | G20: ='NSP Data'!G20 -> 25359.967 | H20: ='NSP Data'!H20 -> 2886.6029 | I20: ='NSP Data'!I20 -> 3169.4103 | J20: ='Gen Data'!$D$36/100 -> 0.958 | K20: =('NSP Data'!$M20*(1-'Gen Data'!$G10)*G20/($G20+$H20*5))/G20 -> 1.387024711 | L20: =('NSP Data'!$M20*(1-'Gen Data'!$G10)*H20*5/(G20+H20*5))/H20 -> 6.935123553 | M20: ='NSP Data'!$M20*'Gen Data'!G10/I20 -> 7.823927483 | N20: 128088.5786 | O20: 0.964353962 | P20: 0 | Q20: 0 | R20: 0 | S20: 0 | T20: 0 | U20: 0 | V20: 0 | W20: 0 | X20: 0 | Y20: 0 | Z20: 0 | AA20: 0 | AB20: 0 | AC20: 0 | AD20: 0 | AE20: 0 | AF20: 0 | AG20: 0 | AH20: 0 | AI20: 0 | AJ20: 0 | AK20: 0 | AL20: 0 | AM20: 0 | AN20: 0 | AO20: 0 | AP20: 0 | AQ20: 0 | AR20: 0 | AS20: 0 | AT20: 0 | AU20: 0 | AV20: 0 | AW20: 0 | AX20: 0 | AY20: 0 | AZ20: 0 | BA20: 0 | BB20: 0 | BC20: 0 | BD20: 0 | BE20: 0 | BF20: 0 | BG20: 0 | BH20: 0 | BI20: 0 | BJ20: 0 | BK20: 0 | BL20: 0 | BM20: 0 | BN20: 0 | BO20: 0 | BP20: 0 | BQ20: 0 | BR20: 0 | BS20: 0 | BT20: 0 | BU20: 0 | BV20: 0 | BW20: 0 | BX20: 0 | BY20: 0 | BZ20: 0 | CA20: 0 | CB20: 0 | CC20: 0 | CD20: 0 | CE20: 0 | CF20: 0.452238943 | CG20: 0 | CH20: 0.4651319621 | CI20: 0 | CJ20: 0 | CK20: 0 | CL20: 0 | CM20: 0 | CN20: 0 | CO20: 0
A21: 18 | B21: ='NSP Data'!$C21 -> 5 | C21: ='NSP Data'!$A21 -> 2007 | D21: ='NSP Data'!D21 -> 252073.04 | E21: ='NSP Data'!E21 -> 759.22022 | F21: ='NSP Data'!F21 -> 51090.879 | G21: ='NSP Data'!G21 -> 24306.884 | H21: ='NSP Data'!H21 -> 2988.348 | I21: ='NSP Data'!I21 -> 3210.9556 | J21: ='Gen Data'!$D$36/100 -> 0.958 | K21: =('NSP Data'!$M21*(1-'Gen Data'!$G11)*G21/($G21+$H21*5))/G21 -> 1.432137613 | L21: =('NSP Data'!$M21*(1-'Gen Data'!$G11)*H21*5/(G21+H21*5))/H21 -> 7.160688063 | M21: ='NSP Data'!$M21*'Gen Data'!G11/I21 -> 7.864796489 | N21: 130408.0051 | O21: 0.9405508187 | P21: 0 | Q21: 0 | R21: 0 | S21: 0 | T21: 0 | U21: 0 | V21: 0 | W21: 0 | X21: 0 | Y21: 0 | Z21: 0 | AA21: 0 | AB21: 0 | AC21: 0 | AD21: 0 | AE21: 0 | AF21: 0 | AG21: 0 | AH21: 0 | AI21: 0 | AJ21: 0 | AK21: 0 | AL21: 0 | AM21: 0 | AN21: 0 | AO21: 0 | AP21: 0 | AQ21: 0 | AR21: 0 | AS21: 0 | AT21: 0 | AU21: 0 | AV21: 0 | AW21: 0 | AX21: 0 | AY21: 0 | AZ21: 0 | BA21: 0 | BB21: 0 | BC21: 0 | BD21: 0 | BE21: 0 | BF21: 0 | BG21: 0 | BH21: 0 | BI21: 0 | BJ21: 0 | BK21: 0 | BL21: 0 | BM21: 0 | BN21: 0 | BO21: 0 | BP21: 0 | BQ21: 0 | BR21: 0 | BS21: 0 | BT21: 0 | BU21: 0 | BV21: 0 | BW21: 0 | BX21: 0 | BY21: 0 | BZ21: 0 | CA21: 0 | CB21: 0 | CC21: 0.116024469 | CD21: 0 | CE21: 0 | CF21: 0.7746629711 | CG21: 0 | CH21: 0 | CI21: 0 | CJ21: 0 | CK21: 0 | CL21: 0 | CM21: 0 | CN21: 0 | CO21: 0
A22: 19 | B22: ='NSP Data'!$C22 -> 6 | C22: ='NSP Data'!$A22 -> 2007 | D22: ='NSP Data'!D22 -> 258204.57 | E22: ='NSP Data'!E22 -> 739.92933 | F22: ='NSP Data'!F22 -> 51541.911 | G22: ='NSP Data'!G22 -> 22425.906 | H22: ='NSP Data'!H22 -> 3000.954 | I22: ='NSP Data'!I22 -> 3268.2723 | J22: ='Gen Data'!$D$36/100 -> 0.958 | K22: =('NSP Data'!$M22*(1-'Gen Data'!$G12)*G22/($G22+$H22*5))/G22 -> 1.399855179 | L22: =('NSP Data'!$M22*(1-'Gen Data'!$G12)*H22*5/(G22+H22*5))/H22 -> 6.999275897 | M22: ='NSP Data'!$M22*'Gen Data'!G12/I22 -> 7.20286291 | N22: 125315.5937 | O22: 0.9663286528 | P22: 0 | Q22: 0 | R22: 0 | S22: 0 | T22: 0 | U22: 0 | V22: 0 | W22: 0 | X22: 0 | Y22: 0 | Z22: 0 | AA22: 0 | AB22: 0 | AC22: 0 | AD22: 0 | AE22: 0 | AF22: 0 | AG22: 0 | AH22: 0 | AI22: 0 | AJ22: 0 | AK22: 0 | AL22: 0 | AM22: 0 | AN22: 0 | AO22: 0 | AP22: 0 | AQ22: 0 | AR22: 0 | AS22: 0 | AT22: 0 | AU22: 0 | AV22: 0 | AW22: 0 | AX22: 0 | AY22: 0 | AZ22: 0 | BA22: 0 | BB22: 0 | BC22: 0 | BD22: 0 | BE22: 0 | BF22: 0 | BG22: 0 | BH22: 0 | BI22: 0 | BJ22: 0 | BK22: 0 | BL22: 0 | BM22: 0 | BN22: 0 | BO22: 0 | BP22: 0 | BQ22: 0 | BR22: 0 | BS22: 0 | BT22: 0 | BU22: 0 | BV22: 0 | BW22: 0 | BX22: 0 | BY22: 0 | BZ22: 0 | CA22: 0 | CB22: 0 | CC22: 0 | CD22: 0 | CE22: 0 | CF22: 0.09479404135 | CG22: 0 | CH22: 0.8179472743 | CI22: 0 | CJ22: 0 | CK22: 0 | CL22: 0 | CM22: 0 | CN22: 0 | CO22: 0
A23: 20 | B23: ='NSP Data'!$C23 -> 7 | C23: ='NSP Data'!$A23 -> 2007 | D23: ='NSP Data'!D23 -> 253034.65 | E23: ='NSP Data'!E23 -> 753.30521 | F23: ='NSP Data'!F23 -> 52395.194 | G23: ='NSP Data'!G23 -> 21594.179 | H23: ='NSP Data'!H23 -> 2989.3356 | I23: ='NSP Data'!I23 -> 3276.6862 | J23: ='Gen Data'!$D$36/100 -> 0.958 | K23: =('NSP Data'!$M23*(1-'Gen Data'!$G13)*G23/($G23+$H23*5))/G23 -> 1.483975029 | L23: =('NSP Data'!$M23*(1-'Gen Data'!$G13)*H23*5/(G23+H23*5))/H23 -> 7.419875143 | M23: ='NSP Data'!$M23*'Gen Data'!G13/I23 -> 7.435035949 | N23: 128782.5949 | O23: 0.9580899403 | P23: 0 | Q23: 0 | R23: 0 | S23: 0 | T23: 0 | U23: 0 | V23: 0 | W23: 0 | X23: 0 | Y23: 0 | Z23: 0 | AA23: 0 | AB23: 0 | AC23: 0 | AD23: 0 | AE23: 0 | AF23: 0 | AG23: 0 | AH23: 0 | AI23: 0 | AJ23: 0 | AK23: 0 | AL23: 0 | AM23: 0 | AN23: 0 | AO23: 0 | AP23: 0 | AQ23: 0 | AR23: 0 | AS23: 0 | AT23: 0 | AU23: 0 | AV23: 0 | AW23: 0 | AX23: 0 | AY23: 0 | AZ23: 0 | BA23: 0 | BB23: 0 | BC23: 0 | BD23: 0 | BE23: 0 | BF23: 0 | BG23: 0 | BH23: 0 | BI23: 0 | BJ23: 0 | BK23: 0 | BL23: 0 | BM23: 0 | BN23: 0 | BO23: 0 | BP23: 0 | BQ23: 0 | BR23: 0 | BS23: 0 | BT23: 0 | BU23: 0 | BV23: 0 | BW23: 0 | BX23: 0 | BY23: 0 | BZ23: 0 | CA23: 0 | CB23: 0 | CC23: 0 | CD23: 0 | CE23: 0 | CF23: 0.782827889 | CG23: 0 | CH23: 0.111827248 | CI23: 0 | CJ23: 0 | CK23: 0 | CL23: 0 | CM23: 0 | CN23: 0 | CO23: 0
A24: 21 | B24: ='NSP Data'!$C24 -> 8 | C24: ='NSP Data'!$A24 -> 2007 | D24: ='NSP Data'!D24 -> 239423.86 | E24: ='NSP Data'!E24 -> 731.99708 | F24: ='NSP Data'!F24 -> 51640.893 | G24: ='NSP Data'!G24 -> 21226.959 | H24: ='NSP Data'!H24 -> 3116.5108 | I24: ='NSP Data'!I24 -> 3296.9125 | J24: ='Gen Data'!$D$36/100 -> 0.958 | K24: =('NSP Data'!$M24*(1-'Gen Data'!$G14)*G24/($G24+$H24*5))/G24 -> 1.40566579 | L24: =('NSP Data'!$M24*(1-'Gen Data'!$G14)*H24*5/(G24+H24*5))/H24 -> 7.028328951 | M24: ='NSP Data'!$M24*'Gen Data'!G14/I24 -> 7.050945034 | N24: 124460.1975 | O24: 0.9155195401 | P24: 0 | Q24: 0 | R24: 0 | S24: 0 | T24: 0 | U24: 0 | V24: 0 | W24: 0 | X24: 0 | Y24: 0 | Z24: 0 | AA24: 0 | AB24: 0 | AC24: 0 | AD24: 0 | AE24: 0 | AF24: 0 | AG24: 0 | AH24: 0 | AI24: 0 | AJ24: 0 | AK24: 0 | AL24: 0 | AM24: 0 | AN24: 0 | AO24: 0 | AP24: 0 | AQ24: 0 | AR24: 0 | AS24: 0 | AT24: 0 | AU24: 0 | AV24: 0 | AW24: 0 | AX24: 0 | AY24: 0 | AZ24: 0 | BA24: 0 | BB24: 0 | BC24: 0 | BD24: 0 | BE24: 0 | BF24: 0 | BG24: 0 | BH24: 0 | BI24: 0 | BJ24: 0 | BK24: 0 | BL24: 0 | BM24: 0 | BN24: 0 | BO24: 0 | BP24: 0 | BQ24: 0 | BR24: 0 | BS24: 0 | BT24: 0 | BU24: 0 | BV24: 0 | BW24: 0 | BX24: 0 | BY24: 0 | BZ24: 0 | CA24: 0 | CB24: 0 | CC24: 0.4088756166 | CD24: 0 | CE24: 0 | CF24: 0.4355764284 | CG24: 0 | CH24: 0 | CI24: 0 | CJ24: 0 | CK24: 0 | CL24: 0 | CM24: 0 | CN24: 0 | CO24: 0
A25: 22 | B25: ='NSP Data'!$C25 -> 9 | C25: ='NSP Data'!$A25 -> 2007 | D25: ='NSP Data'!D25 -> 245309.24 | E25: ='NSP Data'!E25 -> 729.44895 | F25: ='NSP Data'!F25 -> 51568.452 | G25: ='NSP Data'!G25 -> 20265.721 | H25: ='NSP Data'!H25 -> 3067.8914 | I25: ='NSP Data'!I25 -> 3180.9246 | J25: ='Gen Data'!$D$36/100 -> 0.958 | K25: =('NSP Data'!$M25*(1-'Gen Data'!$G15)*G25/($G25+$H25*5))/G25 -> 1.495095727 | L25: =('NSP Data'!$M25*(1-'Gen Data'!$G15)*H25*5/(G25+H25*5))/H25 -> 7.475478634 | M25: ='NSP Data'!$M25*'Gen Data'!G15/I25 -> 7.518676337 | N25: 126552.069 | O25: 0.9502786358 | P25: 0 | Q25: 0 | R25: 0 | S25: 0 | T25: 0 | U25: 0 | V25: 0 | W25: 0 | X25: 0 | Y25: 0 | Z25: 0 | AA25: 0 | AB25: 0 | AC25: 0 | AD25: 0 | AE25: 0 | AF25: 0 | AG25: 0 | AH25: 0 | AI25: 0 | AJ25: 0 | AK25: 0 | AL25: 0 | AM25: 0 | AN25: 0 | AO25: 0 | AP25: 0 | AQ25: 0 | AR25: 0 | AS25: 0 | AT25: 0 | AU25: 0 | AV25: 0 | AW25: 0 | AX25: 0 | AY25: 0 | AZ25: 0 | BA25: 0 | BB25: 0 | BC25: 0 | BD25: 0 | BE25: 0 | BF25: 0 | BG25: 0 | BH25: 0 | BI25: 0 | BJ25: 0 | BK25: 0 | BL25: 0 | BM25: 0 | BN25: 0 | BO25: 0 | BP25: 0 | BQ25: 0 | BR25: 0 | BS25: 0 | BT25: 0 | BU25: 0 | BV25: 0 | BW25: 0 | BX25: 0 | BY25: 0 | BZ25: 0 | CA25: 0 | CB25: 0 | CC25: 0 | CD25: 0 | CE25: 0 | CF25: 0.7379519457 | CG25: 0 | CH25: 0.1293826895 | CI25: 0 | CJ25: 0 | CK25: 0 | CL25: 0 | CM25: 0 | CN25: 0 | CO25: 0
A26: 23 | B26: ='NSP Data'!$C26 -> 10 | C26: ='NSP Data'!$A26 -> 2007 | D26: ='NSP Data'!D26 -> 249169.73 | E26: ='NSP Data'!E26 -> 713.18085 | F26: ='NSP Data'!F26 -> 53501.233 | G26: ='NSP Data'!G26 -> 19506.254 | H26: ='NSP Data'!H26 -> 3188.1904 | I26: ='NSP Data'!I26 -> 3140.1194 | J26: ='Gen Data'!$D$36/100 -> 0.958 | K26: =('NSP Data'!$M26*(1-'Gen Data'!$G16)*G26/($G26+$H26*5))/G26 -> 1.440120692 | L26: =('NSP Data'!$M26*(1-'Gen Data'!$G16)*H26*5/(G26+H26*5))/H26 -> 7.200603458 | M26: ='NSP Data'!$M26*'Gen Data'!G16/I26 -> 7.303774239 | N26: 125237.1592 | O26: 0.9471667823 | P26: 0 | Q26: 0 | R26: 0 | S26: 0 | T26: 0 | U26: 0 | V26: 0 | W26: 0 | X26: 0 | Y26: 0 | Z26: 0 | AA26: 0 | AB26: 0 | AC26: 0 | AD26: 0 | AE26: 0 | AF26: 0 | AG26: 0 | AH26: 0 | AI26: 0 | AJ26: 0 | AK26: 0 | AL26: 0 | AM26: 0 | AN26: 0 | AO26: 0 | AP26: 0 | AQ26: 0 | AR26: 0 | AS26: 0 | AT26: 0 | AU26: 0 | AV26: 0 | AW26: 0 | AX26: 0 | AY26: 0 | AZ26: 0 | BA26: 0 | BB26: 0 | BC26: 0 | BD26: 0 | BE26: 0 | BF26: 0 | BG26: 0 | BH26: 0 | BI26: 0 | BJ26: 0 | BK26: 0 | BL26: 0 | BM26: 0 | BN26: 0 | BO26: 0 | BP26: 0 | BQ26: 0 | BR26: 0 | BS26: 0 | BT26: 0 | BU26: 0 | BV26: 0 | BW26: 0 | BX26: 0 | BY26: 0 | BZ26: 0 | CA26: 0 | CB26: 0 | CC26: 0 | CD26: 0 | CE26: 0 | CF26: 0.07048873081 | CG26: 0 | CH26: 0.8103090825 | CI26: 0 | CJ26: 0 | CK26: 0 | CL26: 0 | CM26: 0 | CN26: 0 | CO26: 0
A27: 24 | B27: ='NSP Data'!$C27 -> 11 | C27: ='NSP Data'!$A27 -> 2007 | D27: ='NSP Data'!D27 -> 232148.07 | E27: ='NSP Data'!E27 -> 705.29297 | F27: ='NSP Data'!F27 -> 51460.765 | G27: ='NSP Data'!G27 -> 17920.861 | H27: ='NSP Data'!H27 -> 3142.841 | I27: ='NSP Data'!I27 -> 3104.2629 | J27: ='Gen Data'!$D$36/100 -> 0.958 | K27: =('NSP Data'!$M27*(1-'Gen Data'!$G17)*G27/($G27+$H27*5))/G27 -> 1.45499316 | L27: =('NSP Data'!$M27*(1-'Gen Data'!$G17)*H27*5/(G27+H27*5))/H27 -> 7.274965799 | M27: ='NSP Data'!$M27*'Gen Data'!G17/I27 -> 7.082838583 | N27: 120225.1969 | O27: 0.9319723709 | P27: 0 | Q27: 0 | R27: 0 | S27: 0 | T27: 0 | U27: 0 | V27: 0 | W27: 0 | X27: 0 | Y27: 0 | Z27: 0 | AA27: 0 | AB27: 0 | AC27: 0 | AD27: 0 | AE27: 0 | AF27: 0 | AG27: 0 | AH27: 0 | AI27: 0 | AJ27: 0 | AK27: 0 | AL27: 0 | AM27: 0 | AN27: 0 | AO27: 0 | AP27: 0 | AQ27: 0 | AR27: 0 | AS27: 0 | AT27: 0 | AU27: 0 | AV27: 0 | AW27: 0 | AX27: 0 | AY27: 0 | AZ27: 0 | BA27: 0 | BB27: 0 | BC27: 0 | BD27: 0 | BE27: 0 | BF27: 0 | BG27: 0 | BH27: 0 | BI27: 0 | BJ27: 0 | BK27: 0 | BL27: 0 | BM27: 0 | BN27: 0 | BO27: 0 | BP27: 0 | BQ27: 0 | BR27: 0 | BS27: 0 | BT27: 0 | BU27: 0 | BV27: 0 | BW27: 0 | BX27: 0 | BY27: 0 | BZ27: 0 | CA27: 0 | CB27: 0 | CC27: 0.2739698791 | CD27: 0 | CE27: 0 | CF27: 0.5454519188 | CG27: 0 | CH27: 0 | CI27: 0 | CJ27: 0 | CK27: 0 | CL27: 0 | CM27: 0 | CN27: 0 | CO27: 0
A28: 25 | B28: ='NSP Data'!$C28 -> 12 | C28: ='NSP Data'!$A28 -> 2007 | D28: ='NSP Data'!D28 -> 237722.39 | E28: ='NSP Data'!E28 -> 699.72629 | F28: ='NSP Data'!F28 -> 52417.448 | G28: ='NSP Data'!G28 -> 17133.712 | H28: ='NSP Data'!H28 -> 3261.0225 | I28: ='NSP Data'!I28 -> 3104.7474 | J28: ='Gen Data'!$D$36/100 -> 0.958 | K28: =('NSP Data'!$M28*(1-'Gen Data'!$G18)*G28/($G28+$H28*5))/G28 -> 1.434213497 | L28: =('NSP Data'!$M28*(1-'Gen Data'!$G18)*H28*5/(G28+H28*5))/H28 -> 7.171067486 | M28: ='NSP Data'!$M28*'Gen Data'!G18/I28 -> 6.939866854 | N28: 119720.8622 | O28: 0.9392755853 | P28: 0 | Q28: 0 | R28: 0 | S28: 0 | T28: 0 | U28: 0 | V28: 0 | W28: 0 | X28: 0 | Y28: 0 | Z28: 0 | AA28: 0 | AB28: 0 | AC28: 0 | AD28: 0 | AE28: 0 | AF28: 0 | AG28: 0 | AH28: 0 | AI28: 0 | AJ28: 0 | AK28: 0 | AL28: 0 | AM28: 0 | AN28: 0 | AO28: 0 | AP28: 0 | AQ28: 0 | AR28: 0 | AS28: 0 | AT28: 0 | AU28: 0 | AV28: 0 | AW28: 0 | AX28: 0 | AY28: 0 | AZ28: 0 | BA28: 0 | BB28: 0 | BC28: 0 | BD28: 0 | BE28: 0 | BF28: 0 | BG28: 0 | BH28: 0 | BI28: 0 | BJ28: 0 | BK28: 0 | BL28: 0 | BM28: 0 | BN28: 0 | BO28: 0 | BP28: 0 | BQ28: 0 | BR28: 0 | BS28: 0 | BT28: 0 | BU28: 0 | BV28: 0 | BW28: 0 | BX28: 0 | BY28: 0 | BZ28: 0 | CA28: 0 | CB28: 0 | CC28: 0 | CD28: 0 | CE28: 0 | CF28: 0.5398389511 | CG28: 0 | CH28: 0.300622938 | CI28: 0 | CJ28: 0 | CK28: 0 | CL28: 0 | CM28: 0 | CN28: 0 | CO28: 0
A29: 26 | B29: ='NSP Data'!$C29 -> 13 | C29: ='NSP Data'!$A29 -> 2007 | D29: ='NSP Data'!D29 -> 238862.1 | E29: ='NSP Data'!E29 -> 699.68506 | F29: ='NSP Data'!F29 -> 54760.035 | G29: ='NSP Data'!G29 -> 16369.416 | H29: ='NSP Data'!H29 -> 3129.7906 | I29: ='NSP Data'!I29 -> 3146.517 | J29: ='Gen Data'!$D$36/100 -> 0.958 | K29: =('NSP Data'!$M29*(1-'Gen Data'!$G19)*G29/($G29+$H29*5))/G29 -> 1.509019613 | L29: =('NSP Data'!$M29*(1-'Gen Data'!$G19)*H29*5/(G29+H29*5))/H29 -> 7.545098064 | M29: ='NSP Data'!$M29*'Gen Data'!G19/I29 -> 6.89884854 | N29: 122483.8045 | O29: 0.9428155869 | P29: 0 | Q29: 0 | R29: 0 | S29: 0 | T29: 0 | U29: 0 | V29: 0 | W29: 0 | X29: 0 | Y29: 0 | Z29: 0 | AA29: 0 | AB29: 0 | AC29: 0 | AD29: 0 | AE29: 0 | AF29: 0 | AG29: 0 | AH29: 0 | AI29: 0 | AJ29: 0 | AK29: 0 | AL29: 0 | AM29: 0 | AN29: 0 | AO29: 0 | AP29: 0 | AQ29: 0 | AR29: 0 | AS29: 0 | AT29: 0 | AU29: 0 | AV29: 0 | AW29: 0 | AX29: 0 | AY29: 0 | AZ29: 0 | BA29: 0 | BB29: 0 | BC29: 0 | BD29: 0 | BE29: 0 | BF29: 0 | BG29: 0 | BH29: 0 | BI29: 0 | BJ29: 0 | BK29: 0 | BL29: 0 | BM29: 0 | BN29: 0 | BO29: 0 | BP29: 0 | BQ29: 0 | BR29: 0 | BS29: 0 | BT29: 0 | BU29: 0 | BV29: 0 | BW29: 0 | BX29: 0 | BY29: 0 | BZ29: 0 | CA29: 0 | CB29: 0 | CC29: 0 | CD29: 0 | CE29: 0 | CF29: 0.4593176026 | CG29: 0 | CH29: 0.3851509069 | CI29: 0 | CJ29: 0 | CK29: 0 | CL29: 0 | CM29: 0 | CN29: 0 | CO29: 0
A30: 27 | B30: ='NSP Data'!$C30 -> 1 | C30: ='NSP Data'!$A30 -> 2008 | D30: ='NSP Data'!D30 -> 268403.87 | E30: ='NSP Data'!E30 -> 819.74343 | F30: ='NSP Data'!F30 -> 48451.247 | G30: ='NSP Data'!G30 -> 27353.877 | H30: ='NSP Data'!H30 -> 3021.0841 | I30: ='NSP Data'!I30 -> 3276.2424 | J30: ='Gen Data'!$E$36/100 -> 1 | K30: =('NSP Data'!$M30*(1-'Gen Data'!$G7)*G30/($G30+$H30*5))/G30 -> 1.433939343 | L30: =('NSP Data'!$M30*(1-'Gen Data'!$G7)*H30*5/(G30+H30*5))/H30 -> 7.169696715 | M30: ='NSP Data'!$M30*'Gen Data'!G7/I30 -> 8.34910959 | N30: 136689.011 | O30: 0.9884764035 | P30: 0 | Q30: 0 | R30: 0 | S30: 0 | T30: 0 | U30: 0 | V30: 0 | W30: 0 | X30: 0 | Y30: 0 | Z30: 0 | AA30: 0 | AB30: 0 | AC30: 0 | AD30: 0 | AE30: 0 | AF30: 0 | AG30: 0 | AH30: 0 | AI30: 0 | AJ30: 0 | AK30: 0 | AL30: 0 | AM30: 0 | AN30: 0 | AO30: 0 | AP30: 0 | AQ30: 0 | AR30: 0 | AS30: 0 | AT30: 0 | AU30: 0 | AV30: 0 | AW30: 0 | AX30: 0 | AY30: 0 | AZ30: 0 | BA30: 0 | BB30: 0 | BC30: 0 | BD30: 0 | BE30: 0 | BF30: 0 | BG30: 0 | BH30: 0 | BI30: 0 | BJ30: 0 | BK30: 0 | BL30: 0 | BM30: 0 | BN30: 0 | BO30: 0 | BP30: 0 | BQ30: 0 | BR30: 0 | BS30: 0 | BT30: 0 | BU30: 0 | BV30: 0 | BW30: 0 | BX30: 0 | BY30: 0 | BZ30: 0 | CA30: 0 | CB30: 0 | CC30: 0.4348836326 | CD30: 0 | CE30: 0 | CF30: 0.5119024939 | CG30: 0 | CH30: 0 | CI30: 0 | CJ30: 0 | CK30: 0 | CL30: 0 | CM30: 0 | CN30: 0 | CO30: 0
A31: 28 | B31: ='NSP Data'!$C31 -> 2 | C31: ='NSP Data'!$A31 -> 2008 | D31: ='NSP Data'!D31 -> 268591.24 | E31: ='NSP Data'!E31 -> 810.46552 | F31: ='NSP Data'!F31 -> 50885.221 | G31: ='NSP Data'!G31 -> 27780.927 | H31: ='NSP Data'!H31 -> 3036.5228 | I31: ='NSP Data'!I31 -> 3285.869 | J31: ='Gen Data'!$E$36/100 -> 1 | K31: =('NSP Data'!$M31*(1-'Gen Data'!$G8)*G31/($G31+$H31*5))/G31 -> 1.456474977 | L31: =('NSP Data'!$M31*(1-'Gen Data'!$G8)*H31*5/(G31+H31*5))/H31 -> 7.282374883 | M31: ='NSP Data'!$M31*'Gen Data'!G8/I31 -> 8.555895147 | N31: 141574.094 | O31: 0.9610304161 | P31: 0 | Q31: 0 | R31: 0 | S31: 0 | T31: 0 | U31: 0 | V31: 0 | W31: 0 | X31: 0 | Y31: 0 | Z31: 0 | AA31: 0 | AB31: 0 | AC31: 0 | AD31: 0 | AE31: 0 | AF31: 0 | AG31: 0 | AH31: 0 | AI31: 0 | AJ31: 0 | AK31: 0 | AL31: 0 | AM31: 0 | AN31: 0 | AO31: 0 | AP31: 0 | AQ31: 0 | AR31: 0 | AS31: 0 | AT31: 0 | AU31: 0 | AV31: 0 | AW31: 0 | AX31: 0 | AY31: 0 | AZ31: 0 | BA31: 0 | BB31: 0 | BC31: 0 | BD31: 0 | BE31: 0 | BF31: 0 | BG31: 0 | BH31: 0 | BI31: 0 | BJ31: 0 | BK31: 0 | BL31: 0 | BM31: 0 | BN31: 0 | BO31: 0 | BP31: 0 | BQ31: 0 | BR31: 0 | BS31: 0 | BT31: 0 | BU31: 0 | BV31: 0 | BW31: 0 | BX31: 0 | BY31: 0 | BZ31: 0 | CA31: 0 | CB31: 0 | CC31: 0.1646601212 | CD31: 0 | CE31: 0 | CF31: 0.7841819592 | CG31: 0 | CH31: 0 | CI31: 0 | CJ31: 0 | CK31: 0 | CL31: 0 | CM31: 0 | CN31: 0 | CO31: 0
A32: 29 | B32: ='NSP Data'!$C32 -> 3 | C32: ='NSP Data'!$A32 -> 2008 | D32: ='NSP Data'!D32 -> 258390.32 | E32: ='NSP Data'!E32 -> 801.6085 | F32: ='NSP Data'!F32 -> 51819.628 | G32: ='NSP Data'!G32 -> 24889.955 | H32: ='NSP Data'!H32 -> 3136.4438 | I32: ='NSP Data'!I32 -> 3190.1691 | J32: ='Gen Data'!$E$36/100 -> 1 | K32: =('NSP Data'!$M32*(1-'Gen Data'!$G9)*G32/($G32+$H32*5))/G32 -> 1.45496711 | L32: =('NSP Data'!$M32*(1-'Gen Data'!$G9)*H32*5/(G32+H32*5))/H32 -> 7.274835552 | M32: ='NSP Data'!$M32*'Gen Data'!G9/I32 -> 8.313432109 | N32: 137372.061 | O32: 0.9594283144 | P32: 0 | Q32: 0 | R32: 0 | S32: 0 | T32: 0 | U32: 0 | V32: 0 | W32: 0 | X32: 0 | Y32: 0 | Z32: 0 | AA32: 0 | AB32: 0 | AC32: 0 | AD32: 0 | AE32: 0 | AF32: 0 | AG32: 0 | AH32: 0 | AI32: 0 | AJ32: 0 | AK32: 0 | AL32: 0 | AM32: 0 | AN32: 0 | AO32: 0 | AP32: 0 | AQ32: 0 | AR32: 0 | AS32: 0 | AT32: 0 | AU32: 0 | AV32: 0 | AW32: 0 | AX32: 0 | AY32: 0 | AZ32: 0 | BA32: 0 | BB32: 0 | BC32: 0 | BD32: 0 | BE32: 0 | BF32: 0 | BG32: 0 | BH32: 0 | BI32: 0 | BJ32: 0 | BK32: 0 | BL32: 0 | BM32: 0 | BN32: 0 | BO32: 0 | BP32: 0 | BQ32: 0 | BR32: 0 | BS32: 0 | BT32: 0 | BU32: 0 | BV32: 0 | BW32: 0 | BX32: 0 | BY32: 0 | BZ32: 0 | CA32: 0 | CB32: 0 | CC32: 0.7605301462 | CD32: 0 | CE32: 0 | CF32: 0.1491705932 | CG32: 0 | CH32: 0 | CI32: 0 | CJ32: 0 | CK32: 0 | CL32: 0 | CM32: 0 | CN32: 0 | CO32: 0
A33: 30 | B33: ='NSP Data'!$C33 -> 4 | C33: ='NSP Data'!$A33 -> 2008 | D33: ='NSP Data'!D33 -> 263627.69 | E33: ='NSP Data'!E33 -> 791.18418 | F33: ='NSP Data'!F33 -> 50308.349 | G33: ='NSP Data'!G33 -> 25573.936 | H33: ='NSP Data'!H33 -> 3070.4698 | I33: ='NSP Data'!I33 -> 3207.064 | J33: ='Gen Data'!$E$36/100 -> 1 | K33: =('NSP Data'!$M33*(1-'Gen Data'!$G10)*G33/($G33+$H33*5))/G33 -> 1.425596146 | L33: =('NSP Data'!$M33*(1-'Gen Data'!$G10)*H33*5/(G33+H33*5))/H33 -> 7.127980728 | M33: ='NSP Data'!$M33*'Gen Data'!G10/I33 -> 8.173419941 | N33: 134865.384 | O33: 0.969238196 | P33: 0 | Q33: 0 | R33: 0 | S33: 0 | T33: 0 | U33: 0 | V33: 0 | W33: 0 | X33: 0 | Y33: 0 | Z33: 0 | AA33: 0 | AB33: 0 | AC33: 0 | AD33: 0 | AE33: 0 | AF33: 0 | AG33: 0 | AH33: 0 | AI33: 0 | AJ33: 0 | AK33: 0 | AL33: 0 | AM33: 0 | AN33: 0 | AO33: 0 | AP33: 0 | AQ33: 0 | AR33: 0 | AS33: 0 | AT33: 0 | AU33: 0 | AV33: 0 | AW33: 0 | AX33: 0 | AY33: 0 | AZ33: 0 | BA33: 0 | BB33: 0 | BC33: 0 | BD33: 0 | BE33: 0 | BF33: 0 | BG33: 0 | BH33: 0 | BI33: 0 | BJ33: 0 | BK33: 0 | BL33: 0 | BM33: 0 | BN33: 0 | BO33: 0 | BP33: 0 | BQ33: 0 | BR33: 0 | BS33: 0 | BT33: 0 | BU33: 0 | BV33: 0 | BW33: 0 | BX33: 0 | BY33: 0 | BZ33: 0 | CA33: 0 | CB33: 0 | CC33: 0.04341159255 | CD33: 0 | CE33: 0 | CF33: 0.8885054875 | CG33: 0 | CH33: 0 | CI33: 0 | CJ33: 0 | CK33: 0 | CL33: 0 | CM33: 0 | CN33: 0 | CO33: 0
A34: 31 | B34: ='NSP Data'!$C34 -> 5 | C34: ='NSP Data'!$A34 -> 2008 | D34: ='NSP Data'!D34 -> 256918.67 | E34: ='NSP Data'!E34 -> 781.9101 | F34: ='NSP Data'!F34 -> 50730.18 | G34: ='NSP Data'!G34 -> 24492.066 | H34: ='NSP Data'!H34 -> 3171.6396 | I34: ='NSP Data'!I34 -> 3278.29 | J34: ='Gen Data'!$E$36/100 -> 1 | K34: =('NSP Data'!$M34*(1-'Gen Data'!$G11)*G34/($G34+$H34*5))/G34 -> 1.501354918 | L34: =('NSP Data'!$M34*(1-'Gen Data'!$G11)*H34*5/(G34+H34*5))/H34 -> 7.506774591 | M34: ='NSP Data'!$M34*'Gen Data'!G11/I34 -> 8.302234302 | N34: 138527.379 | O34: 0.9506644041 | P34: 0 | Q34: 0 | R34: 0 | S34: 0 | T34: 0 | U34: 0 | V34: 0 | W34: 0 | X34: 0 | Y34: 0 | Z34: 0 | AA34: 0 | AB34: 0 | AC34: 0 | AD34: 0 | AE34: 0 | AF34: 0 | AG34: 0 | AH34: 0 | AI34: 0 | AJ34: 0 | AK34: 0 | AL34: 0 | AM34: 0 | AN34: 0 | AO34: 0 | AP34: 0 | AQ34: 0 | AR34: 0 | AS34: 0 | AT34: 0 | AU34: 0 | AV34: 0 | AW34: 0 | AX34: 0 | AY34: 0 | AZ34: 0 | BA34: 0 | BB34: 0 | BC34: 0 | BD34: 0 | BE34: 0 | BF34: 0 | BG34: 0 | BH34: 0 | BI34: 0 | BJ34: 0 | BK34: 0 | BL34: 0 | BM34: 0 | BN34: 0 | BO34: 0 | BP34: 0 | BQ34: 0 | BR34: 0 | BS34: 0 | BT34: 0 | BU34: 0 | BV34: 0 | BW34: 0 | BX34: 0 | BY34: 0 | BZ34: 0 | CA34: 0 | CB34: 0 | CC34: 0.340585919 | CD34: 0 | CE34: 0 | CF34: 0.5660768291 | CG34: 0 | CH34: 0 | CI34: 0 | CJ34: 0 | CK34: 0 | CL34: 0 | CM34: 0 | CN34: 0 | CO34: 0
A35: 32 | B35: ='NSP Data'!$C35 -> 6 | C35: ='NSP Data'!$A35 -> 2008 | D35: ='NSP Data'!D35 -> 261472.76 | E35: ='NSP Data'!E35 -> 759.48901 | F35: ='NSP Data'!F35 -> 51705.564 | G35: ='NSP Data'!G35 -> 22119.295 | H35: ='NSP Data'!H35 -> 3208.0681 | I35: ='NSP Data'!I35 -> 3325.9454 | J35: ='Gen Data'!$E$36/100 -> 1 | K35: =('NSP Data'!$M35*(1-'Gen Data'!$G12)*G35/($G35+$H35*5))/G35 -> 1.493521074 | L35: =('NSP Data'!$M35*(1-'Gen Data'!$G12)*H35*5/(G35+H35*5))/H35 -> 7.467605371 | M35: ='NSP Data'!$M35*'Gen Data'!G12/I35 -> 7.698623134 | N35: 134302.984 | O35: 0.9688119868 | P35: 0 | Q35: 0 | R35: 0 | S35: 0 | T35: 0 | U35: 0 | V35: 0 | W35: 0 | X35: 0 | Y35: 0 | Z35: 0 | AA35: 0 | AB35: 0 | AC35: 0 | AD35: 0 | AE35: 0 | AF35: 0 | AG35: 0 | AH35: 0 | AI35: 0 | AJ35: 0 | AK35: 0 | AL35: 0 | AM35: 0 | AN35: 0 | AO35: 0 | AP35: 0 | AQ35: 0 | AR35: 0 | AS35: 0 | AT35: 0 | AU35: 0 | AV35: 0 | AW35: 0 | AX35: 0 | AY35: 0 | AZ35: 0 | BA35: 0 | BB35: 0 | BC35: 0 | BD35: 0 | BE35: 0 | BF35: 0 | BG35: 0 | BH35: 0 | BI35: 0 | BJ35: 0 | BK35: 0 | BL35: 0 | BM35: 0 | BN35: 0 | BO35: 0 | BP35: 0 | BQ35: 0 | BR35: 0 | BS35: 0 | BT35: 0 | BU35: 0 | BV35: 0 | BW35: 0 | BX35: 0 | BY35: 0 | BZ35: 0 | CA35: 0 | CB35: 0 | CC35: 0 | CD35: 0 | CE35: 0 | CF35: 0.345478046 | CG35: 0 | CH35: 0.5788846061 | CI35: 0 | CJ35: 0 | CK35: 0 | CL35: 0 | CM35: 0 | CN35: 0 | CO35: 0
A36: 33 | B36: ='NSP Data'!$C36 -> 7 | C36: ='NSP Data'!$A36 -> 2008 | D36: ='NSP Data'!D36 -> 260295.25 | E36: ='NSP Data'!E36 -> 772.02289 | F36: ='NSP Data'!F36 -> 52306.978 | G36: ='NSP Data'!G36 -> 21589.511 | H36: ='NSP Data'!H36 -> 3146.3179 | I36: ='NSP Data'!I36 -> 3320.6909 | J36: ='Gen Data'!$E$36/100 -> 1 | K36: =('NSP Data'!$M36*(1-'Gen Data'!$G13)*G36/($G36+$H36*5))/G36 -> 1.585770107 | L36: =('NSP Data'!$M36*(1-'Gen Data'!$G13)*H36*5/(G36+H36*5))/H36 -> 7.928850533 | M36: ='NSP Data'!$M36*'Gen Data'!G13/I36 -> 8.007165762 | N36: 138078.986 | O36: 0.9750921899 | P36: 0 | Q36: 0 | R36: 0 | S36: 0 | T36: 0 | U36: 0 | V36: 0 | W36: 0 | X36: 0 | Y36: 0 | Z36: 0 | AA36: 0 | AB36: 0 | AC36: 0 | AD36: 0 | AE36: 0 | AF36: 0 | AG36: 0 | AH36: 0 | AI36: 0 | AJ36: 0 | AK36: 0 | AL36: 0 | AM36: 0 | AN36: 0 | AO36: 0 | AP36: 0 | AQ36: 0 | AR36: 0 | AS36: 0 | AT36: 0 | AU36: 0 | AV36: 0 | AW36: 0 | AX36: 0 | AY36: 0 | AZ36: 0 | BA36: 0 | BB36: 0 | BC36: 0 | BD36: 0 | BE36: 0 | BF36: 0 | BG36: 0 | BH36: 0 | BI36: 0 | BJ36: 0 | BK36: 0 | BL36: 0 | BM36: 0 | BN36: 0 | BO36: 0 | BP36: 0 | BQ36: 0 | BR36: 0 | BS36: 0 | BT36: 0 | BU36: 0 | BV36: 0 | BW36: 0 | BX36: 0 | BY36: 0 | BZ36: 0 | CA36: 0 | CB36: 0 | CC36: 0 | CD36: 0 | CE36: 0 | CF36: 0.7343733056 | CG36: 0 | CH36: 0.185933697 | CI36: 0 | CJ36: 0 | CK36: 0 | CL36: 0 | CM36: 0 | CN36: 0 | CO36: 0
A37: 34 | B37: ='NSP Data'!$C37 -> 8 | C37: ='NSP Data'!$A37 -> 2008 | D37: ='NSP Data'!D37 -> 243726.21 | E37: ='NSP Data'!E37 -> 745.43717 | F37: ='NSP Data'!F37 -> 51950.323 | G37: ='NSP Data'!G37 -> 21042.348 | H37: ='NSP Data'!H37 -> 3287.1454 | I37: ='NSP Data'!I37 -> 3294.988 | J37: ='Gen Data'!$E$36/100 -> 1 | K37: =('NSP Data'!$M37*(1-'Gen Data'!$G14)*G37/($G37+$H37*5))/G37 -> 1.510521032 | L37: =('NSP Data'!$M37*(1-'Gen Data'!$G14)*H37*5/(G37+H37*5))/H37 -> 7.55260516 | M37: ='NSP Data'!$M37*'Gen Data'!G14/I37 -> 7.719031593 | N37: 133995.86 | O37: 0.9241822359 | P37: 0 | Q37: 0 | R37: 0 | S37: 0 | T37: 0 | U37: 0 | V37: 0 | W37: 0 | X37: 0 | Y37: 0 | Z37: 0 | AA37: 0 | AB37: 0 | AC37: 0 | AD37: 0 | AE37: 0 | AF37: 0 | AG37: 0 | AH37: 0 | AI37: 0 | AJ37: 0 | AK37: 0 | AL37: 0 | AM37: 0 | AN37: 0 | AO37: 0 | AP37: 0 | AQ37: 0 | AR37: 0 | AS37: 0 | AT37: 0 | AU37: 0 | AV37: 0 | AW37: 0 | AX37: 0 | AY37: 0 | AZ37: 0 | BA37: 0 | BB37: 0 | BC37: 0 | BD37: 0 | BE37: 0 | BF37: 0 | BG37: 0 | BH37: 0 | BI37: 0 | BJ37: 0 | BK37: 0 | BL37: 0 | BM37: 0 | BN37: 0 | BO37: 0 | BP37: 0 | BQ37: 0 | BR37: 0 | BS37: 0 | BT37: 0 | BU37: 0 | BV37: 0 | BW37: 0 | BX37: 0 | BY37: 0 | BZ37: 0 | CA37: 0 | CB37: 0 | CC37: 0.4240886527 | CD37: 0 | CE37: 0 | CF37: 0.4354972936 | CG37: 0 | CH37: 0 | CI37: 0 | CJ37: 0 | CK37: 0 | CL37: 0 | CM37: 0 | CN37: 0 | CO37: 0
A38: 35 | B38: ='NSP Data'!$C38 -> 9 | C38: ='NSP Data'!$A38 -> 2008 | D38: ='NSP Data'!D38 -> 248257.85 | E38: ='NSP Data'!E38 -> 738.31812 | F38: ='NSP Data'!F38 -> 51989.089 | G38: ='NSP Data'!G38 -> 20309.737 | H38: ='NSP Data'!H38 -> 3241.6437 | I38: ='NSP Data'!I38 -> 3222.7898 | J38: ='Gen Data'!$E$36/100 -> 1 | K38: =('NSP Data'!$M38*(1-'Gen Data'!$G15)*G38/($G38+$H38*5))/G38 -> 1.559861082 | L38: =('NSP Data'!$M38*(1-'Gen Data'!$G15)*H38*5/(G38+H38*5))/H38 -> 7.79930541 | M38: ='NSP Data'!$M38*'Gen Data'!G15/I38 -> 7.940959854 | N38: 134544.071 | O38: 0.9460983672 | P38: 0 | Q38: 0 | R38: 0 | S38: 0 | T38: 0 | U38: 0 | V38: 0 | W38: 0 | X38: 0 | Y38: 0 | Z38: 0 | AA38: 0 | AB38: 0 | AC38: 0 | AD38: 0 | AE38: 0 | AF38: 0 | AG38: 0 | AH38: 0 | AI38: 0 | AJ38: 0 | AK38: 0 | AL38: 0 | AM38: 0 | AN38: 0 | AO38: 0 | AP38: 0 | AQ38: 0 | AR38: 0 | AS38: 0 | AT38: 0 | AU38: 0 | AV38: 0 | AW38: 0 | AX38: 0 | AY38: 0 | AZ38: 0 | BA38: 0 | BB38: 0 | BC38: 0 | BD38: 0 | BE38: 0 | BF38: 0 | BG38: 0 | BH38: 0 | BI38: 0 | BJ38: 0 | BK38: 0 | BL38: 0 | BM38: 0 | BN38: 0 | BO38: 0 | BP38: 0 | BQ38: 0 | BR38: 0 | BS38: 0 | BT38: 0 | BU38: 0 | BV38: 0 | BW38: 0 | BX38: 0 | BY38: 0 | BZ38: 0 | CA38: 0 | CB38: 0 | CC38: 0 | CD38: 0 | CE38: 0 | CF38: 0.7492991661 | CG38: 0 | CH38: 0.1284614859 | CI38: 0 | CJ38: 0 | CK38: 0 | CL38: 0 | CM38: 0 | CN38: 0 | CO38: 0
A39: 36 | B39: ='NSP Data'!$C39 -> 10 | C39: ='NSP Data'!$A39 -> 2008 | D39: ='NSP Data'!D39 -> 254965.76 | E39: ='NSP Data'!E39 -> 734.47263 | F39: ='NSP Data'!F39 -> 53388.495 | G39: ='NSP Data'!G39 -> 19642.532 | H39: ='NSP Data'!H39 -> 3356.2361 | I39: ='NSP Data'!I39 -> 3126.076 | J39: ='Gen Data'!$E$36/100 -> 1 | K39: =('NSP Data'!$M39*(1-'Gen Data'!$G16)*G39/($G39+$H39*5))/G39 -> 1.519333874 | L39: =('NSP Data'!$M39*(1-'Gen Data'!$G16)*H39*5/(G39+H39*5))/H39 -> 7.596669368 | M39: ='NSP Data'!$M39*'Gen Data'!G16/I39 -> 7.953357436 | N39: 133591.075 | O39: 0.9616530237 | P39: 0 | Q39: 0 | R39: 0 | S39: 0 | T39: 0 | U39: 0 | V39: 0 | W39: 0 | X39: 0 | Y39: 0 | Z39: 0 | AA39: 0 | AB39: 0 | AC39: 0 | AD39: 0 | AE39: 0 | AF39: 0 | AG39: 0 | AH39: 0 | AI39: 0 | AJ39: 0 | AK39: 0 | AL39: 0 | AM39: 0 | AN39: 0 | AO39: 0 | AP39: 0 | AQ39: 0 | AR39: 0 | AS39: 0 | AT39: 0 | AU39: 0 | AV39: 0 | AW39: 0 | AX39: 0 | AY39: 0 | AZ39: 0 | BA39: 0 | BB39: 0 | BC39: 0 | BD39: 0 | BE39: 0 | BF39: 0 | BG39: 0 | BH39: 0 | BI39: 0 | BJ39: 0 | BK39: 0 | BL39: 0 | BM39: 0 | BN39: 0 | BO39: 0 | BP39: 0 | BQ39: 0 | BR39: 0 | BS39: 0 | BT39: 0 | BU39: 0 | BV39: 0 | BW39: 0 | BX39: 0 | BY39: 0 | BZ39: 0 | CA39: 0 | CB39: 0 | CC39: 0 | CD39: 0 | CE39: 0 | CF39: 0.1872072507 | CG39: 0 | CH39: 0.7141106956 | CI39: 0 | CJ39: 0 | CK39: 0 | CL39: 0 | CM39: 0 | CN39: 0 | CO39: 0
A40: 37 | B40: ='NSP Data'!$C40 -> 11 | C40: ='NSP Data'!$A40 -> 2008 | D40: ='NSP Data'!D40 -> 239411.29 | E40: ='NSP Data'!E40 -> 726.46905 | F40: ='NSP Data'!F40 -> 51362.068 | G40: ='NSP Data'!G40 -> 17975.876 | H40: ='NSP Data'!H40 -> 3303.987 | I40: ='NSP Data'!I40 -> 3123.888 | J40: ='Gen Data'!$E$36/100 -> 1 | K40: =('NSP Data'!$M40*(1-'Gen Data'!$G17)*G40/($G40+$H40*5))/G40 -> 1.565464559 | L40: =('NSP Data'!$M40*(1-'Gen Data'!$G17)*H40*5/(G40+H40*5))/H40 -> 7.827322796 | M40: ='NSP Data'!$M40*'Gen Data'!G17/I40 -> 7.766525061 | N40: 129625.792 | O40: 0.9518938741 | P40: 0 | Q40: 0 | R40: 0 | S40: 0 | T40: 0 | U40: 0 | V40: 0 | W40: 0 | X40: 0 | Y40: 0 | Z40: 0 | AA40: 0 | AB40: 0 | AC40: 0 | AD40: 0 | AE40: 0 | AF40: 0 | AG40: 0 | AH40: 0 | AI40: 0 | AJ40: 0 | AK40: 0 | AL40: 0 | AM40: 0 | AN40: 0 | AO40: 0 | AP40: 0 | AQ40: 0 | AR40: 0 | AS40: 0 | AT40: 0 | AU40: 0 | AV40: 0 | AW40: 0 | AX40: 0 | AY40: 0 | AZ40: 0 | BA40: 0 | BB40: 0 | BC40: 0 | BD40: 0 | BE40: 0 | BF40: 0 | BG40: 0 | BH40: 0 | BI40: 0 | BJ40: 0 | BK40: 0 | BL40: 0 | BM40: 0 | BN40: 0 | BO40: 0 | BP40: 0 | BQ40: 0 | BR40: 0 | BS40: 0 | BT40: 0 | BU40: 0 | BV40: 0 | BW40: 0 | BX40: 0 | BY40: 0 | BZ40: 0 | CA40: 0 | CB40: 0 | CC40: 0.2580865768 | CD40: 0 | CE40: 0 | CF40: 0.5870985883 | CG40: 0 | CH40: 0 | CI40: 0 | CJ40: 0 | CK40: 0 | CL40: 0 | CM40: 0 | CN40: 0 | CO40: 0
A41: 38 | B41: ='NSP Data'!$C41 -> 12 | C41: ='NSP Data'!$A41 -> 2008 | D41: ='NSP Data'!D41 -> 245602.84 | E41: ='NSP Data'!E41 -> 712.45464 | F41: ='NSP Data'!F41 -> 52553.93 | G41: ='NSP Data'!G41 -> 17449.921 | H41: ='NSP Data'!H41 -> 3510.2047 | I41: ='NSP Data'!I41 -> 3129.3352 | J41: ='Gen Data'!$E$36/100 -> 1 | K41: =('NSP Data'!$M41*(1-'Gen Data'!$G18)*G41/($G41+$H41*5))/G41 -> 1.536788432 | L41: =('NSP Data'!$M41*(1-'Gen Data'!$G18)*H41*5/(G41+H41*5))/H41 -> 7.683942158 | M41: ='NSP Data'!$M41*'Gen Data'!G18/I41 -> 7.722436829 | N41: 130509.07 | O41: 0.9489833953 | P41: 0 | Q41: 0 | R41: 0 | S41: 0 | T41: 0 | U41: 0 | V41: 0 | W41: 0 | X41: 0 | Y41: 0 | Z41: 0 | AA41: 0 | AB41: 0 | AC41: 0 | AD41: 0 | AE41: 0 | AF41: 0 | AG41: 0 | AH41: 0 | AI41: 0 | AJ41: 0 | AK41: 0 | AL41: 0 | AM41: 0 | AN41: 0 | AO41: 0 | AP41: 0 | AQ41: 0 | AR41: 0 | AS41: 0 | AT41: 0 | AU41: 0 | AV41: 0 | AW41: 0 | AX41: 0 | AY41: 0 | AZ41: 0 | BA41: 0 | BB41: 0 | BC41: 0 | BD41: 0 | BE41: 0 | BF41: 0 | BG41: 0 | BH41: 0 | BI41: 0 | BJ41: 0 | BK41: 0 | BL41: 0 | BM41: 0 | BN41: 0 | BO41: 0 | BP41: 0 | BQ41: 0 | BR41: 0 | BS41: 0 | BT41: 0 | BU41: 0 | BV41: 0 | BW41: 0 | BX41: 0 | BY41: 0 | BZ41: 0 | CA41: 0 | CB41: 0 | CC41: 0 | CD41: 0 | CE41: 0 | CF41: 0.3015614249 | CG41: 0 | CH41: 0.5666913393 | CI41: 0 | CJ41: 0 | CK41: 0 | CL41: 0 | CM41: 0 | CN41: 0 | CO41: 0
A42: 39 | B42: ='NSP Data'!$C42 -> 13 | C42: ='NSP Data'!$A42 -> 2008 | D42: ='NSP Data'!D42 -> 246313.76 | E42: ='NSP Data'!E42 -> 722.02939 | F42: ='NSP Data'!F42 -> 53171.332 | G42: ='NSP Data'!G42 -> 16683.907 | H42: ='NSP Data'!H42 -> 3329.3318 | I42: ='NSP Data'!I42 -> 3179.0811 | J42: ='Gen Data'!$E$36/100 -> 1 | K42: =('NSP Data'!$M42*(1-'Gen Data'!$G19)*G42/($G42+$H42*5))/G42 -> 1.613684809 | L42: =('NSP Data'!$M42*(1-'Gen Data'!$G19)*H42*5/(G42+H42*5))/H42 -> 8.068424047 | M42: ='NSP Data'!$M42*'Gen Data'!G19/I42 -> 7.601029102 | N42: 131120.648 | O42: 0.9681862108 | P42: 0 | Q42: 0 | R42: 0 | S42: 0 | T42: 0 | U42: 0 | V42: 0 | W42: 0 | X42: 0 | Y42: 0 | Z42: 0 | AA42: 0 | AB42: 0 | AC42: 0 | AD42: 0 | AE42: 0 | AF42: 0 | AG42: 0 | AH42: 0 | AI42: 0 | AJ42: 0 | AK42: 0 | AL42: 0 | AM42: 0 | AN42: 0 | AO42: 0 | AP42: 0 | AQ42: 0 | AR42: 0 | AS42: 0 | AT42: 0 | AU42: 0 | AV42: 0 | AW42: 0 | AX42: 0 | AY42: 0 | AZ42: 0 | BA42: 0 | BB42: 0 | BC42: 0 | BD42: 0 | BE42: 0 | BF42: 0 | BG42: 0 | BH42: 0 | BI42: 0 | BJ42: 0 | BK42: 0 | BL42: 0 | BM42: 0 | BN42: 0 | BO42: 0 | BP42: 0 | BQ42: 0 | BR42: 0 | BS42: 0 | BT42: 0 | BU42: 0 | BV42: 0 | BW42: 0 | BX42: 0 | BY42: 0 | BZ42: 0 | CA42: 0 | CB42: 0 | CC42: 0 | CD42: 0 | CE42: 0 | CF42: 0.4862898556 | CG42: 0 | CH42: 0.3845265785 | CI42: 0 | CJ42: 0 | CK42: 0 | CL42: 0 | CM42: 0 | CN42: 0 | CO42: 0
A43: 40 | B43: ='NSP Data'!$C43 -> 1 | C43: ='NSP Data'!$A43 -> 2009 | D43: ='NSP Data'!D43 -> 274743.75 | E43: ='NSP Data'!E43 -> 842.97624 | F43: ='NSP Data'!F43 -> 48979.627 | G43: ='NSP Data'!G43 -> 27045.458 | H43: ='NSP Data'!H43 -> 3235.8694 | I43: ='NSP Data'!I43 -> 3362.8482 | J43: ='Gen Data'!$F$36/100 -> 1.044 | K43: =('NSP Data'!$M43*(1-'Gen Data'!$G7)*G43/($G43+$H43*5))/G43 -> 1.506163521 | L43: =('NSP Data'!$M43*(1-'Gen Data'!$G7)*H43*5/(G43+H43*5))/H43 -> 7.530817607 | M43: ='NSP Data'!$M43*'Gen Data'!G7/I43 -> 8.697821832 | N43: 145487.8096 | O43: 0.9969251801 | P43: 0 | Q43: 0 | R43: 0 | S43: 0 | T43: 0 | U43: 0 | V43: 0 | W43: 0 | X43: 0 | Y43: 0 | Z43: 0 | AA43: 0 | AB43: 0 | AC43: 0 | AD43: 0 | AE43: 0 | AF43: 0 | AG43: 0 | AH43: 0 | AI43: 0 | AJ43: 0 | AK43: 0 | AL43: 0 | AM43: 0 | AN43: 0 | AO43: 0 | AP43: 0 | AQ43: 0 | AR43: 0 | AS43: 0 | AT43: 0 | AU43: 0 | AV43: 0 | AW43: 0 | AX43: 0 | AY43: 0 | AZ43: 0 | BA43: 0 | BB43: 0 | BC43: 0 | BD43: 0 | BE43: 0 | BF43: 0 | BG43: 0 | BH43: 0 | BI43: 0 | BJ43: 0 | BK43: 0 | BL43: 0 | BM43: 0 | BN43: 0 | BO43: 0 | BP43: 0 | BQ43: 0 | BR43: 0 | BS43: 0 | BT43: 0 | BU43: 0 | BV43: 0 | BW43: 0 | BX43: 0 | BY43: 0 | BZ43: 0 | CA43: 0 | CB43: 0 | CC43: 0.5514401788 | CD43: 0 | CE43: 0 | CF43: 0.4171616027 | CG43: 0 | CH43: 0 | CI43: 0 | CJ43: 0 | CK43: 0 | CL43: 0 | CM43: 0 | CN43: 0 | CO43: 0
A44: 41 | B44: ='NSP Data'!$C44 -> 2 | C44: ='NSP Data'!$A44 -> 2009 | D44: ='NSP Data'!D44 -> 274309.54 | E44: ='NSP Data'!E44 -> 834.90665 | F44: ='NSP Data'!F44 -> 50613.303 | G44: ='NSP Data'!G44 -> 27998.764 | H44: ='NSP Data'!H44 -> 3223.3304 | I44: ='NSP Data'!I44 -> 3353.6257 | J44: ='Gen Data'!$F$36/100 -> 1.044 | K44: =('NSP Data'!$M44*(1-'Gen Data'!$G8)*G44/($G44+$H44*5))/G44 -> 1.518907257 | L44: =('NSP Data'!$M44*(1-'Gen Data'!$G8)*H44*5/(G44+H44*5))/H44 -> 7.594536283 | M44: ='NSP Data'!$M44*'Gen Data'!G8/I44 -> 8.976760737 | N44: 149952.2093 | O44: 0.9719347069 | P44: 0 | Q44: 0 | R44: 0 | S44: 0 | T44: 0 | U44: 0 | V44: 0 | W44: 0 | X44: 0 | Y44: 0 | Z44: 0 | AA44: 0 | AB44: 0 | AC44: 0 | AD44: 0 | AE44: 0 | AF44: 0 | AG44: 0 | AH44: 0 | AI44: 0 | AJ44: 0 | AK44: 0 | AL44: 0 | AM44: 0 | AN44: 0 | AO44: 0 | AP44: 0 | AQ44: 0 | AR44: 0 | AS44: 0 | AT44: 0 | AU44: 0 | AV44: 0 | AW44: 0 | AX44: 0 | AY44: 0 | AZ44: 0 | BA44: 0 | BB44: 0 | BC44: 0 | BD44: 0 | BE44: 0 | BF44: 0 | BG44: 0 | BH44: 0 | BI44: 0 | BJ44: 0 | BK44: 0 | BL44: 0 | BM44: 0 | BN44: 0 | BO44: 0 | BP44: 0 | BQ44: 0 | BR44: 0 | BS44: 0 | BT44: 0 | BU44: 0 | BV44: 0 | BW44: 0 | BX44: 0 | BY44: 0 | BZ44: 0 | CA44: 0 | CB44: 0 | CC44: 0.3655330104 | CD44: 0 | CE44: 0 | CF44: 0.6024921385 | CG44: 0 | CH44: 0 | CI44: 0 | CJ44: 0 | CK44: 0 | CL44: 0 | CM44: 0 | CN44: 0 | CO44: 0
A45: 42 | B45: ='NSP Data'!$C45 -> 3 | C45: ='NSP Data'!$A45 -> 2009 | D45: ='NSP Data'!D45 -> 263395.04 | E45: ='NSP Data'!E45 -> 822.05071 | F45: ='NSP Data'!F45 -> 51825.311 | G45: ='NSP Data'!G45 -> 25257.784 | H45: ='NSP Data'!H45 -> 3323.8087 | I45: ='NSP Data'!I45 -> 3255.9308 | J45: ='Gen Data'!$F$36/100 -> 1.044 | K45: =('NSP Data'!$M45*(1-'Gen Data'!$G9)*G45/($G45+$H45*5))/G45 -> 1.512646517 | L45: =('NSP Data'!$M45*(1-'Gen Data'!$G9)*H45*5/(G45+H45*5))/H45 -> 7.563232587 | M45: ='NSP Data'!$M45*'Gen Data'!G9/I45 -> 8.740749257 | N45: 145909.7367 | O45: 0.9636251849 | P45: 0 | Q45: 0 | R45: 0 | S45: 0 | T45: 0 | U45: 0 | V45: 0 | W45: 0 | X45: 0 | Y45: 0 | Z45: 0 | AA45: 0 | AB45: 0 | AC45: 0 | AD45: 0 | AE45: 0 | AF45: 0 | AG45: 0 | AH45: 0 | AI45: 0 | AJ45: 0 | AK45: 0 | AL45: 0 | AM45: 0 | AN45: 0 | AO45: 0 | AP45: 0 | AQ45: 0 | AR45: 0 | AS45: 0 | AT45: 0 | AU45: 0 | AV45: 0 | AW45: 0 | AX45: 0 | AY45: 0 | AZ45: 0 | BA45: 0 | BB45: 0 | BC45: 0 | BD45: 0 | BE45: 0 | BF45: 0 | BG45: 0 | BH45: 0 | BI45: 0 | BJ45: 0 | BK45: 0 | BL45: 0 | BM45: 0 | BN45: 0 | BO45: 0 | BP45: 0 | BQ45: 0 | BR45: 0 | BS45: 0 | BT45: 0 | BU45: 0 | BV45: 0 | BW45: 0 | BX45: 0 | BY45: 0 | BZ45: 0 | CA45: 0 | CB45: 0 | CC45: 0.9102744475 | CD45: 0 | CE45: 0 | CF45: 0.01634991942 | CG45: 0 | CH45: 0 | CI45: 0 | CJ45: 0 | CK45: 0 | CL45: 0 | CM45: 0 | CN45: 0 | CO45: 0
A46: 43 | B46: ='NSP Data'!$C46 -> 4 | C46: ='NSP Data'!$A46 -> 2009 | D46: ='NSP Data'!D46 -> 271948.05 | E46: ='NSP Data'!E46 -> 811.91051 | F46: ='NSP Data'!F46 -> 50042.554 | G46: ='NSP Data'!G46 -> 25573.877 | H46: ='NSP Data'!H46 -> 3212.1843 | I46: ='NSP Data'!I46 -> 3289.4168 | J46: ='Gen Data'!$F$36/100 -> 1.044 | K46: =('NSP Data'!$M46*(1-'Gen Data'!$G10)*G46/($G46+$H46*5))/G46 -> 1.505102668 | L46: =('NSP Data'!$M46*(1-'Gen Data'!$G10)*H46*5/(G46+H46*5))/H46 -> 7.525513342 | M46: ='NSP Data'!$M46*'Gen Data'!G10/I46 -> 8.558867237 | N46: 143062.7544 | O46: 0.9881615596 | P46: 0 | Q46: 0 | R46: 0 | S46: 0 | T46: 0 | U46: 0 | V46: 0 | W46: 0 | X46: 0 | Y46: 0 | Z46: 0 | AA46: 0 | AB46: 0 | AC46: 0 | AD46: 0 | AE46: 0 | AF46: 0 | AG46: 0 | AH46: 0 | AI46: 0 | AJ46: 0 | AK46: 0 | AL46: 0 | AM46: 0 | AN46: 0 | AO46: 0 | AP46: 0 | AQ46: 0 | AR46: 0 | AS46: 0 | AT46: 0 | AU46: 0 | AV46: 0 | AW46: 0 | AX46: 0 | AY46: 0 | AZ46: 0 | BA46: 0 | BB46: 0 | BC46: 0 | BD46: 0 | BE46: 0 | BF46: 0 | BG46: 0 | BH46: 0 | BI46: 0 | BJ46: 0 | BK46: 0 | BL46: 0 | BM46: 0 | BN46: 0 | BO46: 0 | BP46: 0 | BQ46: 0 | BR46: 0 | BS46: 0 | BT46: 0 | BU46: 0 | BV46: 0 | BW46: 0 | BX46: 0 | BY46: 0 | BZ46: 0 | CA46: 0 | CB46: 0 | CC46: 0 | CD46: 0 | CE46: 0 | CF46: 0.8975941592 | CG46: 0 | CH46: 0.06394855585 | CI46: 0 | CJ46: 0 | CK46: 0 | CL46: 0 | CM46: 0 | CN46: 0 | CO46: 0
A47: 44 | B47: ='NSP Data'!$C47 -> 5 | C47: ='NSP Data'!$A47 -> 2009 | D47: ='NSP Data'!D47 -> 261199.26 | E47: ='NSP Data'!E47 -> 792.45034 | F47: ='NSP Data'!F47 -> 51064.019 | G47: ='NSP Data'!G47 -> 24410.569 | H47: ='NSP Data'!H47 -> 3408.3654 | I47: ='NSP Data'!I47 -> 3315.889 | J47: ='Gen Data'!$F$36/100 -> 1.044 | K47: =('NSP Data'!$M47*(1-'Gen Data'!$G11)*G47/($G47+$H47*5))/G47 -> 1.564539796 | L47: =('NSP Data'!$M47*(1-'Gen Data'!$G11)*H47*5/(G47+H47*5))/H47 -> 7.822698979 | M47: ='NSP Data'!$M47*'Gen Data'!G11/I47 -> 8.787166829 | N47: 147302.0288 | O47: 0.9492842603 | P47: 0 | Q47: 0 | R47: 0 | S47: 0 | T47: 0 | U47: 0 | V47: 0 | W47: 0 | X47: 0 | Y47: 0 | Z47: 0 | AA47: 0 | AB47: 0 | AC47: 0 | AD47: 0 | AE47: 0 | AF47: 0 | AG47: 0 | AH47: 0 | AI47: 0 | AJ47: 0 | AK47: 0 | AL47: 0 | AM47: 0 | AN47: 0 | AO47: 0 | AP47: 0 | AQ47: 0 | AR47: 0 | AS47: 0 | AT47: 0 | AU47: 0 | AV47: 0 | AW47: 0 | AX47: 0 | AY47: 0 | AZ47: 0 | BA47: 0 | BB47: 0 | BC47: 0 | BD47: 0 | BE47: 0 | BF47: 0 | BG47: 0 | BH47: 0 | BI47: 0 | BJ47: 0 | BK47: 0 | BL47: 0 | BM47: 0 | BN47: 0 | BO47: 0 | BP47: 0 | BQ47: 0 | BR47: 0 | BS47: 0 | BT47: 0 | BU47: 0 | BV47: 0 | BW47: 0 | BX47: 0 | BY47: 0 | BZ47: 0 | CA47: 0 | CB47: 0 | CC47: 0.2779467965 | CD47: 0 | CE47: 0 | CF47: 0.6441743693 | CG47: 0 | CH47: 0 | CI47: 0 | CJ47: 0 | CK47: 0 | CL47: 0 | CM47: 0 | CN47: 0 | CO47: 0
A48: 45 | B48: ='NSP Data'!$C48 -> 6 | C48: ='NSP Data'!$A48 -> 2009 | D48: ='NSP Data'!D48 -> 266786.48 | E48: ='NSP Data'!E48 -> 782.65094 | F48: ='NSP Data'!F48 -> 50936.919 | G48: ='NSP Data'!G48 -> 22393.268 | H48: ='NSP Data'!H48 -> 3396.5777 | I48: ='NSP Data'!I48 -> 3400.6919 | J48: ='Gen Data'!$F$36/100 -> 1.044 | K48: =('NSP Data'!$M48*(1-'Gen Data'!$G12)*G48/($G48+$H48*5))/G48 -> 1.560913422 | L48: =('NSP Data'!$M48*(1-'Gen Data'!$G12)*H48*5/(G48+H48*5))/H48 -> 7.804567112 | M48: ='NSP Data'!$M48*'Gen Data'!G12/I48 -> 8.120026633 | N48: 142254.6234 | O48: 0.9782816285 | P48: 0 | Q48: 0 | R48: 0 | S48: 0 | T48: 0 | U48: 0 | V48: 0 | W48: 0 | X48: 0 | Y48: 0 | Z48: 0 | AA48: 0 | AB48: 0 | AC48: 0 | AD48: 0 | AE48: 0 | AF48: 0 | AG48: 0 | AH48: 0 | AI48: 0 | AJ48: 0 | AK48: 0 | AL48: 0 | AM48: 0 | AN48: 0 | AO48: 0 | AP48: 0 | AQ48: 0 | AR48: 0 | AS48: 0 | AT48: 0 | AU48: 0 | AV48: 0 | AW48: 0 | AX48: 0 | AY48: 0 | AZ48: 0 | BA48: 0 | BB48: 0 | BC48: 0 | BD48: 0 | BE48: 0 | BF48: 0 | BG48: 0 | BH48: 0 | BI48: 0 | BJ48: 0 | BK48: 0 | BL48: 0 | BM48: 0 | BN48: 0 | BO48: 0 | BP48: 0 | BQ48: 0 | BR48: 0 | BS48: 0 | BT48: 0 | BU48: 0 | BV48: 0 | BW48: 0 | BX48: 0 | BY48: 0 | BZ48: 0 | CA48: 0 | CB48: 0 | CC48: 0 | CD48: 0 | CE48: 0 | CF48: 0.5416139144 | CG48: 0 | CH48: 0.4015857601 | CI48: 0 | CJ48: 0 | CK48: 0 | CL48: 0 | CM48: 0 | CN48: 0 | CO48: 0
A49: 46 | B49: ='NSP Data'!$C49 -> 7 | C49: ='NSP Data'!$A49 -> 2009 | D49: ='NSP Data'!D49 -> 263147.37 | E49: ='NSP Data'!E49 -> 781.546 | F49: ='NSP Data'!F49 -> 51368.711 | G49: ='NSP Data'!G49 -> 21753.803 | H49: ='NSP Data'!H49 -> 3353.5561 | I49: ='NSP Data'!I49 -> 3359.002 | J49: ='Gen Data'!$F$36/100 -> 1.044 | K49: =('NSP Data'!$M49*(1-'Gen Data'!$G13)*G49/($G49+$H49*5))/G49 -> 1.673997505 | L49: =('NSP Data'!$M49*(1-'Gen Data'!$G13)*H49*5/(G49+H49*5))/H49 -> 8.369987527 | M49: ='NSP Data'!$M49*'Gen Data'!G13/I49 -> 8.625043188 | N49: 147085.5063 | O49: 0.9771989156 | P49: 0 | Q49: 0 | R49: 0 | S49: 0 | T49: 0 | U49: 0 | V49: 0 | W49: 0 | X49: 0 | Y49: 0 | Z49: 0 | AA49: 0 | AB49: 0 | AC49: 0 | AD49: 0 | AE49: 0 | AF49: 0 | AG49: 0 | AH49: 0 | AI49: 0 | AJ49: 0 | AK49: 0 | AL49: 0 | AM49: 0 | AN49: 0 | AO49: 0 | AP49: 0 | AQ49: 0 | AR49: 0 | AS49: 0 | AT49: 0 | AU49: 0 | AV49: 0 | AW49: 0 | AX49: 0 | AY49: 0 | AZ49: 0 | BA49: 0 | BB49: 0 | BC49: 0 | BD49: 0 | BE49: 0 | BF49: 0 | BG49: 0 | BH49: 0 | BI49: 0 | BJ49: 0 | BK49: 0 | BL49: 0 | BM49: 0 | BN49: 0 | BO49: 0 | BP49: 0 | BQ49: 0 | BR49: 0 | BS49: 0 | BT49: 0 | BU49: 0 | BV49: 0 | BW49: 0 | BX49: 0 | BY49: 0 | BZ49: 0 | CA49: 0 | CB49: 0 | CC49: 0 | CD49: 0 | CE49: 0 | CF49: 0.7684562797 | CG49: 0 | CH49: 0.1619418982 | CI49: 0 | CJ49: 0 | CK49: 0 | CL49: 0 | CM49: 0 | CN49: 0 | CO49: 0
A50: 47 | B50: ='NSP Data'!$C50 -> 8 | C50: ='NSP Data'!$A50 -> 2009 | D50: ='NSP Data'!D50 -> 249460.75 | E50: ='NSP Data'!E50 -> 770.5552 | F50: ='NSP Data'!F50 -> 51628.092 | G50: ='NSP Data'!G50 -> 21137.437 | H50: ='NSP Data'!H50 -> 3486.1503 | I50: ='NSP Data'!I50 -> 3386.5368 | J50: ='Gen Data'!$F$36/100 -> 1.044 | K50: =('NSP Data'!$M50*(1-'Gen Data'!$G14)*G50/($G50+$H50*5))/G50 -> 1.605348787 | L50: =('NSP Data'!$M50*(1-'Gen Data'!$G14)*H50*5/(G50+H50*5))/H50 -> 8.026743937 | M50: ='NSP Data'!$M50*'Gen Data'!G14/I50 -> 8.214014199 | N50: 143632.184 | O50: 0.9368219041 | P50: 0 | Q50: 0 | R50: 0 | S50: 0 | T50: 0 | U50: 0 | V50: 0 | W50: 0 | X50: 0 | Y50: 0 | Z50: 0 | AA50: 0 | AB50: 0 | AC50: 0 | AD50: 0 | AE50: 0 | AF50: 0 | AG50: 0 | AH50: 0 | AI50: 0 | AJ50: 0 | AK50: 0 | AL50: 0 | AM50: 0 | AN50: 0 | AO50: 0 | AP50: 0 | AQ50: 0 | AR50: 0 | AS50: 0 | AT50: 0 | AU50: 0 | AV50: 0 | AW50: 0 | AX50: 0 | AY50: 0 | AZ50: 0 | BA50: 0 | BB50: 0 | BC50: 0 | BD50: 0 | BE50: 0 | BF50: 0 | BG50: 0 | BH50: 0 | BI50: 0 | BJ50: 0 | BK50: 0 | BL50: 0 | BM50: 0 | BN50: 0 | BO50: 0 | BP50: 0 | BQ50: 0 | BR50: 0 | BS50: 0 | BT50: 0 | BU50: 0 | BV50: 0 | BW50: 0 | BX50: 0 | BY50: 0 | BZ50: 0 | CA50: 0 | CB50: 0 | CC50: 0.6422161818 | CD50: 0 | CE50: 0 | CF50: 0.2365212787 | CG50: 0 | CH50: 0 | CI50: 0 | CJ50: 0 | CK50: 0 | CL50: 0 | CM50: 0 | CN50: 0 | CO50: 0
A51: 48 | B51: ='NSP Data'!$C51 -> 9 | C51: ='NSP Data'!$A51 -> 2009 | D51: ='NSP Data'!D51 -> 254915.63 | E51: ='NSP Data'!E51 -> 752.4872 | F51: ='NSP Data'!F51 -> 51506.304 | G51: ='NSP Data'!G51 -> 20445.2 | H51: ='NSP Data'!H51 -> 3427.4079 | I51: ='NSP Data'!I51 -> 3237.1882 | J51: ='Gen Data'!$F$36/100 -> 1.044 | K51: =('NSP Data'!$M51*(1-'Gen Data'!$G15)*G51/($G51+$H51*5))/G51 -> 1.671234233 | L51: =('NSP Data'!$M51*(1-'Gen Data'!$G15)*H51*5/(G51+H51*5))/H51 -> 8.356171167 | M51: ='NSP Data'!$M51*'Gen Data'!G15/I51 -> 8.716951575 | N51: 144799.7194 | O51: 0.9616372459 | P51: 0 | Q51: 0 | R51: 0 | S51: 0 | T51: 0 | U51: 0 | V51: 0 | W51: 0 | X51: 0 | Y51: 0 | Z51: 0 | AA51: 0 | AB51: 0 | AC51: 0 | AD51: 0 | AE51: 0 | AF51: 0 | AG51: 0 | AH51: 0 | AI51: 0 | AJ51: 0 | AK51: 0 | AL51: 0 | AM51: 0 | AN51: 0 | AO51: 0 | AP51: 0 | AQ51: 0 | AR51: 0 | AS51: 0 | AT51: 0 | AU51: 0 | AV51: 0 | AW51: 0 | AX51: 0 | AY51: 0 | AZ51: 0 | BA51: 0 | BB51: 0 | BC51: 0 | BD51: 0 | BE51: 0 | BF51: 0 | BG51: 0 | BH51: 0 | BI51: 0 | BJ51: 0 | BK51: 0 | BL51: 0 | BM51: 0 | BN51: 0 | BO51: 0 | BP51: 0 | BQ51: 0 | BR51: 0 | BS51: 0 | BT51: 0 | BU51: 0 | BV51: 0 | BW51: 0 | BX51: 0 | BY51: 0 | BZ51: 0 | CA51: 0 | CB51: 0 | CC51: 0 | CD51: 0 | CE51: 0 | CF51: 0.6315811543 | CG51: 0 | CH51: 0.2696814837 | CI51: 0 | CJ51: 0 | CK51: 0 | CL51: 0 | CM51: 0 | CN51: 0 | CO51: 0
A52: 49 | B52: ='NSP Data'!$C52 -> 10 | C52: ='NSP Data'!$A52 -> 2009 | D52: ='NSP Data'!D52 -> 260514.99 | E52: ='NSP Data'!E52 -> 742.14115 | F52: ='NSP Data'!F52 -> 53131.926 | G52: ='NSP Data'!G52 -> 19439.931 | H52: ='NSP Data'!H52 -> 3544.6399 | I52: ='NSP Data'!I52 -> 3191.9078 | J52: ='Gen Data'!$F$36/100 -> 1.044 | K52: =('NSP Data'!$M52*(1-'Gen Data'!$G16)*G52/($G52+$H52*5))/G52 -> 1.63043091 | L52: =('NSP Data'!$M52*(1-'Gen Data'!$G16)*H52*5/(G52+H52*5))/H52 -> 8.15215455 | M52: ='NSP Data'!$M52*'Gen Data'!G16/I52 -> 8.528584479 | N52: 143284.1027 | O52: 0.9715072804 | P52: 0 | Q52: 0 | R52: 0 | S52: 0 | T52: 0 | U52: 0 | V52: 0 | W52: 0 | X52: 0 | Y52: 0 | Z52: 0 | AA52: 0 | AB52: 0 | AC52: 0 | AD52: 0 | AE52: 0 | AF52: 0 | AG52: 0 | AH52: 0 | AI52: 0 | AJ52: 0 | AK52: 0 | AL52: 0 | AM52: 0 | AN52: 0 | AO52: 0 | AP52: 0 | AQ52: 0 | AR52: 0 | AS52: 0 | AT52: 0 | AU52: 0 | AV52: 0 | AW52: 0 | AX52: 0 | AY52: 0 | AZ52: 0 | BA52: 0 | BB52: 0 | BC52: 0 | BD52: 0 | BE52: 0 | BF52: 0 | BG52: 0 | BH52: 0 | BI52: 0 | BJ52: 0 | BK52: 0 | BL52: 0 | BM52: 0 | BN52: 0 | BO52: 0 | BP52: 0 | BQ52: 0 | BR52: 0 | BS52: 0 | BT52: 0 | BU52: 0 | BV52: 0 | BW52: 0 | BX52: 0 | BY52: 0 | BZ52: 0 | CA52: 0 | CB52: 0 | CC52: 0 | CD52: 0 | CE52: 0 | CF52: 0 | CG52: 0 | CH52: 0.9208823093 | CI52: 0 | CJ52: 0 | CK52: 0 | CL52: 0 | CM52: 0 | CN52: 0 | CO52: 0
A53: 50 | B53: ='NSP Data'!$C53 -> 11 | C53: ='NSP Data'!$A53 -> 2009 | D53: ='NSP Data'!D53 -> 244944.76 | E53: ='NSP Data'!E53 -> 740.10779 | F53: ='NSP Data'!F53 -> 51026.548 | G53: ='NSP Data'!G53 -> 18181.945 | H53: ='NSP Data'!H53 -> 3519.0639 | I53: ='NSP Data'!I53 -> 3201.5946 | J53: ='Gen Data'!$F$36/100 -> 1.044 | K53: =('NSP Data'!$M53*(1-'Gen Data'!$G17)*G53/($G53+$H53*5))/G53 -> 1.642668987 | L53: =('NSP Data'!$M53*(1-'Gen Data'!$G17)*H53*5/(G53+H53*5))/H53 -> 8.213344934 | M53: ='NSP Data'!$M53*'Gen Data'!G17/I53 -> 8.247141649 | N53: 138445.9231 | O53: 0.9553206187 | P53: 0 | Q53: 0 | R53: 0 | S53: 0 | T53: 0 | U53: 0 | V53: 0 | W53: 0 | X53: 0 | Y53: 0 | Z53: 0 | AA53: 0 | AB53: 0 | AC53: 0 | AD53: 0 | AE53: 0 | AF53: 0 | AG53: 0 | AH53: 0 | AI53: 0 | AJ53: 0 | AK53: 0 | AL53: 0 | AM53: 0 | AN53: 0 | AO53: 0 | AP53: 0 | AQ53: 0 | AR53: 0 | AS53: 0 | AT53: 0 | AU53: 0 | AV53: 0 | AW53: 0 | AX53: 0 | AY53: 0 | AZ53: 0 | BA53: 0 | BB53: 0 | BC53: 0 | BD53: 0 | BE53: 0 | BF53: 0 | BG53: 0 | BH53: 0 | BI53: 0 | BJ53: 0 | BK53: 0 | BL53: 0 | BM53: 0 | BN53: 0 | BO53: 0 | BP53: 0 | BQ53: 0 | BR53: 0 | BS53: 0 | BT53: 0 | BU53: 0 | BV53: 0 | BW53: 0 | BX53: 0 | BY53: 0 | BZ53: 0 | CA53: 0 | CB53: 0 | CC53: 0.1774842335 | CD53: 0 | CE53: 0 | CF53: 0.6876819417 | CG53: 0 | CH53: 0 | CI53: 0 | CJ53: 0 | CK53: 0 | CL53: 0 | CM53: 0 | CN53: 0 | CO53: 0
A54: 51 | B54: ='NSP Data'!$C54 -> 12 | C54: ='NSP Data'!$A54 -> 2009 | D54: ='NSP Data'!D54 -> 249697.26 | E54: ='NSP Data'!E54 -> 721.02514 | F54: ='NSP Data'!F54 -> 52272.027 | G54: ='NSP Data'!G54 -> 17423.464 | H54: ='NSP Data'!H54 -> 3677.6013 | I54: ='NSP Data'!I54 -> 3159.0118 | J54: ='Gen Data'!$F$36/100 -> 1.044 | K54: =('NSP Data'!$M54*(1-'Gen Data'!$G18)*G54/($G54+$H54*5))/G54 -> 1.653315349 | L54: =('NSP Data'!$M54*(1-'Gen Data'!$G18)*H54*5/(G54+H54*5))/H54 -> 8.266576747 | M54: ='NSP Data'!$M54*'Gen Data'!G18/I54 -> 8.420525729 | N54: 140380.1902 | O54: 0.956353597 | P54: 0 | Q54: 0 | R54: 0 | S54: 0 | T54: 0 | U54: 0 | V54: 0 | W54: 0 | X54: 0 | Y54: 0 | Z54: 0 | AA54: 0 | AB54: 0 | AC54: 0 | AD54: 0 | AE54: 0 | AF54: 0 | AG54: 0 | AH54: 0 | AI54: 0 | AJ54: 0 | AK54: 0 | AL54: 0 | AM54: 0 | AN54: 0 | AO54: 0 | AP54: 0 | AQ54: 0 | AR54: 0 | AS54: 0 | AT54: 0 | AU54: 0 | AV54: 0 | AW54: 0 | AX54: 0 | AY54: 0 | AZ54: 0 | BA54: 0 | BB54: 0 | BC54: 0 | BD54: 0 | BE54: 0 | BF54: 0 | BG54: 0 | BH54: 0 | BI54: 0 | BJ54: 0 | BK54: 0 | BL54: 0 | BM54: 0 | BN54: 0 | BO54: 0 | BP54: 0 | BQ54: 0 | BR54: 0 | BS54: 0 | BT54: 0 | BU54: 0 | BV54: 0 | BW54: 0 | BX54: 0 | BY54: 0 | BZ54: 0 | CA54: 0 | CB54: 0 | CC54: 0 | CD54: 0 | CE54: 0 | CF54: 0.2256613132 | CG54: 0 | CH54: 0.6570438059 | CI54: 0 | CJ54: 0 | CK54: 0 | CL54: 0 | CM54: 0 | CN54: 0 | CO54: 0
A55: 52 | B55: ='NSP Data'!$C55 -> 13 | C55: ='NSP Data'!$A55 -> 2009 | D55: ='NSP Data'!D55 -> 248122.75 | E55: ='NSP Data'!E55 -> 721.95358 | F55: ='NSP Data'!F55 -> 53050.04 | G55: ='NSP Data'!G55 -> 16415.04 | H55: ='NSP Data'!H55 -> 3491.9208 | I55: ='NSP Data'!I55 -> 3188.3059 | J55: ='Gen Data'!$F$36/100 -> 1.044 | K55: =('NSP Data'!$M55*(1-'Gen Data'!$G19)*G55/($G55+$H55*5))/G55 -> 1.7534692 | L55: =('NSP Data'!$M55*(1-'Gen Data'!$G19)*H55*5/(G55+H55*5))/H55 -> 8.767346001 | M55: ='NSP Data'!$M55*'Gen Data'!G19/I55 -> 8.370000846 | N55: 141468.5098 | O55: 0.9696639252 | P55: 0 | Q55: 0 | R55: 0 | S55: 0 | T55: 0 | U55: 0 | V55: 0 | W55: 0 | X55: 0 | Y55: 0 | Z55: 0 | AA55: 0 | AB55: 0 | AC55: 0 | AD55: 0 | AE55: 0 | AF55: 0 | AG55: 0 | AH55: 0 | AI55: 0 | AJ55: 0 | AK55: 0 | AL55: 0 | AM55: 0 | AN55: 0 | AO55: 0 | AP55: 0 | AQ55: 0 | AR55: 0 | AS55: 0 | AT55: 0 | AU55: 0 | AV55: 0 | AW55: 0 | AX55: 0 | AY55: 0 | AZ55: 0 | BA55: 0 | BB55: 0 | BC55: 0 | BD55: 0 | BE55: 0 | BF55: 0 | BG55: 0 | BH55: 0 | BI55: 0 | BJ55: 0 | BK55: 0 | BL55: 0 | BM55: 0 | BN55: 0 | BO55: 0 | BP55: 0 | BQ55: 0 | BR55: 0 | BS55: 0 | BT55: 0 | BU55: 0 | BV55: 0 | BW55: 0 | BX55: 0 | BY55: 0 | BZ55: 0 | CA55: 0 | CB55: 0 | CC55: 0 | CD55: 0 | CE55: 0 | CF55: 0.3582296389 | CG55: 0 | CH55: 0.5189461823 | CI55: 0 | CJ55: 0 | CK55: 0 | CL55: 0 | CM55: 0 | CN55: 0 | CO55: 0
A56: 53 | B56: ='NSP Data'!$C56 -> 1 | C56: ='NSP Data'!$A56 -> 2010 | D56: ='NSP Data'!D56 -> 277497.25 | E56: ='NSP Data'!E56 -> 854.97176 | F56: ='NSP Data'!F56 -> 49271.353 | G56: ='NSP Data'!G56 -> 27008.843 | H56: ='NSP Data'!H56 -> 3452.7155 | I56: ='NSP Data'!I56 -> 3465.8422 | J56: ='Gen Data'!$G$36/100 -> 1.087 | K56: =('NSP Data'!$M56*(1-'Gen Data'!$G7)*G56/($G56+$H56*5))/G56 -> 1.559180709 | L56: =('NSP Data'!$M56*(1-'Gen Data'!$G7)*H56*5/(G56+H56*5))/H56 -> 7.795903547 | M56: ='NSP Data'!$M56*'Gen Data'!G7/I56 -> 8.948155805 | N56: 153599.5607 | O56: 0.989998397 | P56: 0 | Q56: 0 | R56: 0 | S56: 0 | T56: 0 | U56: 0 | V56: 0 | W56: 0 | X56: 0 | Y56: 0 | Z56: 0 | AA56: 0 | AB56: 0 | AC56: 0 | AD56: 0 | AE56: 0 | AF56: 0 | AG56: 0 | AH56: 0 | AI56: 0 | AJ56: 0 | AK56: 0 | AL56: 0 | AM56: 0 | AN56: 0 | AO56: 0 | AP56: 0 | AQ56: 0 | AR56: 0 | AS56: 0 | AT56: 0 | AU56: 0 | AV56: 0 | AW56: 0 | AX56: 0 | AY56: 0 | AZ56: 0 | BA56: 0 | BB56: 0 | BC56: 0 | BD56: 0 | BE56: 0 | BF56: 0 | BG56: 0 | BH56: 0 | BI56: 0 | BJ56: 0 | BK56: 0 | BL56: 0 | BM56: 0 | BN56: 0 | BO56: 0 | BP56: 0 | BQ56: 0 | BR56: 0 | BS56: 0 | BT56: 0 | BU56: 0 | BV56: 0 | BW56: 0 | BX56: 0 | BY56: 0 | BZ56: 0 | CA56: 0 | CB56: 0 | CC56: 0.6543866393 | CD56: 0 | CE56: 0 | CF56: 0.3234201734 | CG56: 0 | CH56: 0 | CI56: 0 | CJ56: 0 | CK56: 0 | CL56: 0 | CM56: 0 | CN56: 0 | CO56: 0
A57: 54 | B57: ='NSP Data'!$C57 -> 2 | C57: ='NSP Data'!$A57 -> 2010 | D57: ='NSP Data'!D57 -> 283374.21 | E57: ='NSP Data'!E57 -> 860.41878 | F57: ='NSP Data'!F57 -> 51147.114 | G57: ='NSP Data'!G57 -> 27824.836 | H57: ='NSP Data'!H57 -> 3438.7054 | I57: ='NSP Data'!I57 -> 3450.6434 | J57: ='Gen Data'!$G$36/100 -> 1.087 | K57: =('NSP Data'!$M57*(1-'Gen Data'!$G8)*G57/($G57+$H57*5))/G57 -> 1.587938555 | L57: =('NSP Data'!$M57*(1-'Gen Data'!$G8)*H57*5/(G57+H57*5))/H57 -> 7.939692776 | M57: ='NSP Data'!$M57*'Gen Data'!G8/I57 -> 9.307561512 | N57: 159200.3829 | O57: 0.9845080741 | P57: 0 | Q57: 0 | R57: 0 | S57: 0 | T57: 0 | U57: 0 | V57: 0 | W57: 0 | X57: 0 | Y57: 0 | Z57: 0 | AA57: 0 | AB57: 0 | AC57: 0 | AD57: 0 | AE57: 0 | AF57: 0 | AG57: 0 | AH57: 0 | AI57: 0 | AJ57: 0 | AK57: 0 | AL57: 0 | AM57: 0 | AN57: 0 | AO57: 0 | AP57: 0 | AQ57: 0 | AR57: 0 | AS57: 0 | AT57: 0 | AU57: 0 | AV57: 0 | AW57: 0 | AX57: 0 | AY57: 0 | AZ57: 0 | BA57: 0 | BB57: 0 | BC57: 0 | BD57: 0 | BE57: 0 | BF57: 0 | BG57: 0 | BH57: 0 | BI57: 0 | BJ57: 0 | BK57: 0 | BL57: 0 | BM57: 0 | BN57: 0 | BO57: 0 | BP57: 0 | BQ57: 0 | BR57: 0 | BS57: 0 | BT57: 0 | BU57: 0 | BV57: 0 | BW57: 0 | BX57: 0 | BY57: 0 | BZ57: 0 | CA57: 0 | CB57: 0 | CC57: 0.3205498155 | CD57: 0 | CE57: 0 | CF57: 0.6797583674 | CG57: 0 | CH57: 0 | CI57: 0 | CJ57: 0 | CK57: 0 | CL57: 0 | CM57: 0 | CN57: 0 | CO57: 0
A58: 55 | B58: ='NSP Data'!$C58 -> 3 | C58: ='NSP Data'!$A58 -> 2010 | D58: ='NSP Data'!D58 -> 266535.22 | E58: ='NSP Data'!E58 -> 846.15427 | F58: ='NSP Data'!F58 -> 51955.907 | G58: ='NSP Data'!G58 -> 25262.372 | H58: ='NSP Data'!H58 -> 3534.2883 | I58: ='NSP Data'!I58 -> 3366.6448 | J58: ='Gen Data'!$G$36/100 -> 1.087 | K58: =('NSP Data'!$M58*(1-'Gen Data'!$G9)*G58/($G58+$H58*5))/G58 -> 1.604241605 | L58: =('NSP Data'!$M58*(1-'Gen Data'!$G9)*H58*5/(G58+H58*5))/H58 -> 8.021208023 | M58: ='NSP Data'!$M58*'Gen Data'!G9/I58 -> 9.191460929 | N58: 156296.6649 | O58: 0.9738529266 | P58: 0 | Q58: 0 | R58: 0 | S58: 0 | T58: 0 | U58: 0 | V58: 0 | W58: 0 | X58: 0 | Y58: 0 | Z58: 0 | AA58: 0 | AB58: 0 | AC58: 0 | AD58: 0 | AE58: 0 | AF58: 0 | AG58: 0 | AH58: 0 | AI58: 0 | AJ58: 0 | AK58: 0 | AL58: 0 | AM58: 0 | AN58: 0 | AO58: 0 | AP58: 0 | AQ58: 0 | AR58: 0 | AS58: 0 | AT58: 0 | AU58: 0 | AV58: 0 | AW58: 0 | AX58: 0 | AY58: 0 | AZ58: 0 | BA58: 0 | BB58: 0 | BC58: 0 | BD58: 0 | BE58: 0 | BF58: 0 | BG58: 0 | BH58: 0 | BI58: 0 | BJ58: 0 | BK58: 0 | BL58: 0 | BM58: 0 | BN58: 0 | BO58: 0 | BP58: 0 | BQ58: 0 | BR58: 0 | BS58: 0 | BT58: 0 | BU58: 0 | BV58: 0 | BW58: 0 | BX58: 0 | BY58: 0 | BZ58: 0 | CA58: 0 | CB58: 0 | CC58: 0.9530211971 | CD58: 0 | CE58: 0 | CF58: 0 | CG58: 0 | CH58: 0 | CI58: 0 | CJ58: 0 | CK58: 0 | CL58: 0 | CM58: 0 | CN58: 0 | CO58: 0
A59: 56 | B59: ='NSP Data'!$C59 -> 4 | C59: ='NSP Data'!$A59 -> 2010 | D59: ='NSP Data'!D59 -> 274589.12 | E59: ='NSP Data'!E59 -> 828.99026 | F59: ='NSP Data'!F59 -> 50193.839 | G59: ='NSP Data'!G59 -> 25430.867 | H59: ='NSP Data'!H59 -> 3450.4574 | I59: ='NSP Data'!I59 -> 3342.9815 | J59: ='Gen Data'!$G$36/100 -> 1.087 | K59: =('NSP Data'!$M59*(1-'Gen Data'!$G10)*G59/($G59+$H59*5))/G59 -> 1.587639945 | L59: =('NSP Data'!$M59*(1-'Gen Data'!$G10)*H59*5/(G59+H59*5))/H59 -> 7.938199727 | M59: ='NSP Data'!$M59*'Gen Data'!G10/I59 -> 9.10724774 | N59: 152771.544 | O59: 0.9869754445 | P59: 0 | Q59: 0 | R59: 0 | S59: 0 | T59: 0 | U59: 0 | V59: 0 | W59: 0 | X59: 0 | Y59: 0 | Z59: 0 | AA59: 0 | AB59: 0 | AC59: 0 | AD59: 0 | AE59: 0 | AF59: 0 | AG59: 0 | AH59: 0 | AI59: 0 | AJ59: 0 | AK59: 0 | AL59: 0 | AM59: 0 | AN59: 0 | AO59: 0 | AP59: 0 | AQ59: 0 | AR59: 0 | AS59: 0 | AT59: 0 | AU59: 0 | AV59: 0 | AW59: 0 | AX59: 0 | AY59: 0 | AZ59: 0 | BA59: 0 | BB59: 0 | BC59: 0 | BD59: 0 | BE59: 0 | BF59: 0 | BG59: 0 | BH59: 0 | BI59: 0 | BJ59: 0 | BK59: 0 | BL59: 0 | BM59: 0 | BN59: 0 | BO59: 0 | BP59: 0 | BQ59: 0 | BR59: 0 | BS59: 0 | BT59: 0 | BU59: 0 | BV59: 0 | BW59: 0 | BX59: 0 | BY59: 0 | BZ59: 0 | CA59: 0 | CB59: 0 | CC59: 0.1800458927 | CD59: 0 | CE59: 0 | CF59: 0.7899242928 | CG59: 0 | CH59: 0 | CI59: 0 | CJ59: 0 | CK59: 0 | CL59: 0 | CM59: 0 | CN59: 0 | CO59: 0
A60: 57 | B60: ='NSP Data'!$C60 -> 5 | C60: ='NSP Data'!$A60 -> 2010 | D60: ='NSP Data'!D60 -> 269839.24 | E60: ='NSP Data'!E60 -> 818.65869 | F60: ='NSP Data'!F60 -> 50628.95 | G60: ='NSP Data'!G60 -> 24619.76 | H60: ='NSP Data'!H60 -> 3614.9911 | I60: ='NSP Data'!I60 -> 3344.1717 | J60: ='Gen Data'!$G$36/100 -> 1.087 | K60: =('NSP Data'!$M60*(1-'Gen Data'!$G11)*G60/($G60+$H60*5))/G60 -> 1.646836455 | L60: =('NSP Data'!$M60*(1-'Gen Data'!$G11)*H60*5/(G60+H60*5))/H60 -> 8.234182273 | M60: ='NSP Data'!$M60*'Gen Data'!G11/I60 -> 9.446015018 | N60: 156933.9787 | O60: 0.9694393924 | P60: 0 | Q60: 0 | R60: 0 | S60: 0 | T60: 0 | U60: 0 | V60: 0 | W60: 0 | X60: 0 | Y60: 0 | Z60: 0 | AA60: 0 | AB60: 0 | AC60: 0 | AD60: 0 | AE60: 0 | AF60: 0 | AG60: 0 | AH60: 0 | AI60: 0 | AJ60: 0 | AK60: 0 | AL60: 0 | AM60: 0 | AN60: 0 | AO60: 0 | AP60: 0 | AQ60: 0 | AR60: 0 | AS60: 0 | AT60: 0 | AU60: 0 | AV60: 0 | AW60: 0 | AX60: 0 | AY60: 0 | AZ60: 0 | BA60: 0 | BB60: 0 | BC60: 0 | BD60: 0 | BE60: 0 | BF60: 0 | BG60: 0 | BH60: 0 | BI60: 0 | BJ60: 0 | BK60: 0 | BL60: 0 | BM60: 0 | BN60: 0 | BO60: 0 | BP60: 0 | BQ60: 0 | BR60: 0 | BS60: 0 | BT60: 0 | BU60: 0 | BV60: 0 | BW60: 0 | BX60: 0 | BY60: 0 | BZ60: 0 | CA60: 0 | CB60: 0 | CC60: 0.2870194708 | CD60: 0 | CE60: 0 | CF60: 0.6656043534 | CG60: 0 | CH60: 0 | CI60: 0 | CJ60: 0 | CK60: 0 | CL60: 0 | CM60: 0 | CN60: 0 | CO60: 0
A61: 58 | B61: ='NSP Data'!$C61 -> 6 | C61: ='NSP Data'!$A61 -> 2010 | D61: ='NSP Data'!D61 -> 273347.05 | E61: ='NSP Data'!E61 -> 789.63488 | F61: ='NSP Data'!F61 -> 51588.56 | G61: ='NSP Data'!G61 -> 22343.698 | H61: ='NSP Data'!H61 -> 3589.0391 | I61: ='NSP Data'!I61 -> 3421.272 | J61: ='Gen Data'!$G$36/100 -> 1.087 | K61: =('NSP Data'!$M61*(1-'Gen Data'!$G12)*G61/($G61+$H61*5))/G61 -> 1.638217422 | L61: =('NSP Data'!$M61*(1-'Gen Data'!$G12)*H61*5/(G61+H61*5))/H61 -> 8.191087111 | M61: ='NSP Data'!$M61*'Gen Data'!G12/I61 -> 8.667261109 | N61: 151731.7897 | O61: 0.9840789544 | P61: 0 | Q61: 0 | R61: 0 | S61: 0 | T61: 0 | U61: 0 | V61: 0 | W61: 0 | X61: 0 | Y61: 0 | Z61: 0 | AA61: 0 | AB61: 0 | AC61: 0 | AD61: 0 | AE61: 0 | AF61: 0 | AG61: 0 | AH61: 0 | AI61: 0 | AJ61: 0 | AK61: 0 | AL61: 0 | AM61: 0 | AN61: 0 | AO61: 0 | AP61: 0 | AQ61: 0 | AR61: 0 | AS61: 0 | AT61: 0 | AU61: 0 | AV61: 0 | AW61: 0 | AX61: 0 | AY61: 0 | AZ61: 0 | BA61: 0 | BB61: 0 | BC61: 0 | BD61: 0 | BE61: 0 | BF61: 0 | BG61: 0 | BH61: 0 | BI61: 0 | BJ61: 0 | BK61: 0 | BL61: 0 | BM61: 0 | BN61: 0 | BO61: 0 | BP61: 0 | BQ61: 0 | BR61: 0 | BS61: 0 | BT61: 0 | BU61: 0 | BV61: 0 | BW61: 0 | BX61: 0 | BY61: 0 | BZ61: 0 | CA61: 0 | CB61: 0 | CC61: 0 | CD61: 0 | CE61: 0 | CF61: 0.2548334746 | CG61: 0 | CH61: 0.7114781882 | CI61: 0 | CJ61: 0 | CK61: 0 | CL61: 0 | CM61: 0 | CN61: 0 | CO61: 0
A62: 59 | B62: ='NSP Data'!$C62 -> 7 | C62: ='NSP Data'!$A62 -> 2010 | D62: ='NSP Data'!D62 -> 267032.34 | E62: ='NSP Data'!E62 -> 805.66873 | F62: ='NSP Data'!F62 -> 51283.767 | G62: ='NSP Data'!G62 -> 21540.124 | H62: ='NSP Data'!H62 -> 3552.5568 | I62: ='NSP Data'!I62 -> 3397.3775 | J62: ='Gen Data'!$G$36/100 -> 1.087 | K62: =('NSP Data'!$M62*(1-'Gen Data'!$G13)*G62/($G62+$H62*5))/G62 -> 1.756058587 | L62: =('NSP Data'!$M62*(1-'Gen Data'!$G13)*H62*5/(G62+H62*5))/H62 -> 8.780292937 | M62: ='NSP Data'!$M62*'Gen Data'!G13/I62 -> 9.127093148 | N62: 155771.8447 | O62: 0.9865453885 | P62: 0 | Q62: 0 | R62: 0 | S62: 0 | T62: 0 | U62: 0 | V62: 0 | W62: 0 | X62: 0 | Y62: 0 | Z62: 0 | AA62: 0 | AB62: 0 | AC62: 0 | AD62: 0 | AE62: 0 | AF62: 0 | AG62: 0 | AH62: 0 | AI62: 0 | AJ62: 0 | AK62: 0 | AL62: 0 | AM62: 0 | AN62: 0 | AO62: 0 | AP62: 0 | AQ62: 0 | AR62: 0 | AS62: 0 | AT62: 0 | AU62: 0 | AV62: 0 | AW62: 0 | AX62: 0 | AY62: 0 | AZ62: 0 | BA62: 0 | BB62: 0 | BC62: 0 | BD62: 0 | BE62: 0 | BF62: 0 | BG62: 0 | BH62: 0 | BI62: 0 | BJ62: 0 | BK62: 0 | BL62: 0 | BM62: 0 | BN62: 0 | BO62: 0 | BP62: 0 | BQ62: 0 | BR62: 0 | BS62: 0 | BT62: 0 | BU62: 0 | BV62: 0 | BW62: 0 | BX62: 0 | BY62: 0 | BZ62: 0 | CA62: 0 | CB62: 0 | CC62: 0.1611541398 | CD62: 0 | CE62: 0 | CF62: 0.7821940247 | CG62: 0 | CH62: 0 | CI62: 0 | CJ62: 0 | CK62: 0 | CL62: 0 | CM62: 0 | CN62: 0 | CO62: 0
A63: 60 | B63: ='NSP Data'!$C63 -> 8 | C63: ='NSP Data'!$A63 -> 2010 | D63: ='NSP Data'!D63 -> 254604.05 | E63: ='NSP Data'!E63 -> 777.11924 | F63: ='NSP Data'!F63 -> 51118.204 | G63: ='NSP Data'!G63 -> 21102.738 | H63: ='NSP Data'!H63 -> 3704.6959 | I63: ='NSP Data'!I63 -> 3413.0917 | J63: ='Gen Data'!$G$36/100 -> 1.087 | K63: =('NSP Data'!$M63*(1-'Gen Data'!$G14)*G63/($G63+$H63*5))/G63 -> 1.689149298 | L63: =('NSP Data'!$M63*(1-'Gen Data'!$G14)*H63*5/(G63+H63*5))/H63 -> 8.44574649 | M63: ='NSP Data'!$M63*'Gen Data'!G14/I63 -> 8.810799174 | N63: 152572.1507 | O63: 0.9417587311 | P63: 0 | Q63: 0 | R63: 0 | S63: 0 | T63: 0 | U63: 0 | V63: 0 | W63: 0 | X63: 0 | Y63: 0 | Z63: 0 | AA63: 0 | AB63: 0 | AC63: 0 | AD63: 0 | AE63: 0 | AF63: 0 | AG63: 0 | AH63: 0 | AI63: 0 | AJ63: 0 | AK63: 0 | AL63: 0 | AM63: 0 | AN63: 0 | AO63: 0 | AP63: 0 | AQ63: 0 | AR63: 0 | AS63: 0 | AT63: 0 | AU63: 0 | AV63: 0 | AW63: 0 | AX63: 0 | AY63: 0 | AZ63: 0 | BA63: 0 | BB63: 0 | BC63: 0 | BD63: 0 | BE63: 0 | BF63: 0 | BG63: 0 | BH63: 0 | BI63: 0 | BJ63: 0 | BK63: 0 | BL63: 0 | BM63: 0 | BN63: 0 | BO63: 0 | BP63: 0 | BQ63: 0 | BR63: 0 | BS63: 0 | BT63: 0 | BU63: 0 | BV63: 0 | BW63: 0 | BX63: 0 | BY63: 0 | BZ63: 0 | CA63: 0 | CB63: 0 | CC63: 0.3994078465 | CD63: 0 | CE63: 0 | CF63: 0.4987674904 | CG63: 0 | CH63: 0 | CI63: 0 | CJ63: 0 | CK63: 0 | CL63: 0 | CM63: 0 | CN63: 0 | CO63: 0
A64: 61 | B64: ='NSP Data'!$C64 -> 9 | C64: ='NSP Data'!$A64 -> 2010 | D64: ='NSP Data'!D64 -> 260847.49 | E64: ='NSP Data'!E64 -> 776.19819 | F64: ='NSP Data'!F64 -> 50910.304 | G64: ='NSP Data'!G64 -> 20579.157 | H64: ='NSP Data'!H64 -> 3591.1501 | I64: ='NSP Data'!I64 -> 3305.6918 | J64: ='Gen Data'!$G$36/100 -> 1.087 | K64: =('NSP Data'!$M64*(1-'Gen Data'!$G15)*G64/($G64+$H64*5))/G64 -> 1.786739118 | L64: =('NSP Data'!$M64*(1-'Gen Data'!$G15)*H64*5/(G64+H64*5))/H64 -> 8.93369559 | M64: ='NSP Data'!$M64*'Gen Data'!G15/I64 -> 9.357626552 | N64: 155124.7564 | O64: 0.975650089 | P64: 0 | Q64: 0 | R64: 0 | S64: 0 | T64: 0 | U64: 0 | V64: 0 | W64: 0 | X64: 0 | Y64: 0 | Z64: 0 | AA64: 0 | AB64: 0 | AC64: 0 | AD64: 0 | AE64: 0 | AF64: 0 | AG64: 0 | AH64: 0 | AI64: 0 | AJ64: 0 | AK64: 0 | AL64: 0 | AM64: 0 | AN64: 0 | AO64: 0 | AP64: 0 | AQ64: 0 | AR64: 0 | AS64: 0 | AT64: 0 | AU64: 0 | AV64: 0 | AW64: 0 | AX64: 0 | AY64: 0 | AZ64: 0 | BA64: 0 | BB64: 0 | BC64: 0 | BD64: 0 | BE64: 0 | BF64: 0 | BG64: 0 | BH64: 0 | BI64: 0 | BJ64: 0 | BK64: 0 | BL64: 0 | BM64: 0 | BN64: 0 | BO64: 0 | BP64: 0 | BQ64: 0 | BR64: 0 | BS64: 0 | BT64: 0 | BU64: 0 | BV64: 0 | BW64: 0 | BX64: 0 | BY64: 0 | BZ64: 0 | CA64: 0 | CB64: 0 | CC64: 0 | CD64: 0 | CE64: 0 | CF64: 0.7980295724 | CG64: 0 | CH64: 0.1242469789 | CI64: 0 | CJ64: 0 | CK64: 0 | CL64: 0 | CM64: 0 | CN64: 0 | CO64: 0
A65: 62 | B65: ='NSP Data'!$C65 -> 10 | C65: ='NSP Data'!$A65 -> 2010 | D65: ='NSP Data'!D65 -> 262926.95 | E65: ='NSP Data'!E65 -> 757.94729 | F65: ='NSP Data'!F65 -> 52108.901 | G65: ='NSP Data'!G65 -> 19718.994 | H65: ='NSP Data'!H65 -> 3749.6958 | I65: ='NSP Data'!I65 -> 3202.7645 | J65: ='Gen Data'!$G$36/100 -> 1.087 | K65: =('NSP Data'!$M65*(1-'Gen Data'!$G16)*G65/($G65+$H65*5))/G65 -> 1.732815189 | L65: =('NSP Data'!$M65*(1-'Gen Data'!$G16)*H65*5/(G65+H65*5))/H65 -> 8.664075947 | M65: ='NSP Data'!$M65*'Gen Data'!G16/I65 -> 9.350471285 | N65: 153246.7544 | O65: 0.9752373681 | P65: 0 | Q65: 0 | R65: 0 | S65: 0 | T65: 0 | U65: 0 | V65: 0 | W65: 0 | X65: 0 | Y65: 0 | Z65: 0 | AA65: 0 | AB65: 0 | AC65: 0 | AD65: 0 | AE65: 0 | AF65: 0 | AG65: 0 | AH65: 0 | AI65: 0 | AJ65: 0 | AK65: 0 | AL65: 0 | AM65: 0 | AN65: 0 | AO65: 0 | AP65: 0 | AQ65: 0 | AR65: 0 | AS65: 0 | AT65: 0 | AU65: 0 | AV65: 0 | AW65: 0 | AX65: 0 | AY65: 0 | AZ65: 0 | BA65: 0 | BB65: 0 | BC65: 0 | BD65: 0 | BE65: 0 | BF65: 0 | BG65: 0 | BH65: 0 | BI65: 0 | BJ65: 0 | BK65: 0 | BL65: 0 | BM65: 0 | BN65: 0 | BO65: 0 | BP65: 0 | BQ65: 0 | BR65: 0 | BS65: 0 | BT65: 0 | BU65: 0 | BV65: 0 | BW65: 0 | BX65: 0 | BY65: 0 | BZ65: 0 | CA65: 0 | CB65: 0 | CC65: 0 | CD65: 0 | CE65: 0 | CF65: 0.2062948864 | CG65: 0 | CH65: 0.7231699356 | CI65: 0 | CJ65: 0 | CK65: 0 | CL65: 0 | CM65: 0 | CN65: 0 | CO65: 0
A66: 63 | B66: ='NSP Data'!$C66 -> 11 | C66: ='NSP Data'!$A66 -> 2010 | D66: ='NSP Data'!D66 -> 253076.93 | E66: ='NSP Data'!E66 -> 744.70677 | F66: ='NSP Data'!F66 -> 50739.356 | G66: ='NSP Data'!G66 -> 18122.11 | H66: ='NSP Data'!H66 -> 3701.6207 | I66: ='NSP Data'!I66 -> 3176.7813 | J66: ='Gen Data'!$G$36/100 -> 1.087 | K66: =('NSP Data'!$M66*(1-'Gen Data'!$G17)*G66/($G66+$H66*5))/G66 -> 1.785480705 | L66: =('NSP Data'!$M66*(1-'Gen Data'!$G17)*H66*5/(G66+H66*5))/H66 -> 8.927403523 | M66: ='NSP Data'!$M66*'Gen Data'!G17/I66 -> 9.249534927 | N66: 149939.969 | O66: 0.9745631037 | P66: 0 | Q66: 0 | R66: 0 | S66: 0 | T66: 0 | U66: 0 | V66: 0 | W66: 0 | X66: 0 | Y66: 0 | Z66: 0 | AA66: 0 | AB66: 0 | AC66: 0 | AD66: 0 | AE66: 0 | AF66: 0 | AG66: 0 | AH66: 0 | AI66: 0 | AJ66: 0 | AK66: 0 | AL66: 0 | AM66: 0 | AN66: 0 | AO66: 0 | AP66: 0 | AQ66: 0 | AR66: 0 | AS66: 0 | AT66: 0 | AU66: 0 | AV66: 0 | AW66: 0 | AX66: 0 | AY66: 0 | AZ66: 0 | BA66: 0 | BB66: 0 | BC66: 0 | BD66: 0 | BE66: 0 | BF66: 0 | BG66: 0 | BH66: 0 | BI66: 0 | BJ66: 0 | BK66: 0 | BL66: 0 | BM66: 0 | BN66: 0 | BO66: 0 | BP66: 0 | BQ66: 0 | BR66: 0 | BS66: 0 | BT66: 0 | BU66: 0 | BV66: 0 | BW66: 0 | BX66: 0 | BY66: 0 | BZ66: 0 | CA66: 0 | CB66: 0 | CC66: 0 | CD66: 0 | CE66: 0 | CF66: 0.5694457257 | CG66: 0 | CH66: 0.3253003332 | CI66: 0 | CJ66: 0 | CK66: 0 | CL66: 0 | CM66: 0 | CN66: 0 | CO66: 0
A67: 64 | B67: ='NSP Data'!$C67 -> 12 | C67: ='NSP Data'!$A67 -> 2010 | D67: ='NSP Data'!D67 -> 257308.63 | E67: ='NSP Data'!E67 -> 744.1568 | F67: ='NSP Data'!F67 -> 51671.824 | G67: ='NSP Data'!G67 -> 17335.9 | H67: ='NSP Data'!H67 -> 3902.2071 | I67: ='NSP Data'!I67 -> 3155.0231 | J67: ='Gen Data'!$G$36/100 -> 1.087 | K67: =('NSP Data'!$M67*(1-'Gen Data'!$G18)*G67/($G67+$H67*5))/G67 -> 1.766614023 | L67: =('NSP Data'!$M67*(1-'Gen Data'!$G18)*H67*5/(G67+H67*5))/H67 -> 8.833070115 | M67: ='NSP Data'!$M67*'Gen Data'!G18/I67 -> 9.269431669 | N67: 150506.8567 | O67: 0.9792864903 | P67: 0 | Q67: 0 | R67: 0 | S67: 0 | T67: 0 | U67: 0 | V67: 0 | W67: 0 | X67: 0 | Y67: 0 | Z67: 0 | AA67: 0 | AB67: 0 | AC67: 0 | AD67: 0 | AE67: 0 | AF67: 0 | AG67: 0 | AH67: 0 | AI67: 0 | AJ67: 0 | AK67: 0 | AL67: 0 | AM67: 0 | AN67: 0 | AO67: 0 | AP67: 0 | AQ67: 0 | AR67: 0 | AS67: 0 | AT67: 0 | AU67: 0 | AV67: 0 | AW67: 0 | AX67: 0 | AY67: 0 | AZ67: 0 | BA67: 0 | BB67: 0 | BC67: 0 | BD67: 0 | BE67: 0 | BF67: 0 | BG67: 0 | BH67: 0 | BI67: 0 | BJ67: 0 | BK67: 0 | BL67: 0 | BM67: 0 | BN67: 0 | BO67: 0 | BP67: 0 | BQ67: 0 | BR67: 0 | BS67: 0 | BT67: 0 | BU67: 0 | BV67: 0 | BW67: 0 | BX67: 0 | BY67: 0 | BZ67: 0 | CA67: 0 | CB67: 0 | CC67: 0 | CD67: 0 | CE67: 0 | CF67: 0.2607599248 | CG67: 0 | CH67: 0.6488598995 | CI67: 0 | CJ67: 0 | CK67: 0 | CL67: 0 | CM67: 0 | CN67: 0 | CO67: 0
A68: 65 | B68: ='NSP Data'!$C68 -> 13 | C68: ='NSP Data'!$A68 -> 2010 | D68: ='NSP Data'!D68 -> 254699.65 | E68: ='NSP Data'!E68 -> 743.32949 | F68: ='NSP Data'!F68 -> 52577.402 | G68: ='NSP Data'!G68 -> 16718.352 | H68: ='NSP Data'!H68 -> 3730.2514 | I68: ='NSP Data'!I68 -> 3172.4206 | J68: ='Gen Data'!$G$36/100 -> 1.087 | K68: =('NSP Data'!$M68*(1-'Gen Data'!$G19)*G68/($G68+$H68*5))/G68 -> 1.870183116 | L68: =('NSP Data'!$M68*(1-'Gen Data'!$G19)*H68*5/(G68+H68*5))/H68 -> 9.35091558 | M68: ='NSP Data'!$M68*'Gen Data'!G19/I68 -> 9.367770286 | N68: 153017.789 | O68: 0.9831055261 | P68: 0 | Q68: 0 | R68: 0 | S68: 0 | T68: 0 | U68: 0 | V68: 0 | W68: 0 | X68: 0 | Y68: 0 | Z68: 0 | AA68: 0 | AB68: 0 | AC68: 0 | AD68: 0 | AE68: 0 | AF68: 0 | AG68: 0 | AH68: 0 | AI68: 0 | AJ68: 0 | AK68: 0 | AL68: 0 | AM68: 0 | AN68: 0 | AO68: 0 | AP68: 0 | AQ68: 0 | AR68: 0 | AS68: 0 | AT68: 0 | AU68: 0 | AV68: 0 | AW68: 0 | AX68: 0 | AY68: 0 | AZ68: 0 | BA68: 0 | BB68: 0 | BC68: 0 | BD68: 0 | BE68: 0 | BF68: 0 | BG68: 0 | BH68: 0 | BI68: 0 | BJ68: 0 | BK68: 0 | BL68: 0 | BM68: 0 | BN68: 0 | BO68: 0 | BP68: 0 | BQ68: 0 | BR68: 0 | BS68: 0 | BT68: 0 | BU68: 0 | BV68: 0 | BW68: 0 | BX68: 0 | BY68: 0 | BZ68: 0 | CA68: 0 | CB68: 0 | CC68: 0 | CD68: 0 | CE68: 0 | CF68: 0.4225294 | CG68: 0 | CH68: 0.4779124365 | CI68: 0 | CJ68: 0 | CK68: 0 | CL68: 0 | CM68: 0 | CN68: 0 | CO68: 0
A69: 66 | B69: ='NSP Data'!$C69 -> 1 | C69: ='NSP Data'!$A69 -> 2011 | D69: ='NSP Data'!D69 -> 284277.96 | E69: ='NSP Data'!E69 -> 887.86511 | F69: ='NSP Data'!F69 -> 49576.944 | G69: ='NSP Data'!G69 -> 27194.234 | H69: ='NSP Data'!H69 -> 3684.1805 | I69: ='NSP Data'!I69 -> 3551.694 | J69: ='Gen Data'!$H$36/100 -> 1.126 | K69: =('NSP Data'!$M69*(1-'Gen Data'!$G7)*G69/($G69+$H69*5))/G69 -> 1.602777243 | L69: =('NSP Data'!$M69*(1-'Gen Data'!$G7)*H69*5/(G69+H69*5))/H69 -> 8.013886213 | M69: ='NSP Data'!$M69*'Gen Data'!G7/I69 -> 9.248242472 | N69: =SUMPRODUCT(F69:I69,J69:M69) -> 161781.4689 | O69: 1 | P69: 0 | Q69: 0 | R69: 0 | S69: 0 | T69: 0 | U69: 0 | V69: 0 | W69: 0 | X69: 0 | Y69: 0 | Z69: 0 | AA69: 0 | AB69: 0 | AC69: 0 | AD69: 0 | AE69: 0 | AF69: 0 | AG69: 0 | AH69: 0 | AI69: 0 | AJ69: 0 | AK69: 0 | AL69: 0 | AM69: 0 | AN69: 0 | AO69: 0 | AP69: 0 | AQ69: 0 | AR69: 0 | AS69: 0 | AT69: 0 | AU69: 0 | AV69: 0 | AW69: 0 | AX69: 0 | AY69: 0 | AZ69: 0 | BA69: 0 | BB69: 0 | BC69: 0 | BD69: 0 | BE69: 0 | BF69: 0 | BG69: 0 | BH69: 0 | BI69: 0 | BJ69: 0 | BK69: 0 | BL69: 0 | BM69: 0 | BN69: 0 | BO69: 0 | BP69: 0 | BQ69: 0 | BR69: 0 | BS69: 0 | BT69: 0 | BU69: 0 | BV69: 0 | BW69: 0 | BX69: 0 | BY69: 0 | BZ69: 0 | CA69: 0 | CB69: 0 | CC69: 0.9999999998 | CD69: 0 | CE69: 0 | CF69: 1.714419717e-10 | CG69: 0 | CH69: 0 | CI69: 0 | CJ69: 0 | CK69: 0 | CL69: 0 | CM69: 0 | CN69: 0 | CO69: 0
A70: 67 | B70: ='NSP Data'!$C70 -> 2 | C70: ='NSP Data'!$A70 -> 2011 | D70: ='NSP Data'!D70 -> 284748.05 | E70: ='NSP Data'!E70 -> 888.06908 | F70: ='NSP Data'!F70 -> 51563.817 | G70: ='NSP Data'!G70 -> 28087.79 | H70: ='NSP Data'!H70 -> 3723.7079 | I70: ='NSP Data'!I70 -> 3528.6811 | J70: ='Gen Data'!$H$36/100 -> 1.126 | K70: =('NSP Data'!$M70*(1-'Gen Data'!$G8)*G70/($G70+$H70*5))/G70 -> 1.620926885 | L70: =('NSP Data'!$M70*(1-'Gen Data'!$G8)*H70*5/(G70+H70*5))/H70 -> 8.104634426 | M70: ='NSP Data'!$M70*'Gen Data'!G8/I70 -> 9.639163709 | N70: 167781.9379 | O70: 0.9783911312 | P70: 0 | Q70: 0 | R70: 0 | S70: 0 | T70: 0 | U70: 0 | V70: 0 | W70: 0 | X70: 0 | Y70: 0 | Z70: 0 | AA70: 0 | AB70: 0 | AC70: 0 | AD70: 0 | AE70: 0 | AF70: 0 | AG70: 0 | AH70: 0 | AI70: 0 | AJ70: 0 | AK70: 0 | AL70: 0 | AM70: 0 | AN70: 0 | AO70: 0 | AP70: 0 | AQ70: 0 | AR70: 0 | AS70: 0 | AT70: 0 | AU70: 0 | AV70: 0 | AW70: 0 | AX70: 0 | AY70: 0 | AZ70: 0 | BA70: 0 | BB70: 0 | BC70: 0 | BD70: 0 | BE70: 0 | BF70: 0 | BG70: 0 | BH70: 0 | BI70: 0 | BJ70: 0 | BK70: 0 | BL70: 0 | BM70: 0 | BN70: 0 | BO70: 0 | BP70: 0 | BQ70: 0 | BR70: 0 | BS70: 0 | BT70: 0 | BU70: 0 | BV70: 0 | BW70: 0 | BX70: 0 | BY70: 0 | BZ70: 0 | CA70: 0 | CB70: 0 | CC70: 0.9669325732 | CD70: 0 | CE70: 0 | CF70: 0.03490009897 | CG70: 0 | CH70: 0 | CI70: 0 | CJ70: 0 | CK70: 0 | CL70: 0 | CM70: 0 | CN70: 0 | CO70: 0
A71: 68 | B71: ='NSP Data'!$C71 -> 3 | C71: ='NSP Data'!$A71 -> 2011 | D71: ='NSP Data'!D71 -> 270907.36 | E71: ='NSP Data'!E71 -> 856.61974 | F71: ='NSP Data'!F71 -> 52086.043 | G71: ='NSP Data'!G71 -> 25294.577 | H71: ='NSP Data'!H71 -> 3752.3986 | I71: ='NSP Data'!I71 -> 3384.7825 | J71: ='Gen Data'!$H$36/100 -> 1.126 | K71: =('NSP Data'!$M71*(1-'Gen Data'!$G9)*G71/($G71+$H71*5))/G71 -> 1.658468312 | L71: =('NSP Data'!$M71*(1-'Gen Data'!$G9)*H71*5/(G71+H71*5))/H71 -> 8.292341562 | M71: ='NSP Data'!$M71*'Gen Data'!G9/I71 -> 9.698391167 | N71: 164542.2544 | O71: 0.9728905697 | P71: 0 | Q71: 0 | R71: 0 | S71: 0 | T71: 0 | U71: 0 | V71: 0 | W71: 0 | X71: 0 | Y71: 0 | Z71: 0 | AA71: 0 | AB71: 0 | AC71: 0 | AD71: 0 | AE71: 0 | AF71: 0 | AG71: 0 | AH71: 0 | AI71: 0 | AJ71: 0 | AK71: 0 | AL71: 0 | AM71: 0 | AN71: 0 | AO71: 0 | AP71: 0 | AQ71: 0 | AR71: 0 | AS71: 0 | AT71: 0 | AU71: 0 | AV71: 0 | AW71: 0 | AX71: 0 | AY71: 0 | AZ71: 0 | BA71: 0 | BB71: 0 | BC71: 0 | BD71: 0 | BE71: 0 | BF71: 0 | BG71: 0 | BH71: 0 | BI71: 0 | BJ71: 0 | BK71: 0 | BL71: 0 | BM71: 0 | BN71: 0 | BO71: 0 | BP71: 0 | BQ71: 0 | BR71: 0 | BS71: 0 | BT71: 0 | BU71: 0 | BV71: 0 | BW71: 0 | BX71: 0 | BY71: 0 | BZ71: 0 | CA71: 0 | CB71: 0 | CC71: 0.9648084268 | CD71: 0 | CE71: 0 | CF71: 0 | CG71: 0 | CH71: 0 | CI71: 0 | CJ71: 0 | CK71: 0 | CL71: 0 | CM71: 0 | CN71: 0 | CO71: 0
A72: 69 | B72: ='NSP Data'!$C72 -> 4 | C72: ='NSP Data'!$A72 -> 2011 | D72: ='NSP Data'!D72 -> 282819.56 | E72: ='NSP Data'!E72 -> 847.08598 | F72: ='NSP Data'!F72 -> 49654.068 | G72: ='NSP Data'!G72 -> 25438.474 | H72: ='NSP Data'!H72 -> 3695.4159 | I72: ='NSP Data'!I72 -> 3406.3982 | J72: ='Gen Data'!$H$36/100 -> 1.126 | K72: =('NSP Data'!$M72*(1-'Gen Data'!$G10)*G72/($G72+$H72*5))/G72 -> 1.67495275 | L72: =('NSP Data'!$M72*(1-'Gen Data'!$G10)*H72*5/(G72+H72*5))/H72 -> 8.37476375 | M72: ='NSP Data'!$M72*'Gen Data'!G10/I72 -> 9.70148261 | N72: 162514.0706 | O72: 1 | P72: 0 | Q72: 0 | R72: 0 | S72: 0 | T72: 0 | U72: 0 | V72: 0 | W72: 0 | X72: 0 | Y72: 0 | Z72: 0 | AA72: 0 | AB72: 0 | AC72: 0 | AD72: 0 | AE72: 0 | AF72: 0 | AG72: 0 | AH72: 0 | AI72: 0 | AJ72: 0 | AK72: 0 | AL72: 0 | AM72: 0 | AN72: 0 | AO72: 0 | AP72: 0 | AQ72: 0 | AR72: 0 | AS72: 0 | AT72: 0 | AU72: 0 | AV72: 0 | AW72: 0 | AX72: 0 | AY72: 0 | AZ72: 0 | BA72: 0 | BB72: 0 | BC72: 0 | BD72: 0 | BE72: 0 | BF72: 0 | BG72: 0 | BH72: 0 | BI72: 0 | BJ72: 0 | BK72: 0 | BL72: 0 | BM72: 0 | BN72: 0 | BO72: 0 | BP72: 0 | BQ72: 0 | BR72: 0 | BS72: 0 | BT72: 0 | BU72: 0 | BV72: 0 | BW72: 0 | BX72: 0 | BY72: 0 | BZ72: 0 | CA72: 0 | CB72: 0 | CC72: 7.586775652e-11 | CD72: 0 | CE72: 0 | CF72: 0.9999999999 | CG72: 0 | CH72: 0 | CI72: 0 | CJ72: 0 | CK72: 0 | CL72: 0 | CM72: 0 | CN72: 0 | CO72: 0
A73: 70 | B73: ='NSP Data'!$C73 -> 5 | C73: ='NSP Data'!$A73 -> 2011 | D73: ='NSP Data'!D73 -> 275203.03 | E73: ='NSP Data'!E73 -> 844.21759 | F73: ='NSP Data'!F73 -> 51026.674 | G73: ='NSP Data'!G73 -> 24838.895 | H73: ='NSP Data'!H73 -> 3845.3099 | I73: ='NSP Data'!I73 -> 3451.7702 | J73: ='Gen Data'!$H$36/100 -> 1.126 | K73: =('NSP Data'!$M73*(1-'Gen Data'!$G11)*G73/($G73+$H73*5))/G73 -> 1.732193038 | L73: =('NSP Data'!$M73*(1-'Gen Data'!$G11)*H73*5/(G73+H73*5))/H73 -> 8.660965192 | M73: ='NSP Data'!$M73*'Gen Data'!G11/I73 -> 9.934938253 | N73: 168079.0149 | O73: 0.9712375226 | P73: 0 | Q73: 0 | R73: 0 | S73: 0 | T73: 0 | U73: 0 | V73: 0 | W73: 0 | X73: 0 | Y73: 0 | Z73: 0 | AA73: 0 | AB73: 0 | AC73: 0 | AD73: 0 | AE73: 0 | AF73: 0 | AG73: 0 | AH73: 0 | AI73: 0 | AJ73: 0 | AK73: 0 | AL73: 0 | AM73: 0 | AN73: 0 | AO73: 0 | AP73: 0 | AQ73: 0 | AR73: 0 | AS73: 0 | AT73: 0 | AU73: 0 | AV73: 0 | AW73: 0 | AX73: 0 | AY73: 0 | AZ73: 0 | BA73: 0 | BB73: 0 | BC73: 0 | BD73: 0 | BE73: 0 | BF73: 0 | BG73: 0 | BH73: 0 | BI73: 0 | BJ73: 0 | BK73: 0 | BL73: 0 | BM73: 0 | BN73: 0 | BO73: 0 | BP73: 0 | BQ73: 0 | BR73: 0 | BS73: 0 | BT73: 0 | BU73: 0 | BV73: 0 | BW73: 0 | BX73: 0 | BY73: 0 | BZ73: 0 | CA73: 0 | CB73: 0 | CC73: 0.5477528097 | CD73: 0 | CE73: 0 | CF73: 0.4224919191 | CG73: 0 | CH73: 0 | CI73: 0 | CJ73: 0 | CK73: 0 | CL73: 0 | CM73: 0 | CN73: 0 | CO73: 0
A74: 71 | B74: ='NSP Data'!$C74 -> 6 | C74: ='NSP Data'!$A74 -> 2011 | D74: ='NSP Data'!D74 -> 282897.16 | E74: ='NSP Data'!E74 -> 806.44639 | F74: ='NSP Data'!F74 -> 51857.539 | G74: ='NSP Data'!G74 -> 22312.988 | H74: ='NSP Data'!H74 -> 3829.2379 | I74: ='NSP Data'!I74 -> 3450.2171 | J74: ='Gen Data'!$H$36/100 -> 1.126 | K74: =('NSP Data'!$M74*(1-'Gen Data'!$G12)*G74/($G74+$H74*5))/G74 -> 1.738898071 | L74: =('NSP Data'!$M74*(1-'Gen Data'!$G12)*H74*5/(G74+H74*5))/H74 -> 8.694490357 | M74: ='NSP Data'!$M74*'Gen Data'!G12/I74 -> 9.387738586 | N74: 162874.6089 | O74: 1 | P74: 0 | Q74: 0 | R74: 0 | S74: 0 | T74: 0 | U74: 0 | V74: 0 | W74: 0 | X74: 0 | Y74: 0 | Z74: 0 | AA74: 0 | AB74: 0 | AC74: 0 | AD74: 0 | AE74: 0 | AF74: 0 | AG74: 0 | AH74: 0 | AI74: 0 | AJ74: 0 | AK74: 0 | AL74: 0 | AM74: 0 | AN74: 0 | AO74: 0 | AP74: 0 | AQ74: 0 | AR74: 0 | AS74: 0 | AT74: 0 | AU74: 0 | AV74: 0 | AW74: 0 | AX74: 0 | AY74: 0 | AZ74: 0 | BA74: 0 | BB74: 0 | BC74: 0 | BD74: 0 | BE74: 0 | BF74: 0 | BG74: 0 | BH74: 0 | BI74: 0 | BJ74: 0 | BK74: 0 | BL74: 0 | BM74: 0 | BN74: 0 | BO74: 0 | BP74: 0 | BQ74: 0 | BR74: 0 | BS74: 0 | BT74: 0 | BU74: 0 | BV74: 0 | BW74: 0 | BX74: 0 | BY74: 0 | BZ74: 0 | CA74: 0 | CB74: 0 | CC74: 0 | CD74: 0 | CE74: 0 | CF74: 0 | CG74: 0 | CH74: 1 | CI74: 0 | CJ74: 0 | CK74: 0 | CL74: 0 | CM74: 0 | CN74: 0 | CO74: 0
A75: 72 | B75: ='NSP Data'!$C75 -> 7 | C75: ='NSP Data'!$A75 -> 2011 | D75: ='NSP Data'!D75 -> 273378.21 | E75: ='NSP Data'!E75 -> 816.24135 | F75: ='NSP Data'!F75 -> 51712.394 | G75: ='NSP Data'!G75 -> 21585.481 | H75: ='NSP Data'!H75 -> 3798.2893 | I75: ='NSP Data'!I75 -> 3436.9077 | J75: ='Gen Data'!$H$36/100 -> 1.126 | K75: =('NSP Data'!$M75*(1-'Gen Data'!$G13)*G75/($G75+$H75*5))/G75 -> 1.86541188 | L75: =('NSP Data'!$M75*(1-'Gen Data'!$G13)*H75*5/(G75+H75*5))/H75 -> 9.327059398 | M75: ='NSP Data'!$M75*'Gen Data'!G13/I75 -> 9.894608866 | N75: 167927.6956 | O75: 0.9867462071 | P75: 0 | Q75: 0 | R75: 0 | S75: 0 | T75: 0 | U75: 0 | V75: 0 | W75: 0 | X75: 0 | Y75: 0 | Z75: 0 | AA75: 0 | AB75: 0 | AC75: 0 | AD75: 0 | AE75: 0 | AF75: 0 | AG75: 0 | AH75: 0 | AI75: 0 | AJ75: 0 | AK75: 0 | AL75: 0 | AM75: 0 | AN75: 0 | AO75: 0 | AP75: 0 | AQ75: 0 | AR75: 0 | AS75: 0 | AT75: 0 | AU75: 0 | AV75: 0 | AW75: 0 | AX75: 0 | AY75: 0 | AZ75: 0 | BA75: 0 | BB75: 0 | BC75: 0 | BD75: 0 | BE75: 0 | BF75: 0 | BG75: 0 | BH75: 0 | BI75: 0 | BJ75: 0 | BK75: 0 | BL75: 0 | BM75: 0 | BN75: 0 | BO75: 0 | BP75: 0 | BQ75: 0 | BR75: 0 | BS75: 0 | BT75: 0 | BU75: 0 | BV75: 0 | BW75: 0 | BX75: 0 | BY75: 0 | BZ75: 0 | CA75: 0 | CB75: 0 | CC75: 0 | CD75: 0 | CE75: 0 | CF75: 0.9038085767 | CG75: 0 | CH75: 0.06279124898 | CI75: 0 | CJ75: 0 | CK75: 0 | CL75: 0 | CM75: 0 | CN75: 0 | CO75: 0
A76: 73 | B76: ='NSP Data'!$C76 -> 8 | C76: ='NSP Data'!$A76 -> 2011 | D76: ='NSP Data'!D76 -> 262877.14 | E76: ='NSP Data'!E76 -> 794.18049 | F76: ='NSP Data'!F76 -> 51123.021 | G76: ='NSP Data'!G76 -> 21281.416 | H76: ='NSP Data'!H76 -> 3954.1682 | I76: ='NSP Data'!I76 -> 3411.9822 | J76: ='Gen Data'!$H$36/100 -> 1.126 | K76: =('NSP Data'!$M76*(1-'Gen Data'!$G14)*G76/($G76+$H76*5))/G76 -> 1.80040113 | L76: =('NSP Data'!$M76*(1-'Gen Data'!$G14)*H76*5/(G76+H76*5))/H76 -> 9.002005651 | M76: ='NSP Data'!$M76*'Gen Data'!G14/I76 -> 9.732225479 | N76: 164681.2316 | O76: 0.9529475354 | P76: 0 | Q76: 0 | R76: 0 | S76: 0 | T76: 0 | U76: 0 | V76: 0 | W76: 0 | X76: 0 | Y76: 0 | Z76: 0 | AA76: 0 | AB76: 0 | AC76: 0 | AD76: 0 | AE76: 0 | AF76: 0 | AG76: 0 | AH76: 0 | AI76: 0 | AJ76: 0 | AK76: 0 | AL76: 0 | AM76: 0 | AN76: 0 | AO76: 0 | AP76: 0 | AQ76: 0 | AR76: 0 | AS76: 0 | AT76: 0 | AU76: 0 | AV76: 0 | AW76: 0 | AX76: 0 | AY76: 0 | AZ76: 0 | BA76: 0 | BB76: 0 | BC76: 0 | BD76: 0 | BE76: 0 | BF76: 0 | BG76: 0 | BH76: 0 | BI76: 0 | BJ76: 0 | BK76: 0 | BL76: 0 | BM76: 0 | BN76: 0 | BO76: 0 | BP76: 0 | BQ76: 0 | BR76: 0 | BS76: 0 | BT76: 0 | BU76: 0 | BV76: 0 | BW76: 0 | BX76: 0 | BY76: 0 | BZ76: 0 | CA76: 0 | CB76: 0 | CC76: 0.1874426789 | CD76: 0 | CE76: 0 | CF76: 0.7410778718 | CG76: 0 | CH76: 0 | CI76: 0 | CJ76: 0 | CK76: 0 | CL76: 0 | CM76: 0 | CN76: 0 | CO76: 0
A77: 74 | B77: ='NSP Data'!$C77 -> 9 | C77: ='NSP Data'!$A77 -> 2011 | D77: ='NSP Data'!D77 -> 265488.07 | E77: ='NSP Data'!E77 -> 785.37496 | F77: ='NSP Data'!F77 -> 50624.664 | G77: ='NSP Data'!G77 -> 20507.921 | H77: ='NSP Data'!H77 -> 3811.9959 | I77: ='NSP Data'!I77 -> 3302.6041 | J77: ='Gen Data'!$H$36/100 -> 1.126 | K77: =('NSP Data'!$M77*(1-'Gen Data'!$G15)*G77/($G77+$H77*5))/G77 -> 1.885130847 | L77: =('NSP Data'!$M77*(1-'Gen Data'!$G15)*H77*5/(G77+H77*5))/H77 -> 9.425654237 | M77: ='NSP Data'!$M77*'Gen Data'!G15/I77 -> 10.14706855 | N77: 165105.7917 | O77: 0.982546475 | P77: 0 | Q77: 0 | R77: 0 | S77: 0 | T77: 0 | U77: 0 | V77: 0 | W77: 0 | X77: 0 | Y77: 0 | Z77: 0 | AA77: 0 | AB77: 0 | AC77: 0 | AD77: 0 | AE77: 0 | AF77: 0 | AG77: 0 | AH77: 0 | AI77: 0 | AJ77: 0 | AK77: 0 | AL77: 0 | AM77: 0 | AN77: 0 | AO77: 0 | AP77: 0 | AQ77: 0 | AR77: 0 | AS77: 0 | AT77: 0 | AU77: 0 | AV77: 0 | AW77: 0 | AX77: 0 | AY77: 0 | AZ77: 0 | BA77: 0 | BB77: 0 | BC77: 0 | BD77: 0 | BE77: 0 | BF77: 0 | BG77: 0 | BH77: 0 | BI77: 0 | BJ77: 0 | BK77: 0 | BL77: 0 | BM77: 0 | BN77: 0 | BO77: 0 | BP77: 0 | BQ77: 0 | BR77: 0 | BS77: 0 | BT77: 0 | BU77: 0 | BV77: 0 | BW77: 0 | BX77: 0 | BY77: 0 | BZ77: 0 | CA77: 0 | CB77: 0 | CC77: 0 | CD77: 0 | CE77: 0 | CF77: 0.6988638424 | CG77: 0 | CH77: 0.2397892774 | CI77: 0 | CJ77: 0 | CK77: 0 | CL77: 0 | CM77: 0 | CN77: 0 | CO77: 0
A78: 75 | B78: ='NSP Data'!$C78 -> 10 | C78: ='NSP Data'!$A78 -> 2011 | D78: ='NSP Data'!D78 -> 271073.27 | E78: ='NSP Data'!E78 -> 767.81405 | F78: ='NSP Data'!F78 -> 52008.993 | G78: ='NSP Data'!G78 -> 19577.834 | H78: ='NSP Data'!H78 -> 3980.6712 | I78: ='NSP Data'!I78 -> 3227.0066 | J78: ='Gen Data'!$H$36/100 -> 1.126 | K78: =('NSP Data'!$M78*(1-'Gen Data'!$G16)*G78/($G78+$H78*5))/G78 -> 1.868824924 | L78: =('NSP Data'!$M78*(1-'Gen Data'!$G16)*H78*5/(G78+H78*5))/H78 -> 9.34412462 | M78: ='NSP Data'!$M78*'Gen Data'!G16/I78 -> 10.27239241 | N78: 165494.6361 | O78: 0.9918952629 | P78: 0 | Q78: 0 | R78: 0 | S78: 0 | T78: 0 | U78: 0 | V78: 0 | W78: 0 | X78: 0 | Y78: 0 | Z78: 0 | AA78: 0 | AB78: 0 | AC78: 0 | AD78: 0 | AE78: 0 | AF78: 0 | AG78: 0 | AH78: 0 | AI78: 0 | AJ78: 0 | AK78: 0 | AL78: 0 | AM78: 0 | AN78: 0 | AO78: 0 | AP78: 0 | AQ78: 0 | AR78: 0 | AS78: 0 | AT78: 0 | AU78: 0 | AV78: 0 | AW78: 0 | AX78: 0 | AY78: 0 | AZ78: 0 | BA78: 0 | BB78: 0 | BC78: 0 | BD78: 0 | BE78: 0 | BF78: 0 | BG78: 0 | BH78: 0 | BI78: 0 | BJ78: 0 | BK78: 0 | BL78: 0 | BM78: 0 | BN78: 0 | BO78: 0 | BP78: 0 | BQ78: 0 | BR78: 0 | BS78: 0 | BT78: 0 | BU78: 0 | BV78: 0 | BW78: 0 | BX78: 0 | BY78: 0 | BZ78: 0 | CA78: 0 | CB78: 0 | CC78: 0 | CD78: 0 | CE78: 0 | CF78: 0 | CG78: 0 | CH78: 0.9582042817 | CI78: 0 | CJ78: 0 | CK78: 0 | CL78: 0 | CM78: 0 | CN78: 0 | CO78: 0
A79: 76 | B79: ='NSP Data'!$C79 -> 11 | C79: ='NSP Data'!$A79 -> 2011 | D79: ='NSP Data'!D79 -> 257141.94 | E79: ='NSP Data'!E79 -> 759.7385 | F79: ='NSP Data'!F79 -> 50253.623 | G79: ='NSP Data'!G79 -> 18131.317 | H79: ='NSP Data'!H79 -> 3912.8017 | I79: ='NSP Data'!I79 -> 3220.2709 | J79: ='Gen Data'!$H$36/100 -> 1.126 | K79: =('NSP Data'!$M79*(1-'Gen Data'!$G17)*G79/($G79+$H79*5))/G79 -> 1.907959553 | L79: =('NSP Data'!$M79*(1-'Gen Data'!$G17)*H79*5/(G79+H79*5))/H79 -> 9.539797766 | M79: ='NSP Data'!$M79*'Gen Data'!G17/I79 -> 10.03406378 | N79: 160819.1395 | O79: 0.9801668501 | P79: 0 | Q79: 0 | R79: 0 | S79: 0 | T79: 0 | U79: 0 | V79: 0 | W79: 0 | X79: 0 | Y79: 0 | Z79: 0 | AA79: 0 | AB79: 0 | AC79: 0 | AD79: 0 | AE79: 0 | AF79: 0 | AG79: 0 | AH79: 0 | AI79: 0 | AJ79: 0 | AK79: 0 | AL79: 0 | AM79: 0 | AN79: 0 | AO79: 0 | AP79: 0 | AQ79: 0 | AR79: 0 | AS79: 0 | AT79: 0 | AU79: 0 | AV79: 0 | AW79: 0 | AX79: 0 | AY79: 0 | AZ79: 0 | BA79: 0 | BB79: 0 | BC79: 0 | BD79: 0 | BE79: 0 | BF79: 0 | BG79: 0 | BH79: 0 | BI79: 0 | BJ79: 0 | BK79: 0 | BL79: 0 | BM79: 0 | BN79: 0 | BO79: 0 | BP79: 0 | BQ79: 0 | BR79: 0 | BS79: 0 | BT79: 0 | BU79: 0 | BV79: 0 | BW79: 0 | BX79: 0 | BY79: 0 | BZ79: 0 | CA79: 0 | CB79: 0 | CC79: 0 | CD79: 0 | CE79: 0 | CF79: 0.6537252454 | CG79: 0 | CH79: 0.2554131463 | CI79: 0 | CJ79: 0 | CK79: 0 | CL79: 0 | CM79: 0 | CN79: 0 | CO79: 0
A80: 77 | B80: ='NSP Data'!$C80 -> 12 | C80: ='NSP Data'!$A80 -> 2011 | D80: ='NSP Data'!D80 -> 262622.16 | E80: ='NSP Data'!E80 -> 749.81438 | F80: ='NSP Data'!F80 -> 51480.9 | G80: ='NSP Data'!G80 -> 17453.686 | H80: ='NSP Data'!H80 -> 4135.9599 | I80: ='NSP Data'!I80 -> 3157.8251 | J80: ='Gen Data'!$H$36/100 -> 1.126 | K80: =('NSP Data'!$M80*(1-'Gen Data'!$G18)*G80/($G80+$H80*5))/G80 -> 1.908109158 | L80: =('NSP Data'!$M80*(1-'Gen Data'!$G18)*H80*5/(G80+H80*5))/H80 -> 9.540545789 | M80: ='NSP Data'!$M80*'Gen Data'!G18/I80 -> 10.35223803 | N80: 163420.9034 | O80: 0.9842967114 | P80: 0 | Q80: 0 | R80: 0 | S80: 0 | T80: 0 | U80: 0 | V80: 0 | W80: 0 | X80: 0 | Y80: 0 | Z80: 0 | AA80: 0 | AB80: 0 | AC80: 0 | AD80: 0 | AE80: 0 | AF80: 0 | AG80: 0 | AH80: 0 | AI80: 0 | AJ80: 0 | AK80: 0 | AL80: 0 | AM80: 0 | AN80: 0 | AO80: 0 | AP80: 0 | AQ80: 0 | AR80: 0 | AS80: 0 | AT80: 0 | AU80: 0 | AV80: 0 | AW80: 0 | AX80: 0 | AY80: 0 | AZ80: 0 | BA80: 0 | BB80: 0 | BC80: 0 | BD80: 0 | BE80: 0 | BF80: 0 | BG80: 0 | BH80: 0 | BI80: 0 | BJ80: 0 | BK80: 0 | BL80: 0 | BM80: 0 | BN80: 0 | BO80: 0 | BP80: 0 | BQ80: 0 | BR80: 0 | BS80: 0 | BT80: 0 | BU80: 0 | BV80: 0 | BW80: 0 | BX80: 0 | BY80: 0 | BZ80: 0 | CA80: 0 | CB80: 0 | CC80: 0 | CD80: 0 | CE80: 0 | CF80: 0.02851926792 | CG80: 0 | CH80: 0.8998194015 | CI80: 0 | CJ80: 0 | CK80: 0 | CL80: 0 | CM80: 0 | CN80: 0 | CO80: 0
A81: 78 | B81: ='NSP Data'!$C81 -> 13 | C81: ='NSP Data'!$A81 -> 2011 | D81: ='NSP Data'!D81 -> 260091.86 | E81: ='NSP Data'!E81 -> 740.35856 | F81: ='NSP Data'!F81 -> 52176.948 | G81: ='NSP Data'!G81 -> 16561.428 | H81: ='NSP Data'!H81 -> 3980.1476 | I81: ='NSP Data'!I81 -> 3206.2632 | J81: ='Gen Data'!$H$36/100 -> 1.126 | K81: =('NSP Data'!$M81*(1-'Gen Data'!$G19)*G81/($G81+$H81*5))/G81 -> 2.028122592 | L81: =('NSP Data'!$M81*(1-'Gen Data'!$G19)*H81*5/(G81+H81*5))/H81 -> 10.14061296 | M81: ='NSP Data'!$M81*'Gen Data'!G19/I81 -> 10.36215536 | N81: 165924.7834 | O81: 0.9875561476 | P81: 0 | Q81: 0 | R81: 0 | S81: 0 | T81: 0 | U81: 0 | V81: 0 | W81: 0 | X81: 0 | Y81: 0 | Z81: 0 | AA81: 0 | AB81: 0 | AC81: 0 | AD81: 0 | AE81: 0 | AF81: 0 | AG81: 0 | AH81: 0 | AI81: 0 | AJ81: 0 | AK81: 0 | AL81: 0 | AM81: 0 | AN81: 0 | AO81: 0 | AP81: 0 | AQ81: 0 | AR81: 0 | AS81: 0 | AT81: 0 | AU81: 0 | AV81: 0 | AW81: 0 | AX81: 0 | AY81: 0 | AZ81: 0 | BA81: 0 | BB81: 0 | BC81: 0 | BD81: 0 | BE81: 0 | BF81: 0 | BG81: 0 | BH81: 0 | BI81: 0 | BJ81: 0 | BK81: 0 | BL81: 0 | BM81: 0 | BN81: 0 | BO81: 0 | BP81: 0 | BQ81: 0 | BR81: 0 | BS81: 0 | BT81: 0 | BU81: 0 | BV81: 0 | BW81: 0 | BX81: 0 | BY81: 0 | BZ81: 0 | CA81: 0 | CB81: 0 | CC81: 0 | CD81: 0 | CE81: 0 | CF81: 0 | CG81: 0 | CH81: 0.9193866068 | CI81: 0 | CJ81: 0 | CK81: 0 | CL81: 0 | CM81: 0 | CN81: 0 | CO81: 0
A83: Objective | G83: Click this button will generate DEA CE estimates in Column O!
A84: minimise | B84: Theta*TC | C84: for | D84: Observation under evaluation | P84: Lamda
A85: ThetaCE*TC | B85: =INDEX(F4:F81,$D$85)*$E$86*INDEX(J4:J81,$D$85)+INDEX(G4:G81,$D$85)*$F$86*INDEX(K4:K81,$D$85)+INDEX(H4:H81,$D$85)*$G$86*INDEX(L4:L81,$D$85)+INDEX(I4:I81,$D$85)*$H$86*INDEX(M4:M81,$D$85) -> 163860.0399 | D85: 78 | P85: 0 | Q85: 0 | R85: 0 | S85: 0 | T85: 0 | U85: 0 | V85: 0 | W85: 0 | X85: 0 | Y85: 0 | Z85: 0 | AA85: 0 | AB85: 0 | AC85: 0 | AD85: 0 | AE85: 0 | AF85: 0 | AG85: 0 | AH85: 0 | AI85: 0 | AJ85: 0 | AK85: 0 | AL85: 0 | AM85: 0 | AN85: 0 | AO85: 0 | AP85: 0 | AQ85: 0 | AR85: 0 | AS85: 0 | AT85: 0 | AU85: 0 | AV85: 0 | AW85: 0 | AX85: 0 | AY85: 0 | AZ85: 0 | BA85: 0 | BB85: 0 | BC85: 0 | BD85: 0 | BE85: 0 | BF85: 0 | BG85: 0 | BH85: 0 | BI85: 0 | BJ85: 0 | BK85: 0 | BL85: 0 | BM85: 0 | BN85: 0 | BO85: 0 | BP85: 0 | BQ85: 0 | BR85: 0 | BS85: 0 | BT85: 0 | BU85: 0 | BV85: 0 | BW85: 0 | BX85: 0 | BY85: 0 | BZ85: 0 | CA85: 0 | CB85: 0 | CC85: 0 | CD85: 0 | CE85: 0 | CF85: 0 | CG85: 0 | CH85: 0.9193866068 | CI85: 0 | CJ85: 0 | CK85: 0 | CL85: 0 | CM85: 0 | CN85: 0 | CO85: 0
D86: ThetaCEs | E86: 0.913758444 | F86: 1.238677143 | G86: 0.8845275083 | H86: 0.989339675
A87: Constraints
C88: Y1 | D88: Y2 | E88: X1 | F88: X2 | G88: X3 | H88: X4
A89: Reference set | C89: =+MMULT(P85:CO85,D4:I81) -> 260091.86 | D89: 741.4360101 | E89: 47677.12682 | F89: 20514.26232 | G89: 3520.550039 | H89: 3172.083392
C90: >= | D90: >= | E90: <= | F90: <= | G90: <= | H90: <=
A91: Observation under evaluation | C91: =INDEX(D4:D81,$D$85) -> 260091.86 | D91: =INDEX(E4:E81,$D$85) -> 740.35856 | E91: =INDEX(F$4:F$81,$D$85)*E$86 -> 47677.12682 | F91: =INDEX(G$4:G$81,$D$85)*F$86 -> 20514.26232 | G91: =INDEX(H$4:H$81,$D$85)*G$86 -> 3520.550039 | H91: =INDEX(I$4:I$81,$D$85)*H$86 -> 3172.083392

Sheet DEA_TE Cal
A1: DEA TECHNICAL EFFICIENCY CALCULATION
A2: Using EXCEL SOLVER to run DEA linear programming model to estimate technical efficiency | P2: Lamda
A3: OBS | B3: NSP | C3: YEAR | D3: Y1 | E3: Y2 | F3: X1 | G3: X2 | H3: X3 | I3: X4 | O3: TE (Theta) | P3: Obs_1 | Q3: Obs_2 | R3: Obs_3 | S3: Obs_4 | T3: Obs_5 | U3: Obs_6 | V3: Obs_7 | W3: Obs_8 | X3: Obs_9 | Y3: Obs_10 | Z3: Obs_11 | AA3: Obs_12 | AB3: Obs_13 | AC3: Obs_14 | AD3: Obs_15 | AE3: Obs_16 | AF3: Obs_17 | AG3: Obs_18 | AH3: Obs_19 | AI3: Obs_20 | AJ3: Obs_21 | AK3: Obs_22 | AL3: Obs_23 | AM3: Obs_24 | AN3: Obs_25 | AO3: Obs_26 | AP3: Obs_27 | AQ3: Obs_28 | AR3: Obs_29 | AS3: Obs_30 | AT3: Obs_31 | AU3: Obs_32 | AV3: Obs_33 | AW3: Obs_34 | AX3: Obs_35 | AY3: Obs_36 | AZ3: Obs_37 | BA3: Obs_38 | BB3: Obs_39 | BC3: Obs_40 | BD3: Obs_41 | BE3: Obs_42 | BF3: Obs_43 | BG3: Obs_44 | BH3: Obs_45 | BI3: Obs_46 | BJ3: Obs_47 | BK3: Obs_48 | BL3: Obs_49 | BM3: Obs_50 | BN3: Obs_51 | BO3: Obs_52 | BP3: Obs_53 | BQ3: Obs_54 | BR3: Obs_55 | BS3: Obs_56 | BT3: Obs_57 | BU3: Obs_58 | BV3: Obs_59 | BW3: Obs_60 | BX3: Obs_61 | BY3: Obs_62 | BZ3: Obs_63 | CA3: Obs_64 | CB3: Obs_65 | CC3: Obs_66 | CD3: Obs_67 | CE3: Obs_68 | CF3: Obs_69 | CG3: Obs_70 | CH3: Obs_71 | CI3: Obs_72 | CJ3: Obs_73 | CK3: Obs_74 | CL3: Obs_75 | CM3: Obs_76 | CN3: Obs_77 | CO3: Obs_78
A4: 1 | B4: ='NSP Data'!$C4 -> 1 | C4: ='NSP Data'!$A4 -> 2006 | D4: ='NSP Data'!D4 -> 260958.54 | E4: ='NSP Data'!E4 -> 763.65747 | F4: ='NSP Data'!F4 -> 48648.253 | G4: ='NSP Data'!G4 -> 27171.852 | H4: ='NSP Data'!H4 -> 2646.4099 | I4: ='NSP Data'!I4 -> 3175.3119 | O4: 1 | P4: 1 | Q4: 0 | R4: 0 | S4: 0 | T4: 0 | U4: 0 | V4: 0 | W4: 0 | X4: 0 | Y4: 0 | Z4: 0 | AA4: 0 | AB4: 0 | AC4: 0 | AD4: 0 | AE4: 0 | AF4: 0 | AG4: 0 | AH4: 0 | AI4: 0 | AJ4: 0 | AK4: 0 | AL4: 0 | AM4: 0 | AN4: 0 | AO4: 0 | AP4: 4.968503386e-11 | AQ4: 0 | AR4: 0 | AS4: 0 | AT4: 0 | AU4: 0 | AV4: 0 | AW4: 0 | AX4: 0 | AY4: 0 | AZ4: 0 | BA4: 0 | BB4: 0 | BC4: 0 | BD4: 0 | BE4: 0 | BF4: 0 | BG4: 0 | BH4: 0 | BI4: 0 | BJ4: 0 | BK4: 0 | BL4: 0 | BM4: 0 | BN4: 0 | BO4: 0 | BP4: 0 | BQ4: 0 | BR4: 0 | BS4: 0 | BT4: 0 | BU4: 0 | BV4: 0 | BW4: 0 | BX4: 0 | BY4: 0 | BZ4: 0 | CA4: 0 | CB4: 0 | CC4: 0 | CD4: 0 | CE4: 0 | CF4: 0 | CG4: 0 | CH4: 0 | CI4: 0 | CJ4: 0 | CK4: 0 | CL4: 0 | CM4: 0 | CN4: 0 | CO4: 0
A5: 2 | B5: ='NSP Data'!$C5 -> 2 | C5: ='NSP Data'!$A5 -> 2006 | D5: ='NSP Data'!D5 -> 259988.24 | E5: ='NSP Data'!E5 -> 766.91209 | F5: ='NSP Data'!F5 -> 51304.694 | G5: ='NSP Data'!G5 -> 27862.556 | H5: ='NSP Data'!H5 -> 2680.853 | I5: ='NSP Data'!I5 -> 3138.0941 | O5: 1 | P5: 5.155520455e-11 | Q5: 0.9999999999 | R5: 0 | S5: 0 | T5: 0 | U5: 0 | V5: 0 | W5: 0 | X5: 0 | Y5: 0 | Z5: 0 | AA5: 0 | AB5: 0 | AC5: 0 | AD5: 0 | AE5: 0 | AF5: 0 | AG5: 0 | AH5: 0 | AI5: 0 | AJ5: 0 | AK5: 0 | AL5: 0 | AM5: 0 | AN5: 0 | AO5: 0 | AP5: 2.972982305e-11 | AQ5: 0 | AR5: 0 | AS5: 0 | AT5: 0 | AU5: 0 | AV5: 0 | AW5: 0 | AX5: 0 | AY5: 0 | AZ5: 0 | BA5: 0 | BB5: 0 | BC5: 0 | BD5: 0 | BE5: 0 | BF5: 0 | BG5: 0 | BH5: 0 | BI5: 0 | BJ5: 0 | BK5: 0 | BL5: 0 | BM5: 0 | BN5: 0 | BO5: 0 | BP5: 0 | BQ5: 0 | BR5: 0 | BS5: 0 | BT5: 0 | BU5: 0 | BV5: 0 | BW5: 0 | BX5: 0 | BY5: 0 | BZ5: 0 | CA5: 0 | CB5: 0 | CC5: 0 | CD5: 0 | CE5: 0 | CF5: 0 | CG5: 0 | CH5: 0 | CI5: 0 | CJ5: 0 | CK5: 0 | CL5: 0 | CM5: 0 | CN5: 0 | CO5: 0
A6: 3 | B6: ='NSP Data'!$C6 -> 3 | C6: ='NSP Data'!$A6 -> 2006 | D6: ='NSP Data'!D6 -> 244280.83 | E6: ='NSP Data'!E6 -> 751.98679 | F6: ='NSP Data'!F6 -> 52268.164 | G6: ='NSP Data'!G6 -> 25153.935 | H6: ='NSP Data'!H6 -> 2777.3168 | I6: ='NSP Data'!I6 -> 3085.81 | O6: 0.9908303566 | P6: 0 | Q6: 0 | R6: 0 | S6: 0 | T6: 0 | U6: 0 | V6: 0.1044184806 | W6: 0 | X6: 0 | Y6: 0 | Z6: 0 | AA6: 0 | AB6: 0 | AC6: 0.3329647091 | AD6: 0 | AE6: 0 | AF6: 0 | AG6: 0 | AH6: 0 | AI6: 0 | AJ6: 0 | AK6: 0 | AL6: 0 | AM6: 0 | AN6: 0 | AO6: 0 | AP6: 0.5017896971 | AQ6: 0 | AR6: 0 | AS6: 0 | AT6: 0 | AU6: 0 | AV6: 0 | AW6: 0 | AX6: 0 | AY6: 0 | AZ6: 0 | BA6: 0 | BB6: 0 | BC6: 0 | BD6: 0 | BE6: 0 | BF6: 0 | BG6: 0 | BH6: 0 | BI6: 0 | BJ6: 0 | BK6: 0 | BL6: 0 | BM6: 0 | BN6: 0 | BO6: 0 | BP6: 0 | BQ6: 0 | BR6: 0 | BS6: 0 | BT6: 0 | BU6: 0 | BV6: 0 | BW6: 0 | BX6: 0 | BY6: 0 | BZ6: 0 | CA6: 0 | CB6: 0 | CC6: 0 | CD6: 0 | CE6: 0 | CF6: 0 | CG6: 0 | CH6: 0 | CI6: 0 | CJ6: 0 | CK6: 0 | CL6: 0 | CM6: 0 | CN6: 0 | CO6: 0
A7: 4 | B7: ='NSP Data'!$C7 -> 4 | C7: ='NSP Data'!$A7 -> 2006 | D7: ='NSP Data'!D7 -> 253000.71 | E7: ='NSP Data'!E7 -> 745.98934 | F7: ='NSP Data'!F7 -> 50028.771 | G7: ='NSP Data'!G7 -> 25560.025 | H7: ='NSP Data'!H7 -> 2687.3012 | I7: ='NSP Data'!I7 -> 3080.3977 | O7: 0.9997736245 | P7: 0.5343544673 | Q7: 0 | R7: 0 | S7: 0 | T7: 0 | U7: 0 | V7: 0 | W7: 0 | X7: 0 | Y7: 0 | Z7: 0 | AA7: 0 | AB7: 0 | AC7: 0.2976018281 | AD7: 0 | AE7: 0 | AF7: 0 | AG7: 0 | AH7: 0 | AI7: 0 | AJ7: 0 | AK7: 0 | AL7: 0 | AM7: 0 | AN7: 0 | AO7: 0 | AP7: 0 | AQ7: 0 | AR7: 0 | AS7: 0 | AT7: 0 | AU7: 0 | AV7: 0 | AW7: 0 | AX7: 0 | AY7: 0.05121720082 | AZ7: 0 | BA7: 0 | BB7: 0 | BC7: 0 | BD7: 0 | BE7: 0 | BF7: 0.07943991777 | BG7: 0 | BH7: 0 | BI7: 0 | BJ7: 0 | BK7: 0 | BL7: 0 | BM7: 0 | BN7: 0 | BO7: 0 | BP7: 0 | BQ7: 0 | BR7: 0 | BS7: 0 | BT7: 0 | BU7: 0 | BV7: 0 | BW7: 0 | BX7: 0 | BY7: 0 | BZ7: 0 | CA7: 0 | CB7: 0 | CC7: 0 | CD7: 0 | CE7: 0 | CF7: 0 | CG7: 0 | CH7: 0 | CI7: 0 | CJ7: 0 | CK7: 0 | CL7: 0 | CM7: 0 | CN7: 0 | CO7: 0
A8: 5 | B8: ='NSP Data'!$C8 -> 5 | C8: ='NSP Data'!$A8 -> 2006 | D8: ='NSP Data'!D8 -> 246115 | E8: ='NSP Data'!E8 -> 735.71371 | F8: ='NSP Data'!F8 -> 51303.915 | G8: ='NSP Data'!G8 -> 24718.831 | H8: ='NSP Data'!H8 -> 2848.3146 | I8: ='NSP Data'!I8 -> 3134.4138 | O8: 0.9645258434 | P8: 0 | Q8: 0 | R8: 0 | S8: 0 | T8: 0 | U8: 0 | V8: 0 | W8: 0 | X8: 0 | Y8: 0 | Z8: 0 | AA8: 0 | AB8: 0 | AC8: 0.7433872172 | AD8: 0 | AE8: 0 | AF8: 0 | AG8: 0 | AH8: 0 | AI8: 0 | AJ8: 0 | AK8: 0 | AL8: 0 | AM8: 0 | AN8: 0 | AO8: 0 | AP8: 0 | AQ8: 0 | AR8: 0.06202568527 | AS8: 0 | AT8: 0 | AU8: 0 | AV8: 0 | AW8: 0 | AX8: 0 | AY8: 0 | AZ8: 0 | BA8: 0 | BB8: 0.1208705076 | BC8: 0 | BD8: 0 | BE8: 0 | BF8: 0.01192982088 | BG8: 0 | BH8: 0 | BI8: 0 | BJ8: 0 | BK8: 0 | BL8: 0 | BM8: 0 | BN8: 0 | BO8: 0 | BP8: 0 | BQ8: 0 | BR8: 0 | BS8: 0 | BT8: 0 | BU8: 0 | BV8: 0 | BW8: 0 | BX8: 0 | BY8: 0 | BZ8: 0 | CA8: 0 | CB8: 0 | CC8: 0 | CD8: 0 | CE8: 0 | CF8: 0 | CG8: 0 | CH8: 0 | CI8: 0 | CJ8: 0 | CK8: 0 | CL8: 0 | CM8: 0 | CN8: 0 | CO8: 0
A9: 6 | B9: ='NSP Data'!$C9 -> 6 | C9: ='NSP Data'!$A9 -> 2006 | D9: ='NSP Data'!D9 -> 251995.33 | E9: ='NSP Data'!E9 -> 722.0526 | F9: ='NSP Data'!F9 -> 51914.53 | G9: ='NSP Data'!G9 -> 21966.665 | H9: ='NSP Data'!H9 -> 2812.6669 | I9: ='NSP Data'!I9 -> 3220.1586 | O9: 1 | P9: 1.257227933e-10 | Q9: 0 | R9: 0 | S9: 0 | T9: 0 | U9: 0.9999999996 | V9: 1.519320503e-10 | W9: 0 | X9: 0 | Y9: 5.537560688e-11 | Z9: 0 | AA9: 0 | AB9: 0 | AC9: 0 | AD9: 0 | AE9: 0 | AF9: 0 | AG9: 0 | AH9: 0 | AI9: 0 | AJ9: 0 | AK9: 0 | AL9: 0 | AM9: 0 | AN9: 0 | AO9: 0 | AP9: 0 | AQ9: 0 | AR9: 0 | AS9: 0 | AT9: 0 | AU9: 0 | AV9: 0 | AW9: 0 | AX9: 0 | AY9: 0 | AZ9: 0 | BA9: 0 | BB9: 5.600732378e-11 | BC9: 0 | BD9: 0 | BE9: 0 | BF9: 0 | BG9: 0 | BH9: 0 | BI9: 0 | BJ9: 0 | BK9: 0 | BL9: 0 | BM9: 0 | BN9: 0 | BO9: 0 | BP9: 0 | BQ9: 0 | BR9: 0 | BS9: 0 | BT9: 0 | BU9: 0 | BV9: 0 | BW9: 0 | BX9: 0 | BY9: 0 | BZ9: 0 | CA9: 0 | CB9: 0 | CC9: 0 | CD9: 0 | CE9: 0 | CF9: 0 | CG9: 0 | CH9: 0 | CI9: 0 | CJ9: 0 | CK9: 0 | CL9: 0 | CM9: 0 | CN9: 0 | CO9: 0
A10: 7 | B10: ='NSP Data'!$C10 -> 7 | C10: ='NSP Data'!$A10 -> 2006 | D10: ='NSP Data'!D10 -> 248161.5 | E10: ='NSP Data'!E10 -> 735.67231 | F10: ='NSP Data'!F10 -> 53113.086 | G10: ='NSP Data'!G10 -> 21546.896 | H10: ='NSP Data'!H10 -> 2776.6566 | I10: ='NSP Data'!I10 -> 3234.4391 | O10: 1 | P10: 0 | Q10: 0 | R10: 0 | S10: 0 | T10: 0 | U10: 0 | V10: 1 | W10: 0 | X10: 0 | Y10: 0 | Z10: 0 | AA10: 0 | AB10: 0 | AC10: 2.112516766e-12 | AD10: 0 | AE10: 0 | AF10: 0 | AG10: 0 | AH10: 0 | AI10: 0 | AJ10: 0 | AK10: 0 | AL10: 0 | AM10: 0 | AN10: 0 | AO10: 0 | AP10: 2.63331185e-11 | AQ10: 0 | AR10: 0 | AS10: 0 | AT10: 0 | AU10: 0 | AV10: 0 | AW10: 0 | AX10: 0 | AY10: 0 | AZ10: 0 | BA10: 0 | BB10: 0 | BC10: 0 | BD10: 0 | BE10: 0 | BF10: 0 | BG10: 0 | BH10: 0 | BI10: 0 | BJ10: 0 | BK10: 0 | BL10: 0 | BM10: 0 | BN10: 0 | BO10: 0 | BP10: 0 | BQ10: 0 | BR10: 0 | BS10: 0 | BT10: 0 | BU10: 0 | BV10: 0 | BW10: 0 | BX10: 0 | BY10: 0 | BZ10: 0 | CA10: 0 | CB10: 0 | CC10: 0 | CD10: 0 | CE10: 0 | CF10: 0 | CG10: 0 | CH10: 0 | CI10: 0 | CJ10: 0 | CK10: 0 | CL10: 0 | CM10: 0 | CN10: 0 | CO10: 0
A11: 8 | B11: ='NSP Data'!$C11 -> 8 | C11: ='NSP Data'!$A11 -> 2006 | D11: ='NSP Data'!D11 -> 235651.49 | E11: ='NSP Data'!E11 -> 721.17806 | F11: ='NSP Data'!F11 -> 51850.385 | G11: ='NSP Data'!G11 -> 20934.68 | H11: ='NSP Data'!H11 -> 2925.8294 | I11: ='NSP Data'!I11 -> 3259.5329 | O11: 0.9759381043 | P11: 0 | Q11: 0 | R11: 0 | S11: 0 | T11: 0 | U11: 0 | V11: 0.4129671927 | W11: 0 | X11: 0 | Y11: 0 | Z11: 0 | AA11: 0 | AB11: 0.0513806244 | AC11: 0 | AD11: 0 | AE11: 0 | AF11: 0 | AG11: 0 | AH11: 0 | AI11: 0 | AJ11: 0 | AK11: 0 | AL11: 0 | AM11: 0 | AN11: 0 | AO11: 0 | AP11: 0 | AQ11: 0 | AR11: 0 | AS11: 0 | AT11: 0 | AU11: 0 | AV11: 0.4946697292 | AW11: 0 | AX11: 0 | AY11: 0 | AZ11: 0 | BA11: 0 | BB11: 0 | BC11: 0 | BD11: 0 | BE11: 0 | BF11: 0 | BG11: 0 | BH11: 0 | BI11: 0 | BJ11: 0 | BK11: 0 | BL11: 0 | BM11: 0 | BN11: 0 | BO11: 0 | BP11: 0 | BQ11: 0 | BR11: 0 | BS11: 0 | BT11: 0 | BU11: 0 | BV11: 0 | BW11: 0 | BX11: 0 | BY11: 0 | BZ11: 0 | CA11: 0 | CB11: 0 | CC11: 0 | CD11: 0 | CE11: 0 | CF11: 0 | CG11: 0 | CH11: 0 | CI11: 0 | CJ11: 0 | CK11: 0 | CL11: 0 | CM11: 0 | CN11: 0 | CO11: 0
A12: 9 | B12: ='NSP Data'!$C12 -> 9 | C12: ='NSP Data'!$A12 -> 2006 | D12: ='NSP Data'!D12 -> 236923.52 | E12: ='NSP Data'!E12 -> 707.50348 | F12: ='NSP Data'!F12 -> 51700.429 | G12: ='NSP Data'!G12 -> 20218.793 | H12: ='NSP Data'!H12 -> 2852.9676 | I12: ='NSP Data'!I12 -> 3165.2949 | O12: 0.9813172021 | P12: 0 | Q12: 0 | R12: 0 | S12: 0 | T12: 0 | U12: 0 | V12: 0.5329110689 | W12: 0 | X12: 0 | Y12: 0 | Z12: 0 | AA12: 0 | AB12: 0.1144757301 | AC12: 0 | AD12: 0 | AE12: 0 | AF12: 0 | AG12: 0 | AH12: 0 | AI12: 0 | AJ12: 0 | AK12: 0 | AL12: 0 | AM12: 0 | AN12: 0 | AO12: 0 | AP12: 0 | AQ12: 0 | AR12: 0 | AS12: 0 | AT12: 0 | AU12: 0 | AV12: 0.2652392857 | AW12: 0 | AX12: 0 | AY12: 0 | AZ12: 0 | BA12: 0 | BB12: 0.04383579395 | BC12: 0 | BD12: 0 | BE12: 0 | BF12: 0 | BG12: 0 | BH12: 0 | BI12: 0 | BJ12: 0 | BK12: 0 | BL12: 0 | BM12: 0 | BN12: 0 | BO12: 0 | BP12: 0 | BQ12: 0 | BR12: 0 | BS12: 0 | BT12: 0 | BU12: 0 | BV12: 0 | BW12: 0 | BX12: 0 | BY12: 0 | BZ12: 0 | CA12: 0 | CB12: 0 | CC12: 0 | CD12: 0 | CE12: 0 | CF12: 0 | CG12: 0 | CH12: 0 | CI12: 0 | CJ12: 0 | CK12: 0 | CL12: 0 | CM12: 0 | CN12: 0 | CO12: 0
A13: 10 | B13: ='NSP Data'!$C13 -> 10 | C13: ='NSP Data'!$A13 -> 2006 | D13: ='NSP Data'!D13 -> 245380.01 | E13: ='NSP Data'!E13 -> 695.08498 | F13: ='NSP Data'!F13 -> 54360.209 | G13: ='NSP Data'!G13 -> 19554.833 | H13: ='NSP Data'!H13 -> 3015.3524 | I13: ='NSP Data'!I13 -> 3063.7746 | O13: 1 | P13: 0 | Q13: 0 | R13: 0 | S13: 0 | T13: 0 | U13: 0 | V13: 0 | W13: 0 | X13: 0 | Y13: 0.9999999999 | Z13: 0 | AA13: 0 | AB13: 0 | AC13: 0 | AD13: 0 | AE13: 0 | AF13: 0 | AG13: 0 | AH13: 0 | AI13: 0 | AJ13: 0 | AK13: 0 | AL13: 0 | AM13: 0 | AN13: 0 | AO13: 7.6217678e-11 | AP13: 0 | AQ13: 0 | AR13: 0 | AS13: 0 | AT13: 0 | AU13: 0 | AV13: 0 | AW13: 0 | AX13: 0 | AY13: 0 | AZ13: 0 | BA13: 0 | BB13: 1.312835951e-11 | BC13: 0 | BD13: 0 | BE13: 0 | BF13: 0 | BG13: 0 | BH13: 0 | BI13: 0 | BJ13: 0 | BK13: 0 | BL13: 0 | BM13: 0 | BN13: 0 | BO13: 0 | BP13: 0 | BQ13: 0 | BR13: 0 | BS13: 0 | BT13: 0 | BU13: 0 | BV13: 0 | BW13: 0 | BX13: 0 | BY13: 0 | BZ13: 0 | CA13: 0 | CB13: 0 | CC13: 0 | CD13: 0 | CE13: 0 | CF13: 0 | CG13: 0 | CH13: 0 | CI13: 0 | CJ13: 0 | CK13: 0 | CL13: 0 | CM13: 0 | CN13: 0 | CO13: 0
A14: 11 | B14: ='NSP Data'!$C14 -> 11 | C14: ='NSP Data'!$A14 -> 2006 | D14: ='NSP Data'!D14 -> 227047.3 | E14: ='NSP Data'!E14 -> 702.34383 | F14: ='NSP Data'!F14 -> 52744.929 | G14: ='NSP Data'!G14 -> 18038.598 | H14: ='NSP Data'!H14 -> 2961.5382 | I14: ='NSP Data'!I14 -> 3133.3242 | O14: 0.998322811 | P14: 0 | Q14: 0 | R14: 0 | S14: 0 | T14: 0 | U14: 0 | V14: 0.2361747925 | W14: 0 | X14: 0 | Y14: 0 | Z14: 0 | AA14: 0 | AB14: 0.4641493715 | AC14: 0 | AD14: 0 | AE14: 0 | AF14: 0 | AG14: 0 | AH14: 0 | AI14: 0 | AJ14: 0 | AK14: 0 | AL14: 0 | AM14: 0 | AN14: 0 | AO14: 0 | AP14: 0 | AQ14: 0 | AR14: 0.06332509078 | AS14: 0 | AT14: 0 | AU14: 0 | AV14: 0 | AW14: 0 | AX14: 0 | AY14: 0 | AZ14: 0 | BA14: 0 | BB14: 0.2179772333 | BC14: 0 | BD14: 0 | BE14: 0 | BF14: 0 | BG14: 0 | BH14: 0 | BI14: 0 | BJ14: 0 | BK14: 0 | BL14: 0 | BM14: 0 | BN14: 0 | BO14: 0 | BP14: 0 | BQ14: 0 | BR14: 0 | BS14: 0 | BT14: 0 | BU14: 0 | BV14: 0 | BW14: 0 | BX14: 0 | BY14: 0 | BZ14: 0 | CA14: 0 | CB14: 0 | CC14: 0 | CD14: 0 | CE14: 0 | CF14: 0 | CG14: 0 | CH14: 0 | CI14: 0 | CJ14: 0 | CK14: 0 | CL14: 0 | CM14: 0 | CN14: 0 | CO14: 0
A15: 12 | B15: ='NSP Data'!$C15 -> 12 | C15: ='NSP Data'!$A15 -> 2006 | D15: ='NSP Data'!D15 -> 233134.73 | E15: ='NSP Data'!E15 -> 689.15843 | F15: ='NSP Data'!F15 -> 53406.722 | G15: ='NSP Data'!G15 -> 17227.361 | H15: ='NSP Data'!H15 -> 3084.9824 | I15: ='NSP Data'!I15 -> 3082.1275 | O15: 0.9836718324 | P15: 0 | Q15: 0 | R15: 0 | S15: 0 | T15: 0 | U15: 0 | V15: 0.002251930432 | W15: 0 | X15: 0 | Y15: 0 | Z15: 0 | AA15: 0 | AB15: 0 | AC15: 0 | AD15: 0 | AE15: 0 | AF15: 0 | AG15: 0 | AH15: 0 | AI15: 0 | AJ15: 0 | AK15: 0 | AL15: 0 | AM15: 0 | AN15: 0 | AO15: 0.6707543236 | AP15: 0 | AQ15: 0 | AR15: 0.1375952815 | AS15: 0 | AT15: 0 | AU15: 0 | AV15: 0 | AW15: 0 | AX15: 0 | AY15: 0 | AZ15: 0 | BA15: 0 | BB15: 0.1494224782 | BC15: 0 | BD15: 0 | BE15: 0 | BF15: 0 | BG15: 0 | BH15: 0 | BI15: 0 | BJ15: 0 | BK15: 0 | BL15: 0 | BM15: 0 | BN15: 0 | BO15: 0 | BP15: 0 | BQ15: 0 | BR15: 0 | BS15: 0 | BT15: 0 | BU15: 0 | BV15: 0 | BW15: 0 | BX15: 0 | BY15: 0 | BZ15: 0 | CA15: 0 | CB15: 0 | CC15: 0 | CD15: 0 | CE15: 0 | CF15: 0 | CG15: 0 | CH15: 0 | CI15: 0 | CJ15: 0 | CK15: 0 | CL15: 0 | CM15: 0 | CN15: 0 | CO15: 0
A16: 13 | B16: ='NSP Data'!$C16 -> 13 | C16: ='NSP Data'!$A16 -> 2006 | D16: ='NSP Data'!D16 -> 231958.06 | E16: ='NSP Data'!E16 -> 690.39989 | F16: ='NSP Data'!F16 -> 54380.923 | G16: ='NSP Data'!G16 -> 16603.792 | H16: ='NSP Data'!H16 -> 2965.5555 | I16: ='NSP Data'!I16 -> 3165.3409 | O16: 1 | P16: 0 | Q16: 0 | R16: 0 | S16: 0 | T16: 0 | U16: 0 | V16: 2.635962022e-11 | W16: 0 | X16: 0 | Y16: 0 | Z16: 0 | AA16: 0 | AB16: 1 | AC16: 0 | AD16: 0 | AE16: 0 | AF16: 0 | AG16: 0 | AH16: 0 | AI16: 0 | AJ16: 0 | AK16: 0 | AL16: 0 | AM16: 0 | AN16: 0 | AO16: 0 | AP16: 0 | AQ16: 0 | AR16: 0 | AS16: 0 | AT16: 0 | AU16: 0 | AV16: 0 | AW16: 0 | AX16: 0 | AY16: 0 | AZ16: 0 | BA16: 0 | BB16: 0 | BC16: 0 | BD16: 0 | BE16: 0 | BF16: 0 | BG16: 0 | BH16: 0 | BI16: 0 | BJ16: 0 | BK16: 0 | BL16: 0 | BM16: 0 | BN16: 0 | BO16: 0 | BP16: 0 | BQ16: 0 | BR16: 0 | BS16: 0 | BT16: 0 | BU16: 0 | BV16: 0 | BW16: 0 | BX16: 0 | BY16: 0 | BZ16: 0 | CA16: 0 | CB16: 0 | CC16: 0 | CD16: 0 | CE16: 0 | CF16: 0 | CG16: 0 | CH16: 0 | CI16: 0 | CJ16: 0 | CK16: 0 | CL16: 0 | CM16: 0 | CN16: 0 | CO16: 0
A17: 14 | B17: ='NSP Data'!$C17 -> 1 | C17: ='NSP Data'!$A17 -> 2007 | D17: ='NSP Data'!D17 -> 265099.8 | E17: ='NSP Data'!E17 -> 792.36685 | F17: ='NSP Data'!F17 -> 49112.403 | G17: ='NSP Data'!G17 -> 26872.201 | H17: ='NSP Data'!H17 -> 2841.0418 | I17: ='NSP Data'!I17 -> 3230.956 | O17: 1 | P17: 0 | Q17: 0 | R17: 0 | S17: 0 | T17: 0 | U17: 0 | V17: 0 | W17: 0 | X17: 0 | Y17: 0 | Z17: 0 | AA17: 0 | AB17: 0 | AC17: 0.9999999999 | AD17: 0 | AE17: 0 | AF17: 0 | AG17: 0 | AH17: 0 | AI17: 0 | AJ17: 0 | AK17: 0 | AL17: 0 | AM17: 0 | AN17: 0 | AO17: 0 | AP17: 4.8519517e-11 | AQ17: 0 | AR17: 1.769837065e-11 | AS17: 0 | AT17: 0 | AU17: 0 | AV17: 0 | AW17: 0 | AX17: 0 | AY17: 0 | AZ17: 0 | BA17: 0 | BB17: 0 | BC17: 0 | BD17: 0 | BE17: 0 | BF17: 4.77372651e-12 | BG17: 0 | BH17: 0 | BI17: 0 | BJ17: 0 | BK17: 0 | BL17: 0 | BM17: 0 | BN17: 0 | BO17: 0 | BP17: 0 | BQ17: 0 | BR17: 0 | BS17: 0 | BT17: 0 | BU17: 0 | BV17: 0 | BW17: 0 | BX17: 0 | BY17: 0 | BZ17: 0 | CA17: 0 | CB17: 0 | CC17: 0 | CD17: 0 | CE17: 0 | CF17: 0 | CG17: 0 | CH17: 0 | CI17: 0 | CJ17: 0 | CK17: 0 | CL17: 0 | CM17: 0 | CN17: 0 | CO17: 0
A18: 15 | B18: ='NSP Data'!$C18 -> 2 | C18: ='NSP Data'!$A18 -> 2007 | D18: ='NSP Data'!D18 -> 268133.46 | E18: ='NSP Data'!E18 -> 777.90104 | F18: ='NSP Data'!F18 -> 51164.515 | G18: ='NSP Data'!G18 -> 27955.647 | H18: ='NSP Data'!H18 -> 2852.7765 | I18: ='NSP Data'!I18 -> 3246.9031 | O18: 0.9992057629 | P18: 0.3473705635 | Q18: 0.5414963381 | R18: 0 | S18: 0 | T18: 0 | U18: 0 | V18: 0 | W18: 0 | X18: 0 | Y18: 0 | Z18: 0 | AA18: 0 | AB18: 0 | AC18: 0 | AD18: 0 | AE18: 0 | AF18: 0 | AG18: 0 | AH18: 0 | AI18: 0 | AJ18: 0 | AK18: 0 | AL18: 0 | AM18: 0 | AN18: 0 | AO18: 0 | AP18: 0 | AQ18: 0 | AR18: 0 | AS18: 0 | AT18: 0 | AU18: 0 | AV18: 0 | AW18: 0 | AX18: 0 | AY18: 0 | AZ18: 0 | BA18: 0 | BB18: 0 | BC18: 0 | BD18: 0 | BE18: 0 | BF18: 0 | BG18: 0 | BH18: 0 | BI18: 0 | BJ18: 0 | BK18: 0 | BL18: 0 | BM18: 0 | BN18: 0 | BO18: 0 | BP18: 0 | BQ18: 0 | BR18: 0 | BS18: 0 | BT18: 0 | BU18: 0 | BV18: 0 | BW18: 0 | BX18: 0 | BY18: 0 | BZ18: 0 | CA18: 0 | CB18: 0 | CC18: 0 | CD18: 0 | CE18: 0 | CF18: 0.1297698964 | CG18: 0 | CH18: 0 | CI18: 0 | CJ18: 0 | CK18: 0 | CL18: 0 | CM18: 0 | CN18: 0 | CO18: 0
A19: 16 | B19: ='NSP Data'!$C19 -> 3 | C19: ='NSP Data'!$A19 -> 2007 | D19: ='NSP Data'!D19 -> 252246.48 | E19: ='NSP Data'!E19 -> 771.45629 | F19: ='NSP Data'!F19 -> 51590.007 | G19: ='NSP Data'!G19 -> 24974.945 | H19: ='NSP Data'!H19 -> 2958.1715 | I19: ='NSP Data'!I19 -> 3150.9227 | O19: 0.9878830424 | P19: 0 | Q19: 0 | R19: 0 | S19: 0 | T19: 0 | U19: 0 | V19: 0.08367996285 | W19: 0 | X19: 0 | Y19: 0 | Z19: 0 | AA19: 0 | AB19: 0 | AC19: 0.1781188274 | AD19: 0 | AE19: 0 | AF19: 0 | AG19: 0 | AH19: 0 | AI19: 0 | AJ19: 0 | AK19: 0 | AL19: 0 | AM19: 0 | AN19: 0 | AO19: 0 | AP19: 0.2224480877 | AQ19: 0 | AR19: 0.4820426005 | AS19: 0 | AT19: 0 | AU19: 0 | AV19: 0 | AW19: 0 | AX19: 0 | AY19: 0 | AZ19: 0 | BA19: 0 | BB19: 0 | BC19: 0 | BD19: 0 | BE19: 0 | BF19: 0 | BG19: 0 | BH19: 0 | BI19: 0 | BJ19: 0 | BK19: 0 | BL19: 0 | BM19: 0 | BN19: 0 | BO19: 0 | BP19: 0 | BQ19: 0 | BR19: 0 | BS19: 0 | BT19: 0 | BU19: 0 | BV19: 0 | BW19: 0 | BX19: 0 | BY19: 0 | BZ19: 0 | CA19: 0 | CB19: 0 | CC19: 0 | CD19: 0 | CE19: 0 | CF19: 0 | CG19: 0 | CH19: 0 | CI19: 0 | CJ19: 0 | CK19: 0 | CL19: 0 | CM19: 0 | CN19: 0 | CO19: 0
A20: 17 | B20: ='NSP Data'!$C20 -> 4 | C20: ='NSP Data'!$A20 -> 2007 | D20: ='NSP Data'!D20 -> 259486.53 | E20: ='NSP Data'!E20 -> 758.18926 | F20: ='NSP Data'!F20 -> 50206.152 | G20: ='NSP Data'!G20 -> 25359.967 | H20: ='NSP Data'!H20 -> 2886.6029 | I20: ='NSP Data'!I20 -> 3169.4103 | O20: 0.9945892888 | P20: 0.6694746048 | Q20: 0 | R20: 0 | S20: 0 | T20: 0 | U20: 0 | V20: 0 | W20: 0 | X20: 0 | Y20: 0 | Z20: 0 | AA20: 0 | AB20: 0 | AC20: 0 | AD20: 0 | AE20: 0 | AF20: 0 | AG20: 0 | AH20: 0 | AI20: 0 | AJ20: 0 | AK20: 0 | AL20: 0 | AM20: 0 | AN20: 0 | AO20: 0 | AP20: 0 | AQ20: 0 | AR20: 0 | AS20: 0 | AT20: 0 | AU20: 0 | AV20: 0 | AW20: 0 | AX20: 0 | AY20: 0.115189874 | AZ20: 0 | BA20: 0 | BB20: 0 | BC20: 0 | BD20: 0 | BE20: 0 | BF20: 0.1293181549 | BG20: 0 | BH20: 0 | BI20: 0 | BJ20: 0 | BK20: 0 | BL20: 0 | BM20: 0 | BN20: 0 | BO20: 0 | BP20: 0 | BQ20: 0 | BR20: 0 | BS20: 0 | BT20: 0 | BU20: 0 | BV20: 0 | BW20: 0 | BX20: 0 | BY20: 0 | BZ20: 0 | CA20: 0 | CB20: 0 | CC20: 0 | CD20: 0 | CE20: 0 | CF20: 0 | CG20: 0 | CH20: 0 | CI20: 0 | CJ20: 0 | CK20: 0 | CL20: 0.07468136101 | CM20: 0 | CN20: 0 | CO20: 0
A21: 18 | B21: ='NSP Data'!$C21 -> 5 | C21: ='NSP Data'!$A21 -> 2007 | D21: ='NSP Data'!D21 -> 252073.04 | E21: ='NSP Data'!E21 -> 759.22022 | F21: ='NSP Data'!F21 -> 51090.879 | G21: ='NSP Data'!G21 -> 24306.884 | H21: ='NSP Data'!H21 -> 2988.348 | I21: ='NSP Data'!I21 -> 3210.9556 | O21: 0.9744874718 | P21: 0 | Q21: 0 | R21: 0 | S21: 0 | T21: 0 | U21: 0 | V21: 0.09968308591 | W21: 0 | X21: 0 | Y21: 0 | Z21: 0 | AA21: 0 | AB21: 0 | AC21: 0.4528826805 | AD21: 0 | AE21: 0 | AF21: 0 | AG21: 0 | AH21: 0 | AI21: 0 | AJ21: 0 | AK21: 0 | AL21: 0 | AM21: 0 | AN21: 0 | AO21: 0 | AP21: 0 | AQ21: 0 | AR21: 0.2845997762 | AS21: 0 | AT21: 0 | AU21: 0 | AV21: 0 | AW21: 0 | AX21: 0 | AY21: 0 | AZ21: 0 | BA21: 0 | BB21: 0.1369740797 | BC21: 0 | BD21: 0 | BE21: 0 | BF21: 0 | BG21: 0 | BH21: 0 | BI21: 0 | BJ21: 0 | BK21: 0 | BL21: 0 | BM21: 0 | BN21: 0 | BO21: 0 | BP21: 0 | BQ21: 0 | BR21: 0 | BS21: 0 | BT21: 0 | BU21: 0 | BV21: 0 | BW21: 0 | BX21: 0 | BY21: 0 | BZ21: 0 | CA21: 0 | CB21: 0 | CC21: 0 | CD21: 0 | CE21: 0 | CF21: 0 | CG21: 0 | CH21: 0 | CI21: 0 | CJ21: 0 | CK21: 0 | CL21: 0 | CM21: 0 | CN21: 0 | CO21: 0
A22: 19 | B22: ='NSP Data'!$C22 -> 6 | C22: ='NSP Data'!$A22 -> 2007 | D22: ='NSP Data'!D22 -> 258204.57 | E22: ='NSP Data'!E22 -> 739.92933 | F22: ='NSP Data'!F22 -> 51541.911 | G22: ='NSP Data'!G22 -> 22425.906 | H22: ='NSP Data'!H22 -> 3000.954 | I22: ='NSP Data'!I22 -> 3268.2723 | O22: 0.9985696436 | P22: 0.08208504973 | Q22: 0 | R22: 0 | S22: 0 | T22: 0 | U22: 0.7114034805 | V22: 0 | W22: 0 | X22: 0 | Y22: 0 | Z22: 0 | AA22: 0 | AB22: 0 | AC22: 0 | AD22: 0 | AE22: 0 | AF22: 0 | AG22: 0 | AH22: 0 | AI22: 0 | AJ22: 0 | AK22: 0 | AL22: 0 | AM22: 0 | AN22: 0 | AO22: 0 | AP22: 0 | AQ22: 0 | AR22: 0 | AS22: 0 | AT22: 0 | AU22: 0 | AV22: 0 | AW22: 0 | AX22: 0 | AY22: 0 | AZ22: 0 | BA22: 0 | BB22: 0 | BC22: 0 | BD22: 0 | BE22: 0 | BF22: 0 | BG22: 0 | BH22: 0 | BI22: 0 | BJ22: 0 | BK22: 0 | BL22: 0 | BM22: 0 | BN22: 0 | BO22: 0 | BP22: 0 | BQ22: 0 | BR22: 0 | BS22: 0 | BT22: 0 | BU22: 0 | BV22: 0 | BW22: 0 | BX22: 0 | BY22: 0 | BZ22: 0 | CA22: 0 | CB22: 0 | CC22: 0 | CD22: 0 | CE22: 0 | CF22: 0 | CG22: 0 | CH22: 0.2033015122 | CI22: 0 | CJ22: 0 | CK22: 0 | CL22: 0 | CM22: 0 | CN22: 0 | CO22: 0
A23: 20 | B23: ='NSP Data'!$C23 -> 7 | C23: ='NSP Data'!$A23 -> 2007 | D23: ='NSP Data'!D23 -> 253034.65 | E23: ='NSP Data'!E23 -> 753.30521 | F23: ='NSP Data'!F23 -> 52395.194 | G23: ='NSP Data'!G23 -> 21594.179 | H23: ='NSP Data'!H23 -> 2989.3356 | I23: ='NSP Data'!I23 -> 3276.6862 | O23: 0.9963014328 | P23: 0 | Q23: 0 | R23: 0 | S23: 0 | T23: 0 | U23: 0 | V23: 0.398646479 | W23: 0 | X23: 0 | Y23: 0 | Z23: 0 | AA23: 0 | AB23: 0 | AC23: 0 | AD23: 0 | AE23: 0 | AF23: 0 | AG23: 0 | AH23: 0 | AI23: 0 | AJ23: 0 | AK23: 0 | AL23: 0 | AM23: 0 | AN23: 0 | AO23: 0 | AP23: 0 | AQ23: 0 | AR23: 0 | AS23: 0 | AT23: 0 | AU23: 0 | AV23: 0.5770122953 | AW23: 0 | AX23: 0 | AY23: 0 | AZ23: 0 | BA23: 0 | BB23: 0 | BC23: 0.01727846343 | BD23: 0 | BE23: 0 | BF23: 0 | BG23: 0 | BH23: 0 | BI23: 0 | BJ23: 0 | BK23: 0 | BL23: 0 | BM23: 0 | BN23: 0 | BO23: 0 | BP23: 0 | BQ23: 0 | BR23: 0 | BS23: 0 | BT23: 0 | BU23: 0 | BV23: 0 | BW23: 0 | BX23: 0 | BY23: 0 | BZ23: 0 | CA23: 0 | CB23: 0 | CC23: 0 | CD23: 0 | CE23: 0 | CF23: 0 | CG23: 0 | CH23: 0 | CI23: 0 | CJ23: 0 | CK23: 0 | CL23: 0 | CM23: 0 | CN23: 0 | CO23: 0
A24: 21 | B24: ='NSP Data'!$C24 -> 8 | C24: ='NSP Data'!$A24 -> 2007 | D24: ='NSP Data'!D24 -> 239423.86 | E24: ='NSP Data'!E24 -> 731.99708 | F24: ='NSP Data'!F24 -> 51640.893 | G24: ='NSP Data'!G24 -> 21226.959 | H24: ='NSP Data'!H24 -> 3116.5108 | I24: ='NSP Data'!I24 -> 3296.9125 | O24: 0.9607560431 | P24: 0 | Q24: 0 | R24: 0 | S24: 0 | T24: 0 | U24: 0 | V24: 0 | W24: 0 | X24: 0 | Y24: 0 | Z24: 0 | AA24: 0 | AB24: 0 | AC24: 0 | AD24: 0 | AE24: 0 | AF24: 0 | AG24: 0 | AH24: 0 | AI24: 0 | AJ24: 0 | AK24: 0 | AL24: 0 | AM24: 0 | AN24: 0 | AO24: 0 | AP24: 0 | AQ24: 0 | AR24: 0 | AS24: 0 | AT24: 0 | AU24: 0 | AV24: 0.915139708 | AW24: 0 | AX24: 0 | AY24: 0 | AZ24: 0 | BA24: 0 | BB24: 0.0171510632 | BC24: 0 | BD24: 0 | BE24: 0 | BF24: 0 | BG24: 0 | BH24: 0 | BI24: 0 | BJ24: 0 | BK24: 0 | BL24: 0 | BM24: 0 | BN24: 0 | BO24: 0 | BP24: 0 | BQ24: 0 | BR24: 0 | BS24: 0 | BT24: 0 | BU24: 0 | BV24: 0.01626562589 | BW24: 0 | BX24: 0 | BY24: 0 | BZ24: 0 | CA24: 0 | CB24: 0 | CC24: 0 | CD24: 0 | CE24: 0 | CF24: 0 | CG24: 0 | CH24: 0 | CI24: 0 | CJ24: 0 | CK24: 0 | CL24: 0 | CM24: 0 | CN24: 0 | CO24: 0
A25: 22 | B25: ='NSP Data'!$C25 -> 9 | C25: ='NSP Data'!$A25 -> 2007 | D25: ='NSP Data'!D25 -> 245309.24 | E25: ='NSP Data'!E25 -> 729.44895 | F25: ='NSP Data'!F25 -> 51568.452 | G25: ='NSP Data'!G25 -> 20265.721 | H25: ='NSP Data'!H25 -> 3067.8914 | I25: ='NSP Data'!I25 -> 3180.9246 | O25: 0.9852972599 | P25: 0 | Q25: 0 | R25: 0 | S25: 0 | T25: 0 | U25: 0 | V25: 0.1715650714 | W25: 0 | X25: 0 | Y25: 0 | Z25: 0 | AA25: 0 | AB25: 0 | AC25: 0.03494209672 | AD25: 0 | AE25: 0 | AF25: 0 | AG25: 0 | AH25: 0 | AI25: 0 | AJ25: 0 | AK25: 0 | AL25: 0 | AM25: 0 | AN25: 0 | AO25: 0 | AP25: 0 | AQ25: 0 | AR25: 0.122413622 | AS25: 0 | AT25: 0 | AU25: 0 | AV25: 0.3342389031 | AW25: 0 | AX25: 0 | AY25: 0 | AZ25: 0 | BA25: 0 | BB25: 0.3038358794 | BC25: 0 | BD25: 0 | BE25: 0 | BF25: 0 | BG25: 0 | BH25: 0 | BI25: 0 | BJ25: 0 | BK25: 0 | BL25: 0 | BM25: 0 | BN25: 0 | BO25: 0 | BP25: 0 | BQ25: 0 | BR25: 0 | BS25: 0 | BT25: 0 | BU25: 0 | BV25: 0 | BW25: 0 | BX25: 0 | BY25: 0 | BZ25: 0 | CA25: 0 | CB25: 0 | CC25: 0 | CD25: 0 | CE25: 0 | CF25: 0 | CG25: 0 | CH25: 0 | CI25: 0 | CJ25: 0 | CK25: 0 | CL25: 0 | CM25: 0 | CN25: 0 | CO25: 0
A26: 23 | B26: ='NSP Data'!$C26 -> 10 | C26: ='NSP Data'!$A26 -> 2007 | D26: ='NSP Data'!D26 -> 249169.73 | E26: ='NSP Data'!E26 -> 713.18085 | F26: ='NSP Data'!F26 -> 53501.233 | G26: ='NSP Data'!G26 -> 19506.254 | H26: ='NSP Data'!H26 -> 3188.1904 | I26: ='NSP Data'!I26 -> 3140.1194 | O26: 0.9922930101 | P26: 0 | Q26: 0 | R26: 0 | S26: 0 | T26: 0 | U26: 0.1440887294 | V26: 0 | W26: 0 | X26: 0 | Y26: 0.3612144063 | Z26: 0 | AA26: 0 | AB26: 0 | AC26: 0 | AD26: 0 | AE26: 0 | AF26: 0 | AG26: 0 | AH26: 0 | AI26: 0 | AJ26: 0 | AK26: 0 | AL26: 0 | AM26: 0 | AN26: 0 | AO26: 0 | AP26: 0 | AQ26: 0 | AR26: 0 | AS26: 0 | AT26: 0 | AU26: 0 | AV26: 0 | AW26: 0 | AX26: 0 | AY26: 0.1590303701 | AZ26: 0 | BA26: 0 | BB26: 0.1418498708 | BC26: 0 | BD26: 0 | BE26: 0 | BF26: 0 | BG26: 0 | BH26: 0 | BI26: 0 | BJ26: 0 | BK26: 0 | BL26: 0.1870847211 | BM26: 0 | BN26: 0 | BO26: 0 | BP26: 0 | BQ26: 0 | BR26: 0 | BS26: 0 | BT26: 0 | BU26: 0 | BV26: 0 | BW26: 0 | BX26: 0 | BY26: 0 | BZ26: 0 | CA26: 0 | CB26: 0 | CC26: 0 | CD26: 0 | CE26: 0 | CF26: 0 | CG26: 0 | CH26: 0 | CI26: 0 | CJ26: 0 | CK26: 0 | CL26: 0 | CM26: 0 | CN26: 0 | CO26: 0
A27: 24 | B27: ='NSP Data'!$C27 -> 11 | C27: ='NSP Data'!$A27 -> 2007 | D27: ='NSP Data'!D27 -> 232148.07 | E27: ='NSP Data'!E27 -> 705.29297 | F27: ='NSP Data'!F27 -> 51460.765 | G27: ='NSP Data'!G27 -> 17920.861 | H27: ='NSP Data'!H27 -> 3142.841 | I27: ='NSP Data'!I27 -> 3104.2629 | O27: 0.986970478 | P27: 0 | Q27: 0 | R27: 0 | S27: 0 | T27: 0 | U27: 0 | V27: 0.108283077 | W27: 0 | X27: 0 | Y27: 0 | Z27: 0 | AA27: 0 | AB27: 0 | AC27: 0 | AD27: 0 | AE27: 0 | AF27: 0 | AG27: 0 | AH27: 0 | AI27: 0 | AJ27: 0 | AK27: 0 | AL27: 0 | AM27: 0 | AN27: 0 | AO27: 0 | AP27: 0 | AQ27: 0 | AR27: 0.1081120992 | AS27: 0 | AT27: 0 | AU27: 0 | AV27: 0.05582459964 | AW27: 0 | AX27: 0 | AY27: 0 | AZ27: 0 | BA27: 0 | BB27: 0.6867735151 | BC27: 0 | BD27: 0 | BE27: 0 | BF27: 0 | BG27: 0 | BH27: 0 | BI27: 0 | BJ27: 0 | BK27: 0 | BL27: 0 | BM27: 0 | BN27: 0 | BO27: 0 | BP27: 0 | BQ27: 0 | BR27: 0 | BS27: 0 | BT27: 0 | BU27: 0 | BV27: 0 | BW27: 0 | BX27: 0 | BY27: 0 | BZ27: 0 | CA27: 0 | CB27: 0 | CC27: 0 | CD27: 0 | CE27: 0 | CF27: 0 | CG27: 0 | CH27: 0 | CI27: 0 | CJ27: 0 | CK27: 0 | CL27: 0 | CM27: 0 | CN27: 0 | CO27: 0
A28: 25 | B28: ='NSP Data'!$C28 -> 12 | C28: ='NSP Data'!$A28 -> 2007 | D28: ='NSP Data'!D28 -> 237722.39 | E28: ='NSP Data'!E28 -> 699.72629 | F28: ='NSP Data'!F28 -> 52417.448 | G28: ='NSP Data'!G28 -> 17133.712 | H28: ='NSP Data'!H28 -> 3261.0225 | I28: ='NSP Data'!I28 -> 3104.7474 | O28: 0.979735569 | P28: 0 | Q28: 0 | R28: 0 | S28: 0 | T28: 0 | U28: 0 | V28: 0 | W28: 0 | X28: 0 | Y28: 0 | Z28: 0 | AA28: 0 | AB28: 0 | AC28: 0 | AD28: 0 | AE28: 0 | AF28: 0 | AG28: 0 | AH28: 0 | AI28: 0 | AJ28: 0 | AK28: 0 | AL28: 0 | AM28: 0 | AN28: 0 | AO28: 0 | AP28: 0 | AQ28: 0 | AR28: 0.05650263752 | AS28: 0 | AT28: 0 | AU28: 0 | AV28: 0 | AW28: 0 | AX28: 0 | AY28: 0 | AZ28: 0 | BA28: 0 | BB28: 0.7800483468 | BC28: 0 | BD28: 0 | BE28: 0 | BF28: 0.04298641844 | BG28: 0 | BH28: 0 | BI28: 0 | BJ28: 0 | BK28: 0 | BL28: 0 | BM28: 0 | BN28: 0 | BO28: 0 | BP28: 0 | BQ28: 0 | BR28: 0 | BS28: 0 | BT28: 0 | BU28: 0 | BV28: 0 | BW28: 0 | BX28: 0 | BY28: 0 | BZ28: 0 | CA28: 0 | CB28: 0.07575959162 | CC28: 0 | CD28: 0 | CE28: 0 | CF28: 0 | CG28: 0 | CH28: 0 | CI28: 0 | CJ28: 0 | CK28: 0 | CL28: 0 | CM28: 0 | CN28: 0 | CO28: 0
A29: 26 | B29: ='NSP Data'!$C29 -> 13 | C29: ='NSP Data'!$A29 -> 2007 | D29: ='NSP Data'!D29 -> 238862.1 | E29: ='NSP Data'!E29 -> 699.68506 | F29: ='NSP Data'!F29 -> 54760.035 | G29: ='NSP Data'!G29 -> 16369.416 | H29: ='NSP Data'!H29 -> 3129.7906 | I29: ='NSP Data'!I29 -> 3146.517 | O29: 1 | P29: 0 | Q29: 0 | R29: 0 | S29: 0 | T29: 0 | U29: 0 | V29: 0 | W29: 0 | X29: 0 | Y29: 0 | Z29: 0 | AA29: 0 | AB29: 0 | AC29: 0 | AD29: 0 | AE29: 0 | AF29: 0 | AG29: 0 | AH29: 0 | AI29: 0 | AJ29: 0 | AK29: 0 | AL29: 0 | AM29: 0 | AN29: 0 | AO29: 0.9999999999 | AP29: 0 | AQ29: 0 | AR29: 0 | AS29: 0 | AT29: 0 | AU29: 0 | AV29: 0 | AW29: 0 | AX29: 0 | AY29: 0 | AZ29: 0 | BA29: 0 | BB29: 0 | BC29: 0 | BD29: 0 | BE29: 0 | BF29: 0 | BG29: 0 | BH29: 0 | BI29: 0 | BJ29: 0 | BK29: 0 | BL29: 0 | BM29: 0 | BN29: 0 | BO29: 6.649943564e-11 | BP29: 0 | BQ29: 0 | BR29: 0 | BS29: 0 | BT29: 0 | BU29: 0 | BV29: 0 | BW29: 0 | BX29: 0 | BY29: 0 | BZ29: 0 | CA29: 0 | CB29: 0 | CC29: 0 | CD29: 0 | CE29: 0 | CF29: 0 | CG29: 0 | CH29: 0 | CI29: 0 | CJ29: 0 | CK29: 0 | CL29: 0 | CM29: 0 | CN29: 0 | CO29: 0
A30: 27 | B30: ='NSP Data'!$C30 -> 1 | C30: ='NSP Data'!$A30 -> 2008 | D30: ='NSP Data'!D30 -> 268403.87 | E30: ='NSP Data'!E30 -> 819.74343 | F30: ='NSP Data'!F30 -> 48451.247 | G30: ='NSP Data'!G30 -> 27353.877 | H30: ='NSP Data'!H30 -> 3021.0841 | I30: ='NSP Data'!I30 -> 3276.2424 | O30: 1 | P30: 1.726985221e-11 | Q30: 0 | R30: 0 | S30: 0 | T30: 0 | U30: 0 | V30: 0 | W30: 0 | X30: 0 | Y30: 0 | Z30: 0 | AA30: 0 | AB30: 0 | AC30: 0 | AD30: 0 | AE30: 0 | AF30: 0 | AG30: 0 | AH30: 0 | AI30: 0 | AJ30: 0 | AK30: 0 | AL30: 0 | AM30: 0 | AN30: 0 | AO30: 0 | AP30: 1 | AQ30: 0 | AR30: 0 | AS30: 0 | AT30: 0 | AU30: 0 | AV30: 0 | AW30: 0 | AX30: 0 | AY30: 0 | AZ30: 0 | BA30: 0 | BB30: 0 | BC30: 0 | BD30: 0 | BE30: 0 | BF30: 0 | BG30: 0 | BH30: 0 | BI30: 0 | BJ30: 0 | BK30: 0 | BL30: 0 | BM30: 0 | BN30: 0 | BO30: 0 | BP30: 0 | BQ30: 0 | BR30: 0 | BS30: 0 | BT30: 0 | BU30: 0 | BV30: 0 | BW30: 0 | BX30: 0 | BY30: 0 | BZ30: 0 | CA30: 0 | CB30: 0 | CC30: 0 | CD30: 0 | CE30: 0 | CF30: 0 | CG30: 0 | CH30: 0 | CI30: 0 | CJ30: 0 | CK30: 0 | CL30: 0 | CM30: 0 | CN30: 0 | CO30: 0
A31: 28 | B31: ='NSP Data'!$C31 -> 2 | C31: ='NSP Data'!$A31 -> 2008 | D31: ='NSP Data'!D31 -> 268591.24 | E31: ='NSP Data'!E31 -> 810.46552 | F31: ='NSP Data'!F31 -> 50885.221 | G31: ='NSP Data'!G31 -> 27780.927 | H31: ='NSP Data'!H31 -> 3036.5228 | I31: ='NSP Data'!I31 -> 3285.869 | O31: 0.992958012 | P31: 0 | Q31: 0.2878758679 | R31: 0 | S31: 0 | T31: 0 | U31: 0 | V31: 0 | W31: 0 | X31: 0 | Y31: 0 | Z31: 0 | AA31: 0 | AB31: 0 | AC31: 0 | AD31: 0 | AE31: 0 | AF31: 0 | AG31: 0 | AH31: 0 | AI31: 0 | AJ31: 0 | AK31: 0 | AL31: 0 | AM31: 0 | AN31: 0 | AO31: 0 | AP31: 0.5929888092 | AQ31: 0 | AR31: 0 | AS31: 0 | AT31: 0 | AU31: 0 | AV31: 0 | AW31: 0 | AX31: 0 | AY31: 0 | AZ31: 0 | BA31: 0 | BB31: 0 | BC31: 0 | BD31: 0 | BE31: 0 | BF31: 0 | BG31: 0 | BH31: 0 | BI31: 0 | BJ31: 0 | BK31: 0 | BL31: 0 | BM31: 0 | BN31: 0 | BO31: 0 | BP31: 0 | BQ31: 0 | BR31: 0 | BS31: 0 | BT31: 0 | BU31: 0 | BV31: 0 | BW31: 0 | BX31: 0 | BY31: 0 | BZ31: 0 | CA31: 0 | CB31: 0 | CC31: 0 | CD31: 0 | CE31: 0 | CF31: 0.1222914303 | CG31: 0 | CH31: 0 | CI31: 0 | CJ31: 0 | CK31: 0 | CL31: 0 | CM31: 0 | CN31: 0 | CO31: 0
A32: 29 | B32: ='NSP Data'!$C32 -> 3 | C32: ='NSP Data'!$A32 -> 2008 | D32: ='NSP Data'!D32 -> 258390.32 | E32: ='NSP Data'!E32 -> 801.6085 | F32: ='NSP Data'!F32 -> 51819.628 | G32: ='NSP Data'!G32 -> 24889.955 | H32: ='NSP Data'!H32 -> 3136.4438 | I32: ='NSP Data'!I32 -> 3190.1691 | O32: 1 | P32: 0 | Q32: 0 | R32: 0 | S32: 0 | T32: 0 | U32: 0 | V32: 0 | W32: 0 | X32: 0 | Y32: 0 | Z32: 0 | AA32: 0 | AB32: 0 | AC32: 5.136681114e-11 | AD32: 0 | AE32: 0 | AF32: 0 | AG32: 0 | AH32: 0 | AI32: 0 | AJ32: 0 | AK32: 0 | AL32: 0 | AM32: 0 | AN32: 0 | AO32: 0 | AP32: 0 | AQ32: 0 | AR32: 0.9999999999 | AS32: 0 | AT32: 0 | AU32: 0 | AV32: 0 | AW32: 0 | AX32: 0 | AY32: 0 | AZ32: 0 | BA32: 0 | BB32: 2.335610144e-11 | BC32: 0 | BD32: 0 | BE32: 0 | BF32: 7.256892452e-11 | BG32: 0 | BH32: 0 | BI32: 0 | BJ32: 0 | BK32: 0 | BL32: 0 | BM32: 0 | BN32: 0 | BO32: 0 | BP32: 0 | BQ32: 0 | BR32: 0 | BS32: 0 | BT32: 0 | BU32: 0 | BV32: 0 | BW32: 0 | BX32: 0 | BY32: 0 | BZ32: 0 | CA32: 0 | CB32: 0 | CC32: 0 | CD32: 0 | CE32: 0 | CF32: 0 | CG32: 0 | CH32: 0 | CI32: 0 | CJ32: 0 | CK32: 0 | CL32: 0 | CM32: 0 | CN32: 0 | CO32: 0
A33: 30 | B33: ='NSP Data'!$C33 -> 4 | C33: ='NSP Data'!$A33 -> 2008 | D33: ='NSP Data'!D33 -> 263627.69 | E33: ='NSP Data'!E33 -> 791.18418 | F33: ='NSP Data'!F33 -> 50308.349 | G33: ='NSP Data'!G33 -> 25573.936 | H33: ='NSP Data'!H33 -> 3070.4698 | I33: ='NSP Data'!I33 -> 3207.064 | O33: 0.9964525017 | P33: 0 | Q33: 0.05169401413 | R33: 0 | S33: 0 | T33: 0 | U33: 0 | V33: 0 | W33: 0 | X33: 0 | Y33: 0 | Z33: 0 | AA33: 0 | AB33: 0 | AC33: 0 | AD33: 0 | AE33: 0 | AF33: 0 | AG33: 0 | AH33: 0 | AI33: 0 | AJ33: 0 | AK33: 0 | AL33: 0 | AM33: 0 | AN33: 0 | AO33: 0 | AP33: 0.2483178531 | AQ33: 0 | AR33: 0 | AS33: 0 | AT33: 0 | AU33: 0 | AV33: 0 | AW33: 0 | AX33: 0 | AY33: 0 | AZ33: 0 | BA33: 0 | BB33: 0 | BC33: 0 | BD33: 0 | BE33: 0 | BF33: 0.6664219046 | BG33: 0 | BH33: 0 | BI33: 0 | BJ33: 0 | BK33: 0 | BL33: 0 | BM33: 0 | BN33: 0 | BO33: 0 | BP33: 0 | BQ33: 0 | BR33: 0 | BS33: 0 | BT33: 0 | BU33: 0 | BV33: 0 | BW33: 0 | BX33: 0 | BY33: 0 | BZ33: 0 | CA33: 0 | CB33: 0 | CC33: 0 | CD33: 0 | CE33: 0 | CF33: 0.008154471497 | CG33: 0 | CH33: 0 | CI33: 0 | CJ33: 0 | CK33: 0 | CL33: 0 | CM33: 0 | CN33: 0 | CO33: 0
A34: 31 | B34: ='NSP Data'!$C34 -> 5 | C34: ='NSP Data'!$A34 -> 2008 | D34: ='NSP Data'!D34 -> 256918.67 | E34: ='NSP Data'!E34 -> 781.9101 | F34: ='NSP Data'!F34 -> 50730.18 | G34: ='NSP Data'!G34 -> 24492.066 | H34: ='NSP Data'!H34 -> 3171.6396 | I34: ='NSP Data'!I34 -> 3278.29 | O34: 0.9728895477 | P34: 0 | Q34: 0 | R34: 0 | S34: 0 | T34: 0 | U34: 0 | V34: 0 | W34: 0 | X34: 0 | Y34: 0 | Z34: 0 | AA34: 0 | AB34: 0 | AC34: 0.05932647257 | AD34: 0 | AE34: 0 | AF34: 0 | AG34: 0 | AH34: 0 | AI34: 0 | AJ34: 0 | AK34: 0 | AL34: 0 | AM34: 0 | AN34: 0 | AO34: 0 | AP34: 0 | AQ34: 0 | AR34: 0.2797594848 | AS34: 0 | AT34: 0 | AU34: 0 | AV34: 0.1789783702 | AW34: 0 | AX34: 0 | AY34: 0 | AZ34: 0 | BA34: 0 | BB34: 0.08384921116 | BC34: 0.3700308272 | BD34: 0 | BE34: 0 | BF34: 0 | BG34: 0 | BH34: 0 | BI34: 0 | BJ34: 0 | BK34: 0 | BL34: 0 | BM34: 0 | BN34: 0 | BO34: 0 | BP34: 0 | BQ34: 0 | BR34: 0 | BS34: 0 | BT34: 0 | BU34: 0 | BV34: 0 | BW34: 0 | BX34: 0 | BY34: 0 | BZ34: 0 | CA34: 0 | CB34: 0 | CC34: 0 | CD34: 0 | CE34: 0 | CF34: 0 | CG34: 0 | CH34: 0 | CI34: 0 | CJ34: 0 | CK34: 0 | CL34: 0 | CM34: 0 | CN34: 0 | CO34: 0
A35: 32 | B35: ='NSP Data'!$C35 -> 6 | C35: ='NSP Data'!$A35 -> 2008 | D35: ='NSP Data'!D35 -> 261472.76 | E35: ='NSP Data'!E35 -> 759.48901 | F35: ='NSP Data'!F35 -> 51705.564 | G35: ='NSP Data'!G35 -> 22119.295 | H35: ='NSP Data'!H35 -> 3208.0681 | I35: ='NSP Data'!I35 -> 3325.9454 | O35: 0.9924014148 | P35: 0.05423070072 | Q35: 0 | R35: 0 | S35: 0 | T35: 0 | U35: 0.2602494855 | V35: 0 | W35: 0 | X35: 0 | Y35: 0 | Z35: 0 | AA35: 0 | AB35: 0 | AC35: 0 | AD35: 0 | AE35: 0 | AF35: 0 | AG35: 0 | AH35: 0 | AI35: 0 | AJ35: 0 | AK35: 0 | AL35: 0 | AM35: 0 | AN35: 0 | AO35: 0 | AP35: 0 | AQ35: 0 | AR35: 0 | AS35: 0 | AT35: 0 | AU35: 0 | AV35: 0.4026793901 | AW35: 0 | AX35: 0 | AY35: 0 | AZ35: 0 | BA35: 0 | BB35: 0 | BC35: 0 | BD35: 0 | BE35: 0 | BF35: 0 | BG35: 0 | BH35: 0 | BI35: 0 | BJ35: 0 | BK35: 0 | BL35: 0 | BM35: 0 | BN35: 0 | BO35: 0 | BP35: 0 | BQ35: 0 | BR35: 0 | BS35: 0 | BT35: 0 | BU35: 0 | BV35: 0 | BW35: 0 | BX35: 0 | BY35: 0 | BZ35: 0 | CA35: 0 | CB35: 0 | CC35: 0 | CD35: 0 | CE35: 0 | CF35: 0 | CG35: 0 | CH35: 0.2719136807 | CI35: 0 | CJ35: 0 | CK35: 0 | CL35: 0 | CM35: 0 | CN35: 0 | CO35: 0
A36: 33 | B36: ='NSP Data'!$C36 -> 7 | C36: ='NSP Data'!$A36 -> 2008 | D36: ='NSP Data'!D36 -> 260295.25 | E36: ='NSP Data'!E36 -> 772.02289 | F36: ='NSP Data'!F36 -> 52306.978 | G36: ='NSP Data'!G36 -> 21589.511 | H36: ='NSP Data'!H36 -> 3146.3179 | I36: ='NSP Data'!I36 -> 3320.6909 | O36: 1 | P36: 0 | Q36: 0 | R36: 0 | S36: 0 | T36: 0 | U36: 0 | V36: 0 | W36: 0 | X36: 0 | Y36: 0 | Z36: 0 | AA36: 0 | AB36: 0 | AC36: 0 | AD36: 0 | AE36: 0 | AF36: 0 | AG36: 0 | AH36: 0 | AI36: 0 | AJ36: 0 | AK36: 0 | AL36: 0 | AM36: 0 | AN36: 0 | AO36: 0 | AP36: 0 | AQ36: 0 | AR36: 0 | AS36: 0 | AT36: 0 | AU36: 0 | AV36: 0.9999999999 | AW36: 0 | AX36: 0 | AY36: 0 | AZ36: 0 | BA36: 0 | BB36: 2.403187762e-11 | BC36: 2.179765261e-11 | BD36: 0 | BE36: 0 | BF36: 0 | BG36: 0 | BH36: 0 | BI36: 0 | BJ36: 0 | BK36: 0 | BL36: 0 | BM36: 0 | BN36: 0 | BO36: 0 | BP36: 0 | BQ36: 0 | BR36: 0 | BS36: 0 | BT36: 0 | BU36: 0 | BV36: 3.632651639e-12 | BW36: 0 | BX36: 0 | BY36: 0 | BZ36: 0 | CA36: 0 | CB36: 0 | CC36: 0 | CD36: 0 | CE36: 0 | CF36: 0 | CG36: 0 | CH36: 0 | CI36: 0 | CJ36: 0 | CK36: 0 | CL36: 0 | CM36: 0 | CN36: 0 | CO36: 0
A37: 34 | B37: ='NSP Data'!$C37 -> 8 | C37: ='NSP Data'!$A37 -> 2008 | D37: ='NSP Data'!D37 -> 243726.21 | E37: ='NSP Data'!E37 -> 745.43717 | F37: ='NSP Data'!F37 -> 51950.323 | G37: ='NSP Data'!G37 -> 21042.348 | H37: ='NSP Data'!H37 -> 3287.1454 | I37: ='NSP Data'!I37 -> 3294.988 | O37: 0.9616159427 | P37: 0 | Q37: 0 | R37: 0 | S37: 0 | T37: 0 | U37: 0 | V37: 0 | W37: 0 | X37: 0 | Y37: 0 | Z37: 0 | AA37: 0 | AB37: 0 | AC37: 0 | AD37: 0 | AE37: 0 | AF37: 0 | AG37: 0 | AH37: 0 | AI37: 0 | AJ37: 0 | AK37: 0 | AL37: 0 | AM37: 0 | AN37: 0 | AO37: 0 | AP37: 0 | AQ37: 0 | AR37: 0 | AS37: 0 | AT37: 0 | AU37: 0 | AV37: 0.2808436069 | AW37: 0 | AX37: 0 | AY37: 0 | AZ37: 0 | BA37: 0 | BB37: 0.3689690738 | BC37: 0.2229615091 | BD37: 0 | BE37: 0 | BF37: 0 | BG37: 0 | BH37: 0 | BI37: 0 | BJ37: 0 | BK37: 0 | BL37: 0 | BM37: 0 | BN37: 0 | BO37: 0 | BP37: 0 | BQ37: 0 | BR37: 0 | BS37: 0 | BT37: 0 | BU37: 0 | BV37: 0.09217399695 | BW37: 0 | BX37: 0 | BY37: 0 | BZ37: 0 | CA37: 0 | CB37: 0 | CC37: 0 | CD37: 0 | CE37: 0 | CF37: 0 | CG37: 0 | CH37: 0 | CI37: 0 | CJ37: 0 | CK37: 0 | CL37: 0 | CM37: 0 | CN37: 0 | CO37: 0
A38: 35 | B38: ='NSP Data'!$C38 -> 9 | C38: ='NSP Data'!$A38 -> 2008 | D38: ='NSP Data'!D38 -> 248257.85 | E38: ='NSP Data'!E38 -> 738.31812 | F38: ='NSP Data'!F38 -> 51989.089 | G38: ='NSP Data'!G38 -> 20309.737 | H38: ='NSP Data'!H38 -> 3241.6437 | I38: ='NSP Data'!I38 -> 3222.7898 | O38: 0.9744687122 | P38: 0 | Q38: 0 | R38: 0 | S38: 0 | T38: 0 | U38: 0 | V38: 0 | W38: 0 | X38: 0 | Y38: 0 | Z38: 0 | AA38: 0 | AB38: 0 | AC38: 0.1344034878 | AD38: 0 | AE38: 0 | AF38: 0 | AG38: 0 | AH38: 0 | AI38: 0 | AJ38: 0 | AK38: 0 | AL38: 0 | AM38: 0 | AN38: 0 | AO38: 0 | AP38: 0 | AQ38: 0 | AR38: 0.0661863533 | AS38: 0 | AT38: 0 | AU38: 0 | AV38: 0 | AW38: 0 | AX38: 0 | AY38: 0 | AZ38: 0 | BA38: 0 | BB38: 0.6222646381 | BC38: 0.146298306 | BD38: 0 | BE38: 0 | BF38: 0.007570237523 | BG38: 0 | BH38: 0 | BI38: 0 | BJ38: 0 | BK38: 0 | BL38: 0 | BM38: 0 | BN38: 0 | BO38: 0 | BP38: 0 | BQ38: 0 | BR38: 0 | BS38: 0 | BT38: 0 | BU38: 0 | BV38: 0 | BW38: 0 | BX38: 0 | BY38: 0 | BZ38: 0 | CA38: 0 | CB38: 0 | CC38: 0 | CD38: 0 | CE38: 0 | CF38: 0 | CG38: 0 | CH38: 0 | CI38: 0 | CJ38: 0 | CK38: 0 | CL38: 0 | CM38: 0 | CN38: 0 | CO38: 0
A39: 36 | B39: ='NSP Data'!$C39 -> 10 | C39: ='NSP Data'!$A39 -> 2008 | D39: ='NSP Data'!D39 -> 254965.76 | E39: ='NSP Data'!E39 -> 734.47263 | F39: ='NSP Data'!F39 -> 53388.495 | G39: ='NSP Data'!G39 -> 19642.532 | H39: ='NSP Data'!H39 -> 3356.2361 | I39: ='NSP Data'!I39 -> 3126.076 | O39: 1 | P39: 0 | Q39: 0 | R39: 0 | S39: 0 | T39: 0 | U39: 0 | V39: 0 | W39: 0 | X39: 0 | Y39: 0 | Z39: 0 | AA39: 0 | AB39: 0 | AC39: 0 | AD39: 0 | AE39: 0 | AF39: 0 | AG39: 0 | AH39: 0 | AI39: 0 | AJ39: 0 | AK39: 0 | AL39: 0 | AM39: 0 | AN39: 0 | AO39: 0 | AP39: 0 | AQ39: 0 | AR39: 0 | AS39: 0 | AT39: 0 | AU39: 0 | AV39: 0 | AW39: 0 | AX39: 0 | AY39: 0.9999999996 | AZ39: 0 | BA39: 0 | BB39: 1.482535206e-10 | BC39: 0 | BD39: 0 | BE39: 0 | BF39: 6.678918703e-11 | BG39: 0 | BH39: 0 | BI39: 0 | BJ39: 0 | BK39: 0 | BL39: 0 | BM39: 0 | BN39: 0 | BO39: 0 | BP39: 0 | BQ39: 0 | BR39: 0 | BS39: 0 | BT39: 0 | BU39: 0 | BV39: 0 | BW39: 0 | BX39: 0 | BY39: 0 | BZ39: 0 | CA39: 0 | CB39: 5.991784846e-11 | CC39: 0 | CD39: 0 | CE39: 0 | CF39: 0 | CG39: 0 | CH39: 7.034162142e-11 | CI39: 0 | CJ39: 0 | CK39: 0 | CL39: 0 | CM39: 0 | CN39: 0 | CO39: 0
A40: 37 | B40: ='NSP Data'!$C40 -> 11 | C40: ='NSP Data'!$A40 -> 2008 | D40: ='NSP Data'!D40 -> 239411.29 | E40: ='NSP Data'!E40 -> 726.46905 | F40: ='NSP Data'!F40 -> 51362.068 | G40: ='NSP Data'!G40 -> 17975.876 | H40: ='NSP Data'!H40 -> 3303.987 | I40: ='NSP Data'!I40 -> 3123.888 | O40: 0.9976849192 | P40: 0 | Q40: 0 | R40: 0 | S40: 0 | T40: 0 | U40: 0 | V40: 0 | W40: 0 | X40: 0 | Y40: 0 | Z40: 0 | AA40: 0 | AB40: 0 | AC40: 0 | AD40: 0 | AE40: 0 | AF40: 0 | AG40: 0 | AH40: 0 | AI40: 0 | AJ40: 0 | AK40: 0 | AL40: 0 | AM40: 0 | AN40: 0 | AO40: 0 | AP40: 0 | AQ40: 0 | AR40: 0.01845678942 | AS40: 0 | AT40: 0 | AU40: 0 | AV40: 0 | AW40: 0 | AX40: 0 | AY40: 0 | AZ40: 0 | BA40: 0 | BB40: 0.6790377856 | BC40: 0 | BD40: 0 | BE40: 0 | BF40: 0 | BG40: 0 | BH40: 0 | BI40: 0 | BJ40: 0 | BK40: 0 | BL40: 0 | BM40: 0 | BN40: 0 | BO40: 0 | BP40: 0 | BQ40: 0 | BR40: 0.1872103749 | BS40: 0 | BT40: 0 | BU40: 0 | BV40: 0 | BW40: 0 | BX40: 0 | BY40: 0 | BZ40: 0 | CA40: 0 | CB40: 0.08472667283 | CC40: 0 | CD40: 0 | CE40: 0 | CF40: 0 | CG40: 0 | CH40: 0 | CI40: 0 | CJ40: 0 | CK40: 0 | CL40: 0 | CM40: 0 | CN40: 0 | CO40: 0
A41: 38 | B41: ='NSP Data'!$C41 -> 12 | C41: ='NSP Data'!$A41 -> 2008 | D41: ='NSP Data'!D41 -> 245602.84 | E41: ='NSP Data'!E41 -> 712.45464 | F41: ='NSP Data'!F41 -> 52553.93 | G41: ='NSP Data'!G41 -> 17449.921 | H41: ='NSP Data'!H41 -> 3510.2047 | I41: ='NSP Data'!I41 -> 3129.3352 | O41: 0.978794096 | P41: 0 | Q41: 0 | R41: 0 | S41: 0 | T41: 0 | U41: 0 | V41: 0 | W41: 0 | X41: 0 | Y41: 0.07563928561 | Z41: 0 | AA41: 0 | AB41: 0 | AC41: 0 | AD41: 0 | AE41: 0 | AF41: 0 | AG41: 0 | AH41: 0 | AI41: 0 | AJ41: 0 | AK41: 0 | AL41: 0 | AM41: 0 | AN41: 0 | AO41: 0 | AP41: 0 | AQ41: 0 | AR41: 0 | AS41: 0 | AT41: 0 | AU41: 0 | AV41: 0 | AW41: 0 | AX41: 0 | AY41: 0.2175427607 | AZ41: 0 | BA41: 0 | BB41: 0.1269039892 | BC41: 0 | BD41: 0 | BE41: 0 | BF41: 0 | BG41: 0 | BH41: 0 | BI41: 0 | BJ41: 0 | BK41: 0 | BL41: 0 | BM41: 0 | BN41: 0 | BO41: 0 | BP41: 0 | BQ41: 0 | BR41: 0 | BS41: 0 | BT41: 0 | BU41: 0 | BV41: 0 | BW41: 0 | BX41: 0 | BY41: 0 | BZ41: 0 | CA41: 0 | CB41: 0.5509168045 | CC41: 0 | CD41: 0 | CE41: 0 | CF41: 0 | CG41: 0 | CH41: 0 | CI41: 0 | CJ41: 0 | CK41: 0 | CL41: 0 | CM41: 0 | CN41: 0 | CO41: 0
A42: 39 | B42: ='NSP Data'!$C42 -> 13 | C42: ='NSP Data'!$A42 -> 2008 | D42: ='NSP Data'!D42 -> 246313.76 | E42: ='NSP Data'!E42 -> 722.02939 | F42: ='NSP Data'!F42 -> 53171.332 | G42: ='NSP Data'!G42 -> 16683.907 | H42: ='NSP Data'!H42 -> 3329.3318 | I42: ='NSP Data'!I42 -> 3179.0811 | O42: 1 | P42: 0 | Q42: 0 | R42: 0 | S42: 0 | T42: 0 | U42: 0 | V42: 0 | W42: 0 | X42: 0 | Y42: 3.218483813e-11 | Z42: 0 | AA42: 0 | AB42: 0 | AC42: 0 | AD42: 0 | AE42: 0 | AF42: 0 | AG42: 0 | AH42: 0 | AI42: 0 | AJ42: 0 | AK42: 0 | AL42: 0 | AM42: 0 | AN42: 0 | AO42: 0 | AP42: 0 | AQ42: 0 | AR42: 0 | AS42: 0 | AT42: 0 | AU42: 0 | AV42: 0 | AW42: 0 | AX42: 0 | AY42: 0 | AZ42: 0 | BA42: 0 | BB42: 0.9999999999 | BC42: 0 | BD42: 0 | BE42: 0 | BF42: 0 | BG42: 0 | BH42: 0 | BI42: 0 | BJ42: 0 | BK42: 0 | BL42: 0 | BM42: 0 | BN42: 0 | BO42: 0 | BP42: 0 | BQ42: 0 | BR42: 0 | BS42: 0 | BT42: 0 | BU42: 0 | BV42: 0 | BW42: 0 | BX42: 0 | BY42: 0 | BZ42: 0 | CA42: 0 | CB42: 6.535016972e-11 | CC42: 0 | CD42: 0 | CE42: 0 | CF42: 0 | CG42: 0 | CH42: 0 | CI42: 0 | CJ42: 0 | CK42: 0 | CL42: 0 | CM42: 0 | CN42: 0 | CO42: 0
A43: 40 | B43: ='NSP Data'!$C43 -> 1 | C43: ='NSP Data'!$A43 -> 2009 | D43: ='NSP Data'!D43 -> 274743.75 | E43: ='NSP Data'!E43 -> 842.97624 | F43: ='NSP Data'!F43 -> 48979.627 | G43: ='NSP Data'!G43 -> 27045.458 | H43: ='NSP Data'!H43 -> 3235.8694 | I43: ='NSP Data'!I43 -> 3362.8482 | O43: 1 | P43: 3.689256363e-11 | Q43: 0 | R43: 0 | S43: 0 | T43: 0 | U43: 0 | V43: 0 | W43: 0 | X43: 0 | Y43: 0 | Z43: 0 | AA43: 0 | AB43: 0 | AC43: 0 | AD43: 0 | AE43: 0 | AF43: 0 | AG43: 0 | AH43: 0 | AI43: 0 | AJ43: 0 | AK43: 0 | AL43: 0 | AM43: 0 | AN43: 0 | AO43: 0 | AP43: 2.770373818e-10 | AQ43: 0 | AR43: 0 | AS43: 0 | AT43: 0 | AU43: 0 | AV43: 0 | AW43: 0 | AX43: 0 | AY43: 0 | AZ43: 0 | BA43: 0 | BB43: 0 | BC43: 0.9999999995 | BD43: 0 | BE43: 0 | BF43: 0 | BG43: 0 | BH43: 0 | BI43: 0 | BJ43: 0 | BK43: 0 | BL43: 0 | BM43: 0 | BN43: 0 | BO43: 0 | BP43: 0 | BQ43: 0 | BR43: 0 | BS43: 0 | BT43: 0 | BU43: 0 | BV43: 0 | BW43: 0 | BX43: 0 | BY43: 0 | BZ43: 0 | CA43: 0 | CB43: 0 | CC43: 0 | CD43: 0 | CE43: 0 | CF43: 1.745546393e-10 | CG43: 0 | CH43: 0 | CI43: 0 | CJ43: 0 | CK43: 0 | CL43: 0 | CM43: 0 | CN43: 0 | CO43: 0
A44: 41 | B44: ='NSP Data'!$C44 -> 2 | C44: ='NSP Data'!$A44 -> 2009 | D44: ='NSP Data'!D44 -> 274309.54 | E44: ='NSP Data'!E44 -> 834.90665 | F44: ='NSP Data'!F44 -> 50613.303 | G44: ='NSP Data'!G44 -> 27998.764 | H44: ='NSP Data'!H44 -> 3223.3304 | I44: ='NSP Data'!I44 -> 3353.6257 | O44: 0.9959821095 | P44: 0 | Q44: 0 | R44: 0 | S44: 0 | T44: 0 | U44: 0 | V44: 0 | W44: 0 | X44: 0 | Y44: 0 | Z44: 0 | AA44: 0 | AB44: 0 | AC44: 0 | AD44: 0 | AE44: 0 | AF44: 0 | AG44: 0 | AH44: 0 | AI44: 0 | AJ44: 0 | AK44: 0 | AL44: 0 | AM44: 0 | AN44: 0 | AO44: 0 | AP44: 0.7599328824 | AQ44: 0 | AR44: 0 | AS44: 0 | AT44: 0 | AU44: 0 | AV44: 0 | AW44: 0 | AX44: 0 | AY44: 0 | AZ44: 0 | BA44: 0 | BB44: 0 | BC44: 0 | BD44: 0 | BE44: 0.03850557171 | BF44: 0 | BG44: 0 | BH44: 0 | BI44: 0 | BJ44: 0 | BK44: 0 | BL44: 0 | BM44: 0 | BN44: 0 | BO44: 0 | BP44: 0 | BQ44: 0 | BR44: 0 | BS44: 0 | BT44: 0 | BU44: 0 | BV44: 0 | BW44: 0 | BX44: 0 | BY44: 0 | BZ44: 0 | CA44: 0 | CB44: 0 | CC44: 0 | CD44: 0 | CE44: 0 | CF44: 0.2128510377 | CG44: 0 | CH44: 0 | CI44: 0 | CJ44: 0 | CK44: 0 | CL44: 0 | CM44: 0 | CN44: 0 | CO44: 0
A45: 42 | B45: ='NSP Data'!$C45 -> 3 | C45: ='NSP Data'!$A45 -> 2009 | D45: ='NSP Data'!D45 -> 263395.04 | E45: ='NSP Data'!E45 -> 822.05071 | F45: ='NSP Data'!F45 -> 51825.311 | G45: ='NSP Data'!G45 -> 25257.784 | H45: ='NSP Data'!H45 -> 3323.8087 | I45: ='NSP Data'!I45 -> 3255.9308 | O45: 1 | P45: 0 | Q45: 0 | R45: 0 | S45: 0 | T45: 0 | U45: 0 | V45: 0 | W45: 0 | X45: 0 | Y45: 0 | Z45: 0 | AA45: 0 | AB45: 0 | AC45: 0 | AD45: 0 | AE45: 0 | AF45: 0 | AG45: 0 | AH45: 0 | AI45: 0 | AJ45: 0 | AK45: 0 | AL45: 0 | AM45: 0 | AN45: 0 | AO45: 0 | AP45: 0 | AQ45: 0 | AR45: 6.02199457e-10 | AS45: 0 | AT45: 0 | AU45: 0 | AV45: 0 | AW45: 0 | AX45: 0 | AY45: 0 | AZ45: 0 | BA45: 0 | BB45: 0 | BC45: 2.550971379e-10 | BD45: 0 | BE45: 0.999999999 | BF45: 0 | BG45: 0 | BH45: 0 | BI45: 0 | BJ45: 0 | BK45: 0 | BL45: 0 | BM45: 0 | BN45: 0 | BO45: 0 | BP45: 0 | BQ45: 0 | BR45: 0 | BS45: 0 | BT45: 0 | BU45: 0 | BV45: 0 | BW45: 0 | BX45: 0 | BY45: 0 | BZ45: 0 | CA45: 0 | CB45: 8.949215327e-11 | CC45: 0 | CD45: 0 | CE45: 0 | CF45: 2.875569227e-11 | CG45: 0 | CH45: 0 | CI45: 0 | CJ45: 0 | CK45: 0 | CL45: 0 | CM45: 0 | CN45: 0 | CO45: 0
A46: 43 | B46: ='NSP Data'!$C46 -> 4 | C46: ='NSP Data'!$A46 -> 2009 | D46: ='NSP Data'!D46 -> 271948.05 | E46: ='NSP Data'!E46 -> 811.91051 | F46: ='NSP Data'!F46 -> 50042.554 | G46: ='NSP Data'!G46 -> 25573.877 | H46: ='NSP Data'!H46 -> 3212.1843 | I46: ='NSP Data'!I46 -> 3289.4168 | O46: 1 | P46: 4.434934061e-10 | Q46: 0 | R46: 0 | S46: 0 | T46: 0 | U46: 0 | V46: 0 | W46: 0 | X46: 0 | Y46: 0 | Z46: 0 | AA46: 0 | AB46: 0 | AC46: 0 | AD46: 0 | AE46: 0 | AF46: 0 | AG46: 0 | AH46: 0 | AI46: 0 | AJ46: 0 | AK46: 0 | AL46: 0 | AM46: 0 | AN46: 0 | AO46: 0 | AP46: 0 | AQ46: 0 | AR46: 0 | AS46: 0 | AT46: 0 | AU46: 0 | AV46: 0 | AW46: 0 | AX46: 0 | AY46: 0 | AZ46: 0 | BA46: 0 | BB46: 0 | BC46: 0 | BD46: 0 | BE46: 0 | BF46: 0.9999999992 | BG46: 0 | BH46: 0 | BI46: 0 | BJ46: 0 | BK46: 0 | BL46: 0 | BM46: 0 | BN46: 0 | BO46: 0 | BP46: 0 | BQ46: 0 | BR46: 0 | BS46: 0 | BT46: 0 | BU46: 0 | BV46: 0 | BW46: 0 | BX46: 0 | BY46: 0 | BZ46: 0 | CA46: 0 | CB46: 0 | CC46: 0 | CD46: 0 | CE46: 0 | CF46: 2.040808569e-10 | CG46: 0 | CH46: 0 | CI46: 0 | CJ46: 0 | CK46: 0 | CL46: 1.58849812e-10 | CM46: 0 | CN46: 0 | CO46: 0
A47: 44 | B47: ='NSP Data'!$C47 -> 5 | C47: ='NSP Data'!$A47 -> 2009 | D47: ='NSP Data'!D47 -> 261199.26 | E47: ='NSP Data'!E47 -> 792.45034 | F47: ='NSP Data'!F47 -> 51064.019 | G47: ='NSP Data'!G47 -> 24410.569 | H47: ='NSP Data'!H47 -> 3408.3654 | I47: ='NSP Data'!I47 -> 3315.889 | O47: 0.9663441729 | P47: 0 | Q47: 0 | R47: 0 | S47: 0 | T47: 0 | U47: 0 | V47: 0 | W47: 0 | X47: 0 | Y47: 0 | Z47: 0 | AA47: 0 | AB47: 0 | AC47: 0 | AD47: 0 | AE47: 0 | AF47: 0 | AG47: 0 | AH47: 0 | AI47: 0 | AJ47: 0 | AK47: 0 | AL47: 0 | AM47: 0 | AN47: 0 | AO47: 0 | AP47: 0 | AQ47: 0 | AR47: 0.2595166318 | AS47: 0 | AT47: 0 | AU47: 0 | AV47: 0 | AW47: 0 | AX47: 0 | AY47: 0 | AZ47: 0 | BA47: 0 | BB47: 0 | BC47: 0.3333168519 | BD47: 0 | BE47: 0 | BF47: 0.04161981724 | BG47: 0 | BH47: 0 | BI47: 0 | BJ47: 0 | BK47: 0 | BL47: 0 | BM47: 0 | BN47: 0 | BO47: 0 | BP47: 0 | BQ47: 0 | BR47: 0 | BS47: 0 | BT47: 0 | BU47: 0 | BV47: 0 | BW47: 0 | BX47: 0 | BY47: 0 | BZ47: 0 | CA47: 0 | CB47: 0.1868529299 | CC47: 0 | CD47: 0 | CE47: 0 | CF47: 0.1543604291 | CG47: 0 | CH47: 0 | CI47: 0 | CJ47: 0 | CK47: 0 | CL47: 0 | CM47: 0 | CN47: 0 | CO47: 0
A48: 45 | B48: ='NSP Data'!$C48 -> 6 | C48: ='NSP Data'!$A48 -> 2009 | D48: ='NSP Data'!D48 -> 266786.48 | E48: ='NSP Data'!E48 -> 782.65094 | F48: ='NSP Data'!F48 -> 50936.919 | G48: ='NSP Data'!G48 -> 22393.268 | H48: ='NSP Data'!H48 -> 3396.5777 | I48: ='NSP Data'!I48 -> 3400.6919 | O48: 0.9950792795 | P48: 0 | Q48: 0 | R48: 0 | S48: 0 | T48: 0 | U48: 0 | V48: 0 | W48: 0 | X48: 0 | Y48: 0 | Z48: 0 | AA48: 0 | AB48: 0 | AC48: 0 | AD48: 0 | AE48: 0 | AF48: 0 | AG48: 0 | AH48: 0 | AI48: 0 | AJ48: 0 | AK48: 0 | AL48: 0 | AM48: 0 | AN48: 0 | AO48: 0 | AP48: 0 | AQ48: 0 | AR48: 0 | AS48: 0 | AT48: 0 | AU48: 0 | AV48: 0.424123305 | AW48: 0 | AX48: 0 | AY48: 0 | AZ48: 0 | BA48: 0 | BB48: 0 | BC48: 0.145880228 | BD48: 0 | BE48: 0 | BF48: 0 | BG48: 0 | BH48: 0 | BI48: 0 | BJ48: 0 | BK48: 0 | BL48: 0 | BM48: 0 | BN48: 0 | BO48: 0 | BP48: 0 | BQ48: 0 | BR48: 0 | BS48: 0 | BT48: 0 | BU48: 0 | BV48: 0.01539890072 | BW48: 0 | BX48: 0 | BY48: 0 | BZ48: 0 | CA48: 0 | CB48: 0 | CC48: 0 | CD48: 0 | CE48: 0 | CF48: 0 | CG48: 0 | CH48: 0.3966017648 | CI48: 0 | CJ48: 0 | CK48: 0 | CL48: 0 | CM48: 0 | CN48: 0 | CO48: 0
A49: 46 | B49: ='NSP Data'!$C49 -> 7 | C49: ='NSP Data'!$A49 -> 2009 | D49: ='NSP Data'!D49 -> 263147.37 | E49: ='NSP Data'!E49 -> 781.546 | F49: ='NSP Data'!F49 -> 51368.711 | G49: ='NSP Data'!G49 -> 21753.803 | H49: ='NSP Data'!H49 -> 3353.5561 | I49: ='NSP Data'!I49 -> 3359.002 | O49: 0.9955848903 | P49: 0 | Q49: 0 | R49: 0 | S49: 0 | T49: 0 | U49: 0 | V49: 0 | W49: 0 | X49: 0 | Y49: 0 | Z49: 0 | AA49: 0 | AB49: 0 | AC49: 0 | AD49: 0 | AE49: 0 | AF49: 0 | AG49: 0 | AH49: 0 | AI49: 0 | AJ49: 0 | AK49: 0 | AL49: 0 | AM49: 0 | AN49: 0 | AO49: 0 | AP49: 0 | AQ49: 0 | AR49: 0 | AS49: 0 | AT49: 0 | AU49: 0 | AV49: 0.482521546 | AW49: 0 | AX49: 0 | AY49: 0 | AZ49: 0 | BA49: 0 | BB49: 0 | BC49: 0.04422299481 | BD49: 0 | BE49: 0 | BF49: 0 | BG49: 0 | BH49: 0 | BI49: 0 | BJ49: 0 | BK49: 0 | BL49: 0 | BM49: 0 | BN49: 0 | BO49: 0 | BP49: 0 | BQ49: 0 | BR49: 0 | BS49: 0 | BT49: 0 | BU49: 0 | BV49: 0.3212169552 | BW49: 0 | BX49: 0 | BY49: 0 | BZ49: 0 | CA49: 0 | CB49: 0 | CC49: 0 | CD49: 0 | CE49: 0 | CF49: 0 | CG49: 0 | CH49: 0.140065022 | CI49: 0 | CJ49: 0 | CK49: 0 | CL49: 0 | CM49: 0 | CN49: 0 | CO49: 0
